Workbook

Sheet PickupSlipEntry
A1: 2020 F2FP and F2C Program Pickups and Deliveries
B3: Invoice Check | G3: Delivery Site Check
B4: Invoice # | C4: 274410 | G4: Site | H4: Smalltown Mercantile | I4: Dates
B5: Total Lbs | C5: =SUMIF(B18:B2015, INDIRECT("C4"), E18:E2015) -> 48.3 | G5: Total Lbs | H5: =SUMIFS(E18:E2015,C18:C2015,">="&J5,C18:C2015,"<="&J6,D18:D2015,"="&H4) -> 87 | I5: Start | J5: 2020-01-01
B6: NDP Score | C6: =SUMIF(B18:B2015, INDIRECT("C4"), Q18:Q2015) -> 52.39584 | G6: NDP Score | H6: =SUMIFS(Q18:Q2015,C18:C2015,">="&J5,C18:C2015,"<="&J6,D18:D2015,"="&H4) -> 169.07558 | I6: End | J6: 2020-12-25
B7: Total PDPs | C7: =SUMIF(B18:B2015, INDIRECT("C4"), S18:S2015) -> 11.592 | G7: PDPs | H7: =SUMIFS(S18:S2015,C18:C2015,">="&J5,C18:C2015,"<="&J6,D18:D2015,"="&H4) -> 51.724
B8: Total Contract: | C8: =SUMIF(B18:B2015, INDIRECT("C4"), N18:N2015) -> 36.23
P9: Avg NDPs per $: | R9: =IFERROR(AVERAGE(R18:R2015),0) -> 1.610243902
N11: Total
B12: Total PDPs: | D12: =SUM(S18:S2015) -> 140.424 | G12: Total Contract: | H12: =SUM(N18:N2015) -> 339.09 | L12: Average | M12: Total | N12: Value | O12: Total | P12: Average | Q12: Total | R12: Average | S12: Total
B13: Total NDP Score: | D13: =SUM(Q18:Q2015) -> 535.82038 | G13: Avg NDPs per $: | H13: =IFERROR(AVERAGE(R18:R2015),0) -> 1.610243902 | L13: =AVERAGE(L18:L2015) -> 1.12145122 | M13: =SUM(M18:M2017) -> 2.99 | N13: =SUM(N18:N2015) -> 339.09 | O13: =SUM(Q18:Q2015) -> 535.82038 | P13: =AVERAGE(P18:P2015) -> 4.500487805 | Q13: =SUM(Q18:Q2015) -> 535.82038 | R13: =AVERAGE(R18:R2015) -> 1.610243902 | S13: =SUM(S18:S2015) -> 140.424
L15: Contract
K16: Wholesale | L16: Value | M16: Adjust | N16: Total_Value | O16: FM Retail Value
B17: InvoiceNo | C17: Deliv_Date | D17: Delivery Site | E17: Quantity | F17: Unit | G17: Prouduce Type | H17: Pricelist_Name | I17: Produce_Source | J17: Program | K17: Markup | L17: ($ Per Lb ) | M17: Plus ($) | N17: ($) | O17: ($ Per Lb) | P17: NNR Score | Q17: Bulk NDP Score | R17: NDP per $ | S17: Total_PDPs
A18: 1 | B18: 274401 | C18: 2020-07-28 | D18: Smalltown Mercantile | E18: 3 | F18: =IF(ISBLANK(H18),"",IF(VLOOKUP(H18,RawData!$D$8:$M$127,9,FALSE)=0,"",VLOOKUP(H18,RawData!$D$8:$M$127,9,FALSE))) -> Lb | G18: =IF(ISBLANK(H18),"",VLOOKUP(H18,RawData!$D$8:$M$127,2,FALSE)) -> Salad Vegetable | H18: Squash, summer, mature | I18: Guarded Optimism Farm | K18: 0 | L18: =IF(ISBLANK(H18),"",VLOOKUP(H18,FarmPricelistWorkSheet!$D$3:$N$125,5,FALSE)*(1+K18)) -> 0.75 | M18: 0 | N18: =IF(ISBLANK(H18),"",ROUND((L18*E18 + M18),2)) -> 2.25 | O18: =IF(ISBLANK(H18),"",VLOOKUP(H18,RawData!$D$8:$K$127,8,FALSE)) -> 1.4 | P18: =IF(ROUND(IFERROR(VLOOKUP(H18,FarmPricelistWorkSheet!$D$2:$N$124,7,FALSE),0),2)=0,"-",(ROUND(IFERROR(VLOOKUP(H18,FarmPricelistWorkSheet!$D$2:$N$124,7,FALSE),0),2))) -> 4.52 | Q18: =IFERROR(IF(S18*P18 = 0,"-",S18*P18),"-") -> 3.2544 | R18: =IF(ROUND(IFERROR(Q18/N18,0),2)=0,"-",(ROUND(IFERROR(Q18/N18,0),2))) -> 1.45 | S18: =IF(ROUND(IFERROR(VLOOKUP(H18,FarmPricelistWorkSheet!$D$2:$N$124,9,FALSE),0),2)*E18 = 0,"-",ROUND(IFERROR(VLOOKUP(H18,FarmPricelistWorkSheet!$D$2:$N$124,9,FALSE),0),2)*E18) -> 0.72
A19: =1+A18 -> 2 | B19: 274401 | C19: 2020-07-28 | D19: Smalltown Mercantile | E19: 3.6 | F19: =IF(ISBLANK(H19),"",IF(VLOOKUP(H19,RawData!$D$8:$M$127,9,FALSE)=0,"",VLOOKUP(H19,RawData!$D$8:$M$127,9,FALSE))) -> Lb | G19: =IF(ISBLANK(H19),"",VLOOKUP(H19,RawData!$D$8:$M$127,2,FALSE)) -> Salad Vegetable | H19: Squash, summer, mature | I19: Guarded Optimism Farm | K19: 0 | L19: =IF(ISBLANK(H19),"",VLOOKUP(H19,FarmPricelistWorkSheet!$D$3:$N$125,5,FALSE)*(1+K19)) -> 0.75 | M19: 0 | N19: =IF(ISBLANK(H19),"",ROUND((L19*E19 + M19),2)) -> 2.7 | O19: =IF(ISBLANK(H19),"",VLOOKUP(H19,RawData!$D$8:$K$127,8,FALSE)) -> 1.4 | P19: =IF(ROUND(IFERROR(VLOOKUP(H19,FarmPricelistWorkSheet!$D$2:$N$124,7,FALSE),0),2)=0,"-",(ROUND(IFERROR(VLOOKUP(H19,FarmPricelistWorkSheet!$D$2:$N$124,7,FALSE),0),2))) -> 4.52 | Q19: =IFERROR(IF(S19*P19 = 0,"-",S19*P19),"-") -> 3.90528 | R19: =IF(ROUND(IFERROR(Q19/N19,0),2)=0,"-",(ROUND(IFERROR(Q19/N19,0),2))) -> 1.45 | S19: =IF(ROUND(IFERROR(VLOOKUP(H19,FarmPricelistWorkSheet!$D$2:$N$124,9,FALSE),0),2)*E19 = 0,"-",ROUND(IFERROR(VLOOKUP(H19,FarmPricelistWorkSheet!$D$2:$N$124,9,FALSE),0),2)*E19) -> 0.864
A20: =1+A19 -> 3 | B20: 274402 | C20: 2020-07-28 | D20: Hardlyatown Quickstop | F20: =IF(ISBLANK(H20),"",IF(VLOOKUP(H20,RawData!$D$8:$M$127,9,FALSE)=0,"",VLOOKUP(H20,RawData!$D$8:$M$127,9,FALSE))) ->  | G20: =IF(ISBLANK(H20),"",VLOOKUP(H20,RawData!$D$8:$M$127,2,FALSE)) ->  | I20: Guarded Optimism Farm | K20: 0 | L20: =IF(ISBLANK(H20),"",VLOOKUP(H20,FarmPricelistWorkSheet!$D$3:$N$125,5,FALSE)*(1+K20)) ->  | M20: 0 | O20: =IF(ISBLANK(H20),"",VLOOKUP(H20,RawData!$D$8:$K$127,8,FALSE)) ->  | P20: =IF(ROUND(IFERROR(VLOOKUP(H20,FarmPricelistWorkSheet!$D$2:$N$124,7,FALSE),0),2)=0,"-",(ROUND(IFERROR(VLOOKUP(H20,FarmPricelistWorkSheet!$D$2:$N$124,7,FALSE),0),2))) -> - | Q20: - | R20: - | S20: =IF(ROUND(IFERROR(VLOOKUP(H20,FarmPricelistWorkSheet!$D$2:$N$124,9,FALSE),0),2)*E20 = 0,"-",ROUND(IFERROR(VLOOKUP(H20,FarmPricelistWorkSheet!$D$2:$N$124,9,FALSE),0),2)*E20) -> -
A21: 4 | B21: 274403 | C21: 2020-07-28 | D21: Hardlyatown Quickstop | E21: 4.2 | F21: =IF(ISBLANK(H21),"",IF(VLOOKUP(H21,RawData!$D$8:$M$127,9,FALSE)=0,"",VLOOKUP(H21,RawData!$D$8:$M$127,9,FALSE))) -> Lb | G21: =IF(ISBLANK(H21),"",VLOOKUP(H21,RawData!$D$8:$M$127,2,FALSE)) -> Salad Vegetable | H21: Squash, summer, mature | I21: Guarded Optimism Farm | K21: 0 | L21: =IF(ISBLANK(H21),"",VLOOKUP(H21,FarmPricelistWorkSheet!$D$3:$N$125,5,FALSE)*(1+K21)) -> 0.75 | M21: 0 | N21: 3.15 | O21: =IF(ISBLANK(H21),"",VLOOKUP(H21,RawData!$D$8:$K$127,8,FALSE)) -> 1.4 | P21: =IF(ROUND(IFERROR(VLOOKUP(H21,FarmPricelistWorkSheet!$D$2:$N$124,7,FALSE),0),2)=0,"-",(ROUND(IFERROR(VLOOKUP(H21,FarmPricelistWorkSheet!$D$2:$N$124,7,FALSE),0),2))) -> 4.52 | Q21: 4.55616 | R21: 1.45 | S21: =IF(ROUND(IFERROR(VLOOKUP(H21,FarmPricelistWorkSheet!$D$2:$N$124,9,FALSE),0),2)*E21 = 0,"-",ROUND(IFERROR(VLOOKUP(H21,FarmPricelistWorkSheet!$D$2:$N$124,9,FALSE),0),2)*E21) -> 1.008
A22: 5 | B22: 274403 | C22: 2020-07-28 | D22: Hardlyatown Food Pantry | E22: 12.5 | F22: =IF(ISBLANK(H22),"",IF(VLOOKUP(H22,RawData!$D$8:$M$127,9,FALSE)=0,"",VLOOKUP(H22,RawData!$D$8:$M$127,9,FALSE))) -> Lb | G22: =IF(ISBLANK(H22),"",VLOOKUP(H22,RawData!$D$8:$M$127,2,FALSE)) -> Salad Vegetable | H22: Cucumber, slicing | I22: Guarded Optimism Farm | K22: 0 | L22: =IF(ISBLANK(H22),"",VLOOKUP(H22,FarmPricelistWorkSheet!$D$3:$N$125,5,FALSE)*(1+K22)) -> 0.7 | M22: 0 | N22: 8.75 | O22: =IF(ISBLANK(H22),"",VLOOKUP(H22,RawData!$D$8:$K$127,8,FALSE)) -> 1.44 | P22: =IF(ROUND(IFERROR(VLOOKUP(H22,FarmPricelistWorkSheet!$D$2:$N$124,7,FALSE),0),2)=0,"-",(ROUND(IFERROR(VLOOKUP(H22,FarmPricelistWorkSheet!$D$2:$N$124,7,FALSE),0),2))) -> 1.85 | Q22: 12.71875 | R22: 1.45 | S22: =IF(ROUND(IFERROR(VLOOKUP(H22,FarmPricelistWorkSheet!$D$2:$N$124,9,FALSE),0),2)*E22 = 0,"-",ROUND(IFERROR(VLOOKUP(H22,FarmPricelistWorkSheet!$D$2:$N$124,9,FALSE),0),2)*E22) -> 6.875
A23: 6 | B23: 274403 | C23: 2020-07-28 | D23: Hardlyatown Food Pantry | E23: 56.3 | F23: =IF(ISBLANK(H23),"",IF(VLOOKUP(H23,RawData!$D$8:$M$127,9,FALSE)=0,"",VLOOKUP(H23,RawData!$D$8:$M$127,9,FALSE))) -> Lb | G23: =IF(ISBLANK(H23),"",VLOOKUP(H23,RawData!$D$8:$M$127,2,FALSE)) -> Salad Vegetable | H23: Squash, summer, mature | I23: Jaded Resignation Farm | K23: 0 | L23: =IF(ISBLANK(H23),"",VLOOKUP(H23,FarmPricelistWorkSheet!$D$3:$N$125,5,FALSE)*(1+K23)) -> 0.75 | M23: 0 | N23: 42.23 | O23: =IF(ISBLANK(H23),"",VLOOKUP(H23,RawData!$D$8:$K$127,8,FALSE)) -> 1.4 | P23: =IF(ROUND(IFERROR(VLOOKUP(H23,FarmPricelistWorkSheet!$D$2:$N$124,7,FALSE),0),2)=0,"-",(ROUND(IFERROR(VLOOKUP(H23,FarmPricelistWorkSheet!$D$2:$N$124,7,FALSE),0),2))) -> 4.52 | Q23: 61.07424 | R23: 1.45 | S23: =IF(ROUND(IFERROR(VLOOKUP(H23,FarmPricelistWorkSheet!$D$2:$N$124,9,FALSE),0),2)*E23 = 0,"-",ROUND(IFERROR(VLOOKUP(H23,FarmPricelistWorkSheet!$D$2:$N$124,9,FALSE),0),2)*E23) -> 13.512
A24: 7 | B24: 274404 | C24: 2020-08-04 | D24: Usedtobeatown Korner | E24: 20.5 | F24: =IF(ISBLANK(H24),"",IF(VLOOKUP(H24,RawData!$D$8:$M$127,9,FALSE)=0,"",VLOOKUP(H24,RawData!$D$8:$M$127,9,FALSE))) -> Lb | G24: =IF(ISBLANK(H24),"",VLOOKUP(H24,RawData!$D$8:$M$127,2,FALSE)) -> Cooking Vegetable | H24: Corn, sweet | I24: Jaded Resignation Farm | K24: 0 | L24: =IF(ISBLANK(H24),"",VLOOKUP(H24,FarmPricelistWorkSheet!$D$3:$N$125,5,FALSE)*(1+K24)) -> 0.65 | M24: 0.17 | N24: 13.5 | O24: =IF(ISBLANK(H24),"",VLOOKUP(H24,RawData!$D$8:$K$127,8,FALSE)) -> 0.5 | P24: =IF(ROUND(IFERROR(VLOOKUP(H24,FarmPricelistWorkSheet!$D$2:$N$124,7,FALSE),0),2)=0,"-",(ROUND(IFERROR(VLOOKUP(H24,FarmPricelistWorkSheet!$D$2:$N$124,7,FALSE),0),2))) -> 5.33 | Q24: 60.09575 | R24: 4.45 | S24: =IF(ROUND(IFERROR(VLOOKUP(H24,FarmPricelistWorkSheet!$D$2:$N$124,9,FALSE),0),2)*E24 = 0,"-",ROUND(IFERROR(VLOOKUP(H24,FarmPricelistWorkSheet!$D$2:$N$124,9,FALSE),0),2)*E24) -> 11.275
A25: 8 | B25: 274404 | C25: 2020-08-04 | D25: Usedtobeatown Korner | E25: 3 | F25: =IF(ISBLANK(H25),"",IF(VLOOKUP(H25,RawData!$D$8:$M$127,9,FALSE)=0,"",VLOOKUP(H25,RawData!$D$8:$M$127,9,FALSE))) -> Lb | G25: =IF(ISBLANK(H25),"",VLOOKUP(H25,RawData!$D$8:$M$127,2,FALSE)) -> Salad Vegetable | H25: Squash, summer, mature | I25: Jaded Resignation Farm | K25: 0.15 | L25: =IF(ISBLANK(H25),"",VLOOKUP(H25,FarmPricelistWorkSheet!$D$3:$N$125,5,FALSE)*(1+K25)) -> 0.8625 | M25: -0.01 | N25: 2.58 | O25: =IF(ISBLANK(H25),"",VLOOKUP(H25,RawData!$D$8:$K$127,8,FALSE)) -> 1.4 | P25: =IF(ROUND(IFERROR(VLOOKUP(H25,FarmPricelistWorkSheet!$D$2:$N$124,7,FALSE),0),2)=0,"-",(ROUND(IFERROR(VLOOKUP(H25,FarmPricelistWorkSheet!$D$2:$N$124,7,FALSE),0),2))) -> 4.52 | Q25: 3.2544 | R25: 1.26 | S25: =IF(ROUND(IFERROR(VLOOKUP(H25,FarmPricelistWorkSheet!$D$2:$N$124,9,FALSE),0),2)*E25 = 0,"-",ROUND(IFERROR(VLOOKUP(H25,FarmPricelistWorkSheet!$D$2:$N$124,9,FALSE),0),2)*E25) -> 0.72
A26: 9 | B26: 274404 | C26: 2020-08-04 | D26: Usedtobeatown Korner | E26: 2.5 | F26: =IF(ISBLANK(H26),"",IF(VLOOKUP(H26,RawData!$D$8:$M$127,9,FALSE)=0,"",VLOOKUP(H26,RawData!$D$8:$M$127,9,FALSE))) -> Lb | G26: =IF(ISBLANK(H26),"",VLOOKUP(H26,RawData!$D$8:$M$127,2,FALSE)) -> Salad Vegetable | H26: Squash, summer, mature | I26: Jaded Resignation Farm | K26: 0.15 | L26: =IF(ISBLANK(H26),"",VLOOKUP(H26,FarmPricelistWorkSheet!$D$3:$N$125,5,FALSE)*(1+K26)) -> 0.8625 | M26: -0.01 | N26: 2.15 | O26: =IF(ISBLANK(H26),"",VLOOKUP(H26,RawData!$D$8:$K$127,8,FALSE)) -> 1.4 | P26: =IF(ROUND(IFERROR(VLOOKUP(H26,FarmPricelistWorkSheet!$D$2:$N$124,7,FALSE),0),2)=0,"-",(ROUND(IFERROR(VLOOKUP(H26,FarmPricelistWorkSheet!$D$2:$N$124,7,FALSE),0),2))) -> 4.52 | Q26: 2.712 | R26: 1.26 | S26: =IF(ROUND(IFERROR(VLOOKUP(H26,FarmPricelistWorkSheet!$D$2:$N$124,9,FALSE),0),2)*E26 = 0,"-",ROUND(IFERROR(VLOOKUP(H26,FarmPricelistWorkSheet!$D$2:$N$124,9,FALSE),0),2)*E26) -> 0.6
A27: 10 | B27: 274404 | C27: 2020-08-04 | D27: Usedtobeatown Korner | E27: 1 | F27: =IF(ISBLANK(H27),"",IF(VLOOKUP(H27,RawData!$D$8:$M$127,9,FALSE)=0,"",VLOOKUP(H27,RawData!$D$8:$M$127,9,FALSE))) -> Lb | G27: =IF(ISBLANK(H27),"",VLOOKUP(H27,RawData!$D$8:$M$127,2,FALSE)) -> Salad Vegetable | H27: Basil | I27: Jaded Resignation Farm | K27: 0.15 | L27: =IF(ISBLANK(H27),"",VLOOKUP(H27,FarmPricelistWorkSheet!$D$3:$N$125,5,FALSE)*(1+K27)) -> 5.8075 | M27: -0.01 | N27: 5.8 | O27: =IF(ISBLANK(H27),"",VLOOKUP(H27,RawData!$D$8:$K$127,8,FALSE)) -> 9.333333333 | P27: =IF(ROUND(IFERROR(VLOOKUP(H27,FarmPricelistWorkSheet!$D$2:$N$124,7,FALSE),0),2)=0,"-",(ROUND(IFERROR(VLOOKUP(H27,FarmPricelistWorkSheet!$D$2:$N$124,7,FALSE),0),2))) -> 13.96 | Q27: 7.678 | R27: 1.32 | S27: =IF(ROUND(IFERROR(VLOOKUP(H27,FarmPricelistWorkSheet!$D$2:$N$124,9,FALSE),0),2)*E27 = 0,"-",ROUND(IFERROR(VLOOKUP(H27,FarmPricelistWorkSheet!$D$2:$N$124,9,FALSE),0),2)*E27) -> 0.55
A28: 11 | B28: 274405 | C28: 2020-08-04 | D28: Usedtobeatown Food Pantry | E28: 2.8 | F28: =IF(ISBLANK(H28),"",IF(VLOOKUP(H28,RawData!$D$8:$M$127,9,FALSE)=0,"",VLOOKUP(H28,RawData!$D$8:$M$127,9,FALSE))) -> Lb | G28: =IF(ISBLANK(H28),"",VLOOKUP(H28,RawData!$D$8:$M$127,2,FALSE)) -> Salad Vegetable | H28: Squash, summer, mature | I28: Jaded Resignation Farm | K28: 0.15 | L28: =IF(ISBLANK(H28),"",VLOOKUP(H28,FarmPricelistWorkSheet!$D$3:$N$125,5,FALSE)*(1+K28)) -> 0.8625 | M28: -0.02 | N28: 2.4 | O28: =IF(ISBLANK(H28),"",VLOOKUP(H28,RawData!$D$8:$K$127,8,FALSE)) -> 1.4 | P28: =IF(ROUND(IFERROR(VLOOKUP(H28,FarmPricelistWorkSheet!$D$2:$N$124,7,FALSE),0),2)=0,"-",(ROUND(IFERROR(VLOOKUP(H28,FarmPricelistWorkSheet!$D$2:$N$124,7,FALSE),0),2))) -> 4.52 | Q28: 3.03744 | R28: 1.27 | S28: =IF(ROUND(IFERROR(VLOOKUP(H28,FarmPricelistWorkSheet!$D$2:$N$124,9,FALSE),0),2)*E28 = 0,"-",ROUND(IFERROR(VLOOKUP(H28,FarmPricelistWorkSheet!$D$2:$N$124,9,FALSE),0),2)*E28) -> 0.672
A29: 12 | B29: 274405 | C29: 2020-08-04 | D29: Usedtobeatown Food Pantry | E29: 2.8 | F29: =IF(ISBLANK(H29),"",IF(VLOOKUP(H29,RawData!$D$8:$M$127,9,FALSE)=0,"",VLOOKUP(H29,RawData!$D$8:$M$127,9,FALSE))) -> Lb | G29: =IF(ISBLANK(H29),"",VLOOKUP(H29,RawData!$D$8:$M$127,2,FALSE)) -> Salad Vegetable | H29: Squash, summer, mature | I29: Jaded Resignation Farm | K29: 0.15 | L29: =IF(ISBLANK(H29),"",VLOOKUP(H29,FarmPricelistWorkSheet!$D$3:$N$125,5,FALSE)*(1+K29)) -> 0.8625 | M29: 0 | N29: 2.42 | O29: =IF(ISBLANK(H29),"",VLOOKUP(H29,RawData!$D$8:$K$127,8,FALSE)) -> 1.4 | P29: =IF(ROUND(IFERROR(VLOOKUP(H29,FarmPricelistWorkSheet!$D$2:$N$124,7,FALSE),0),2)=0,"-",(ROUND(IFERROR(VLOOKUP(H29,FarmPricelistWorkSheet!$D$2:$N$124,7,FALSE),0),2))) -> 4.52 | Q29: 3.03744 | R29: 1.26 | S29: =IF(ROUND(IFERROR(VLOOKUP(H29,FarmPricelistWorkSheet!$D$2:$N$124,9,FALSE),0),2)*E29 = 0,"-",ROUND(IFERROR(VLOOKUP(H29,FarmPricelistWorkSheet!$D$2:$N$124,9,FALSE),0),2)*E29) -> 0.672
A30: 13 | B30: 274405 | C30: 2020-08-04 | D30: Usedtobeatown Food Pantry | E30: 3.2 | F30: =IF(ISBLANK(H30),"",IF(VLOOKUP(H30,RawData!$D$8:$M$127,9,FALSE)=0,"",VLOOKUP(H30,RawData!$D$8:$M$127,9,FALSE))) -> Lb | G30: =IF(ISBLANK(H30),"",VLOOKUP(H30,RawData!$D$8:$M$127,2,FALSE)) -> Salad Vegetable | H30: Squash, summer, mature | I30: Jaded Resignation Farm | K30: 0.15 | L30: =IF(ISBLANK(H30),"",VLOOKUP(H30,FarmPricelistWorkSheet!$D$3:$N$125,5,FALSE)*(1+K30)) -> 0.8625 | M30: -0.01 | N30: 2.75 | O30: =IF(ISBLANK(H30),"",VLOOKUP(H30,RawData!$D$8:$K$127,8,FALSE)) -> 1.4 | P30: =IF(ROUND(IFERROR(VLOOKUP(H30,FarmPricelistWorkSheet!$D$2:$N$124,7,FALSE),0),2)=0,"-",(ROUND(IFERROR(VLOOKUP(H30,FarmPricelistWorkSheet!$D$2:$N$124,7,FALSE),0),2))) -> 4.52 | Q30: 3.47136 | R30: 1.26 | S30: =IF(ROUND(IFERROR(VLOOKUP(H30,FarmPricelistWorkSheet!$D$2:$N$124,9,FALSE),0),2)*E30 = 0,"-",ROUND(IFERROR(VLOOKUP(H30,FarmPricelistWorkSheet!$D$2:$N$124,9,FALSE),0),2)*E30) -> 0.768
A31: 14 | B31: 274405 | C31: 2020-08-04 | D31: Usedtobeatown Food Pantry | E31: 2.3 | F31: =IF(ISBLANK(H31),"",IF(VLOOKUP(H31,RawData!$D$8:$M$127,9,FALSE)=0,"",VLOOKUP(H31,RawData!$D$8:$M$127,9,FALSE))) -> Lb | G31: =IF(ISBLANK(H31),"",VLOOKUP(H31,RawData!$D$8:$M$127,2,FALSE)) -> Salad Vegetable | H31: Squash, summer, mature | I31: Jaded Resignation Farm | K31: 0.15 | L31: =IF(ISBLANK(H31),"",VLOOKUP(H31,FarmPricelistWorkSheet!$D$3:$N$125,5,FALSE)*(1+K31)) -> 0.8625 | M31: 0 | N31: 1.98 | O31: =IF(ISBLANK(H31),"",VLOOKUP(H31,RawData!$D$8:$K$127,8,FALSE)) -> 1.4 | P31: =IF(ROUND(IFERROR(VLOOKUP(H31,FarmPricelistWorkSheet!$D$2:$N$124,7,FALSE),0),2)=0,"-",(ROUND(IFERROR(VLOOKUP(H31,FarmPricelistWorkSheet!$D$2:$N$124,7,FALSE),0),2))) -> 4.52 | Q31: 2.49504 | R31: 1.26 | S31: =IF(ROUND(IFERROR(VLOOKUP(H31,FarmPricelistWorkSheet!$D$2:$N$124,9,FALSE),0),2)*E31 = 0,"-",ROUND(IFERROR(VLOOKUP(H31,FarmPricelistWorkSheet!$D$2:$N$124,9,FALSE),0),2)*E31) -> 0.552
A32: 15 | B32: 274405 | C32: 2020-08-04 | D32: Usedtobeatown Food Pantry | E32: 0.4 | F32: =IF(ISBLANK(H32),"",IF(VLOOKUP(H32,RawData!$D$8:$M$127,9,FALSE)=0,"",VLOOKUP(H32,RawData!$D$8:$M$127,9,FALSE))) -> Lb | G32: =IF(ISBLANK(H32),"",VLOOKUP(H32,RawData!$D$8:$M$127,2,FALSE)) -> Salad Vegetable | H32: Basil | I32: Jaded Resignation Farm | K32: 0.15 | L32: =IF(ISBLANK(H32),"",VLOOKUP(H32,FarmPricelistWorkSheet!$D$3:$N$125,5,FALSE)*(1+K32)) -> 5.8075 | M32: 0 | N32: 2.32 | O32: =IF(ISBLANK(H32),"",VLOOKUP(H32,RawData!$D$8:$K$127,8,FALSE)) -> 9.333333333 | P32: =IF(ROUND(IFERROR(VLOOKUP(H32,FarmPricelistWorkSheet!$D$2:$N$124,7,FALSE),0),2)=0,"-",(ROUND(IFERROR(VLOOKUP(H32,FarmPricelistWorkSheet!$D$2:$N$124,7,FALSE),0),2))) -> 13.96 | Q32: 3.0712 | R32: 1.32 | S32: =IF(ROUND(IFERROR(VLOOKUP(H32,FarmPricelistWorkSheet!$D$2:$N$124,9,FALSE),0),2)*E32 = 0,"-",ROUND(IFERROR(VLOOKUP(H32,FarmPricelistWorkSheet!$D$2:$N$124,9,FALSE),0),2)*E32) -> 0.22
A33: 16 | B33: 274405 | C33: 2020-08-04 | D33: Usedtobeatown Food Pantry | E33: 6 | F33: =IF(ISBLANK(H33),"",IF(VLOOKUP(H33,RawData!$D$8:$M$127,9,FALSE)=0,"",VLOOKUP(H33,RawData!$D$8:$M$127,9,FALSE))) -> Lb | G33: =IF(ISBLANK(H33),"",VLOOKUP(H33,RawData!$D$8:$M$127,2,FALSE)) -> Cooking Vegetable | H33: Corn, sweet | I33: Guarded Optimism Farm | K33: 0.15 | L33: =IF(ISBLANK(H33),"",VLOOKUP(H33,FarmPricelistWorkSheet!$D$3:$N$125,5,FALSE)*(1+K33)) -> 0.7475 | M33: 0.01 | N33: 4.5 | O33: =IF(ISBLANK(H33),"",VLOOKUP(H33,RawData!$D$8:$K$127,8,FALSE)) -> 0.5 | P33: =IF(ROUND(IFERROR(VLOOKUP(H33,FarmPricelistWorkSheet!$D$2:$N$124,7,FALSE),0),2)=0,"-",(ROUND(IFERROR(VLOOKUP(H33,FarmPricelistWorkSheet!$D$2:$N$124,7,FALSE),0),2))) -> 5.33 | Q33: 17.589 | R33: 3.91 | S33: =IF(ROUND(IFERROR(VLOOKUP(H33,FarmPricelistWorkSheet!$D$2:$N$124,9,FALSE),0),2)*E33 = 0,"-",ROUND(IFERROR(VLOOKUP(H33,FarmPricelistWorkSheet!$D$2:$N$124,9,FALSE),0),2)*E33) -> 3.3
A34: 17 | B34: 274405 | C34: 2020-08-04 | D34: Usedtobeatown Food Pantry | E34: 4.5 | F34: =IF(ISBLANK(H34),"",IF(VLOOKUP(H34,RawData!$D$8:$M$127,9,FALSE)=0,"",VLOOKUP(H34,RawData!$D$8:$M$127,9,FALSE))) -> Lb | G34: =IF(ISBLANK(H34),"",VLOOKUP(H34,RawData!$D$8:$M$127,2,FALSE)) -> Salad Vegetable | H34: Cucumber, slicing | I34: Guarded Optimism Farm | K34: 0.15 | L34: =IF(ISBLANK(H34),"",VLOOKUP(H34,FarmPricelistWorkSheet!$D$3:$N$125,5,FALSE)*(1+K34)) -> 0.805 | M34: 0 | N34: 3.62 | O34: =IF(ISBLANK(H34),"",VLOOKUP(H34,RawData!$D$8:$K$127,8,FALSE)) -> 1.44 | P34: =IF(ROUND(IFERROR(VLOOKUP(H34,FarmPricelistWorkSheet!$D$2:$N$124,7,FALSE),0),2)=0,"-",(ROUND(IFERROR(VLOOKUP(H34,FarmPricelistWorkSheet!$D$2:$N$124,7,FALSE),0),2))) -> 1.85 | Q34: 4.57875 | R34: 1.26 | S34: =IF(ROUND(IFERROR(VLOOKUP(H34,FarmPricelistWorkSheet!$D$2:$N$124,9,FALSE),0),2)*E34 = 0,"-",ROUND(IFERROR(VLOOKUP(H34,FarmPricelistWorkSheet!$D$2:$N$124,9,FALSE),0),2)*E34) -> 2.475
A35: 18 | B35: 274406 | C35: 2020-08-04 | D35: Usedtobeatown Food Pantry | E35: 1 | F35: =IF(ISBLANK(H35),"",IF(VLOOKUP(H35,RawData!$D$8:$M$127,9,FALSE)=0,"",VLOOKUP(H35,RawData!$D$8:$M$127,9,FALSE))) -> Lb | G35: =IF(ISBLANK(H35),"",VLOOKUP(H35,RawData!$D$8:$M$127,2,FALSE)) -> Cooking Vegetable | H35: Corn, sweet | I35: Guarded Optimism Farm | K35: 0.15 | L35: =IF(ISBLANK(H35),"",VLOOKUP(H35,FarmPricelistWorkSheet!$D$3:$N$125,5,FALSE)*(1+K35)) -> 0.7475 | M35: 0.15 | N35: 0.9 | O35: =IF(ISBLANK(H35),"",VLOOKUP(H35,RawData!$D$8:$K$127,8,FALSE)) -> 0.5 | P35: =IF(ROUND(IFERROR(VLOOKUP(H35,FarmPricelistWorkSheet!$D$2:$N$124,7,FALSE),0),2)=0,"-",(ROUND(IFERROR(VLOOKUP(H35,FarmPricelistWorkSheet!$D$2:$N$124,7,FALSE),0),2))) -> 5.33 | Q35: 2.9315 | R35: 3.26 | S35: =IF(ROUND(IFERROR(VLOOKUP(H35,FarmPricelistWorkSheet!$D$2:$N$124,9,FALSE),0),2)*E35 = 0,"-",ROUND(IFERROR(VLOOKUP(H35,FarmPricelistWorkSheet!$D$2:$N$124,9,FALSE),0),2)*E35) -> 0.55
A36: 19 | B36: 274407 | C36: 2020-08-11 | D36: Hardlyatown Quickstop | E36: 1.6 | F36: =IF(ISBLANK(H36),"",IF(VLOOKUP(H36,RawData!$D$8:$M$127,9,FALSE)=0,"",VLOOKUP(H36,RawData!$D$8:$M$127,9,FALSE))) -> Lb | G36: =IF(ISBLANK(H36),"",VLOOKUP(H36,RawData!$D$8:$M$127,2,FALSE)) -> Salad Vegetable | H36: Cucumber, slicing | I36: Guarded Optimism Farm | K36: 0.15 | L36: =IF(ISBLANK(H36),"",VLOOKUP(H36,FarmPricelistWorkSheet!$D$3:$N$125,5,FALSE)*(1+K36)) -> 0.805 | M36: 0.08 | N36: 1.37 | O36: =IF(ISBLANK(H36),"",VLOOKUP(H36,RawData!$D$8:$K$127,8,FALSE)) -> 1.44 | P36: =IF(ROUND(IFERROR(VLOOKUP(H36,FarmPricelistWorkSheet!$D$2:$N$124,7,FALSE),0),2)=0,"-",(ROUND(IFERROR(VLOOKUP(H36,FarmPricelistWorkSheet!$D$2:$N$124,7,FALSE),0),2))) -> 1.85 | Q36: 1.628 | R36: 1.19 | S36: =IF(ROUND(IFERROR(VLOOKUP(H36,FarmPricelistWorkSheet!$D$2:$N$124,9,FALSE),0),2)*E36 = 0,"-",ROUND(IFERROR(VLOOKUP(H36,FarmPricelistWorkSheet!$D$2:$N$124,9,FALSE),0),2)*E36) -> 0.88
A37: 20 | B37: 274407 | C37: 2020-08-11 | D37: Hardlyatown Quickstop | E37: 4.6 | F37: =IF(ISBLANK(H37),"",IF(VLOOKUP(H37,RawData!$D$8:$M$127,9,FALSE)=0,"",VLOOKUP(H37,RawData!$D$8:$M$127,9,FALSE))) -> Lb | G37: =IF(ISBLANK(H37),"",VLOOKUP(H37,RawData!$D$8:$M$127,2,FALSE)) -> Salad Vegetable | H37: Squash, summer, mature | I37: Jaded Resignation Farm | K37: 0.15 | L37: =IF(ISBLANK(H37),"",VLOOKUP(H37,FarmPricelistWorkSheet!$D$3:$N$125,5,FALSE)*(1+K37)) -> 0.8625 | M37: -0.02 | N37: 3.95 | O37: =IF(ISBLANK(H37),"",VLOOKUP(H37,RawData!$D$8:$K$127,8,FALSE)) -> 1.4 | P37: =IF(ROUND(IFERROR(VLOOKUP(H37,FarmPricelistWorkSheet!$D$2:$N$124,7,FALSE),0),2)=0,"-",(ROUND(IFERROR(VLOOKUP(H37,FarmPricelistWorkSheet!$D$2:$N$124,7,FALSE),0),2))) -> 4.52 | Q37: 4.99008 | R37: 1.26 | S37: =IF(ROUND(IFERROR(VLOOKUP(H37,FarmPricelistWorkSheet!$D$2:$N$124,9,FALSE),0),2)*E37 = 0,"-",ROUND(IFERROR(VLOOKUP(H37,FarmPricelistWorkSheet!$D$2:$N$124,9,FALSE),0),2)*E37) -> 1.104
A38: 21 | B38: 274407 | C38: 2020-08-11 | D38: Hardlyatown Quickstop | E38: 3.9 | F38: =IF(ISBLANK(H38),"",IF(VLOOKUP(H38,RawData!$D$8:$M$127,9,FALSE)=0,"",VLOOKUP(H38,RawData!$D$8:$M$127,9,FALSE))) -> Lb | G38: =IF(ISBLANK(H38),"",VLOOKUP(H38,RawData!$D$8:$M$127,2,FALSE)) -> Salad Vegetable | H38: Squash, summer, mature | I38: Jaded Resignation Farm | K38: 0.15 | L38: =IF(ISBLANK(H38),"",VLOOKUP(H38,FarmPricelistWorkSheet!$D$3:$N$125,5,FALSE)*(1+K38)) -> 0.8625 | M38: -0.01 | N38: 3.35 | O38: =IF(ISBLANK(H38),"",VLOOKUP(H38,RawData!$D$8:$K$127,8,FALSE)) -> 1.4 | P38: =IF(ROUND(IFERROR(VLOOKUP(H38,FarmPricelistWorkSheet!$D$2:$N$124,7,FALSE),0),2)=0,"-",(ROUND(IFERROR(VLOOKUP(H38,FarmPricelistWorkSheet!$D$2:$N$124,7,FALSE),0),2))) -> 4.52 | Q38: 4.23072 | R38: 1.26 | S38: =IF(ROUND(IFERROR(VLOOKUP(H38,FarmPricelistWorkSheet!$D$2:$N$124,9,FALSE),0),2)*E38 = 0,"-",ROUND(IFERROR(VLOOKUP(H38,FarmPricelistWorkSheet!$D$2:$N$124,9,FALSE),0),2)*E38) -> 0.936
A39: 22 | B39: 274407 | C39: 2020-08-11 | D39: Hardlyatown Quickstop | E39: 4.2 | F39: =IF(ISBLANK(H39),"",IF(VLOOKUP(H39,RawData!$D$8:$M$127,9,FALSE)=0,"",VLOOKUP(H39,RawData!$D$8:$M$127,9,FALSE))) -> Lb | G39: =IF(ISBLANK(H39),"",VLOOKUP(H39,RawData!$D$8:$M$127,2,FALSE)) -> Cooking Vegetable | H39: Celery | I39: Jaded Resignation Farm | K39: 0.15 | L39: =IF(ISBLANK(H39),"",VLOOKUP(H39,FarmPricelistWorkSheet!$D$3:$N$125,5,FALSE)*(1+K39)) -> 1.7825 | M39: -0.02 | N39: 7.47 | O39: =IF(ISBLANK(H39),"",VLOOKUP(H39,RawData!$D$8:$K$127,8,FALSE)) -> 3 | P39: =IF(ROUND(IFERROR(VLOOKUP(H39,FarmPricelistWorkSheet!$D$2:$N$124,7,FALSE),0),2)=0,"-",(ROUND(IFERROR(VLOOKUP(H39,FarmPricelistWorkSheet!$D$2:$N$124,7,FALSE),0),2))) -> 3.46 | Q39: 7.9926 | R39: 1.07 | S39: =IF(ROUND(IFERROR(VLOOKUP(H39,FarmPricelistWorkSheet!$D$2:$N$124,9,FALSE),0),2)*E39 = 0,"-",ROUND(IFERROR(VLOOKUP(H39,FarmPricelistWorkSheet!$D$2:$N$124,9,FALSE),0),2)*E39) -> 2.31
A40: 23 | B40: 274408 | C40: 2020-08-11 | D40: Smalltown Mercantile | E40: 4.6 | F40: =IF(ISBLANK(H40),"",IF(VLOOKUP(H40,RawData!$D$8:$M$127,9,FALSE)=0,"",VLOOKUP(H40,RawData!$D$8:$M$127,9,FALSE))) -> Lb | G40: =IF(ISBLANK(H40),"",VLOOKUP(H40,RawData!$D$8:$M$127,2,FALSE)) -> Salad Vegetable | H40: Cucumber, slicing | I40: Guarded Optimism Farm | K40: 0.23 | L40: =IF(ISBLANK(H40),"",VLOOKUP(H40,FarmPricelistWorkSheet!$D$3:$N$125,5,FALSE)*(1+K40)) -> 0.861 | M40: -0.01 | N40: 3.95 | O40: =IF(ISBLANK(H40),"",VLOOKUP(H40,RawData!$D$8:$K$127,8,FALSE)) -> 1.44 | P40: =IF(ROUND(IFERROR(VLOOKUP(H40,FarmPricelistWorkSheet!$D$2:$N$124,7,FALSE),0),2)=0,"-",(ROUND(IFERROR(VLOOKUP(H40,FarmPricelistWorkSheet!$D$2:$N$124,7,FALSE),0),2))) -> 1.85 | Q40: 4.6805 | R40: 1.18 | S40: =IF(ROUND(IFERROR(VLOOKUP(H40,FarmPricelistWorkSheet!$D$2:$N$124,9,FALSE),0),2)*E40 = 0,"-",ROUND(IFERROR(VLOOKUP(H40,FarmPricelistWorkSheet!$D$2:$N$124,9,FALSE),0),2)*E40) -> 2.53
A41: 24 | B41: 274408 | C41: 2020-08-11 | D41: Smalltown Mercantile | E41: 3.4 | F41: =IF(ISBLANK(H41),"",IF(VLOOKUP(H41,RawData!$D$8:$M$127,9,FALSE)=0,"",VLOOKUP(H41,RawData!$D$8:$M$127,9,FALSE))) -> Lb | G41: =IF(ISBLANK(H41),"",VLOOKUP(H41,RawData!$D$8:$M$127,2,FALSE)) -> Salad Vegetable | H41: Squash, summer, mature | I41: Jaded Resignation Farm | K41: 0.15 | L41: =IF(ISBLANK(H41),"",VLOOKUP(H41,FarmPricelistWorkSheet!$D$3:$N$125,5,FALSE)*(1+K41)) -> 0.8625 | M41: -0.01 | N41: 2.92 | O41: =IF(ISBLANK(H41),"",VLOOKUP(H41,RawData!$D$8:$K$127,8,FALSE)) -> 1.4 | P41: =IF(ROUND(IFERROR(VLOOKUP(H41,FarmPricelistWorkSheet!$D$2:$N$124,7,FALSE),0),2)=0,"-",(ROUND(IFERROR(VLOOKUP(H41,FarmPricelistWorkSheet!$D$2:$N$124,7,FALSE),0),2))) -> 4.52 | Q41: 3.68832 | R41: 1.26 | S41: =IF(ROUND(IFERROR(VLOOKUP(H41,FarmPricelistWorkSheet!$D$2:$N$124,9,FALSE),0),2)*E41 = 0,"-",ROUND(IFERROR(VLOOKUP(H41,FarmPricelistWorkSheet!$D$2:$N$124,9,FALSE),0),2)*E41) -> 0.816
A42: 25 | B42: 274408 | C42: 2020-08-11 | D42: Smalltown Mercantile | E42: 4.2 | F42: =IF(ISBLANK(H42),"",IF(VLOOKUP(H42,RawData!$D$8:$M$127,9,FALSE)=0,"",VLOOKUP(H42,RawData!$D$8:$M$127,9,FALSE))) -> Lb | G42: =IF(ISBLANK(H42),"",VLOOKUP(H42,RawData!$D$8:$M$127,2,FALSE)) -> Salad Vegetable | H42: Squash, summer, mature | I42: Jaded Resignation Farm | K42: 0.15 | L42: =IF(ISBLANK(H42),"",VLOOKUP(H42,FarmPricelistWorkSheet!$D$3:$N$125,5,FALSE)*(1+K42)) -> 0.8625 | M42: -0.01 | N42: 3.61 | O42: =IF(ISBLANK(H42),"",VLOOKUP(H42,RawData!$D$8:$K$127,8,FALSE)) -> 1.4 | P42: =IF(ROUND(IFERROR(VLOOKUP(H42,FarmPricelistWorkSheet!$D$2:$N$124,7,FALSE),0),2)=0,"-",(ROUND(IFERROR(VLOOKUP(H42,FarmPricelistWorkSheet!$D$2:$N$124,7,FALSE),0),2))) -> 4.52 | Q42: 4.55616 | R42: 1.26 | S42: =IF(ROUND(IFERROR(VLOOKUP(H42,FarmPricelistWorkSheet!$D$2:$N$124,9,FALSE),0),2)*E42 = 0,"-",ROUND(IFERROR(VLOOKUP(H42,FarmPricelistWorkSheet!$D$2:$N$124,9,FALSE),0),2)*E42) -> 1.008
A43: 26 | B43: 274408 | C43: 2020-08-11 | D43: Smalltown Mercantile | E43: 2.4 | F43: =IF(ISBLANK(H43),"",IF(VLOOKUP(H43,RawData!$D$8:$M$127,9,FALSE)=0,"",VLOOKUP(H43,RawData!$D$8:$M$127,9,FALSE))) -> Lb | G43: =IF(ISBLANK(H43),"",VLOOKUP(H43,RawData!$D$8:$M$127,2,FALSE)) -> Salad Vegetable | H43: Squash, summer, mature | I43: Guarded Optimism Farm | K43: 0.15 | L43: =IF(ISBLANK(H43),"",VLOOKUP(H43,FarmPricelistWorkSheet!$D$3:$N$125,5,FALSE)*(1+K43)) -> 0.8625 | M43: 0 | N43: 2.07 | O43: =IF(ISBLANK(H43),"",VLOOKUP(H43,RawData!$D$8:$K$127,8,FALSE)) -> 1.4 | P43: =IF(ROUND(IFERROR(VLOOKUP(H43,FarmPricelistWorkSheet!$D$2:$N$124,7,FALSE),0),2)=0,"-",(ROUND(IFERROR(VLOOKUP(H43,FarmPricelistWorkSheet!$D$2:$N$124,7,FALSE),0),2))) -> 4.52 | Q43: 2.60352 | R43: 1.26 | S43: =IF(ROUND(IFERROR(VLOOKUP(H43,FarmPricelistWorkSheet!$D$2:$N$124,9,FALSE),0),2)*E43 = 0,"-",ROUND(IFERROR(VLOOKUP(H43,FarmPricelistWorkSheet!$D$2:$N$124,9,FALSE),0),2)*E43) -> 0.576
A44: 27 | B44: 274408 | C44: 2020-08-11 | D44: Smalltown Mercantile | E44: 2.8 | F44: =IF(ISBLANK(H44),"",IF(VLOOKUP(H44,RawData!$D$8:$M$127,9,FALSE)=0,"",VLOOKUP(H44,RawData!$D$8:$M$127,9,FALSE))) -> Lb | G44: =IF(ISBLANK(H44),"",VLOOKUP(H44,RawData!$D$8:$M$127,2,FALSE)) -> Salad Vegetable | H44: Squash, summer, mature | I44: Jaded Resignation Farm | K44: 0.15 | L44: =IF(ISBLANK(H44),"",VLOOKUP(H44,FarmPricelistWorkSheet!$D$3:$N$125,5,FALSE)*(1+K44)) -> 0.8625 | M44: 0 | N44: 2.42 | O44: =IF(ISBLANK(H44),"",VLOOKUP(H44,RawData!$D$8:$K$127,8,FALSE)) -> 1.4 | P44: =IF(ROUND(IFERROR(VLOOKUP(H44,FarmPricelistWorkSheet!$D$2:$N$124,7,FALSE),0),2)=0,"-",(ROUND(IFERROR(VLOOKUP(H44,FarmPricelistWorkSheet!$D$2:$N$124,7,FALSE),0),2))) -> 4.52 | Q44: 3.03744 | R44: 1.26 | S44: =IF(ROUND(IFERROR(VLOOKUP(H44,FarmPricelistWorkSheet!$D$2:$N$124,9,FALSE),0),2)*E44 = 0,"-",ROUND(IFERROR(VLOOKUP(H44,FarmPricelistWorkSheet!$D$2:$N$124,9,FALSE),0),2)*E44) -> 0.672
A45: 28 | B45: 274409 | C45: 2020-08-11 | D45: Hardlyatown Quickstop | E45: 20.5 | F45: =IF(ISBLANK(H45),"",IF(VLOOKUP(H45,RawData!$D$8:$M$127,9,FALSE)=0,"",VLOOKUP(H45,RawData!$D$8:$M$127,9,FALSE))) -> Lb | G45: =IF(ISBLANK(H45),"",VLOOKUP(H45,RawData!$D$8:$M$127,2,FALSE)) -> Salad Vegetable | H45: Squash, summer, mature | I45: Jaded Resignation Farm | K45: 0 | L45: =IF(ISBLANK(H45),"",VLOOKUP(H45,FarmPricelistWorkSheet!$D$3:$N$125,5,FALSE)*(1+K45)) -> 0.75 | M45: 0 | N45: 15.38 | O45: =IF(ISBLANK(H45),"",VLOOKUP(H45,RawData!$D$8:$K$127,8,FALSE)) -> 1.4 | P45: =IF(ROUND(IFERROR(VLOOKUP(H45,FarmPricelistWorkSheet!$D$2:$N$124,7,FALSE),0),2)=0,"-",(ROUND(IFERROR(VLOOKUP(H45,FarmPricelistWorkSheet!$D$2:$N$124,7,FALSE),0),2))) -> 4.52 | Q45: 22.2384 | R45: 1.45 | S45: =IF(ROUND(IFERROR(VLOOKUP(H45,FarmPricelistWorkSheet!$D$2:$N$124,9,FALSE),0),2)*E45 = 0,"-",ROUND(IFERROR(VLOOKUP(H45,FarmPricelistWorkSheet!$D$2:$N$124,9,FALSE),0),2)*E45) -> 4.92
A46: 29 | B46: 274409 | C46: 2020-08-11 | D46: Hardlyatown Quickstop | E46: 14 | F46: =IF(ISBLANK(H46),"",IF(VLOOKUP(H46,RawData!$D$8:$M$127,9,FALSE)=0,"",VLOOKUP(H46,RawData!$D$8:$M$127,9,FALSE))) -> Lb | G46: =IF(ISBLANK(H46),"",VLOOKUP(H46,RawData!$D$8:$M$127,2,FALSE)) -> Salad Vegetable | H46: Cucumber, slicing | I46: Guarded Optimism Farm | K46: 0 | L46: =IF(ISBLANK(H46),"",VLOOKUP(H46,FarmPricelistWorkSheet!$D$3:$N$125,5,FALSE)*(1+K46)) -> 0.7 | M46: 0 | N46: 9.8 | O46: =IF(ISBLANK(H46),"",VLOOKUP(H46,RawData!$D$8:$K$127,8,FALSE)) -> 1.44 | P46: =IF(ROUND(IFERROR(VLOOKUP(H46,FarmPricelistWorkSheet!$D$2:$N$124,7,FALSE),0),2)=0,"-",(ROUND(IFERROR(VLOOKUP(H46,FarmPricelistWorkSheet!$D$2:$N$124,7,FALSE),0),2))) -> 1.85 | Q46: 14.245 | R46: 1.45 | S46: =IF(ROUND(IFERROR(VLOOKUP(H46,FarmPricelistWorkSheet!$D$2:$N$124,9,FALSE),0),2)*E46 = 0,"-",ROUND(IFERROR(VLOOKUP(H46,FarmPricelistWorkSheet!$D$2:$N$124,9,FALSE),0),2)*E46) -> 7.7
A47: 30 | B47: 274409 | C47: 2020-08-11 | D47: Hardlyatown Quickstop | E47: 34 | F47: =IF(ISBLANK(H47),"",IF(VLOOKUP(H47,RawData!$D$8:$M$127,9,FALSE)=0,"",VLOOKUP(H47,RawData!$D$8:$M$127,9,FALSE))) -> Lb | G47: =IF(ISBLANK(H47),"",VLOOKUP(H47,RawData!$D$8:$M$127,2,FALSE)) -> Salad Vegetable | H47: Squash, summer, mature | I47: Jaded Resignation Farm | K47: 0 | L47: =IF(ISBLANK(H47),"",VLOOKUP(H47,FarmPricelistWorkSheet!$D$3:$N$125,5,FALSE)*(1+K47)) -> 0.75 | M47: 0 | N47: 25.5 | O47: =IF(ISBLANK(H47),"",VLOOKUP(H47,RawData!$D$8:$K$127,8,FALSE)) -> 1.4 | P47: =IF(ROUND(IFERROR(VLOOKUP(H47,FarmPricelistWorkSheet!$D$2:$N$124,7,FALSE),0),2)=0,"-",(ROUND(IFERROR(VLOOKUP(H47,FarmPricelistWorkSheet!$D$2:$N$124,7,FALSE),0),2))) -> 4.52 | Q47: 36.8832 | R47: 1.45 | S47: =IF(ROUND(IFERROR(VLOOKUP(H47,FarmPricelistWorkSheet!$D$2:$N$124,9,FALSE),0),2)*E47 = 0,"-",ROUND(IFERROR(VLOOKUP(H47,FarmPricelistWorkSheet!$D$2:$N$124,9,FALSE),0),2)*E47) -> 8.16
A48: 31 | B48: 274409 | C48: 2020-08-11 | D48: Hardlyatown Quickstop | E48: 17.6 | F48: =IF(ISBLANK(H48),"",IF(VLOOKUP(H48,RawData!$D$8:$M$127,9,FALSE)=0,"",VLOOKUP(H48,RawData!$D$8:$M$127,9,FALSE))) -> Lb | G48: =IF(ISBLANK(H48),"",VLOOKUP(H48,RawData!$D$8:$M$127,2,FALSE)) -> Salad Vegetable | H48: Squash, summer, mature | I48: Jaded Resignation Farm | K48: 0 | L48: =IF(ISBLANK(H48),"",VLOOKUP(H48,FarmPricelistWorkSheet!$D$3:$N$125,5,FALSE)*(1+K48)) -> 0.75 | M48: 0 | N48: 13.2 | O48: =IF(ISBLANK(H48),"",VLOOKUP(H48,RawData!$D$8:$K$127,8,FALSE)) -> 1.4 | P48: =IF(ROUND(IFERROR(VLOOKUP(H48,FarmPricelistWorkSheet!$D$2:$N$124,7,FALSE),0),2)=0,"-",(ROUND(IFERROR(VLOOKUP(H48,FarmPricelistWorkSheet!$D$2:$N$124,7,FALSE),0),2))) -> 4.52 | Q48: 19.09248 | R48: 1.45 | S48: =IF(ROUND(IFERROR(VLOOKUP(H48,FarmPricelistWorkSheet!$D$2:$N$124,9,FALSE),0),2)*E48 = 0,"-",ROUND(IFERROR(VLOOKUP(H48,FarmPricelistWorkSheet!$D$2:$N$124,9,FALSE),0),2)*E48) -> 4.224
A49: 32 | B49: 274410 | C49: 2020-08-12 | D49: Usedtobeatown Food Pantry | E49: 24.3 | F49: =IF(ISBLANK(H49),"",IF(VLOOKUP(H49,RawData!$D$8:$M$127,9,FALSE)=0,"",VLOOKUP(H49,RawData!$D$8:$M$127,9,FALSE))) -> Lb | G49: =IF(ISBLANK(H49),"",VLOOKUP(H49,RawData!$D$8:$M$127,2,FALSE)) -> Salad Vegetable | H49: Squash, summer, mature | I49: Guarded Optimism Farm | K49: 0 | L49: =IF(ISBLANK(H49),"",VLOOKUP(H49,FarmPricelistWorkSheet!$D$3:$N$125,5,FALSE)*(1+K49)) -> 0.75 | M49: 0 | N49: 18.23 | O49: =IF(ISBLANK(H49),"",VLOOKUP(H49,RawData!$D$8:$K$127,8,FALSE)) -> 1.4 | P49: =IF(ROUND(IFERROR(VLOOKUP(H49,FarmPricelistWorkSheet!$D$2:$N$124,7,FALSE),0),2)=0,"-",(ROUND(IFERROR(VLOOKUP(H49,FarmPricelistWorkSheet!$D$2:$N$124,7,FALSE),0),2))) -> 4.52 | Q49: 26.36064 | R49: 1.45 | S49: =IF(ROUND(IFERROR(VLOOKUP(H49,FarmPricelistWorkSheet!$D$2:$N$124,9,FALSE),0),2)*E49 = 0,"-",ROUND(IFERROR(VLOOKUP(H49,FarmPricelistWorkSheet!$D$2:$N$124,9,FALSE),0),2)*E49) -> 5.832
A50: 33 | B50: 274410 | C50: 2020-08-12 | D50: Usedtobeatown Food Pantry | E50: 24 | F50: =IF(ISBLANK(H50),"",IF(VLOOKUP(H50,RawData!$D$8:$M$127,9,FALSE)=0,"",VLOOKUP(H50,RawData!$D$8:$M$127,9,FALSE))) -> Lb | G50: =IF(ISBLANK(H50),"",VLOOKUP(H50,RawData!$D$8:$M$127,2,FALSE)) -> Salad Vegetable | H50: Squash, summer, mature | I50: Guarded Optimism Farm | K50: 0 | L50: =IF(ISBLANK(H50),"",VLOOKUP(H50,FarmPricelistWorkSheet!$D$3:$N$125,5,FALSE)*(1+K50)) -> 0.75 | M50: 0 | N50: 18 | O50: =IF(ISBLANK(H50),"",VLOOKUP(H50,RawData!$D$8:$K$127,8,FALSE)) -> 1.4 | P50: =IF(ROUND(IFERROR(VLOOKUP(H50,FarmPricelistWorkSheet!$D$2:$N$124,7,FALSE),0),2)=0,"-",(ROUND(IFERROR(VLOOKUP(H50,FarmPricelistWorkSheet!$D$2:$N$124,7,FALSE),0),2))) -> 4.52 | Q50: 26.0352 | R50: 1.45 | S50: =IF(ROUND(IFERROR(VLOOKUP(H50,FarmPricelistWorkSheet!$D$2:$N$124,9,FALSE),0),2)*E50 = 0,"-",ROUND(IFERROR(VLOOKUP(H50,FarmPricelistWorkSheet!$D$2:$N$124,9,FALSE),0),2)*E50) -> 5.76
A51: 34 | B51: 274411 | C51: 2020-08-18 | D51: Usedtobeatown Korner | E51: 2.3 | F51: =IF(ISBLANK(H51),"",IF(VLOOKUP(H51,RawData!$D$8:$M$127,9,FALSE)=0,"",VLOOKUP(H51,RawData!$D$8:$M$127,9,FALSE))) -> Lb | G51: =IF(ISBLANK(H51),"",VLOOKUP(H51,RawData!$D$8:$M$127,2,FALSE)) -> Salad Vegetable | H51: Cucumber, slicing | I51: Guarded Optimism Farm | K51: 0.23 | L51: =IF(ISBLANK(H51),"",VLOOKUP(H51,FarmPricelistWorkSheet!$D$3:$N$125,5,FALSE)*(1+K51)) -> 0.861 | M51: -0.01 | N51: 1.97 | O51: =IF(ISBLANK(H51),"",VLOOKUP(H51,RawData!$D$8:$K$127,8,FALSE)) -> 1.44 | P51: =IF(ROUND(IFERROR(VLOOKUP(H51,FarmPricelistWorkSheet!$D$2:$N$124,7,FALSE),0),2)=0,"-",(ROUND(IFERROR(VLOOKUP(H51,FarmPricelistWorkSheet!$D$2:$N$124,7,FALSE),0),2))) -> 1.85 | Q51: 2.34025 | R51: 1.19 | S51: =IF(ROUND(IFERROR(VLOOKUP(H51,FarmPricelistWorkSheet!$D$2:$N$124,9,FALSE),0),2)*E51 = 0,"-",ROUND(IFERROR(VLOOKUP(H51,FarmPricelistWorkSheet!$D$2:$N$124,9,FALSE),0),2)*E51) -> 1.265
A52: 35 | B52: 274411 | C52: 2020-08-18 | D52: Usedtobeatown Korner | E52: 2.4 | F52: =IF(ISBLANK(H52),"",IF(VLOOKUP(H52,RawData!$D$8:$M$127,9,FALSE)=0,"",VLOOKUP(H52,RawData!$D$8:$M$127,9,FALSE))) -> Lb | G52: =IF(ISBLANK(H52),"",VLOOKUP(H52,RawData!$D$8:$M$127,2,FALSE)) -> Salad Vegetable | H52: Squash, summer, mature | I52: Jaded Resignation Farm | K52: 0.15 | L52: =IF(ISBLANK(H52),"",VLOOKUP(H52,FarmPricelistWorkSheet!$D$3:$N$125,5,FALSE)*(1+K52)) -> 0.8625 | M52: -0.01 | N52: 2.06 | O52: =IF(ISBLANK(H52),"",VLOOKUP(H52,RawData!$D$8:$K$127,8,FALSE)) -> 1.4 | P52: =IF(ROUND(IFERROR(VLOOKUP(H52,FarmPricelistWorkSheet!$D$2:$N$124,7,FALSE),0),2)=0,"-",(ROUND(IFERROR(VLOOKUP(H52,FarmPricelistWorkSheet!$D$2:$N$124,7,FALSE),0),2))) -> 4.52 | Q52: 2.60352 | R52: 1.26 | S52: =IF(ROUND(IFERROR(VLOOKUP(H52,FarmPricelistWorkSheet!$D$2:$N$124,9,FALSE),0),2)*E52 = 0,"-",ROUND(IFERROR(VLOOKUP(H52,FarmPricelistWorkSheet!$D$2:$N$124,9,FALSE),0),2)*E52) -> 0.576
A53: 36 | B53: 274411 | C53: 2020-08-18 | D53: Usedtobeatown Korner | E53: 5.35 | F53: =IF(ISBLANK(H53),"",IF(VLOOKUP(H53,RawData!$D$8:$M$127,9,FALSE)=0,"",VLOOKUP(H53,RawData!$D$8:$M$127,9,FALSE))) -> Lb | G53: =IF(ISBLANK(H53),"",VLOOKUP(H53,RawData!$D$8:$M$127,2,FALSE)) -> Salad Vegetable | H53: Squash, summer, mature | I53: Jaded Resignation Farm | K53: 0.15 | L53: =IF(ISBLANK(H53),"",VLOOKUP(H53,FarmPricelistWorkSheet!$D$3:$N$125,5,FALSE)*(1+K53)) -> 0.8625 | M53: -0.06 | N53: 4.55 | O53: =IF(ISBLANK(H53),"",VLOOKUP(H53,RawData!$D$8:$K$127,8,FALSE)) -> 1.4 | P53: =IF(ROUND(IFERROR(VLOOKUP(H53,FarmPricelistWorkSheet!$D$2:$N$124,7,FALSE),0),2)=0,"-",(ROUND(IFERROR(VLOOKUP(H53,FarmPricelistWorkSheet!$D$2:$N$124,7,FALSE),0),2))) -> 4.52 | Q53: 5.80368 | R53: 1.28 | S53: =IF(ROUND(IFERROR(VLOOKUP(H53,FarmPricelistWorkSheet!$D$2:$N$124,9,FALSE),0),2)*E53 = 0,"-",ROUND(IFERROR(VLOOKUP(H53,FarmPricelistWorkSheet!$D$2:$N$124,9,FALSE),0),2)*E53) -> 1.284
A54: 37 | B54: 274411 | C54: 2020-08-18 | D54: Smalltown Mercantile | E54: 25 | F54: =IF(ISBLANK(H54),"",IF(VLOOKUP(H54,RawData!$D$8:$M$127,9,FALSE)=0,"",VLOOKUP(H54,RawData!$D$8:$M$127,9,FALSE))) -> Lb | G54: =IF(ISBLANK(H54),"",VLOOKUP(H54,RawData!$D$8:$M$127,2,FALSE)) -> Fruit and Berries | H54: Peach | I54: Unbridled Enthusiasm Farm | K54: 0 | L54: =IF(ISBLANK(H54),"",VLOOKUP(H54,FarmPricelistWorkSheet!$D$3:$N$125,5,FALSE)*(1+K54)) -> 1.6 | M54: 1.4 | N54: 41.4 | O54: =IF(ISBLANK(H54),"",VLOOKUP(H54,RawData!$D$8:$K$127,8,FALSE)) -> 2.695 | P54: =IF(ROUND(IFERROR(VLOOKUP(H54,FarmPricelistWorkSheet!$D$2:$N$124,7,FALSE),0),2)=0,"-",(ROUND(IFERROR(VLOOKUP(H54,FarmPricelistWorkSheet!$D$2:$N$124,7,FALSE),0),2))) -> 2.82 | Q54: 50.055 | R54: 1.21 | S54: =IF(ROUND(IFERROR(VLOOKUP(H54,FarmPricelistWorkSheet!$D$2:$N$124,9,FALSE),0),2)*E54 = 0,"-",ROUND(IFERROR(VLOOKUP(H54,FarmPricelistWorkSheet!$D$2:$N$124,9,FALSE),0),2)*E54) -> 17.75
A55: 38 | B55: 274412 | C55: 2020-08-18 | D55: Smalltown Mercantile | E55: 2.5 | F55: =IF(ISBLANK(H55),"",IF(VLOOKUP(H55,RawData!$D$8:$M$127,9,FALSE)=0,"",VLOOKUP(H55,RawData!$D$8:$M$127,9,FALSE))) -> Lb | G55: =IF(ISBLANK(H55),"",VLOOKUP(H55,RawData!$D$8:$M$127,2,FALSE)) -> Salad Vegetable | H55: Squash, summer, mature | I55: Jaded Resignation Farm | K55: 0.15 | L55: =IF(ISBLANK(H55),"",VLOOKUP(H55,FarmPricelistWorkSheet!$D$3:$N$125,5,FALSE)*(1+K55)) -> 0.8625 | M55: 0 | N55: 2.16 | O55: =IF(ISBLANK(H55),"",VLOOKUP(H55,RawData!$D$8:$K$127,8,FALSE)) -> 1.4 | P55: =IF(ROUND(IFERROR(VLOOKUP(H55,FarmPricelistWorkSheet!$D$2:$N$124,7,FALSE),0),2)=0,"-",(ROUND(IFERROR(VLOOKUP(H55,FarmPricelistWorkSheet!$D$2:$N$124,7,FALSE),0),2))) -> 4.52 | Q55: 2.712 | R55: 1.26 | S55: =IF(ROUND(IFERROR(VLOOKUP(H55,FarmPricelistWorkSheet!$D$2:$N$124,9,FALSE),0),2)*E55 = 0,"-",ROUND(IFERROR(VLOOKUP(H55,FarmPricelistWorkSheet!$D$2:$N$124,9,FALSE),0),2)*E55) -> 0.6
A56: 39 | B56: 274412 | C56: 2020-08-18 | D56: Smalltown Mercantile | E56: 2.7 | F56: =IF(ISBLANK(H56),"",IF(VLOOKUP(H56,RawData!$D$8:$M$127,9,FALSE)=0,"",VLOOKUP(H56,RawData!$D$8:$M$127,9,FALSE))) -> Lb | G56: =IF(ISBLANK(H56),"",VLOOKUP(H56,RawData!$D$8:$M$127,2,FALSE)) -> Salad Vegetable | H56: Squash, summer, mature | I56: Jaded Resignation Farm | K56: 0.15 | L56: =IF(ISBLANK(H56),"",VLOOKUP(H56,FarmPricelistWorkSheet!$D$3:$N$125,5,FALSE)*(1+K56)) -> 0.8625 | M56: 0 | N56: 2.33 | O56: =IF(ISBLANK(H56),"",VLOOKUP(H56,RawData!$D$8:$K$127,8,FALSE)) -> 1.4 | P56: =IF(ROUND(IFERROR(VLOOKUP(H56,FarmPricelistWorkSheet!$D$2:$N$124,7,FALSE),0),2)=0,"-",(ROUND(IFERROR(VLOOKUP(H56,FarmPricelistWorkSheet!$D$2:$N$124,7,FALSE),0),2))) -> 4.52 | Q56: 2.92896 | R56: 1.26 | S56: =IF(ROUND(IFERROR(VLOOKUP(H56,FarmPricelistWorkSheet!$D$2:$N$124,9,FALSE),0),2)*E56 = 0,"-",ROUND(IFERROR(VLOOKUP(H56,FarmPricelistWorkSheet!$D$2:$N$124,9,FALSE),0),2)*E56) -> 0.648
A57: 40 | B57: 274412 | C57: 2020-08-18 | D57: Smalltown Mercantile | E57: 5 | F57: =IF(ISBLANK(H57),"",IF(VLOOKUP(H57,RawData!$D$8:$M$127,9,FALSE)=0,"",VLOOKUP(H57,RawData!$D$8:$M$127,9,FALSE))) -> Lb | G57: =IF(ISBLANK(H57),"",VLOOKUP(H57,RawData!$D$8:$M$127,2,FALSE)) -> Fruit and Berries | H57: Apricot | I57: Unbridled Enthusiasm Farm | K57: -0.08 | L57: =IF(ISBLANK(H57),"",VLOOKUP(H57,FarmPricelistWorkSheet!$D$3:$N$125,5,FALSE)*(1+K57)) -> 1.15 | M57: 0 | N57: 5.75 | O57: =IF(ISBLANK(H57),"",VLOOKUP(H57,RawData!$D$8:$K$127,8,FALSE)) -> 2 | P57: =IF(ROUND(IFERROR(VLOOKUP(H57,FarmPricelistWorkSheet!$D$2:$N$124,7,FALSE),0),2)=0,"-",(ROUND(IFERROR(VLOOKUP(H57,FarmPricelistWorkSheet!$D$2:$N$124,7,FALSE),0),2))) -> 5.56 | Q57: 34.75 | R57: 6.04 | S57: =IF(ROUND(IFERROR(VLOOKUP(H57,FarmPricelistWorkSheet!$D$2:$N$124,9,FALSE),0),2)*E57 = 0,"-",ROUND(IFERROR(VLOOKUP(H57,FarmPricelistWorkSheet!$D$2:$N$124,9,FALSE),0),2)*E57) -> 6.25
A58: 41 | B58: 274412 | C58: 2020-08-18 | D58: Smalltown Mercantile | E58: 25 | F58: =IF(ISBLANK(H58),"",IF(VLOOKUP(H58,RawData!$D$8:$M$127,9,FALSE)=0,"",VLOOKUP(H58,RawData!$D$8:$M$127,9,FALSE))) -> Lb | G58: =IF(ISBLANK(H58),"",VLOOKUP(H58,RawData!$D$8:$M$127,2,FALSE)) -> Fruit and Berries | H58: Peach | I58: Unbridled Enthusiasm Farm | K58: 0 | L58: =IF(ISBLANK(H58),"",VLOOKUP(H58,FarmPricelistWorkSheet!$D$3:$N$125,5,FALSE)*(1+K58)) -> 1.6 | M58: 1.4 | N58: 41.4 | O58: =IF(ISBLANK(H58),"",VLOOKUP(H58,RawData!$D$8:$K$127,8,FALSE)) -> 2.695 | P58: =IF(ROUND(IFERROR(VLOOKUP(H58,FarmPricelistWorkSheet!$D$2:$N$124,7,FALSE),0),2)=0,"-",(ROUND(IFERROR(VLOOKUP(H58,FarmPricelistWorkSheet!$D$2:$N$124,7,FALSE),0),2))) -> 2.82 | Q58: 50.055 | R58: 1.21 | S58: =IF(ROUND(IFERROR(VLOOKUP(H58,FarmPricelistWorkSheet!$D$2:$N$124,9,FALSE),0),2)*E58 = 0,"-",ROUND(IFERROR(VLOOKUP(H58,FarmPricelistWorkSheet!$D$2:$N$124,9,FALSE),0),2)*E58) -> 17.75
A59: 42 | B59: 274412 | C59: 2020-08-18 | D59: Smalltown Mercantile | E59: 2.8 | F59: =IF(ISBLANK(H59),"",IF(VLOOKUP(H59,RawData!$D$8:$M$127,9,FALSE)=0,"",VLOOKUP(H59,RawData!$D$8:$M$127,9,FALSE))) -> Lb | G59: =IF(ISBLANK(H59),"",VLOOKUP(H59,RawData!$D$8:$M$127,2,FALSE)) -> Salad Vegetable | H59: Cucumber, slicing | I59: Guarded Optimism Farm | K59: 0.15 | L59: =IF(ISBLANK(H59),"",VLOOKUP(H59,FarmPricelistWorkSheet!$D$3:$N$125,5,FALSE)*(1+K59)) -> 0.805 | M59: 0 | N59: 2.25 | O59: =IF(ISBLANK(H59),"",VLOOKUP(H59,RawData!$D$8:$K$127,8,FALSE)) -> 1.44 | P59: =IF(ROUND(IFERROR(VLOOKUP(H59,FarmPricelistWorkSheet!$D$2:$N$124,7,FALSE),0),2)=0,"-",(ROUND(IFERROR(VLOOKUP(H59,FarmPricelistWorkSheet!$D$2:$N$124,7,FALSE),0),2))) -> 1.85 | Q59: 2.849 | R59: 1.27 | S59: =IF(ROUND(IFERROR(VLOOKUP(H59,FarmPricelistWorkSheet!$D$2:$N$124,9,FALSE),0),2)*E59 = 0,"-",ROUND(IFERROR(VLOOKUP(H59,FarmPricelistWorkSheet!$D$2:$N$124,9,FALSE),0),2)*E59) -> 1.54
A60: 43 | F60: =IF(ISBLANK(H60),"",IF(VLOOKUP(H60,RawData!$D$8:$M$127,9,FALSE)=0,"",VLOOKUP(H60,RawData!$D$8:$M$127,9,FALSE))) ->  | G60: =IF(ISBLANK(H60),"",VLOOKUP(H60,RawData!$D$8:$M$127,2,FALSE)) ->  | K60: 0 | L60: =IF(ISBLANK(H60),"",VLOOKUP(H60,FarmPricelistWorkSheet!$D$3:$N$125,5,FALSE)*(1+K60)) ->  | M60: 0 | O60: =IF(ISBLANK(H60),"",VLOOKUP(H60,RawData!$D$8:$K$127,8,FALSE)) ->  | P60: =IF(ROUND(IFERROR(VLOOKUP(H60,FarmPricelistWorkSheet!$D$2:$N$124,7,FALSE),0),2)=0,"-",(ROUND(IFERROR(VLOOKUP(H60,FarmPricelistWorkSheet!$D$2:$N$124,7,FALSE),0),2))) -> - | Q60: - | R60: - | S60: =IF(ROUND(IFERROR(VLOOKUP(H60,FarmPricelistWorkSheet!$D$2:$N$124,9,FALSE),0),2)*E60 = 0,"-",ROUND(IFERROR(VLOOKUP(H60,FarmPricelistWorkSheet!$D$2:$N$124,9,FALSE),0),2)*E60) -> -
A61: 44 | F61: =IF(ISBLANK(H61),"",IF(VLOOKUP(H61,RawData!$D$8:$M$127,9,FALSE)=0,"",VLOOKUP(H61,RawData!$D$8:$M$127,9,FALSE))) ->  | G61: =IF(ISBLANK(H61),"",VLOOKUP(H61,RawData!$D$8:$M$127,2,FALSE)) ->  | K61: 0 | L61: =IF(ISBLANK(H61),"",VLOOKUP(H61,FarmPricelistWorkSheet!$D$3:$N$125,5,FALSE)*(1+K61)) ->  | M61: 0 | O61: =IF(ISBLANK(H61),"",VLOOKUP(H61,RawData!$D$8:$K$127,8,FALSE)) ->  | P61: =IF(ROUND(IFERROR(VLOOKUP(H61,FarmPricelistWorkSheet!$D$2:$N$124,7,FALSE),0),2)=0,"-",(ROUND(IFERROR(VLOOKUP(H61,FarmPricelistWorkSheet!$D$2:$N$124,7,FALSE),0),2))) -> - | Q61: - | R61: - | S61: =IF(ROUND(IFERROR(VLOOKUP(H61,FarmPricelistWorkSheet!$D$2:$N$124,9,FALSE),0),2)*E61 = 0,"-",ROUND(IFERROR(VLOOKUP(H61,FarmPricelistWorkSheet!$D$2:$N$124,9,FALSE),0),2)*E61) -> -
A62: 45 | F62: =IF(ISBLANK(H62),"",IF(VLOOKUP(H62,RawData!$D$8:$M$127,9,FALSE)=0,"",VLOOKUP(H62,RawData!$D$8:$M$127,9,FALSE))) ->  | G62: =IF(ISBLANK(H62),"",VLOOKUP(H62,RawData!$D$8:$M$127,2,FALSE)) ->  | K62: 0 | L62: =IF(ISBLANK(H62),"",VLOOKUP(H62,FarmPricelistWorkSheet!$D$3:$N$125,5,FALSE)*(1+K62)) ->  | M62: 0 | O62: =IF(ISBLANK(H62),"",VLOOKUP(H62,RawData!$D$8:$K$127,8,FALSE)) ->  | P62: =IF(ROUND(IFERROR(VLOOKUP(H62,FarmPricelistWorkSheet!$D$2:$N$124,7,FALSE),0),2)=0,"-",(ROUND(IFERROR(VLOOKUP(H62,FarmPricelistWorkSheet!$D$2:$N$124,7,FALSE),0),2))) -> - | Q62: - | R62: - | S62: =IF(ROUND(IFERROR(VLOOKUP(H62,FarmPricelistWorkSheet!$D$2:$N$124,9,FALSE),0),2)*E62 = 0,"-",ROUND(IFERROR(VLOOKUP(H62,FarmPricelistWorkSheet!$D$2:$N$124,9,FALSE),0),2)*E62) -> -
A63: 46 | F63: =IF(ISBLANK(H63),"",IF(VLOOKUP(H63,RawData!$D$8:$M$127,9,FALSE)=0,"",VLOOKUP(H63,RawData!$D$8:$M$127,9,FALSE))) ->  | G63: =IF(ISBLANK(H63),"",VLOOKUP(H63,RawData!$D$8:$M$127,2,FALSE)) ->  | K63: 0 | L63: =IF(ISBLANK(H63),"",VLOOKUP(H63,FarmPricelistWorkSheet!$D$3:$N$125,5,FALSE)*(1+K63)) ->  | M63: 0 | O63: =IF(ISBLANK(H63),"",VLOOKUP(H63,RawData!$D$8:$K$127,8,FALSE)) ->  | P63: =IF(ROUND(IFERROR(VLOOKUP(H63,FarmPricelistWorkSheet!$D$2:$N$124,7,FALSE),0),2)=0,"-",(ROUND(IFERROR(VLOOKUP(H63,FarmPricelistWorkSheet!$D$2:$N$124,7,FALSE),0),2))) -> - | Q63: - | R63: - | S63: =IF(ROUND(IFERROR(VLOOKUP(H63,FarmPricelistWorkSheet!$D$2:$N$124,9,FALSE),0),2)*E63 = 0,"-",ROUND(IFERROR(VLOOKUP(H63,FarmPricelistWorkSheet!$D$2:$N$124,9,FALSE),0),2)*E63) -> -
A64: 47 | F64: =IF(ISBLANK(H64),"",IF(VLOOKUP(H64,RawData!$D$8:$M$127,9,FALSE)=0,"",VLOOKUP(H64,RawData!$D$8:$M$127,9,FALSE))) ->  | G64: =IF(ISBLANK(H64),"",VLOOKUP(H64,RawData!$D$8:$M$127,2,FALSE)) ->  | K64: 0 | L64: =IF(ISBLANK(H64),"",VLOOKUP(H64,FarmPricelistWorkSheet!$D$3:$N$125,5,FALSE)*(1+K64)) ->  | M64: 0 | O64: =IF(ISBLANK(H64),"",VLOOKUP(H64,RawData!$D$8:$K$127,8,FALSE)) ->  | P64: =IF(ROUND(IFERROR(VLOOKUP(H64,FarmPricelistWorkSheet!$D$2:$N$124,7,FALSE),0),2)=0,"-",(ROUND(IFERROR(VLOOKUP(H64,FarmPricelistWorkSheet!$D$2:$N$124,7,FALSE),0),2))) -> - | Q64: - | R64: - | S64: =IF(ROUND(IFERROR(VLOOKUP(H64,FarmPricelistWorkSheet!$D$2:$N$124,9,FALSE),0),2)*E64 = 0,"-",ROUND(IFERROR(VLOOKUP(H64,FarmPricelistWorkSheet!$D$2:$N$124,9,FALSE),0),2)*E64) -> -
A65: 48 | F65: =IF(ISBLANK(H65),"",IF(VLOOKUP(H65,RawData!$D$8:$M$127,9,FALSE)=0,"",VLOOKUP(H65,RawData!$D$8:$M$127,9,FALSE))) ->  | G65: =IF(ISBLANK(H65),"",VLOOKUP(H65,RawData!$D$8:$M$127,2,FALSE)) ->  | K65: 0 | L65: =IF(ISBLANK(H65),"",VLOOKUP(H65,FarmPricelistWorkSheet!$D$3:$N$125,5,FALSE)*(1+K65)) ->  | M65: 0 | O65: =IF(ISBLANK(H65),"",VLOOKUP(H65,RawData!$D$8:$K$127,8,FALSE)) ->  | P65: =IF(ROUND(IFERROR(VLOOKUP(H65,FarmPricelistWorkSheet!$D$2:$N$124,7,FALSE),0),2)=0,"-",(ROUND(IFERROR(VLOOKUP(H65,FarmPricelistWorkSheet!$D$2:$N$124,7,FALSE),0),2))) -> - | Q65: - | R65: - | S65: =IF(ROUND(IFERROR(VLOOKUP(H65,FarmPricelistWorkSheet!$D$2:$N$124,9,FALSE),0),2)*E65 = 0,"-",ROUND(IFERROR(VLOOKUP(H65,FarmPricelistWorkSheet!$D$2:$N$124,9,FALSE),0),2)*E65) -> -
A66: 49 | F66: =IF(ISBLANK(H66),"",IF(VLOOKUP(H66,RawData!$D$8:$M$127,9,FALSE)=0,"",VLOOKUP(H66,RawData!$D$8:$M$127,9,FALSE))) ->  | G66: =IF(ISBLANK(H66),"",VLOOKUP(H66,RawData!$D$8:$M$127,2,FALSE)) ->  | K66: 0 | L66: =IF(ISBLANK(H66),"",VLOOKUP(H66,FarmPricelistWorkSheet!$D$3:$N$125,5,FALSE)*(1+K66)) ->  | M66: 0 | O66: =IF(ISBLANK(H66),"",VLOOKUP(H66,RawData!$D$8:$K$127,8,FALSE)) ->  | P66: =IF(ROUND(IFERROR(VLOOKUP(H66,FarmPricelistWorkSheet!$D$2:$N$124,7,FALSE),0),2)=0,"-",(ROUND(IFERROR(VLOOKUP(H66,FarmPricelistWorkSheet!$D$2:$N$124,7,FALSE),0),2))) -> - | Q66: - | R66: - | S66: =IF(ROUND(IFERROR(VLOOKUP(H66,FarmPricelistWorkSheet!$D$2:$N$124,9,FALSE),0),2)*E66 = 0,"-",ROUND(IFERROR(VLOOKUP(H66,FarmPricelistWorkSheet!$D$2:$N$124,9,FALSE),0),2)*E66) -> -
A67: 50 | F67: =IF(ISBLANK(H67),"",IF(VLOOKUP(H67,RawData!$D$8:$M$127,9,FALSE)=0,"",VLOOKUP(H67,RawData!$D$8:$M$127,9,FALSE))) ->  | G67: =IF(ISBLANK(H67),"",VLOOKUP(H67,RawData!$D$8:$M$127,2,FALSE)) ->  | K67: 0 | L67: =IF(ISBLANK(H67),"",VLOOKUP(H67,FarmPricelistWorkSheet!$D$3:$N$125,5,FALSE)*(1+K67)) ->  | M67: 0 | O67: =IF(ISBLANK(H67),"",VLOOKUP(H67,RawData!$D$8:$K$127,8,FALSE)) ->  | P67: =IF(ROUND(IFERROR(VLOOKUP(H67,FarmPricelistWorkSheet!$D$2:$N$124,7,FALSE),0),2)=0,"-",(ROUND(IFERROR(VLOOKUP(H67,FarmPricelistWorkSheet!$D$2:$N$124,7,FALSE),0),2))) -> - | Q67: - | R67: - | S67: =IF(ROUND(IFERROR(VLOOKUP(H67,FarmPricelistWorkSheet!$D$2:$N$124,9,FALSE),0),2)*E67 = 0,"-",ROUND(IFERROR(VLOOKUP(H67,FarmPricelistWorkSheet!$D$2:$N$124,9,FALSE),0),2)*E67) -> -
A68: 51 | F68: =IF(ISBLANK(H68),"",IF(VLOOKUP(H68,RawData!$D$8:$M$127,9,FALSE)=0,"",VLOOKUP(H68,RawData!$D$8:$M$127,9,FALSE))) ->  | G68: =IF(ISBLANK(H68),"",VLOOKUP(H68,RawData!$D$8:$M$127,2,FALSE)) ->  | K68: 0 | L68: =IF(ISBLANK(H68),"",VLOOKUP(H68,FarmPricelistWorkSheet!$D$3:$N$125,5,FALSE)*(1+K68)) ->  | M68: 0 | O68: =IF(ISBLANK(H68),"",VLOOKUP(H68,RawData!$D$8:$K$127,8,FALSE)) ->  | P68: =IF(ROUND(IFERROR(VLOOKUP(H68,FarmPricelistWorkSheet!$D$2:$N$124,7,FALSE),0),2)=0,"-",(ROUND(IFERROR(VLOOKUP(H68,FarmPricelistWorkSheet!$D$2:$N$124,7,FALSE),0),2))) -> - | Q68: - | R68: - | S68: =IF(ROUND(IFERROR(VLOOKUP(H68,FarmPricelistWorkSheet!$D$2:$N$124,9,FALSE),0),2)*E68 = 0,"-",ROUND(IFERROR(VLOOKUP(H68,FarmPricelistWorkSheet!$D$2:$N$124,9,FALSE),0),2)*E68) -> -
A69: 52 | F69: =IF(ISBLANK(H69),"",IF(VLOOKUP(H69,RawData!$D$8:$M$127,9,FALSE)=0,"",VLOOKUP(H69,RawData!$D$8:$M$127,9,FALSE))) ->  | G69: =IF(ISBLANK(H69),"",VLOOKUP(H69,RawData!$D$8:$M$127,2,FALSE)) ->  | K69: 0 | L69: =IF(ISBLANK(H69),"",VLOOKUP(H69,FarmPricelistWorkSheet!$D$3:$N$125,5,FALSE)*(1+K69)) ->  | M69: 0 | O69: =IF(ISBLANK(H69),"",VLOOKUP(H69,RawData!$D$8:$K$127,8,FALSE)) ->  | P69: =IF(ROUND(IFERROR(VLOOKUP(H69,FarmPricelistWorkSheet!$D$2:$N$124,7,FALSE),0),2)=0,"-",(ROUND(IFERROR(VLOOKUP(H69,FarmPricelistWorkSheet!$D$2:$N$124,7,FALSE),0),2))) -> - | Q69: - | R69: - | S69: =IF(ROUND(IFERROR(VLOOKUP(H69,FarmPricelistWorkSheet!$D$2:$N$124,9,FALSE),0),2)*E69 = 0,"-",ROUND(IFERROR(VLOOKUP(H69,FarmPricelistWorkSheet!$D$2:$N$124,9,FALSE),0),2)*E69) -> -
A70: 53 | F70: =IF(ISBLANK(H70),"",IF(VLOOKUP(H70,RawData!$D$8:$M$127,9,FALSE)=0,"",VLOOKUP(H70,RawData!$D$8:$M$127,9,FALSE))) ->  | G70: =IF(ISBLANK(H70),"",VLOOKUP(H70,RawData!$D$8:$M$127,2,FALSE)) ->  | K70: 0 | L70: =IF(ISBLANK(H70),"",VLOOKUP(H70,FarmPricelistWorkSheet!$D$3:$N$125,5,FALSE)*(1+K70)) ->  | M70: 0 | O70: =IF(ISBLANK(H70),"",VLOOKUP(H70,RawData!$D$8:$K$127,8,FALSE)) ->  | P70: =IF(ROUND(IFERROR(VLOOKUP(H70,FarmPricelistWorkSheet!$D$2:$N$124,7,FALSE),0),2)=0,"-",(ROUND(IFERROR(VLOOKUP(H70,FarmPricelistWorkSheet!$D$2:$N$124,7,FALSE),0),2))) -> - | Q70: - | R70: - | S70: =IF(ROUND(IFERROR(VLOOKUP(H70,FarmPricelistWorkSheet!$D$2:$N$124,9,FALSE),0),2)*E70 = 0,"-",ROUND(IFERROR(VLOOKUP(H70,FarmPricelistWorkSheet!$D$2:$N$124,9,FALSE),0),2)*E70) -> -
A71: 54 | F71: =IF(ISBLANK(H71),"",IF(VLOOKUP(H71,RawData!$D$8:$M$127,9,FALSE)=0,"",VLOOKUP(H71,RawData!$D$8:$M$127,9,FALSE))) ->  | G71: =IF(ISBLANK(H71),"",VLOOKUP(H71,RawData!$D$8:$M$127,2,FALSE)) ->  | K71: 0 | L71: =IF(ISBLANK(H71),"",VLOOKUP(H71,FarmPricelistWorkSheet!$D$3:$N$125,5,FALSE)*(1+K71)) ->  | M71: 0 | O71: =IF(ISBLANK(H71),"",VLOOKUP(H71,RawData!$D$8:$K$127,8,FALSE)) ->  | P71: =IF(ROUND(IFERROR(VLOOKUP(H71,FarmPricelistWorkSheet!$D$2:$N$124,7,FALSE),0),2)=0,"-",(ROUND(IFERROR(VLOOKUP(H71,FarmPricelistWorkSheet!$D$2:$N$124,7,FALSE),0),2))) -> - | Q71: - | R71: - | S71: =IF(ROUND(IFERROR(VLOOKUP(H71,FarmPricelistWorkSheet!$D$2:$N$124,9,FALSE),0),2)*E71 = 0,"-",ROUND(IFERROR(VLOOKUP(H71,FarmPricelistWorkSheet!$D$2:$N$124,9,FALSE),0),2)*E71) -> -
A72: 55 | F72: =IF(ISBLANK(H72),"",IF(VLOOKUP(H72,RawData!$D$8:$M$127,9,FALSE)=0,"",VLOOKUP(H72,RawData!$D$8:$M$127,9,FALSE))) ->  | G72: =IF(ISBLANK(H72),"",VLOOKUP(H72,RawData!$D$8:$M$127,2,FALSE)) ->  | K72: 0 | L72: =IF(ISBLANK(H72),"",VLOOKUP(H72,FarmPricelistWorkSheet!$D$3:$N$125,5,FALSE)*(1+K72)) ->  | M72: 0 | O72: =IF(ISBLANK(H72),"",VLOOKUP(H72,RawData!$D$8:$K$127,8,FALSE)) ->  | P72: =IF(ROUND(IFERROR(VLOOKUP(H72,FarmPricelistWorkSheet!$D$2:$N$124,7,FALSE),0),2)=0,"-",(ROUND(IFERROR(VLOOKUP(H72,FarmPricelistWorkSheet!$D$2:$N$124,7,FALSE),0),2))) -> - | Q72: - | R72: - | S72: =IF(ROUND(IFERROR(VLOOKUP(H72,FarmPricelistWorkSheet!$D$2:$N$124,9,FALSE),0),2)*E72 = 0,"-",ROUND(IFERROR(VLOOKUP(H72,FarmPricelistWorkSheet!$D$2:$N$124,9,FALSE),0),2)*E72) -> -
A73: 56 | F73: =IF(ISBLANK(H73),"",IF(VLOOKUP(H73,RawData!$D$8:$M$127,9,FALSE)=0,"",VLOOKUP(H73,RawData!$D$8:$M$127,9,FALSE))) ->  | G73: =IF(ISBLANK(H73),"",VLOOKUP(H73,RawData!$D$8:$M$127,2,FALSE)) ->  | K73: 0 | L73: =IF(ISBLANK(H73),"",VLOOKUP(H73,FarmPricelistWorkSheet!$D$3:$N$125,5,FALSE)*(1+K73)) ->  | M73: 0 | O73: =IF(ISBLANK(H73),"",VLOOKUP(H73,RawData!$D$8:$K$127,8,FALSE)) ->  | P73: =IF(ROUND(IFERROR(VLOOKUP(H73,FarmPricelistWorkSheet!$D$2:$N$124,7,FALSE),0),2)=0,"-",(ROUND(IFERROR(VLOOKUP(H73,FarmPricelistWorkSheet!$D$2:$N$124,7,FALSE),0),2))) -> - | Q73: - | R73: - | S73: =IF(ROUND(IFERROR(VLOOKUP(H73,FarmPricelistWorkSheet!$D$2:$N$124,9,FALSE),0),2)*E73 = 0,"-",ROUND(IFERROR(VLOOKUP(H73,FarmPricelistWorkSheet!$D$2:$N$124,9,FALSE),0),2)*E73) -> -
A74: 57 | F74: =IF(ISBLANK(H74),"",IF(VLOOKUP(H74,RawData!$D$8:$M$127,9,FALSE)=0,"",VLOOKUP(H74,RawData!$D$8:$M$127,9,FALSE))) ->  | G74: =IF(ISBLANK(H74),"",VLOOKUP(H74,RawData!$D$8:$M$127,2,FALSE)) ->  | K74: 0 | L74: =IF(ISBLANK(H74),"",VLOOKUP(H74,FarmPricelistWorkSheet!$D$3:$N$125,5,FALSE)*(1+K74)) ->  | M74: 0 | O74: =IF(ISBLANK(H74),"",VLOOKUP(H74,RawData!$D$8:$K$127,8,FALSE)) ->  | P74: =IF(ROUND(IFERROR(VLOOKUP(H74,FarmPricelistWorkSheet!$D$2:$N$124,7,FALSE),0),2)=0,"-",(ROUND(IFERROR(VLOOKUP(H74,FarmPricelistWorkSheet!$D$2:$N$124,7,FALSE),0),2))) -> - | Q74: - | R74: - | S74: =IF(ROUND(IFERROR(VLOOKUP(H74,FarmPricelistWorkSheet!$D$2:$N$124,9,FALSE),0),2)*E74 = 0,"-",ROUND(IFERROR(VLOOKUP(H74,FarmPricelistWorkSheet!$D$2:$N$124,9,FALSE),0),2)*E74) -> -
A75: 58 | F75: =IF(ISBLANK(H75),"",IF(VLOOKUP(H75,RawData!$D$8:$M$127,9,FALSE)=0,"",VLOOKUP(H75,RawData!$D$8:$M$127,9,FALSE))) ->  | G75: =IF(ISBLANK(H75),"",VLOOKUP(H75,RawData!$D$8:$M$127,2,FALSE)) ->  | K75: 0 | L75: =IF(ISBLANK(H75),"",VLOOKUP(H75,FarmPricelistWorkSheet!$D$3:$N$125,5,FALSE)*(1+K75)) ->  | M75: 0 | O75: =IF(ISBLANK(H75),"",VLOOKUP(H75,RawData!$D$8:$K$127,8,FALSE)) ->  | P75: =IF(ROUND(IFERROR(VLOOKUP(H75,FarmPricelistWorkSheet!$D$2:$N$124,7,FALSE),0),2)=0,"-",(ROUND(IFERROR(VLOOKUP(H75,FarmPricelistWorkSheet!$D$2:$N$124,7,FALSE),0),2))) -> - | Q75: - | R75: - | S75: =IF(ROUND(IFERROR(VLOOKUP(H75,FarmPricelistWorkSheet!$D$2:$N$124,9,FALSE),0),2)*E75 = 0,"-",ROUND(IFERROR(VLOOKUP(H75,FarmPricelistWorkSheet!$D$2:$N$124,9,FALSE),0),2)*E75) -> -
A76: 59 | F76: =IF(ISBLANK(H76),"",IF(VLOOKUP(H76,RawData!$D$8:$M$127,9,FALSE)=0,"",VLOOKUP(H76,RawData!$D$8:$M$127,9,FALSE))) ->  | G76: =IF(ISBLANK(H76),"",VLOOKUP(H76,RawData!$D$8:$M$127,2,FALSE)) ->  | K76: 0 | L76: =IF(ISBLANK(H76),"",VLOOKUP(H76,FarmPricelistWorkSheet!$D$3:$N$125,5,FALSE)*(1+K76)) ->  | M76: 0 | O76: =IF(ISBLANK(H76),"",VLOOKUP(H76,RawData!$D$8:$K$127,8,FALSE)) ->  | P76: =IF(ROUND(IFERROR(VLOOKUP(H76,FarmPricelistWorkSheet!$D$2:$N$124,7,FALSE),0),2)=0,"-",(ROUND(IFERROR(VLOOKUP(H76,FarmPricelistWorkSheet!$D$2:$N$124,7,FALSE),0),2))) -> - | Q76: - | R76: - | S76: =IF(ROUND(IFERROR(VLOOKUP(H76,FarmPricelistWorkSheet!$D$2:$N$124,9,FALSE),0),2)*E76 = 0,"-",ROUND(IFERROR(VLOOKUP(H76,FarmPricelistWorkSheet!$D$2:$N$124,9,FALSE),0),2)*E76) -> -
A77: 60 | F77: =IF(ISBLANK(H77),"",IF(VLOOKUP(H77,RawData!$D$8:$M$127,9,FALSE)=0,"",VLOOKUP(H77,RawData!$D$8:$M$127,9,FALSE))) ->  | G77: =IF(ISBLANK(H77),"",VLOOKUP(H77,RawData!$D$8:$M$127,2,FALSE)) ->  | K77: 0 | L77: =IF(ISBLANK(H77),"",VLOOKUP(H77,FarmPricelistWorkSheet!$D$3:$N$125,5,FALSE)*(1+K77)) ->  | M77: 0 | O77: =IF(ISBLANK(H77),"",VLOOKUP(H77,RawData!$D$8:$K$127,8,FALSE)) ->  | P77: =IF(ROUND(IFERROR(VLOOKUP(H77,FarmPricelistWorkSheet!$D$2:$N$124,7,FALSE),0),2)=0,"-",(ROUND(IFERROR(VLOOKUP(H77,FarmPricelistWorkSheet!$D$2:$N$124,7,FALSE),0),2))) -> - | Q77: - | R77: - | S77: =IF(ROUND(IFERROR(VLOOKUP(H77,FarmPricelistWorkSheet!$D$2:$N$124,9,FALSE),0),2)*E77 = 0,"-",ROUND(IFERROR(VLOOKUP(H77,FarmPricelistWorkSheet!$D$2:$N$124,9,FALSE),0),2)*E77) -> -
A78: 61 | F78: =IF(ISBLANK(H78),"",IF(VLOOKUP(H78,RawData!$D$8:$M$127,9,FALSE)=0,"",VLOOKUP(H78,RawData!$D$8:$M$127,9,FALSE))) ->  | G78: =IF(ISBLANK(H78),"",VLOOKUP(H78,RawData!$D$8:$M$127,2,FALSE)) ->  | K78: 0 | L78: =IF(ISBLANK(H78),"",VLOOKUP(H78,FarmPricelistWorkSheet!$D$3:$N$125,5,FALSE)*(1+K78)) ->  | M78: 0 | O78: =IF(ISBLANK(H78),"",VLOOKUP(H78,RawData!$D$8:$K$127,8,FALSE)) ->  | P78: =IF(ROUND(IFERROR(VLOOKUP(H78,FarmPricelistWorkSheet!$D$2:$N$124,7,FALSE),0),2)=0,"-",(ROUND(IFERROR(VLOOKUP(H78,FarmPricelistWorkSheet!$D$2:$N$124,7,FALSE),0),2))) -> - | Q78: - | R78: - | S78: =IF(ROUND(IFERROR(VLOOKUP(H78,FarmPricelistWorkSheet!$D$2:$N$124,9,FALSE),0),2)*E78 = 0,"-",ROUND(IFERROR(VLOOKUP(H78,FarmPricelistWorkSheet!$D$2:$N$124,9,FALSE),0),2)*E78) -> -
A79: 62 | F79: =IF(ISBLANK(H79),"",IF(VLOOKUP(H79,RawData!$D$8:$M$127,9,FALSE)=0,"",VLOOKUP(H79,RawData!$D$8:$M$127,9,FALSE))) ->  | G79: =IF(ISBLANK(H79),"",VLOOKUP(H79,RawData!$D$8:$M$127,2,FALSE)) ->  | K79: 0 | L79: =IF(ISBLANK(H79),"",VLOOKUP(H79,FarmPricelistWorkSheet!$D$3:$N$125,5,FALSE)*(1+K79)) ->  | M79: 0 | O79: =IF(ISBLANK(H79),"",VLOOKUP(H79,RawData!$D$8:$K$127,8,FALSE)) ->  | P79: =IF(ROUND(IFERROR(VLOOKUP(H79,FarmPricelistWorkSheet!$D$2:$N$124,7,FALSE),0),2)=0,"-",(ROUND(IFERROR(VLOOKUP(H79,FarmPricelistWorkSheet!$D$2:$N$124,7,FALSE),0),2))) -> - | Q79: - | R79: - | S79: =IF(ROUND(IFERROR(VLOOKUP(H79,FarmPricelistWorkSheet!$D$2:$N$124,9,FALSE),0),2)*E79 = 0,"-",ROUND(IFERROR(VLOOKUP(H79,FarmPricelistWorkSheet!$D$2:$N$124,9,FALSE),0),2)*E79) -> -
A80: 63 | F80: =IF(ISBLANK(H80),"",IF(VLOOKUP(H80,RawData!$D$8:$M$127,9,FALSE)=0,"",VLOOKUP(H80,RawData!$D$8:$M$127,9,FALSE))) ->  | G80: =IF(ISBLANK(H80),"",VLOOKUP(H80,RawData!$D$8:$M$127,2,FALSE)) ->  | K80: 0 | L80: =IF(ISBLANK(H80),"",VLOOKUP(H80,FarmPricelistWorkSheet!$D$3:$N$125,5,FALSE)*(1+K80)) ->  | M80: 0 | O80: =IF(ISBLANK(H80),"",VLOOKUP(H80,RawData!$D$8:$K$127,8,FALSE)) ->  | P80: =IF(ROUND(IFERROR(VLOOKUP(H80,FarmPricelistWorkSheet!$D$2:$N$124,7,FALSE),0),2)=0,"-",(ROUND(IFERROR(VLOOKUP(H80,FarmPricelistWorkSheet!$D$2:$N$124,7,FALSE),0),2))) -> - | Q80: - | R80: - | S80: =IF(ROUND(IFERROR(VLOOKUP(H80,FarmPricelistWorkSheet!$D$2:$N$124,9,FALSE),0),2)*E80 = 0,"-",ROUND(IFERROR(VLOOKUP(H80,FarmPricelistWorkSheet!$D$2:$N$124,9,FALSE),0),2)*E80) -> -
A81: 64 | F81: =IF(ISBLANK(H81),"",IF(VLOOKUP(H81,RawData!$D$8:$M$127,9,FALSE)=0,"",VLOOKUP(H81,RawData!$D$8:$M$127,9,FALSE))) ->  | G81: =IF(ISBLANK(H81),"",VLOOKUP(H81,RawData!$D$8:$M$127,2,FALSE)) ->  | K81: 0 | L81: =IF(ISBLANK(H81),"",VLOOKUP(H81,FarmPricelistWorkSheet!$D$3:$N$125,5,FALSE)*(1+K81)) ->  | M81: 0 | O81: =IF(ISBLANK(H81),"",VLOOKUP(H81,RawData!$D$8:$K$127,8,FALSE)) ->  | P81: =IF(ROUND(IFERROR(VLOOKUP(H81,FarmPricelistWorkSheet!$D$2:$N$124,7,FALSE),0),2)=0,"-",(ROUND(IFERROR(VLOOKUP(H81,FarmPricelistWorkSheet!$D$2:$N$124,7,FALSE),0),2))) -> - | Q81: - | R81: - | S81: =IF(ROUND(IFERROR(VLOOKUP(H81,FarmPricelistWorkSheet!$D$2:$N$124,9,FALSE),0),2)*E81 = 0,"-",ROUND(IFERROR(VLOOKUP(H81,FarmPricelistWorkSheet!$D$2:$N$124,9,FALSE),0),2)*E81) -> -
A82: 65 | F82: =IF(ISBLANK(H82),"",IF(VLOOKUP(H82,RawData!$D$8:$M$127,9,FALSE)=0,"",VLOOKUP(H82,RawData!$D$8:$M$127,9,FALSE))) ->  | G82: =IF(ISBLANK(H82),"",VLOOKUP(H82,RawData!$D$8:$M$127,2,FALSE)) ->  | K82: 0 | L82: =IF(ISBLANK(H82),"",VLOOKUP(H82,FarmPricelistWorkSheet!$D$3:$N$125,5,FALSE)*(1+K82)) ->  | M82: 0 | O82: =IF(ISBLANK(H82),"",VLOOKUP(H82,RawData!$D$8:$K$127,8,FALSE)) ->  | P82: =IF(ROUND(IFERROR(VLOOKUP(H82,FarmPricelistWorkSheet!$D$2:$N$124,7,FALSE),0),2)=0,"-",(ROUND(IFERROR(VLOOKUP(H82,FarmPricelistWorkSheet!$D$2:$N$124,7,FALSE),0),2))) -> - | Q82: - | R82: - | S82: =IF(ROUND(IFERROR(VLOOKUP(H82,FarmPricelistWorkSheet!$D$2:$N$124,9,FALSE),0),2)*E82 = 0,"-",ROUND(IFERROR(VLOOKUP(H82,FarmPricelistWorkSheet!$D$2:$N$124,9,FALSE),0),2)*E82) -> -
A83: 66 | F83: =IF(ISBLANK(H83),"",IF(VLOOKUP(H83,RawData!$D$8:$M$127,9,FALSE)=0,"",VLOOKUP(H83,RawData!$D$8:$M$127,9,FALSE))) ->  | G83: =IF(ISBLANK(H83),"",VLOOKUP(H83,RawData!$D$8:$M$127,2,FALSE)) ->  | K83: 0 | L83: =IF(ISBLANK(H83),"",VLOOKUP(H83,FarmPricelistWorkSheet!$D$3:$N$125,5,FALSE)*(1+K83)) ->  | M83: 0 | N83: =IF(ISBLANK(H83),"",ROUND((L83*E83 + M83),2)) ->  | O83: =IF(ISBLANK(H83),"",VLOOKUP(H83,RawData!$D$8:$K$127,8,FALSE)) ->  | P83: =IF(ROUND(IFERROR(VLOOKUP(H83,FarmPricelistWorkSheet!$D$2:$N$124,7,FALSE),0),2)=0,"-",(ROUND(IFERROR(VLOOKUP(H83,FarmPricelistWorkSheet!$D$2:$N$124,7,FALSE),0),2))) -> - | Q83: =IFERROR(IF(S83*P83 = 0,"-",S83*P83),"-") -> - | R83: =IF(ROUND(IFERROR(Q83/N83,0),2)=0,"-",(ROUND(IFERROR(Q83/N83,0),2))) -> - | S83: =IF(ROUND(IFERROR(VLOOKUP(H83,FarmPricelistWorkSheet!$D$2:$N$124,9,FALSE),0),2)*E83 = 0,"-",ROUND(IFERROR(VLOOKUP(H83,FarmPricelistWorkSheet!$D$2:$N$124,9,FALSE),0),2)*E83) -> -
A84: =1+A83 -> 67 | F84: =IF(ISBLANK(H84),"",IF(VLOOKUP(H84,RawData!$D$8:$M$127,9,FALSE)=0,"",VLOOKUP(H84,RawData!$D$8:$M$127,9,FALSE))) ->  | G84: =IF(ISBLANK(H84),"",VLOOKUP(H84,RawData!$D$8:$M$127,2,FALSE)) ->  | K84: 0 | L84: =IF(ISBLANK(H84),"",VLOOKUP(H84,FarmPricelistWorkSheet!$D$3:$N$125,5,FALSE)*(1+K84)) ->  | M84: 0 | O84: =IF(ISBLANK(H84),"",VLOOKUP(H84,RawData!$D$8:$K$127,8,FALSE)) ->  | P84: =IF(ROUND(IFERROR(VLOOKUP(H84,FarmPricelistWorkSheet!$D$2:$N$124,7,FALSE),0),2)=0,"-",(ROUND(IFERROR(VLOOKUP(H84,FarmPricelistWorkSheet!$D$2:$N$124,7,FALSE),0),2))) -> - | Q84: - | R84: - | S84: =IF(ROUND(IFERROR(VLOOKUP(H84,FarmPricelistWorkSheet!$D$2:$N$124,9,FALSE),0),2)*E84 = 0,"-",ROUND(IFERROR(VLOOKUP(H84,FarmPricelistWorkSheet!$D$2:$N$124,9,FALSE),0),2)*E84) -> -
A85: 68 | F85: =IF(ISBLANK(H85),"",IF(VLOOKUP(H85,RawData!$D$8:$M$127,9,FALSE)=0,"",VLOOKUP(H85,RawData!$D$8:$M$127,9,FALSE))) ->  | G85: =IF(ISBLANK(H85),"",VLOOKUP(H85,RawData!$D$8:$M$127,2,FALSE)) ->  | K85: 0 | L85: =IF(ISBLANK(H85),"",VLOOKUP(H85,FarmPricelistWorkSheet!$D$3:$N$125,5,FALSE)*(1+K85)) ->  | M85: 0 | O85: =IF(ISBLANK(H85),"",VLOOKUP(H85,RawData!$D$8:$K$127,8,FALSE)) ->  | P85: =IF(ROUND(IFERROR(VLOOKUP(H85,FarmPricelistWorkSheet!$D$2:$N$124,7,FALSE),0),2)=0,"-",(ROUND(IFERROR(VLOOKUP(H85,FarmPricelistWorkSheet!$D$2:$N$124,7,FALSE),0),2))) -> - | Q85: - | R85: - | S85: =IF(ROUND(IFERROR(VLOOKUP(H85,FarmPricelistWorkSheet!$D$2:$N$124,9,FALSE),0),2)*E85 = 0,"-",ROUND(IFERROR(VLOOKUP(H85,FarmPricelistWorkSheet!$D$2:$N$124,9,FALSE),0),2)*E85) -> -
A86: 69 | F86: =IF(ISBLANK(H86),"",IF(VLOOKUP(H86,RawData!$D$8:$M$127,9,FALSE)=0,"",VLOOKUP(H86,RawData!$D$8:$M$127,9,FALSE))) ->  | G86: =IF(ISBLANK(H86),"",VLOOKUP(H86,RawData!$D$8:$M$127,2,FALSE)) ->  | K86: 0 | L86: =IF(ISBLANK(H86),"",VLOOKUP(H86,FarmPricelistWorkSheet!$D$3:$N$125,5,FALSE)*(1+K86)) ->  | M86: 0 | O86: =IF(ISBLANK(H86),"",VLOOKUP(H86,RawData!$D$8:$K$127,8,FALSE)) ->  | P86: =IF(ROUND(IFERROR(VLOOKUP(H86,FarmPricelistWorkSheet!$D$2:$N$124,7,FALSE),0),2)=0,"-",(ROUND(IFERROR(VLOOKUP(H86,FarmPricelistWorkSheet!$D$2:$N$124,7,FALSE),0),2))) -> - | Q86: - | R86: - | S86: =IF(ROUND(IFERROR(VLOOKUP(H86,FarmPricelistWorkSheet!$D$2:$N$124,9,FALSE),0),2)*E86 = 0,"-",ROUND(IFERROR(VLOOKUP(H86,FarmPricelistWorkSheet!$D$2:$N$124,9,FALSE),0),2)*E86) -> -
A87: 70 | F87: =IF(ISBLANK(H87),"",IF(VLOOKUP(H87,RawData!$D$8:$M$127,9,FALSE)=0,"",VLOOKUP(H87,RawData!$D$8:$M$127,9,FALSE))) ->  | G87: =IF(ISBLANK(H87),"",VLOOKUP(H87,RawData!$D$8:$M$127,2,FALSE)) ->  | K87: 0 | L87: =IF(ISBLANK(H87),"",VLOOKUP(H87,FarmPricelistWorkSheet!$D$3:$N$125,5,FALSE)*(1+K87)) ->  | M87: 0 | O87: =IF(ISBLANK(H87),"",VLOOKUP(H87,RawData!$D$8:$K$127,8,FALSE)) ->  | P87: =IF(ROUND(IFERROR(VLOOKUP(H87,FarmPricelistWorkSheet!$D$2:$N$124,7,FALSE),0),2)=0,"-",(ROUND(IFERROR(VLOOKUP(H87,FarmPricelistWorkSheet!$D$2:$N$124,7,FALSE),0),2))) -> - | Q87: - | R87: - | S87: =IF(ROUND(IFERROR(VLOOKUP(H87,FarmPricelistWorkSheet!$D$2:$N$124,9,FALSE),0),2)*E87 = 0,"-",ROUND(IFERROR(VLOOKUP(H87,FarmPricelistWorkSheet!$D$2:$N$124,9,FALSE),0),2)*E87) -> -
A88: 71 | F88: =IF(ISBLANK(H88),"",IF(VLOOKUP(H88,RawData!$D$8:$M$127,9,FALSE)=0,"",VLOOKUP(H88,RawData!$D$8:$M$127,9,FALSE))) ->  | G88: =IF(ISBLANK(H88),"",VLOOKUP(H88,RawData!$D$8:$M$127,2,FALSE)) ->  | K88: 0 | L88: =IF(ISBLANK(H88),"",VLOOKUP(H88,FarmPricelistWorkSheet!$D$3:$N$125,5,FALSE)*(1+K88)) ->  | M88: 0 | O88: =IF(ISBLANK(H88),"",VLOOKUP(H88,RawData!$D$8:$K$127,8,FALSE)) ->  | P88: =IF(ROUND(IFERROR(VLOOKUP(H88,FarmPricelistWorkSheet!$D$2:$N$124,7,FALSE),0),2)=0,"-",(ROUND(IFERROR(VLOOKUP(H88,FarmPricelistWorkSheet!$D$2:$N$124,7,FALSE),0),2))) -> - | Q88: - | R88: - | S88: =IF(ROUND(IFERROR(VLOOKUP(H88,FarmPricelistWorkSheet!$D$2:$N$124,9,FALSE),0),2)*E88 = 0,"-",ROUND(IFERROR(VLOOKUP(H88,FarmPricelistWorkSheet!$D$2:$N$124,9,FALSE),0),2)*E88) -> -
A89: 72 | F89: =IF(ISBLANK(H89),"",IF(VLOOKUP(H89,RawData!$D$8:$M$127,9,FALSE)=0,"",VLOOKUP(H89,RawData!$D$8:$M$127,9,FALSE))) ->  | G89: =IF(ISBLANK(H89),"",VLOOKUP(H89,RawData!$D$8:$M$127,2,FALSE)) ->  | K89: 0 | L89: =IF(ISBLANK(H89),"",VLOOKUP(H89,FarmPricelistWorkSheet!$D$3:$N$125,5,FALSE)*(1+K89)) ->  | M89: 0 | O89: =IF(ISBLANK(H89),"",VLOOKUP(H89,RawData!$D$8:$K$127,8,FALSE)) ->  | P89: =IF(ROUND(IFERROR(VLOOKUP(H89,FarmPricelistWorkSheet!$D$2:$N$124,7,FALSE),0),2)=0,"-",(ROUND(IFERROR(VLOOKUP(H89,FarmPricelistWorkSheet!$D$2:$N$124,7,FALSE),0),2))) -> - | Q89: - | R89: - | S89: =IF(ROUND(IFERROR(VLOOKUP(H89,FarmPricelistWorkSheet!$D$2:$N$124,9,FALSE),0),2)*E89 = 0,"-",ROUND(IFERROR(VLOOKUP(H89,FarmPricelistWorkSheet!$D$2:$N$124,9,FALSE),0),2)*E89) -> -
A90: 73 | F90: =IF(ISBLANK(H90),"",IF(VLOOKUP(H90,RawData!$D$8:$M$127,9,FALSE)=0,"",VLOOKUP(H90,RawData!$D$8:$M$127,9,FALSE))) ->  | G90: =IF(ISBLANK(H90),"",VLOOKUP(H90,RawData!$D$8:$M$127,2,FALSE)) ->  | K90: 0 | L90: =IF(ISBLANK(H90),"",VLOOKUP(H90,FarmPricelistWorkSheet!$D$3:$N$125,5,FALSE)*(1+K90)) ->  | M90: 0 | O90: =IF(ISBLANK(H90),"",VLOOKUP(H90,RawData!$D$8:$K$127,8,FALSE)) ->  | P90: =IF(ROUND(IFERROR(VLOOKUP(H90,FarmPricelistWorkSheet!$D$2:$N$124,7,FALSE),0),2)=0,"-",(ROUND(IFERROR(VLOOKUP(H90,FarmPricelistWorkSheet!$D$2:$N$124,7,FALSE),0),2))) -> - | Q90: - | R90: - | S90: =IF(ROUND(IFERROR(VLOOKUP(H90,FarmPricelistWorkSheet!$D$2:$N$124,9,FALSE),0),2)*E90 = 0,"-",ROUND(IFERROR(VLOOKUP(H90,FarmPricelistWorkSheet!$D$2:$N$124,9,FALSE),0),2)*E90) -> -
A91: 74 | F91: =IF(ISBLANK(H91),"",IF(VLOOKUP(H91,RawData!$D$8:$M$127,9,FALSE)=0,"",VLOOKUP(H91,RawData!$D$8:$M$127,9,FALSE))) ->  | G91: =IF(ISBLANK(H91),"",VLOOKUP(H91,RawData!$D$8:$M$127,2,FALSE)) ->  | K91: 0 | L91: =IF(ISBLANK(H91),"",VLOOKUP(H91,FarmPricelistWorkSheet!$D$3:$N$125,5,FALSE)*(1+K91)) ->  | M91: 0 | O91: =IF(ISBLANK(H91),"",VLOOKUP(H91,RawData!$D$8:$K$127,8,FALSE)) ->  | P91: =IF(ROUND(IFERROR(VLOOKUP(H91,FarmPricelistWorkSheet!$D$2:$N$124,7,FALSE),0),2)=0,"-",(ROUND(IFERROR(VLOOKUP(H91,FarmPricelistWorkSheet!$D$2:$N$124,7,FALSE),0),2))) -> - | Q91: - | R91: - | S91: =IF(ROUND(IFERROR(VLOOKUP(H91,FarmPricelistWorkSheet!$D$2:$N$124,9,FALSE),0),2)*E91 = 0,"-",ROUND(IFERROR(VLOOKUP(H91,FarmPricelistWorkSheet!$D$2:$N$124,9,FALSE),0),2)*E91) -> -
A92: 75 | F92: =IF(ISBLANK(H92),"",IF(VLOOKUP(H92,RawData!$D$8:$M$127,9,FALSE)=0,"",VLOOKUP(H92,RawData!$D$8:$M$127,9,FALSE))) ->  | G92: =IF(ISBLANK(H92),"",VLOOKUP(H92,RawData!$D$8:$M$127,2,FALSE)) ->  | K92: 0 | L92: =IF(ISBLANK(H92),"",VLOOKUP(H92,FarmPricelistWorkSheet!$D$3:$N$125,5,FALSE)*(1+K92)) ->  | M92: 0 | O92: =IF(ISBLANK(H92),"",VLOOKUP(H92,RawData!$D$8:$K$127,8,FALSE)) ->  | P92: =IF(ROUND(IFERROR(VLOOKUP(H92,FarmPricelistWorkSheet!$D$2:$N$124,7,FALSE),0),2)=0,"-",(ROUND(IFERROR(VLOOKUP(H92,FarmPricelistWorkSheet!$D$2:$N$124,7,FALSE),0),2))) -> - | Q92: - | R92: - | S92: =IF(ROUND(IFERROR(VLOOKUP(H92,FarmPricelistWorkSheet!$D$2:$N$124,9,FALSE),0),2)*E92 = 0,"-",ROUND(IFERROR(VLOOKUP(H92,FarmPricelistWorkSheet!$D$2:$N$124,9,FALSE),0),2)*E92) -> -
A93: 76 | F93: =IF(ISBLANK(H93),"",IF(VLOOKUP(H93,RawData!$D$8:$M$127,9,FALSE)=0,"",VLOOKUP(H93,RawData!$D$8:$M$127,9,FALSE))) ->  | G93: =IF(ISBLANK(H93),"",VLOOKUP(H93,RawData!$D$8:$M$127,2,FALSE)) ->  | K93: 0 | L93: =IF(ISBLANK(H93),"",VLOOKUP(H93,FarmPricelistWorkSheet!$D$3:$N$125,5,FALSE)*(1+K93)) ->  | M93: 0 | O93: =IF(ISBLANK(H93),"",VLOOKUP(H93,RawData!$D$8:$K$127,8,FALSE)) ->  | P93: =IF(ROUND(IFERROR(VLOOKUP(H93,FarmPricelistWorkSheet!$D$2:$N$124,7,FALSE),0),2)=0,"-",(ROUND(IFERROR(VLOOKUP(H93,FarmPricelistWorkSheet!$D$2:$N$124,7,FALSE),0),2))) -> - | Q93: - | R93: - | S93: =IF(ROUND(IFERROR(VLOOKUP(H93,FarmPricelistWorkSheet!$D$2:$N$124,9,FALSE),0),2)*E93 = 0,"-",ROUND(IFERROR(VLOOKUP(H93,FarmPricelistWorkSheet!$D$2:$N$124,9,FALSE),0),2)*E93) -> -
A94: 77 | F94: =IF(ISBLANK(H94),"",IF(VLOOKUP(H94,RawData!$D$8:$M$127,9,FALSE)=0,"",VLOOKUP(H94,RawData!$D$8:$M$127,9,FALSE))) ->  | G94: =IF(ISBLANK(H94),"",VLOOKUP(H94,RawData!$D$8:$M$127,2,FALSE)) ->  | K94: 0 | L94: =IF(ISBLANK(H94),"",VLOOKUP(H94,FarmPricelistWorkSheet!$D$3:$N$125,5,FALSE)*(1+K94)) ->  | M94: 0 | O94: =IF(ISBLANK(H94),"",VLOOKUP(H94,RawData!$D$8:$K$127,8,FALSE)) ->  | P94: =IF(ROUND(IFERROR(VLOOKUP(H94,FarmPricelistWorkSheet!$D$2:$N$124,7,FALSE),0),2)=0,"-",(ROUND(IFERROR(VLOOKUP(H94,FarmPricelistWorkSheet!$D$2:$N$124,7,FALSE),0),2))) -> - | Q94: - | R94: - | S94: =IF(ROUND(IFERROR(VLOOKUP(H94,FarmPricelistWorkSheet!$D$2:$N$124,9,FALSE),0),2)*E94 = 0,"-",ROUND(IFERROR(VLOOKUP(H94,FarmPricelistWorkSheet!$D$2:$N$124,9,FALSE),0),2)*E94) -> -
A95: 78 | F95: =IF(ISBLANK(H95),"",IF(VLOOKUP(H95,RawData!$D$8:$M$127,9,FALSE)=0,"",VLOOKUP(H95,RawData!$D$8:$M$127,9,FALSE))) ->  | G95: =IF(ISBLANK(H95),"",VLOOKUP(H95,RawData!$D$8:$M$127,2,FALSE)) ->  | K95: 0 | L95: =IF(ISBLANK(H95),"",VLOOKUP(H95,FarmPricelistWorkSheet!$D$3:$N$125,5,FALSE)*(1+K95)) ->  | M95: 0 | O95: =IF(ISBLANK(H95),"",VLOOKUP(H95,RawData!$D$8:$K$127,8,FALSE)) ->  | P95: =IF(ROUND(IFERROR(VLOOKUP(H95,FarmPricelistWorkSheet!$D$2:$N$124,7,FALSE),0),2)=0,"-",(ROUND(IFERROR(VLOOKUP(H95,FarmPricelistWorkSheet!$D$2:$N$124,7,FALSE),0),2))) -> - | Q95: - | R95: - | S95: =IF(ROUND(IFERROR(VLOOKUP(H95,FarmPricelistWorkSheet!$D$2:$N$124,9,FALSE),0),2)*E95 = 0,"-",ROUND(IFERROR(VLOOKUP(H95,FarmPricelistWorkSheet!$D$2:$N$124,9,FALSE),0),2)*E95) -> -
A96: 79 | F96: =IF(ISBLANK(H96),"",IF(VLOOKUP(H96,RawData!$D$8:$M$127,9,FALSE)=0,"",VLOOKUP(H96,RawData!$D$8:$M$127,9,FALSE))) ->  | G96: =IF(ISBLANK(H96),"",VLOOKUP(H96,RawData!$D$8:$M$127,2,FALSE)) ->  | K96: 0 | L96: =IF(ISBLANK(H96),"",VLOOKUP(H96,FarmPricelistWorkSheet!$D$3:$N$125,5,FALSE)*(1+K96)) ->  | M96: 0 | O96: =IF(ISBLANK(H96),"",VLOOKUP(H96,RawData!$D$8:$K$127,8,FALSE)) ->  | P96: =IF(ROUND(IFERROR(VLOOKUP(H96,FarmPricelistWorkSheet!$D$2:$N$124,7,FALSE),0),2)=0,"-",(ROUND(IFERROR(VLOOKUP(H96,FarmPricelistWorkSheet!$D$2:$N$124,7,FALSE),0),2))) -> - | Q96: - | R96: - | S96: =IF(ROUND(IFERROR(VLOOKUP(H96,FarmPricelistWorkSheet!$D$2:$N$124,9,FALSE),0),2)*E96 = 0,"-",ROUND(IFERROR(VLOOKUP(H96,FarmPricelistWorkSheet!$D$2:$N$124,9,FALSE),0),2)*E96) -> -
A97: 80 | F97: =IF(ISBLANK(H97),"",IF(VLOOKUP(H97,RawData!$D$8:$M$127,9,FALSE)=0,"",VLOOKUP(H97,RawData!$D$8:$M$127,9,FALSE))) ->  | G97: =IF(ISBLANK(H97),"",VLOOKUP(H97,RawData!$D$8:$M$127,2,FALSE)) ->  | K97: 0 | L97: =IF(ISBLANK(H97),"",VLOOKUP(H97,FarmPricelistWorkSheet!$D$3:$N$125,5,FALSE)*(1+K97)) ->  | M97: 0 | O97: =IF(ISBLANK(H97),"",VLOOKUP(H97,RawData!$D$8:$K$127,8,FALSE)) ->  | P97: =IF(ROUND(IFERROR(VLOOKUP(H97,FarmPricelistWorkSheet!$D$2:$N$124,7,FALSE),0),2)=0,"-",(ROUND(IFERROR(VLOOKUP(H97,FarmPricelistWorkSheet!$D$2:$N$124,7,FALSE),0),2))) -> - | Q97: - | R97: - | S97: =IF(ROUND(IFERROR(VLOOKUP(H97,FarmPricelistWorkSheet!$D$2:$N$124,9,FALSE),0),2)*E97 = 0,"-",ROUND(IFERROR(VLOOKUP(H97,FarmPricelistWorkSheet!$D$2:$N$124,9,FALSE),0),2)*E97) -> -
A98: 81 | F98: =IF(ISBLANK(H98),"",IF(VLOOKUP(H98,RawData!$D$8:$M$127,9,FALSE)=0,"",VLOOKUP(H98,RawData!$D$8:$M$127,9,FALSE))) ->  | G98: =IF(ISBLANK(H98),"",VLOOKUP(H98,RawData!$D$8:$M$127,2,FALSE)) ->  | K98: 0 | L98: =IF(ISBLANK(H98),"",VLOOKUP(H98,FarmPricelistWorkSheet!$D$3:$N$125,5,FALSE)*(1+K98)) ->  | M98: 0 | O98: =IF(ISBLANK(H98),"",VLOOKUP(H98,RawData!$D$8:$K$127,8,FALSE)) ->  | P98: =IF(ROUND(IFERROR(VLOOKUP(H98,FarmPricelistWorkSheet!$D$2:$N$124,7,FALSE),0),2)=0,"-",(ROUND(IFERROR(VLOOKUP(H98,FarmPricelistWorkSheet!$D$2:$N$124,7,FALSE),0),2))) -> - | Q98: - | R98: - | S98: =IF(ROUND(IFERROR(VLOOKUP(H98,FarmPricelistWorkSheet!$D$2:$N$124,9,FALSE),0),2)*E98 = 0,"-",ROUND(IFERROR(VLOOKUP(H98,FarmPricelistWorkSheet!$D$2:$N$124,9,FALSE),0),2)*E98) -> -
A99: 82 | F99: =IF(ISBLANK(H99),"",IF(VLOOKUP(H99,RawData!$D$8:$M$127,9,FALSE)=0,"",VLOOKUP(H99,RawData!$D$8:$M$127,9,FALSE))) ->  | G99: =IF(ISBLANK(H99),"",VLOOKUP(H99,RawData!$D$8:$M$127,2,FALSE)) ->  | K99: 0 | L99: =IF(ISBLANK(H99),"",VLOOKUP(H99,FarmPricelistWorkSheet!$D$3:$N$125,5,FALSE)*(1+K99)) ->  | M99: 0 | O99: =IF(ISBLANK(H99),"",VLOOKUP(H99,RawData!$D$8:$K$127,8,FALSE)) ->  | P99: =IF(ROUND(IFERROR(VLOOKUP(H99,FarmPricelistWorkSheet!$D$2:$N$124,7,FALSE),0),2)=0,"-",(ROUND(IFERROR(VLOOKUP(H99,FarmPricelistWorkSheet!$D$2:$N$124,7,FALSE),0),2))) -> - | Q99: - | R99: - | S99: =IF(ROUND(IFERROR(VLOOKUP(H99,FarmPricelistWorkSheet!$D$2:$N$124,9,FALSE),0),2)*E99 = 0,"-",ROUND(IFERROR(VLOOKUP(H99,FarmPricelistWorkSheet!$D$2:$N$124,9,FALSE),0),2)*E99) -> -
A100: 83 | F100: =IF(ISBLANK(H100),"",IF(VLOOKUP(H100,RawData!$D$8:$M$127,9,FALSE)=0,"",VLOOKUP(H100,RawData!$D$8:$M$127,9,FALSE))) ->  | G100: =IF(ISBLANK(H100),"",VLOOKUP(H100,RawData!$D$8:$M$127,2,FALSE)) ->  | K100: 0 | L100: =IF(ISBLANK(H100),"",VLOOKUP(H100,FarmPricelistWorkSheet!$D$3:$N$125,5,FALSE)*(1+K100)) ->  | M100: 0 | O100: =IF(ISBLANK(H100),"",VLOOKUP(H100,RawData!$D$8:$K$127,8,FALSE)) ->  | P100: =IF(ROUND(IFERROR(VLOOKUP(H100,FarmPricelistWorkSheet!$D$2:$N$124,7,FALSE),0),2)=0,"-",(ROUND(IFERROR(VLOOKUP(H100,FarmPricelistWorkSheet!$D$2:$N$124,7,FALSE),0),2))) -> - | Q100: - | R100: - | S100: =IF(ROUND(IFERROR(VLOOKUP(H100,FarmPricelistWorkSheet!$D$2:$N$124,9,FALSE),0),2)*E100 = 0,"-",ROUND(IFERROR(VLOOKUP(H100,FarmPricelistWorkSheet!$D$2:$N$124,9,FALSE),0),2)*E100) -> -
A101: 84 | F101: =IF(ISBLANK(H101),"",IF(VLOOKUP(H101,RawData!$D$8:$M$127,9,FALSE)=0,"",VLOOKUP(H101,RawData!$D$8:$M$127,9,FALSE))) ->  | G101: =IF(ISBLANK(H101),"",VLOOKUP(H101,RawData!$D$8:$M$127,2,FALSE)) ->  | K101: 0 | L101: =IF(ISBLANK(H101),"",VLOOKUP(H101,FarmPricelistWorkSheet!$D$3:$N$125,5,FALSE)*(1+K101)) ->  | M101: 0 | O101: =IF(ISBLANK(H101),"",VLOOKUP(H101,RawData!$D$8:$K$127,8,FALSE)) ->  | P101: =IF(ROUND(IFERROR(VLOOKUP(H101,FarmPricelistWorkSheet!$D$2:$N$124,7,FALSE),0),2)=0,"-",(ROUND(IFERROR(VLOOKUP(H101,FarmPricelistWorkSheet!$D$2:$N$124,7,FALSE),0),2))) -> - | Q101: - | R101: - | S101: =IF(ROUND(IFERROR(VLOOKUP(H101,FarmPricelistWorkSheet!$D$2:$N$124,9,FALSE),0),2)*E101 = 0,"-",ROUND(IFERROR(VLOOKUP(H101,FarmPricelistWorkSheet!$D$2:$N$124,9,FALSE),0),2)*E101) -> -
A102: 85 | F102: =IF(ISBLANK(H102),"",IF(VLOOKUP(H102,RawData!$D$8:$M$127,9,FALSE)=0,"",VLOOKUP(H102,RawData!$D$8:$M$127,9,FALSE))) ->  | G102: =IF(ISBLANK(H102),"",VLOOKUP(H102,RawData!$D$8:$M$127,2,FALSE)) ->  | K102: 0 | L102: =IF(ISBLANK(H102),"",VLOOKUP(H102,FarmPricelistWorkSheet!$D$3:$N$125,5,FALSE)*(1+K102)) ->  | M102: 0 | O102: =IF(ISBLANK(H102),"",VLOOKUP(H102,RawData!$D$8:$K$127,8,FALSE)) ->  | P102: =IF(ROUND(IFERROR(VLOOKUP(H102,FarmPricelistWorkSheet!$D$2:$N$124,7,FALSE),0),2)=0,"-",(ROUND(IFERROR(VLOOKUP(H102,FarmPricelistWorkSheet!$D$2:$N$124,7,FALSE),0),2))) -> - | Q102: - | R102: - | S102: =IF(ROUND(IFERROR(VLOOKUP(H102,FarmPricelistWorkSheet!$D$2:$N$124,9,FALSE),0),2)*E102 = 0,"-",ROUND(IFERROR(VLOOKUP(H102,FarmPricelistWorkSheet!$D$2:$N$124,9,FALSE),0),2)*E102) -> -
A103: 86 | F103: =IF(ISBLANK(H103),"",IF(VLOOKUP(H103,RawData!$D$8:$M$127,9,FALSE)=0,"",VLOOKUP(H103,RawData!$D$8:$M$127,9,FALSE))) ->  | G103: =IF(ISBLANK(H103),"",VLOOKUP(H103,RawData!$D$8:$M$127,2,FALSE)) ->  | K103: 0 | L103: =IF(ISBLANK(H103),"",VLOOKUP(H103,FarmPricelistWorkSheet!$D$3:$N$125,5,FALSE)*(1+K103)) ->  | M103: 0 | O103: =IF(ISBLANK(H103),"",VLOOKUP(H103,RawData!$D$8:$K$127,8,FALSE)) ->  | P103: =IF(ROUND(IFERROR(VLOOKUP(H103,FarmPricelistWorkSheet!$D$2:$N$124,7,FALSE),0),2)=0,"-",(ROUND(IFERROR(VLOOKUP(H103,FarmPricelistWorkSheet!$D$2:$N$124,7,FALSE),0),2))) -> - | Q103: - | R103: - | S103: =IF(ROUND(IFERROR(VLOOKUP(H103,FarmPricelistWorkSheet!$D$2:$N$124,9,FALSE),0),2)*E103 = 0,"-",ROUND(IFERROR(VLOOKUP(H103,FarmPricelistWorkSheet!$D$2:$N$124,9,FALSE),0),2)*E103) -> -
A104: 87 | F104: =IF(ISBLANK(H104),"",IF(VLOOKUP(H104,RawData!$D$8:$M$127,9,FALSE)=0,"",VLOOKUP(H104,RawData!$D$8:$M$127,9,FALSE))) ->  | G104: =IF(ISBLANK(H104),"",VLOOKUP(H104,RawData!$D$8:$M$127,2,FALSE)) ->  | K104: 0 | L104: =IF(ISBLANK(H104),"",VLOOKUP(H104,FarmPricelistWorkSheet!$D$3:$N$125,5,FALSE)*(1+K104)) ->  | M104: 0 | O104: =IF(ISBLANK(H104),"",VLOOKUP(H104,RawData!$D$8:$K$127,8,FALSE)) ->  | P104: =IF(ROUND(IFERROR(VLOOKUP(H104,FarmPricelistWorkSheet!$D$2:$N$124,7,FALSE),0),2)=0,"-",(ROUND(IFERROR(VLOOKUP(H104,FarmPricelistWorkSheet!$D$2:$N$124,7,FALSE),0),2))) -> - | Q104: - | R104: - | S104: =IF(ROUND(IFERROR(VLOOKUP(H104,FarmPricelistWorkSheet!$D$2:$N$124,9,FALSE),0),2)*E104 = 0,"-",ROUND(IFERROR(VLOOKUP(H104,FarmPricelistWorkSheet!$D$2:$N$124,9,FALSE),0),2)*E104) -> -
A105: 88 | F105: =IF(ISBLANK(H105),"",IF(VLOOKUP(H105,RawData!$D$8:$M$127,9,FALSE)=0,"",VLOOKUP(H105,RawData!$D$8:$M$127,9,FALSE))) ->  | G105: =IF(ISBLANK(H105),"",VLOOKUP(H105,RawData!$D$8:$M$127,2,FALSE)) ->  | K105: 0 | L105: =IF(ISBLANK(H105),"",VLOOKUP(H105,FarmPricelistWorkSheet!$D$3:$N$125,5,FALSE)*(1+K105)) ->  | M105: 0 | O105: =IF(ISBLANK(H105),"",VLOOKUP(H105,RawData!$D$8:$K$127,8,FALSE)) ->  | P105: =IF(ROUND(IFERROR(VLOOKUP(H105,FarmPricelistWorkSheet!$D$2:$N$124,7,FALSE),0),2)=0,"-",(ROUND(IFERROR(VLOOKUP(H105,FarmPricelistWorkSheet!$D$2:$N$124,7,FALSE),0),2))) -> - | Q105: - | R105: - | S105: =IF(ROUND(IFERROR(VLOOKUP(H105,FarmPricelistWorkSheet!$D$2:$N$124,9,FALSE),0),2)*E105 = 0,"-",ROUND(IFERROR(VLOOKUP(H105,FarmPricelistWorkSheet!$D$2:$N$124,9,FALSE),0),2)*E105) -> -
A106: 89 | F106: =IF(ISBLANK(H106),"",IF(VLOOKUP(H106,RawData!$D$8:$M$127,9,FALSE)=0,"",VLOOKUP(H106,RawData!$D$8:$M$127,9,FALSE))) ->  | G106: =IF(ISBLANK(H106),"",VLOOKUP(H106,RawData!$D$8:$M$127,2,FALSE)) ->  | K106: 0 | L106: =IF(ISBLANK(H106),"",VLOOKUP(H106,FarmPricelistWorkSheet!$D$3:$N$125,5,FALSE)*(1+K106)) ->  | M106: 0 | O106: =IF(ISBLANK(H106),"",VLOOKUP(H106,RawData!$D$8:$K$127,8,FALSE)) ->  | P106: =IF(ROUND(IFERROR(VLOOKUP(H106,FarmPricelistWorkSheet!$D$2:$N$124,7,FALSE),0),2)=0,"-",(ROUND(IFERROR(VLOOKUP(H106,FarmPricelistWorkSheet!$D$2:$N$124,7,FALSE),0),2))) -> - | Q106: - | R106: - | S106: =IF(ROUND(IFERROR(VLOOKUP(H106,FarmPricelistWorkSheet!$D$2:$N$124,9,FALSE),0),2)*E106 = 0,"-",ROUND(IFERROR(VLOOKUP(H106,FarmPricelistWorkSheet!$D$2:$N$124,9,FALSE),0),2)*E106) -> -
A107: 90 | F107: =IF(ISBLANK(H107),"",IF(VLOOKUP(H107,RawData!$D$8:$M$127,9,FALSE)=0,"",VLOOKUP(H107,RawData!$D$8:$M$127,9,FALSE))) ->  | G107: =IF(ISBLANK(H107),"",VLOOKUP(H107,RawData!$D$8:$M$127,2,FALSE)) ->  | K107: 0 | L107: =IF(ISBLANK(H107),"",VLOOKUP(H107,FarmPricelistWorkSheet!$D$3:$N$125,5,FALSE)*(1+K107)) ->  | M107: 0 | O107: =IF(ISBLANK(H107),"",VLOOKUP(H107,RawData!$D$8:$K$127,8,FALSE)) ->  | P107: =IF(ROUND(IFERROR(VLOOKUP(H107,FarmPricelistWorkSheet!$D$2:$N$124,7,FALSE),0),2)=0,"-",(ROUND(IFERROR(VLOOKUP(H107,FarmPricelistWorkSheet!$D$2:$N$124,7,FALSE),0),2))) -> - | Q107: - | R107: - | S107: =IF(ROUND(IFERROR(VLOOKUP(H107,FarmPricelistWorkSheet!$D$2:$N$124,9,FALSE),0),2)*E107 = 0,"-",ROUND(IFERROR(VLOOKUP(H107,FarmPricelistWorkSheet!$D$2:$N$124,9,FALSE),0),2)*E107) -> -
A108: 91 | F108: =IF(ISBLANK(H108),"",IF(VLOOKUP(H108,RawData!$D$8:$M$127,9,FALSE)=0,"",VLOOKUP(H108,RawData!$D$8:$M$127,9,FALSE))) ->  | G108: =IF(ISBLANK(H108),"",VLOOKUP(H108,RawData!$D$8:$M$127,2,FALSE)) ->  | K108: 0 | L108: =IF(ISBLANK(H108),"",VLOOKUP(H108,FarmPricelistWorkSheet!$D$3:$N$125,5,FALSE)*(1+K108)) ->  | M108: 0 | O108: =IF(ISBLANK(H108),"",VLOOKUP(H108,RawData!$D$8:$K$127,8,FALSE)) ->  | P108: =IF(ROUND(IFERROR(VLOOKUP(H108,FarmPricelistWorkSheet!$D$2:$N$124,7,FALSE),0),2)=0,"-",(ROUND(IFERROR(VLOOKUP(H108,FarmPricelistWorkSheet!$D$2:$N$124,7,FALSE),0),2))) -> - | Q108: - | R108: - | S108: =IF(ROUND(IFERROR(VLOOKUP(H108,FarmPricelistWorkSheet!$D$2:$N$124,9,FALSE),0),2)*E108 = 0,"-",ROUND(IFERROR(VLOOKUP(H108,FarmPricelistWorkSheet!$D$2:$N$124,9,FALSE),0),2)*E108) -> -
A109: 92 | F109: =IF(ISBLANK(H109),"",IF(VLOOKUP(H109,RawData!$D$8:$M$127,9,FALSE)=0,"",VLOOKUP(H109,RawData!$D$8:$M$127,9,FALSE))) ->  | G109: =IF(ISBLANK(H109),"",VLOOKUP(H109,RawData!$D$8:$M$127,2,FALSE)) ->  | K109: 0 | L109: =IF(ISBLANK(H109),"",VLOOKUP(H109,FarmPricelistWorkSheet!$D$3:$N$125,5,FALSE)*(1+K109)) ->  | M109: 0 | O109: =IF(ISBLANK(H109),"",VLOOKUP(H109,RawData!$D$8:$K$127,8,FALSE)) ->  | P109: =IF(ROUND(IFERROR(VLOOKUP(H109,FarmPricelistWorkSheet!$D$2:$N$124,7,FALSE),0),2)=0,"-",(ROUND(IFERROR(VLOOKUP(H109,FarmPricelistWorkSheet!$D$2:$N$124,7,FALSE),0),2))) -> - | Q109: - | R109: - | S109: =IF(ROUND(IFERROR(VLOOKUP(H109,FarmPricelistWorkSheet!$D$2:$N$124,9,FALSE),0),2)*E109 = 0,"-",ROUND(IFERROR(VLOOKUP(H109,FarmPricelistWorkSheet!$D$2:$N$124,9,FALSE),0),2)*E109) -> -
A110: 93 | F110: =IF(ISBLANK(H110),"",IF(VLOOKUP(H110,RawData!$D$8:$M$127,9,FALSE)=0,"",VLOOKUP(H110,RawData!$D$8:$M$127,9,FALSE))) ->  | G110: =IF(ISBLANK(H110),"",VLOOKUP(H110,RawData!$D$8:$M$127,2,FALSE)) ->  | K110: 0 | L110: =IF(ISBLANK(H110),"",VLOOKUP(H110,FarmPricelistWorkSheet!$D$3:$N$125,5,FALSE)*(1+K110)) ->  | M110: 0 | O110: =IF(ISBLANK(H110),"",VLOOKUP(H110,RawData!$D$8:$K$127,8,FALSE)) ->  | P110: =IF(ROUND(IFERROR(VLOOKUP(H110,FarmPricelistWorkSheet!$D$2:$N$124,7,FALSE),0),2)=0,"-",(ROUND(IFERROR(VLOOKUP(H110,FarmPricelistWorkSheet!$D$2:$N$124,7,FALSE),0),2))) -> - | Q110: - | R110: - | S110: =IF(ROUND(IFERROR(VLOOKUP(H110,FarmPricelistWorkSheet!$D$2:$N$124,9,FALSE),0),2)*E110 = 0,"-",ROUND(IFERROR(VLOOKUP(H110,FarmPricelistWorkSheet!$D$2:$N$124,9,FALSE),0),2)*E110) -> -
A111: 94 | F111: =IF(ISBLANK(H111),"",IF(VLOOKUP(H111,RawData!$D$8:$M$127,9,FALSE)=0,"",VLOOKUP(H111,RawData!$D$8:$M$127,9,FALSE))) ->  | G111: =IF(ISBLANK(H111),"",VLOOKUP(H111,RawData!$D$8:$M$127,2,FALSE)) ->  | K111: 0 | L111: =IF(ISBLANK(H111),"",VLOOKUP(H111,FarmPricelistWorkSheet!$D$3:$N$125,5,FALSE)*(1+K111)) ->  | M111: 0 | O111: =IF(ISBLANK(H111),"",VLOOKUP(H111,RawData!$D$8:$K$127,8,FALSE)) ->  | P111: =IF(ROUND(IFERROR(VLOOKUP(H111,FarmPricelistWorkSheet!$D$2:$N$124,7,FALSE),0),2)=0,"-",(ROUND(IFERROR(VLOOKUP(H111,FarmPricelistWorkSheet!$D$2:$N$124,7,FALSE),0),2))) -> - | Q111: - | R111: - | S111: =IF(ROUND(IFERROR(VLOOKUP(H111,FarmPricelistWorkSheet!$D$2:$N$124,9,FALSE),0),2)*E111 = 0,"-",ROUND(IFERROR(VLOOKUP(H111,FarmPricelistWorkSheet!$D$2:$N$124,9,FALSE),0),2)*E111) -> -
A112: 95 | F112: =IF(ISBLANK(H112),"",IF(VLOOKUP(H112,RawData!$D$8:$M$127,9,FALSE)=0,"",VLOOKUP(H112,RawData!$D$8:$M$127,9,FALSE))) ->  | G112: =IF(ISBLANK(H112),"",VLOOKUP(H112,RawData!$D$8:$M$127,2,FALSE)) ->  | K112: 0 | L112: =IF(ISBLANK(H112),"",VLOOKUP(H112,FarmPricelistWorkSheet!$D$3:$N$125,5,FALSE)*(1+K112)) ->  | M112: 0 | O112: =IF(ISBLANK(H112),"",VLOOKUP(H112,RawData!$D$8:$K$127,8,FALSE)) ->  | P112: =IF(ROUND(IFERROR(VLOOKUP(H112,FarmPricelistWorkSheet!$D$2:$N$124,7,FALSE),0),2)=0,"-",(ROUND(IFERROR(VLOOKUP(H112,FarmPricelistWorkSheet!$D$2:$N$124,7,FALSE),0),2))) -> - | Q112: - | R112: - | S112: =IF(ROUND(IFERROR(VLOOKUP(H112,FarmPricelistWorkSheet!$D$2:$N$124,9,FALSE),0),2)*E112 = 0,"-",ROUND(IFERROR(VLOOKUP(H112,FarmPricelistWorkSheet!$D$2:$N$124,9,FALSE),0),2)*E112) -> -
A113: 96 | F113: =IF(ISBLANK(H113),"",IF(VLOOKUP(H113,RawData!$D$8:$M$127,9,FALSE)=0,"",VLOOKUP(H113,RawData!$D$8:$M$127,9,FALSE))) ->  | G113: =IF(ISBLANK(H113),"",VLOOKUP(H113,RawData!$D$8:$M$127,2,FALSE)) ->  | K113: 0 | L113: =IF(ISBLANK(H113),"",VLOOKUP(H113,FarmPricelistWorkSheet!$D$3:$N$125,5,FALSE)*(1+K113)) ->  | M113: 0 | O113: =IF(ISBLANK(H113),"",VLOOKUP(H113,RawData!$D$8:$K$127,8,FALSE)) ->  | P113: =IF(ROUND(IFERROR(VLOOKUP(H113,FarmPricelistWorkSheet!$D$2:$N$124,7,FALSE),0),2)=0,"-",(ROUND(IFERROR(VLOOKUP(H113,FarmPricelistWorkSheet!$D$2:$N$124,7,FALSE),0),2))) -> - | Q113: - | R113: - | S113: =IF(ROUND(IFERROR(VLOOKUP(H113,FarmPricelistWorkSheet!$D$2:$N$124,9,FALSE),0),2)*E113 = 0,"-",ROUND(IFERROR(VLOOKUP(H113,FarmPricelistWorkSheet!$D$2:$N$124,9,FALSE),0),2)*E113) -> -
A114: 97 | F114: =IF(ISBLANK(H114),"",IF(VLOOKUP(H114,RawData!$D$8:$M$127,9,FALSE)=0,"",VLOOKUP(H114,RawData!$D$8:$M$127,9,FALSE))) ->  | G114: =IF(ISBLANK(H114),"",VLOOKUP(H114,RawData!$D$8:$M$127,2,FALSE)) ->  | K114: 0 | L114: =IF(ISBLANK(H114),"",VLOOKUP(H114,FarmPricelistWorkSheet!$D$3:$N$125,5,FALSE)*(1+K114)) ->  | M114: 0 | O114: =IF(ISBLANK(H114),"",VLOOKUP(H114,RawData!$D$8:$K$127,8,FALSE)) ->  | P114: =IF(ROUND(IFERROR(VLOOKUP(H114,FarmPricelistWorkSheet!$D$2:$N$124,7,FALSE),0),2)=0,"-",(ROUND(IFERROR(VLOOKUP(H114,FarmPricelistWorkSheet!$D$2:$N$124,7,FALSE),0),2))) -> - | Q114: - | R114: - | S114: =IF(ROUND(IFERROR(VLOOKUP(H114,FarmPricelistWorkSheet!$D$2:$N$124,9,FALSE),0),2)*E114 = 0,"-",ROUND(IFERROR(VLOOKUP(H114,FarmPricelistWorkSheet!$D$2:$N$124,9,FALSE),0),2)*E114) -> -
A115: 98 | F115: =IF(ISBLANK(H115),"",IF(VLOOKUP(H115,RawData!$D$8:$M$127,9,FALSE)=0,"",VLOOKUP(H115,RawData!$D$8:$M$127,9,FALSE))) ->  | G115: =IF(ISBLANK(H115),"",VLOOKUP(H115,RawData!$D$8:$M$127,2,FALSE)) ->  | K115: 0 | L115: =IF(ISBLANK(H115),"",VLOOKUP(H115,FarmPricelistWorkSheet!$D$3:$N$125,5,FALSE)*(1+K115)) ->  | M115: 0 | O115: =IF(ISBLANK(H115),"",VLOOKUP(H115,RawData!$D$8:$K$127,8,FALSE)) ->  | P115: =IF(ROUND(IFERROR(VLOOKUP(H115,FarmPricelistWorkSheet!$D$2:$N$124,7,FALSE),0),2)=0,"-",(ROUND(IFERROR(VLOOKUP(H115,FarmPricelistWorkSheet!$D$2:$N$124,7,FALSE),0),2))) -> - | Q115: - | R115: - | S115: =IF(ROUND(IFERROR(VLOOKUP(H115,FarmPricelistWorkSheet!$D$2:$N$124,9,FALSE),0),2)*E115 = 0,"-",ROUND(IFERROR(VLOOKUP(H115,FarmPricelistWorkSheet!$D$2:$N$124,9,FALSE),0),2)*E115) -> -
A116: 99 | F116: =IF(ISBLANK(H116),"",IF(VLOOKUP(H116,RawData!$D$8:$M$127,9,FALSE)=0,"",VLOOKUP(H116,RawData!$D$8:$M$127,9,FALSE))) ->  | G116: =IF(ISBLANK(H116),"",VLOOKUP(H116,RawData!$D$8:$M$127,2,FALSE)) ->  | K116: 0 | L116: =IF(ISBLANK(H116),"",VLOOKUP(H116,FarmPricelistWorkSheet!$D$3:$N$125,5,FALSE)*(1+K116)) ->  | M116: 0 | O116: =IF(ISBLANK(H116),"",VLOOKUP(H116,RawData!$D$8:$K$127,8,FALSE)) ->  | P116: =IF(ROUND(IFERROR(VLOOKUP(H116,FarmPricelistWorkSheet!$D$2:$N$124,7,FALSE),0),2)=0,"-",(ROUND(IFERROR(VLOOKUP(H116,FarmPricelistWorkSheet!$D$2:$N$124,7,FALSE),0),2))) -> - | Q116: - | R116: - | S116: =IF(ROUND(IFERROR(VLOOKUP(H116,FarmPricelistWorkSheet!$D$2:$N$124,9,FALSE),0),2)*E116 = 0,"-",ROUND(IFERROR(VLOOKUP(H116,FarmPricelistWorkSheet!$D$2:$N$124,9,FALSE),0),2)*E116) -> -
A117: 100 | F117: =IF(ISBLANK(H117),"",IF(VLOOKUP(H117,RawData!$D$8:$M$127,9,FALSE)=0,"",VLOOKUP(H117,RawData!$D$8:$M$127,9,FALSE))) ->  | G117: =IF(ISBLANK(H117),"",VLOOKUP(H117,RawData!$D$8:$M$127,2,FALSE)) ->  | K117: 0 | L117: =IF(ISBLANK(H117),"",VLOOKUP(H117,FarmPricelistWorkSheet!$D$3:$N$125,5,FALSE)*(1+K117)) ->  | M117: 0 | O117: =IF(ISBLANK(H117),"",VLOOKUP(H117,RawData!$D$8:$K$127,8,FALSE)) ->  | P117: =IF(ROUND(IFERROR(VLOOKUP(H117,FarmPricelistWorkSheet!$D$2:$N$124,7,FALSE),0),2)=0,"-",(ROUND(IFERROR(VLOOKUP(H117,FarmPricelistWorkSheet!$D$2:$N$124,7,FALSE),0),2))) -> - | Q117: - | R117: - | S117: =IF(ROUND(IFERROR(VLOOKUP(H117,FarmPricelistWorkSheet!$D$2:$N$124,9,FALSE),0),2)*E117 = 0,"-",ROUND(IFERROR(VLOOKUP(H117,FarmPricelistWorkSheet!$D$2:$N$124,9,FALSE),0),2)*E117) -> -
A118: 101 | F118: =IF(ISBLANK(H118),"",IF(VLOOKUP(H118,RawData!$D$8:$M$127,9,FALSE)=0,"",VLOOKUP(H118,RawData!$D$8:$M$127,9,FALSE))) ->  | G118: =IF(ISBLANK(H118),"",VLOOKUP(H118,RawData!$D$8:$M$127,2,FALSE)) ->  | K118: 0 | L118: =IF(ISBLANK(H118),"",VLOOKUP(H118,FarmPricelistWorkSheet!$D$3:$N$125,5,FALSE)*(1+K118)) ->  | M118: 0 | O118: =IF(ISBLANK(H118),"",VLOOKUP(H118,RawData!$D$8:$K$127,8,FALSE)) ->  | P118: =IF(ROUND(IFERROR(VLOOKUP(H118,FarmPricelistWorkSheet!$D$2:$N$124,7,FALSE),0),2)=0,"-",(ROUND(IFERROR(VLOOKUP(H118,FarmPricelistWorkSheet!$D$2:$N$124,7,FALSE),0),2))) -> - | Q118: - | R118: - | S118: =IF(ROUND(IFERROR(VLOOKUP(H118,FarmPricelistWorkSheet!$D$2:$N$124,9,FALSE),0),2)*E118 = 0,"-",ROUND(IFERROR(VLOOKUP(H118,FarmPricelistWorkSheet!$D$2:$N$124,9,FALSE),0),2)*E118) -> -
A119: 102 | F119: =IF(ISBLANK(H119),"",IF(VLOOKUP(H119,RawData!$D$8:$M$127,9,FALSE)=0,"",VLOOKUP(H119,RawData!$D$8:$M$127,9,FALSE))) ->  | G119: =IF(ISBLANK(H119),"",VLOOKUP(H119,RawData!$D$8:$M$127,2,FALSE)) ->  | K119: 0 | L119: =IF(ISBLANK(H119),"",VLOOKUP(H119,FarmPricelistWorkSheet!$D$3:$N$125,5,FALSE)*(1+K119)) ->  | M119: 0 | O119: =IF(ISBLANK(H119),"",VLOOKUP(H119,RawData!$D$8:$K$127,8,FALSE)) ->  | P119: =IF(ROUND(IFERROR(VLOOKUP(H119,FarmPricelistWorkSheet!$D$2:$N$124,7,FALSE),0),2)=0,"-",(ROUND(IFERROR(VLOOKUP(H119,FarmPricelistWorkSheet!$D$2:$N$124,7,FALSE),0),2))) -> - | Q119: - | R119: - | S119: =IF(ROUND(IFERROR(VLOOKUP(H119,FarmPricelistWorkSheet!$D$2:$N$124,9,FALSE),0),2)*E119 = 0,"-",ROUND(IFERROR(VLOOKUP(H119,FarmPricelistWorkSheet!$D$2:$N$124,9,FALSE),0),2)*E119) -> -
A120: 103 | F120: =IF(ISBLANK(H120),"",IF(VLOOKUP(H120,RawData!$D$8:$M$127,9,FALSE)=0,"",VLOOKUP(H120,RawData!$D$8:$M$127,9,FALSE))) ->  | G120: =IF(ISBLANK(H120),"",VLOOKUP(H120,RawData!$D$8:$M$127,2,FALSE)) ->  | K120: 0 | L120: =IF(ISBLANK(H120),"",VLOOKUP(H120,FarmPricelistWorkSheet!$D$3:$N$125,5,FALSE)*(1+K120)) ->  | M120: 0 | O120: =IF(ISBLANK(H120),"",VLOOKUP(H120,RawData!$D$8:$K$127,8,FALSE)) ->  | P120: =IF(ROUND(IFERROR(VLOOKUP(H120,FarmPricelistWorkSheet!$D$2:$N$124,7,FALSE),0),2)=0,"-",(ROUND(IFERROR(VLOOKUP(H120,FarmPricelistWorkSheet!$D$2:$N$124,7,FALSE),0),2))) -> - | Q120: - | R120: - | S120: =IF(ROUND(IFERROR(VLOOKUP(H120,FarmPricelistWorkSheet!$D$2:$N$124,9,FALSE),0),2)*E120 = 0,"-",ROUND(IFERROR(VLOOKUP(H120,FarmPricelistWorkSheet!$D$2:$N$124,9,FALSE),0),2)*E120) -> -
A121: 104 | F121: =IF(ISBLANK(H121),"",IF(VLOOKUP(H121,RawData!$D$8:$M$127,9,FALSE)=0,"",VLOOKUP(H121,RawData!$D$8:$M$127,9,FALSE))) ->  | G121: =IF(ISBLANK(H121),"",VLOOKUP(H121,RawData!$D$8:$M$127,2,FALSE)) ->  | K121: 0 | L121: =IF(ISBLANK(H121),"",VLOOKUP(H121,FarmPricelistWorkSheet!$D$3:$N$125,5,FALSE)*(1+K121)) ->  | M121: 0 | O121: =IF(ISBLANK(H121),"",VLOOKUP(H121,RawData!$D$8:$K$127,8,FALSE)) ->  | P121: =IF(ROUND(IFERROR(VLOOKUP(H121,FarmPricelistWorkSheet!$D$2:$N$124,7,FALSE),0),2)=0,"-",(ROUND(IFERROR(VLOOKUP(H121,FarmPricelistWorkSheet!$D$2:$N$124,7,FALSE),0),2))) -> - | Q121: - | R121: - | S121: =IF(ROUND(IFERROR(VLOOKUP(H121,FarmPricelistWorkSheet!$D$2:$N$124,9,FALSE),0),2)*E121 = 0,"-",ROUND(IFERROR(VLOOKUP(H121,FarmPricelistWorkSheet!$D$2:$N$124,9,FALSE),0),2)*E121) -> -
A122: 105 | F122: =IF(ISBLANK(H122),"",IF(VLOOKUP(H122,RawData!$D$8:$M$127,9,FALSE)=0,"",VLOOKUP(H122,RawData!$D$8:$M$127,9,FALSE))) ->  | G122: =IF(ISBLANK(H122),"",VLOOKUP(H122,RawData!$D$8:$M$127,2,FALSE)) ->  | K122: 0 | L122: =IF(ISBLANK(H122),"",VLOOKUP(H122,FarmPricelistWorkSheet!$D$3:$N$125,5,FALSE)*(1+K122)) ->  | M122: 0 | O122: =IF(ISBLANK(H122),"",VLOOKUP(H122,RawData!$D$8:$K$127,8,FALSE)) ->  | P122: =IF(ROUND(IFERROR(VLOOKUP(H122,FarmPricelistWorkSheet!$D$2:$N$124,7,FALSE),0),2)=0,"-",(ROUND(IFERROR(VLOOKUP(H122,FarmPricelistWorkSheet!$D$2:$N$124,7,FALSE),0),2))) -> - | Q122: - | R122: - | S122: =IF(ROUND(IFERROR(VLOOKUP(H122,FarmPricelistWorkSheet!$D$2:$N$124,9,FALSE),0),2)*E122 = 0,"-",ROUND(IFERROR(VLOOKUP(H122,FarmPricelistWorkSheet!$D$2:$N$124,9,FALSE),0),2)*E122) -> -
A123: 106 | F123: =IF(ISBLANK(H123),"",IF(VLOOKUP(H123,RawData!$D$8:$M$127,9,FALSE)=0,"",VLOOKUP(H123,RawData!$D$8:$M$127,9,FALSE))) ->  | G123: =IF(ISBLANK(H123),"",VLOOKUP(H123,RawData!$D$8:$M$127,2,FALSE)) ->  | K123: 0 | L123: =IF(ISBLANK(H123),"",VLOOKUP(H123,FarmPricelistWorkSheet!$D$3:$N$125,5,FALSE)*(1+K123)) ->  | M123: 0 | O123: =IF(ISBLANK(H123),"",VLOOKUP(H123,RawData!$D$8:$K$127,8,FALSE)) ->  | P123: =IF(ROUND(IFERROR(VLOOKUP(H123,FarmPricelistWorkSheet!$D$2:$N$124,7,FALSE),0),2)=0,"-",(ROUND(IFERROR(VLOOKUP(H123,FarmPricelistWorkSheet!$D$2:$N$124,7,FALSE),0),2))) -> - | Q123: - | R123: - | S123: =IF(ROUND(IFERROR(VLOOKUP(H123,FarmPricelistWorkSheet!$D$2:$N$124,9,FALSE),0),2)*E123 = 0,"-",ROUND(IFERROR(VLOOKUP(H123,FarmPricelistWorkSheet!$D$2:$N$124,9,FALSE),0),2)*E123) -> -
A124: 107 | F124: =IF(ISBLANK(H124),"",IF(VLOOKUP(H124,RawData!$D$8:$M$127,9,FALSE)=0,"",VLOOKUP(H124,RawData!$D$8:$M$127,9,FALSE))) ->  | G124: =IF(ISBLANK(H124),"",VLOOKUP(H124,RawData!$D$8:$M$127,2,FALSE)) ->  | K124: 0 | L124: =IF(ISBLANK(H124),"",VLOOKUP(H124,FarmPricelistWorkSheet!$D$3:$N$125,5,FALSE)*(1+K124)) ->  | M124: 0 | O124: =IF(ISBLANK(H124),"",VLOOKUP(H124,RawData!$D$8:$K$127,8,FALSE)) ->  | P124: =IF(ROUND(IFERROR(VLOOKUP(H124,FarmPricelistWorkSheet!$D$2:$N$124,7,FALSE),0),2)=0,"-",(ROUND(IFERROR(VLOOKUP(H124,FarmPricelistWorkSheet!$D$2:$N$124,7,FALSE),0),2))) -> - | Q124: - | R124: - | S124: =IF(ROUND(IFERROR(VLOOKUP(H124,FarmPricelistWorkSheet!$D$2:$N$124,9,FALSE),0),2)*E124 = 0,"-",ROUND(IFERROR(VLOOKUP(H124,FarmPricelistWorkSheet!$D$2:$N$124,9,FALSE),0),2)*E124) -> -
A125: 108 | F125: =IF(ISBLANK(H125),"",IF(VLOOKUP(H125,RawData!$D$8:$M$127,9,FALSE)=0,"",VLOOKUP(H125,RawData!$D$8:$M$127,9,FALSE))) ->  | G125: =IF(ISBLANK(H125),"",VLOOKUP(H125,RawData!$D$8:$M$127,2,FALSE)) ->  | K125: 0 | L125: =IF(ISBLANK(H125),"",VLOOKUP(H125,FarmPricelistWorkSheet!$D$3:$N$125,5,FALSE)*(1+K125)) ->  | M125: 0 | O125: =IF(ISBLANK(H125),"",VLOOKUP(H125,RawData!$D$8:$K$127,8,FALSE)) ->  | P125: =IF(ROUND(IFERROR(VLOOKUP(H125,FarmPricelistWorkSheet!$D$2:$N$124,7,FALSE),0),2)=0,"-",(ROUND(IFERROR(VLOOKUP(H125,FarmPricelistWorkSheet!$D$2:$N$124,7,FALSE),0),2))) -> - | Q125: - | R125: - | S125: =IF(ROUND(IFERROR(VLOOKUP(H125,FarmPricelistWorkSheet!$D$2:$N$124,9,FALSE),0),2)*E125 = 0,"-",ROUND(IFERROR(VLOOKUP(H125,FarmPricelistWorkSheet!$D$2:$N$124,9,FALSE),0),2)*E125) -> -
A126: 109 | F126: =IF(ISBLANK(H126),"",IF(VLOOKUP(H126,RawData!$D$8:$M$127,9,FALSE)=0,"",VLOOKUP(H126,RawData!$D$8:$M$127,9,FALSE))) ->  | G126: =IF(ISBLANK(H126),"",VLOOKUP(H126,RawData!$D$8:$M$127,2,FALSE)) ->  | K126: 0 | L126: =IF(ISBLANK(H126),"",VLOOKUP(H126,FarmPricelistWorkSheet!$D$3:$N$125,5,FALSE)*(1+K126)) ->  | M126: 0 | O126: =IF(ISBLANK(H126),"",VLOOKUP(H126,RawData!$D$8:$K$127,8,FALSE)) ->  | P126: =IF(ROUND(IFERROR(VLOOKUP(H126,FarmPricelistWorkSheet!$D$2:$N$124,7,FALSE),0),2)=0,"-",(ROUND(IFERROR(VLOOKUP(H126,FarmPricelistWorkSheet!$D$2:$N$124,7,FALSE),0),2))) -> - | Q126: - | R126: - | S126: =IF(ROUND(IFERROR(VLOOKUP(H126,FarmPricelistWorkSheet!$D$2:$N$124,9,FALSE),0),2)*E126 = 0,"-",ROUND(IFERROR(VLOOKUP(H126,FarmPricelistWorkSheet!$D$2:$N$124,9,FALSE),0),2)*E126) -> -
A127: 110 | F127: =IF(ISBLANK(H127),"",IF(VLOOKUP(H127,RawData!$D$8:$M$127,9,FALSE)=0,"",VLOOKUP(H127,RawData!$D$8:$M$127,9,FALSE))) ->  | G127: =IF(ISBLANK(H127),"",VLOOKUP(H127,RawData!$D$8:$M$127,2,FALSE)) ->  | K127: 0 | L127: =IF(ISBLANK(H127),"",VLOOKUP(H127,FarmPricelistWorkSheet!$D$3:$N$125,5,FALSE)*(1+K127)) ->  | M127: 0 | O127: =IF(ISBLANK(H127),"",VLOOKUP(H127,RawData!$D$8:$K$127,8,FALSE)) ->  | P127: =IF(ROUND(IFERROR(VLOOKUP(H127,FarmPricelistWorkSheet!$D$2:$N$124,7,FALSE),0),2)=0,"-",(ROUND(IFERROR(VLOOKUP(H127,FarmPricelistWorkSheet!$D$2:$N$124,7,FALSE),0),2))) -> - | Q127: - | R127: - | S127: =IF(ROUND(IFERROR(VLOOKUP(H127,FarmPricelistWorkSheet!$D$2:$N$124,9,FALSE),0),2)*E127 = 0,"-",ROUND(IFERROR(VLOOKUP(H127,FarmPricelistWorkSheet!$D$2:$N$124,9,FALSE),0),2)*E127) -> -
A128: 111 | F128: =IF(ISBLANK(H128),"",IF(VLOOKUP(H128,RawData!$D$8:$M$127,9,FALSE)=0,"",VLOOKUP(H128,RawData!$D$8:$M$127,9,FALSE))) ->  | G128: =IF(ISBLANK(H128),"",VLOOKUP(H128,RawData!$D$8:$M$127,2,FALSE)) ->  | K128: 0 | L128: =IF(ISBLANK(H128),"",VLOOKUP(H128,FarmPricelistWorkSheet!$D$3:$N$125,5,FALSE)*(1+K128)) ->  | M128: 0 | O128: =IF(ISBLANK(H128),"",VLOOKUP(H128,RawData!$D$8:$K$127,8,FALSE)) ->  | P128: =IF(ROUND(IFERROR(VLOOKUP(H128,FarmPricelistWorkSheet!$D$2:$N$124,7,FALSE),0),2)=0,"-",(ROUND(IFERROR(VLOOKUP(H128,FarmPricelistWorkSheet!$D$2:$N$124,7,FALSE),0),2))) -> - | Q128: - | R128: - | S128: =IF(ROUND(IFERROR(VLOOKUP(H128,FarmPricelistWorkSheet!$D$2:$N$124,9,FALSE),0),2)*E128 = 0,"-",ROUND(IFERROR(VLOOKUP(H128,FarmPricelistWorkSheet!$D$2:$N$124,9,FALSE),0),2)*E128) -> -
A129: 112 | F129: =IF(ISBLANK(H129),"",IF(VLOOKUP(H129,RawData!$D$8:$M$127,9,FALSE)=0,"",VLOOKUP(H129,RawData!$D$8:$M$127,9,FALSE))) ->  | G129: =IF(ISBLANK(H129),"",VLOOKUP(H129,RawData!$D$8:$M$127,2,FALSE)) ->  | K129: 0 | L129: =IF(ISBLANK(H129),"",VLOOKUP(H129,FarmPricelistWorkSheet!$D$3:$N$125,5,FALSE)*(1+K129)) ->  | M129: 0 | O129: =IF(ISBLANK(H129),"",VLOOKUP(H129,RawData!$D$8:$K$127,8,FALSE)) ->  | P129: =IF(ROUND(IFERROR(VLOOKUP(H129,FarmPricelistWorkSheet!$D$2:$N$124,7,FALSE),0),2)=0,"-",(ROUND(IFERROR(VLOOKUP(H129,FarmPricelistWorkSheet!$D$2:$N$124,7,FALSE),0),2))) -> - | Q129: - | R129: - | S129: =IF(ROUND(IFERROR(VLOOKUP(H129,FarmPricelistWorkSheet!$D$2:$N$124,9,FALSE),0),2)*E129 = 0,"-",ROUND(IFERROR(VLOOKUP(H129,FarmPricelistWorkSheet!$D$2:$N$124,9,FALSE),0),2)*E129) -> -
A130: 113 | F130: =IF(ISBLANK(H130),"",IF(VLOOKUP(H130,RawData!$D$8:$M$127,9,FALSE)=0,"",VLOOKUP(H130,RawData!$D$8:$M$127,9,FALSE))) ->  | G130: =IF(ISBLANK(H130),"",VLOOKUP(H130,RawData!$D$8:$M$127,2,FALSE)) ->  | K130: 0 | L130: =IF(ISBLANK(H130),"",VLOOKUP(H130,FarmPricelistWorkSheet!$D$3:$N$125,5,FALSE)*(1+K130)) ->  | M130: 0 | O130: =IF(ISBLANK(H130),"",VLOOKUP(H130,RawData!$D$8:$K$127,8,FALSE)) ->  | P130: =IF(ROUND(IFERROR(VLOOKUP(H130,FarmPricelistWorkSheet!$D$2:$N$124,7,FALSE),0),2)=0,"-",(ROUND(IFERROR(VLOOKUP(H130,FarmPricelistWorkSheet!$D$2:$N$124,7,FALSE),0),2))) -> - | Q130: - | R130: - | S130: =IF(ROUND(IFERROR(VLOOKUP(H130,FarmPricelistWorkSheet!$D$2:$N$124,9,FALSE),0),2)*E130 = 0,"-",ROUND(IFERROR(VLOOKUP(H130,FarmPricelistWorkSheet!$D$2:$N$124,9,FALSE),0),2)*E130) -> -
A131: 114 | F131: =IF(ISBLANK(H131),"",IF(VLOOKUP(H131,RawData!$D$8:$M$127,9,FALSE)=0,"",VLOOKUP(H131,RawData!$D$8:$M$127,9,FALSE))) ->  | G131: =IF(ISBLANK(H131),"",VLOOKUP(H131,RawData!$D$8:$M$127,2,FALSE)) ->  | K131: 0 | L131: =IF(ISBLANK(H131),"",VLOOKUP(H131,FarmPricelistWorkSheet!$D$3:$N$125,5,FALSE)*(1+K131)) ->  | M131: 0 | O131: =IF(ISBLANK(H131),"",VLOOKUP(H131,RawData!$D$8:$K$127,8,FALSE)) ->  | P131: =IF(ROUND(IFERROR(VLOOKUP(H131,FarmPricelistWorkSheet!$D$2:$N$124,7,FALSE),0),2)=0,"-",(ROUND(IFERROR(VLOOKUP(H131,FarmPricelistWorkSheet!$D$2:$N$124,7,FALSE),0),2))) -> - | Q131: - | R131: - | S131: =IF(ROUND(IFERROR(VLOOKUP(H131,FarmPricelistWorkSheet!$D$2:$N$124,9,FALSE),0),2)*E131 = 0,"-",ROUND(IFERROR(VLOOKUP(H131,FarmPricelistWorkSheet!$D$2:$N$124,9,FALSE),0),2)*E131) -> -
A132: 115 | F132: =IF(ISBLANK(H132),"",IF(VLOOKUP(H132,RawData!$D$8:$M$127,9,FALSE)=0,"",VLOOKUP(H132,RawData!$D$8:$M$127,9,FALSE))) ->  | G132: =IF(ISBLANK(H132),"",VLOOKUP(H132,RawData!$D$8:$M$127,2,FALSE)) ->  | K132: 0 | L132: =IF(ISBLANK(H132),"",VLOOKUP(H132,FarmPricelistWorkSheet!$D$3:$N$125,5,FALSE)*(1+K132)) ->  | M132: 0 | O132: =IF(ISBLANK(H132),"",VLOOKUP(H132,RawData!$D$8:$K$127,8,FALSE)) ->  | P132: =IF(ROUND(IFERROR(VLOOKUP(H132,FarmPricelistWorkSheet!$D$2:$N$124,7,FALSE),0),2)=0,"-",(ROUND(IFERROR(VLOOKUP(H132,FarmPricelistWorkSheet!$D$2:$N$124,7,FALSE),0),2))) -> - | Q132: - | R132: - | S132: =IF(ROUND(IFERROR(VLOOKUP(H132,FarmPricelistWorkSheet!$D$2:$N$124,9,FALSE),0),2)*E132 = 0,"-",ROUND(IFERROR(VLOOKUP(H132,FarmPricelistWorkSheet!$D$2:$N$124,9,FALSE),0),2)*E132) -> -
A133: 116 | F133: =IF(ISBLANK(H133),"",IF(VLOOKUP(H133,RawData!$D$8:$M$127,9,FALSE)=0,"",VLOOKUP(H133,RawData!$D$8:$M$127,9,FALSE))) ->  | G133: =IF(ISBLANK(H133),"",VLOOKUP(H133,RawData!$D$8:$M$127,2,FALSE)) ->  | K133: 0 | L133: =IF(ISBLANK(H133),"",VLOOKUP(H133,FarmPricelistWorkSheet!$D$3:$N$125,5,FALSE)*(1+K133)) ->  | M133: 0 | O133: =IF(ISBLANK(H133),"",VLOOKUP(H133,RawData!$D$8:$K$127,8,FALSE)) ->  | P133: =IF(ROUND(IFERROR(VLOOKUP(H133,FarmPricelistWorkSheet!$D$2:$N$124,7,FALSE),0),2)=0,"-",(ROUND(IFERROR(VLOOKUP(H133,FarmPricelistWorkSheet!$D$2:$N$124,7,FALSE),0),2))) -> - | Q133: - | R133: - | S133: =IF(ROUND(IFERROR(VLOOKUP(H133,FarmPricelistWorkSheet!$D$2:$N$124,9,FALSE),0),2)*E133 = 0,"-",ROUND(IFERROR(VLOOKUP(H133,FarmPricelistWorkSheet!$D$2:$N$124,9,FALSE),0),2)*E133) -> -
A134: 117 | F134: =IF(ISBLANK(H134),"",IF(VLOOKUP(H134,RawData!$D$8:$M$127,9,FALSE)=0,"",VLOOKUP(H134,RawData!$D$8:$M$127,9,FALSE))) ->  | G134: =IF(ISBLANK(H134),"",VLOOKUP(H134,RawData!$D$8:$M$127,2,FALSE)) ->  | K134: 0 | L134: =IF(ISBLANK(H134),"",VLOOKUP(H134,FarmPricelistWorkSheet!$D$3:$N$125,5,FALSE)*(1+K134)) ->  | M134: 0 | O134: =IF(ISBLANK(H134),"",VLOOKUP(H134,RawData!$D$8:$K$127,8,FALSE)) ->  | P134: =IF(ROUND(IFERROR(VLOOKUP(H134,FarmPricelistWorkSheet!$D$2:$N$124,7,FALSE),0),2)=0,"-",(ROUND(IFERROR(VLOOKUP(H134,FarmPricelistWorkSheet!$D$2:$N$124,7,FALSE),0),2))) -> - | Q134: - | R134: - | S134: =IF(ROUND(IFERROR(VLOOKUP(H134,FarmPricelistWorkSheet!$D$2:$N$124,9,FALSE),0),2)*E134 = 0,"-",ROUND(IFERROR(VLOOKUP(H134,FarmPricelistWorkSheet!$D$2:$N$124,9,FALSE),0),2)*E134) -> -
A135: 118 | F135: =IF(ISBLANK(H135),"",IF(VLOOKUP(H135,RawData!$D$8:$M$127,9,FALSE)=0,"",VLOOKUP(H135,RawData!$D$8:$M$127,9,FALSE))) ->  | G135: =IF(ISBLANK(H135),"",VLOOKUP(H135,RawData!$D$8:$M$127,2,FALSE)) ->  | K135: 0 | L135: =IF(ISBLANK(H135),"",VLOOKUP(H135,FarmPricelistWorkSheet!$D$3:$N$125,5,FALSE)*(1+K135)) ->  | M135: 0 | O135: =IF(ISBLANK(H135),"",VLOOKUP(H135,RawData!$D$8:$K$127,8,FALSE)) ->  | P135: =IF(ROUND(IFERROR(VLOOKUP(H135,FarmPricelistWorkSheet!$D$2:$N$124,7,FALSE),0),2)=0,"-",(ROUND(IFERROR(VLOOKUP(H135,FarmPricelistWorkSheet!$D$2:$N$124,7,FALSE),0),2))) -> - | Q135: - | R135: - | S135: =IF(ROUND(IFERROR(VLOOKUP(H135,FarmPricelistWorkSheet!$D$2:$N$124,9,FALSE),0),2)*E135 = 0,"-",ROUND(IFERROR(VLOOKUP(H135,FarmPricelistWorkSheet!$D$2:$N$124,9,FALSE),0),2)*E135) -> -
A136: 119 | F136: =IF(ISBLANK(H136),"",IF(VLOOKUP(H136,RawData!$D$8:$M$127,9,FALSE)=0,"",VLOOKUP(H136,RawData!$D$8:$M$127,9,FALSE))) ->  | G136: =IF(ISBLANK(H136),"",VLOOKUP(H136,RawData!$D$8:$M$127,2,FALSE)) ->  | K136: 0 | L136: =IF(ISBLANK(H136),"",VLOOKUP(H136,FarmPricelistWorkSheet!$D$3:$N$125,5,FALSE)*(1+K136)) ->  | M136: 0 | O136: =IF(ISBLANK(H136),"",VLOOKUP(H136,RawData!$D$8:$K$127,8,FALSE)) ->  | P136: =IF(ROUND(IFERROR(VLOOKUP(H136,FarmPricelistWorkSheet!$D$2:$N$124,7,FALSE),0),2)=0,"-",(ROUND(IFERROR(VLOOKUP(H136,FarmPricelistWorkSheet!$D$2:$N$124,7,FALSE),0),2))) -> - | Q136: - | R136: - | S136: =IF(ROUND(IFERROR(VLOOKUP(H136,FarmPricelistWorkSheet!$D$2:$N$124,9,FALSE),0),2)*E136 = 0,"-",ROUND(IFERROR(VLOOKUP(H136,FarmPricelistWorkSheet!$D$2:$N$124,9,FALSE),0),2)*E136) -> -
A137: 120 | F137: =IF(ISBLANK(H137),"",IF(VLOOKUP(H137,RawData!$D$8:$M$127,9,FALSE)=0,"",VLOOKUP(H137,RawData!$D$8:$M$127,9,FALSE))) ->  | G137: =IF(ISBLANK(H137),"",VLOOKUP(H137,RawData!$D$8:$M$127,2,FALSE)) ->  | K137: 0 | L137: =IF(ISBLANK(H137),"",VLOOKUP(H137,FarmPricelistWorkSheet!$D$3:$N$125,5,FALSE)*(1+K137)) ->  | M137: 0 | O137: =IF(ISBLANK(H137),"",VLOOKUP(H137,RawData!$D$8:$K$127,8,FALSE)) ->  | P137: =IF(ROUND(IFERROR(VLOOKUP(H137,FarmPricelistWorkSheet!$D$2:$N$124,7,FALSE),0),2)=0,"-",(ROUND(IFERROR(VLOOKUP(H137,FarmPricelistWorkSheet!$D$2:$N$124,7,FALSE),0),2))) -> - | Q137: - | R137: - | S137: =IF(ROUND(IFERROR(VLOOKUP(H137,FarmPricelistWorkSheet!$D$2:$N$124,9,FALSE),0),2)*E137 = 0,"-",ROUND(IFERROR(VLOOKUP(H137,FarmPricelistWorkSheet!$D$2:$N$124,9,FALSE),0),2)*E137) -> -
A138: 121 | F138: =IF(ISBLANK(H138),"",IF(VLOOKUP(H138,RawData!$D$8:$M$127,9,FALSE)=0,"",VLOOKUP(H138,RawData!$D$8:$M$127,9,FALSE))) ->  | G138: =IF(ISBLANK(H138),"",VLOOKUP(H138,RawData!$D$8:$M$127,2,FALSE)) ->  | K138: 0 | L138: =IF(ISBLANK(H138),"",VLOOKUP(H138,FarmPricelistWorkSheet!$D$3:$N$125,5,FALSE)*(1+K138)) ->  | M138: 0 | O138: =IF(ISBLANK(H138),"",VLOOKUP(H138,RawData!$D$8:$K$127,8,FALSE)) ->  | P138: =IF(ROUND(IFERROR(VLOOKUP(H138,FarmPricelistWorkSheet!$D$2:$N$124,7,FALSE),0),2)=0,"-",(ROUND(IFERROR(VLOOKUP(H138,FarmPricelistWorkSheet!$D$2:$N$124,7,FALSE),0),2))) -> - | Q138: - | R138: - | S138: =IF(ROUND(IFERROR(VLOOKUP(H138,FarmPricelistWorkSheet!$D$2:$N$124,9,FALSE),0),2)*E138 = 0,"-",ROUND(IFERROR(VLOOKUP(H138,FarmPricelistWorkSheet!$D$2:$N$124,9,FALSE),0),2)*E138) -> -
A139: 122 | F139: =IF(ISBLANK(H139),"",IF(VLOOKUP(H139,RawData!$D$8:$M$127,9,FALSE)=0,"",VLOOKUP(H139,RawData!$D$8:$M$127,9,FALSE))) ->  | G139: =IF(ISBLANK(H139),"",VLOOKUP(H139,RawData!$D$8:$M$127,2,FALSE)) ->  | K139: 0 | L139: =IF(ISBLANK(H139),"",VLOOKUP(H139,FarmPricelistWorkSheet!$D$3:$N$125,5,FALSE)*(1+K139)) ->  | M139: 0 | O139: =IF(ISBLANK(H139),"",VLOOKUP(H139,RawData!$D$8:$K$127,8,FALSE)) ->  | P139: =IF(ROUND(IFERROR(VLOOKUP(H139,FarmPricelistWorkSheet!$D$2:$N$124,7,FALSE),0),2)=0,"-",(ROUND(IFERROR(VLOOKUP(H139,FarmPricelistWorkSheet!$D$2:$N$124,7,FALSE),0),2))) -> - | Q139: - | R139: - | S139: =IF(ROUND(IFERROR(VLOOKUP(H139,FarmPricelistWorkSheet!$D$2:$N$124,9,FALSE),0),2)*E139 = 0,"-",ROUND(IFERROR(VLOOKUP(H139,FarmPricelistWorkSheet!$D$2:$N$124,9,FALSE),0),2)*E139) -> -
A140: 123 | F140: =IF(ISBLANK(H140),"",IF(VLOOKUP(H140,RawData!$D$8:$M$127,9,FALSE)=0,"",VLOOKUP(H140,RawData!$D$8:$M$127,9,FALSE))) ->  | G140: =IF(ISBLANK(H140),"",VLOOKUP(H140,RawData!$D$8:$M$127,2,FALSE)) ->  | K140: 0 | L140: =IF(ISBLANK(H140),"",VLOOKUP(H140,FarmPricelistWorkSheet!$D$3:$N$125,5,FALSE)*(1+K140)) ->  | M140: 0 | O140: =IF(ISBLANK(H140),"",VLOOKUP(H140,RawData!$D$8:$K$127,8,FALSE)) ->  | P140: =IF(ROUND(IFERROR(VLOOKUP(H140,FarmPricelistWorkSheet!$D$2:$N$124,7,FALSE),0),2)=0,"-",(ROUND(IFERROR(VLOOKUP(H140,FarmPricelistWorkSheet!$D$2:$N$124,7,FALSE),0),2))) -> - | Q140: - | R140: - | S140: =IF(ROUND(IFERROR(VLOOKUP(H140,FarmPricelistWorkSheet!$D$2:$N$124,9,FALSE),0),2)*E140 = 0,"-",ROUND(IFERROR(VLOOKUP(H140,FarmPricelistWorkSheet!$D$2:$N$124,9,FALSE),0),2)*E140) -> -
A141: 124 | F141: =IF(ISBLANK(H141),"",IF(VLOOKUP(H141,RawData!$D$8:$M$127,9,FALSE)=0,"",VLOOKUP(H141,RawData!$D$8:$M$127,9,FALSE))) ->  | G141: =IF(ISBLANK(H141),"",VLOOKUP(H141,RawData!$D$8:$M$127,2,FALSE)) ->  | K141: 0 | L141: =IF(ISBLANK(H141),"",VLOOKUP(H141,FarmPricelistWorkSheet!$D$3:$N$125,5,FALSE)*(1+K141)) ->  | M141: 0 | O141: =IF(ISBLANK(H141),"",VLOOKUP(H141,RawData!$D$8:$K$127,8,FALSE)) ->  | P141: =IF(ROUND(IFERROR(VLOOKUP(H141,FarmPricelistWorkSheet!$D$2:$N$124,7,FALSE),0),2)=0,"-",(ROUND(IFERROR(VLOOKUP(H141,FarmPricelistWorkSheet!$D$2:$N$124,7,FALSE),0),2))) -> - | Q141: - | R141: - | S141: =IF(ROUND(IFERROR(VLOOKUP(H141,FarmPricelistWorkSheet!$D$2:$N$124,9,FALSE),0),2)*E141 = 0,"-",ROUND(IFERROR(VLOOKUP(H141,FarmPricelistWorkSheet!$D$2:$N$124,9,FALSE),0),2)*E141) -> -
A142: 125 | F142: =IF(ISBLANK(H142),"",IF(VLOOKUP(H142,RawData!$D$8:$M$127,9,FALSE)=0,"",VLOOKUP(H142,RawData!$D$8:$M$127,9,FALSE))) ->  | G142: =IF(ISBLANK(H142),"",VLOOKUP(H142,RawData!$D$8:$M$127,2,FALSE)) ->  | K142: 0 | L142: =IF(ISBLANK(H142),"",VLOOKUP(H142,FarmPricelistWorkSheet!$D$3:$N$125,5,FALSE)*(1+K142)) ->  | M142: 0 | O142: =IF(ISBLANK(H142),"",VLOOKUP(H142,RawData!$D$8:$K$127,8,FALSE)) ->  | P142: =IF(ROUND(IFERROR(VLOOKUP(H142,FarmPricelistWorkSheet!$D$2:$N$124,7,FALSE),0),2)=0,"-",(ROUND(IFERROR(VLOOKUP(H142,FarmPricelistWorkSheet!$D$2:$N$124,7,FALSE),0),2))) -> - | Q142: - | R142: - | S142: =IF(ROUND(IFERROR(VLOOKUP(H142,FarmPricelistWorkSheet!$D$2:$N$124,9,FALSE),0),2)*E142 = 0,"-",ROUND(IFERROR(VLOOKUP(H142,FarmPricelistWorkSheet!$D$2:$N$124,9,FALSE),0),2)*E142) -> -
A143: 126 | F143: =IF(ISBLANK(H143),"",IF(VLOOKUP(H143,RawData!$D$8:$M$127,9,FALSE)=0,"",VLOOKUP(H143,RawData!$D$8:$M$127,9,FALSE))) ->  | G143: =IF(ISBLANK(H143),"",VLOOKUP(H143,RawData!$D$8:$M$127,2,FALSE)) ->  | K143: 0 | L143: =IF(ISBLANK(H143),"",VLOOKUP(H143,FarmPricelistWorkSheet!$D$3:$N$125,5,FALSE)*(1+K143)) ->  | M143: 0 | O143: =IF(ISBLANK(H143),"",VLOOKUP(H143,RawData!$D$8:$K$127,8,FALSE)) ->  | P143: =IF(ROUND(IFERROR(VLOOKUP(H143,FarmPricelistWorkSheet!$D$2:$N$124,7,FALSE),0),2)=0,"-",(ROUND(IFERROR(VLOOKUP(H143,FarmPricelistWorkSheet!$D$2:$N$124,7,FALSE),0),2))) -> - | Q143: - | R143: - | S143: =IF(ROUND(IFERROR(VLOOKUP(H143,FarmPricelistWorkSheet!$D$2:$N$124,9,FALSE),0),2)*E143 = 0,"-",ROUND(IFERROR(VLOOKUP(H143,FarmPricelistWorkSheet!$D$2:$N$124,9,FALSE),0),2)*E143) -> -
A144: 127 | F144: =IF(ISBLANK(H144),"",IF(VLOOKUP(H144,RawData!$D$8:$M$127,9,FALSE)=0,"",VLOOKUP(H144,RawData!$D$8:$M$127,9,FALSE))) ->  | G144: =IF(ISBLANK(H144),"",VLOOKUP(H144,RawData!$D$8:$M$127,2,FALSE)) ->  | K144: 0 | L144: =IF(ISBLANK(H144),"",VLOOKUP(H144,FarmPricelistWorkSheet!$D$3:$N$125,5,FALSE)*(1+K144)) ->  | M144: 0 | O144: =IF(ISBLANK(H144),"",VLOOKUP(H144,RawData!$D$8:$K$127,8,FALSE)) ->  | P144: =IF(ROUND(IFERROR(VLOOKUP(H144,FarmPricelistWorkSheet!$D$2:$N$124,7,FALSE),0),2)=0,"-",(ROUND(IFERROR(VLOOKUP(H144,FarmPricelistWorkSheet!$D$2:$N$124,7,FALSE),0),2))) -> - | Q144: - | R144: - | S144: =IF(ROUND(IFERROR(VLOOKUP(H144,FarmPricelistWorkSheet!$D$2:$N$124,9,FALSE),0),2)*E144 = 0,"-",ROUND(IFERROR(VLOOKUP(H144,FarmPricelistWorkSheet!$D$2:$N$124,9,FALSE),0),2)*E144) -> -
A145: 128 | F145: =IF(ISBLANK(H145),"",IF(VLOOKUP(H145,RawData!$D$8:$M$127,9,FALSE)=0,"",VLOOKUP(H145,RawData!$D$8:$M$127,9,FALSE))) ->  | G145: =IF(ISBLANK(H145),"",VLOOKUP(H145,RawData!$D$8:$M$127,2,FALSE)) ->  | K145: 0 | L145: =IF(ISBLANK(H145),"",VLOOKUP(H145,FarmPricelistWorkSheet!$D$3:$N$125,5,FALSE)*(1+K145)) ->  | M145: 0 | O145: =IF(ISBLANK(H145),"",VLOOKUP(H145,RawData!$D$8:$K$127,8,FALSE)) ->  | P145: =IF(ROUND(IFERROR(VLOOKUP(H145,FarmPricelistWorkSheet!$D$2:$N$124,7,FALSE),0),2)=0,"-",(ROUND(IFERROR(VLOOKUP(H145,FarmPricelistWorkSheet!$D$2:$N$124,7,FALSE),0),2))) -> - | Q145: - | R145: - | S145: =IF(ROUND(IFERROR(VLOOKUP(H145,FarmPricelistWorkSheet!$D$2:$N$124,9,FALSE),0),2)*E145 = 0,"-",ROUND(IFERROR(VLOOKUP(H145,FarmPricelistWorkSheet!$D$2:$N$124,9,FALSE),0),2)*E145) -> -
A146: 129 | F146: =IF(ISBLANK(H146),"",IF(VLOOKUP(H146,RawData!$D$8:$M$127,9,FALSE)=0,"",VLOOKUP(H146,RawData!$D$8:$M$127,9,FALSE))) ->  | G146: =IF(ISBLANK(H146),"",VLOOKUP(H146,RawData!$D$8:$M$127,2,FALSE)) ->  | K146: 0 | L146: =IF(ISBLANK(H146),"",VLOOKUP(H146,FarmPricelistWorkSheet!$D$3:$N$125,5,FALSE)*(1+K146)) ->  | M146: 0 | O146: =IF(ISBLANK(H146),"",VLOOKUP(H146,RawData!$D$8:$K$127,8,FALSE)) ->  | P146: =IF(ROUND(IFERROR(VLOOKUP(H146,FarmPricelistWorkSheet!$D$2:$N$124,7,FALSE),0),2)=0,"-",(ROUND(IFERROR(VLOOKUP(H146,FarmPricelistWorkSheet!$D$2:$N$124,7,FALSE),0),2))) -> - | Q146: - | R146: - | S146: =IF(ROUND(IFERROR(VLOOKUP(H146,FarmPricelistWorkSheet!$D$2:$N$124,9,FALSE),0),2)*E146 = 0,"-",ROUND(IFERROR(VLOOKUP(H146,FarmPricelistWorkSheet!$D$2:$N$124,9,FALSE),0),2)*E146) -> -
A147: 130 | F147: =IF(ISBLANK(H147),"",IF(VLOOKUP(H147,RawData!$D$8:$M$127,9,FALSE)=0,"",VLOOKUP(H147,RawData!$D$8:$M$127,9,FALSE))) ->  | G147: =IF(ISBLANK(H147),"",VLOOKUP(H147,RawData!$D$8:$M$127,2,FALSE)) ->  | K147: 0 | L147: =IF(ISBLANK(H147),"",VLOOKUP(H147,FarmPricelistWorkSheet!$D$3:$N$125,5,FALSE)*(1+K147)) ->  | M147: 0 | N147: =IF(ISBLANK(H147),"",ROUND((L147*E147 + M147),2)) ->  | O147: =IF(ISBLANK(H147),"",VLOOKUP(H147,RawData!$D$8:$K$127,8,FALSE)) ->  | P147: =IF(ROUND(IFERROR(VLOOKUP(H147,FarmPricelistWorkSheet!$D$2:$N$124,7,FALSE),0),2)=0,"-",(ROUND(IFERROR(VLOOKUP(H147,FarmPricelistWorkSheet!$D$2:$N$124,7,FALSE),0),2))) -> - | Q147: =IFERROR(IF(S147*P147 = 0,"-",S147*P147),"-") -> - | R147: =IF(ROUND(IFERROR(Q147/N147,0),2)=0,"-",(ROUND(IFERROR(Q147/N147,0),2))) -> - | S147: =IF(ROUND(IFERROR(VLOOKUP(H147,FarmPricelistWorkSheet!$D$2:$N$124,9,FALSE),0),2)*E147 = 0,"-",ROUND(IFERROR(VLOOKUP(H147,FarmPricelistWorkSheet!$D$2:$N$124,9,FALSE),0),2)*E147) -> -
A148: =1+A147 -> 131 | F148: =IF(ISBLANK(H148),"",IF(VLOOKUP(H148,RawData!$D$8:$M$127,9,FALSE)=0,"",VLOOKUP(H148,RawData!$D$8:$M$127,9,FALSE))) ->  | G148: =IF(ISBLANK(H148),"",VLOOKUP(H148,RawData!$D$8:$M$127,2,FALSE)) ->  | K148: 0 | L148: =IF(ISBLANK(H148),"",VLOOKUP(H148,FarmPricelistWorkSheet!$D$3:$N$125,5,FALSE)*(1+K148)) ->  | M148: 0 | O148: =IF(ISBLANK(H148),"",VLOOKUP(H148,RawData!$D$8:$K$127,8,FALSE)) ->  | P148: =IF(ROUND(IFERROR(VLOOKUP(H148,FarmPricelistWorkSheet!$D$2:$N$124,7,FALSE),0),2)=0,"-",(ROUND(IFERROR(VLOOKUP(H148,FarmPricelistWorkSheet!$D$2:$N$124,7,FALSE),0),2))) -> - | Q148: - | R148: - | S148: =IF(ROUND(IFERROR(VLOOKUP(H148,FarmPricelistWorkSheet!$D$2:$N$124,9,FALSE),0),2)*E148 = 0,"-",ROUND(IFERROR(VLOOKUP(H148,FarmPricelistWorkSheet!$D$2:$N$124,9,FALSE),0),2)*E148) -> -
A149: 132 | F149: =IF(ISBLANK(H149),"",IF(VLOOKUP(H149,RawData!$D$8:$M$127,9,FALSE)=0,"",VLOOKUP(H149,RawData!$D$8:$M$127,9,FALSE))) ->  | G149: =IF(ISBLANK(H149),"",VLOOKUP(H149,RawData!$D$8:$M$127,2,FALSE)) ->  | K149: 0 | L149: =IF(ISBLANK(H149),"",VLOOKUP(H149,FarmPricelistWorkSheet!$D$3:$N$125,5,FALSE)*(1+K149)) ->  | M149: 0 | O149: =IF(ISBLANK(H149),"",VLOOKUP(H149,RawData!$D$8:$K$127,8,FALSE)) ->  | P149: =IF(ROUND(IFERROR(VLOOKUP(H149,FarmPricelistWorkSheet!$D$2:$N$124,7,FALSE),0),2)=0,"-",(ROUND(IFERROR(VLOOKUP(H149,FarmPricelistWorkSheet!$D$2:$N$124,7,FALSE),0),2))) -> - | Q149: - | R149: - | S149: =IF(ROUND(IFERROR(VLOOKUP(H149,FarmPricelistWorkSheet!$D$2:$N$124,9,FALSE),0),2)*E149 = 0,"-",ROUND(IFERROR(VLOOKUP(H149,FarmPricelistWorkSheet!$D$2:$N$124,9,FALSE),0),2)*E149) -> -
A150: 133 | F150: =IF(ISBLANK(H150),"",IF(VLOOKUP(H150,RawData!$D$8:$M$127,9,FALSE)=0,"",VLOOKUP(H150,RawData!$D$8:$M$127,9,FALSE))) ->  | G150: =IF(ISBLANK(H150),"",VLOOKUP(H150,RawData!$D$8:$M$127,2,FALSE)) ->  | K150: 0 | L150: =IF(ISBLANK(H150),"",VLOOKUP(H150,FarmPricelistWorkSheet!$D$3:$N$125,5,FALSE)*(1+K150)) ->  | M150: 0 | O150: =IF(ISBLANK(H150),"",VLOOKUP(H150,RawData!$D$8:$K$127,8,FALSE)) ->  | P150: =IF(ROUND(IFERROR(VLOOKUP(H150,FarmPricelistWorkSheet!$D$2:$N$124,7,FALSE),0),2)=0,"-",(ROUND(IFERROR(VLOOKUP(H150,FarmPricelistWorkSheet!$D$2:$N$124,7,FALSE),0),2))) -> - | Q150: - | R150: - | S150: =IF(ROUND(IFERROR(VLOOKUP(H150,FarmPricelistWorkSheet!$D$2:$N$124,9,FALSE),0),2)*E150 = 0,"-",ROUND(IFERROR(VLOOKUP(H150,FarmPricelistWorkSheet!$D$2:$N$124,9,FALSE),0),2)*E150) -> -
A151: 134 | F151: =IF(ISBLANK(H151),"",IF(VLOOKUP(H151,RawData!$D$8:$M$127,9,FALSE)=0,"",VLOOKUP(H151,RawData!$D$8:$M$127,9,FALSE))) ->  | G151: =IF(ISBLANK(H151),"",VLOOKUP(H151,RawData!$D$8:$M$127,2,FALSE)) ->  | K151: 0 | L151: =IF(ISBLANK(H151),"",VLOOKUP(H151,FarmPricelistWorkSheet!$D$3:$N$125,5,FALSE)*(1+K151)) ->  | M151: 0 | O151: =IF(ISBLANK(H151),"",VLOOKUP(H151,RawData!$D$8:$K$127,8,FALSE)) ->  | P151: =IF(ROUND(IFERROR(VLOOKUP(H151,FarmPricelistWorkSheet!$D$2:$N$124,7,FALSE),0),2)=0,"-",(ROUND(IFERROR(VLOOKUP(H151,FarmPricelistWorkSheet!$D$2:$N$124,7,FALSE),0),2))) -> - | Q151: - | R151: - | S151: =IF(ROUND(IFERROR(VLOOKUP(H151,FarmPricelistWorkSheet!$D$2:$N$124,9,FALSE),0),2)*E151 = 0,"-",ROUND(IFERROR(VLOOKUP(H151,FarmPricelistWorkSheet!$D$2:$N$124,9,FALSE),0),2)*E151) -> -
A152: 135 | F152: =IF(ISBLANK(H152),"",IF(VLOOKUP(H152,RawData!$D$8:$M$127,9,FALSE)=0,"",VLOOKUP(H152,RawData!$D$8:$M$127,9,FALSE))) ->  | G152: =IF(ISBLANK(H152),"",VLOOKUP(H152,RawData!$D$8:$M$127,2,FALSE)) ->  | K152: 0 | L152: =IF(ISBLANK(H152),"",VLOOKUP(H152,FarmPricelistWorkSheet!$D$3:$N$125,5,FALSE)*(1+K152)) ->  | M152: 0 | O152: =IF(ISBLANK(H152),"",VLOOKUP(H152,RawData!$D$8:$K$127,8,FALSE)) ->  | P152: =IF(ROUND(IFERROR(VLOOKUP(H152,FarmPricelistWorkSheet!$D$2:$N$124,7,FALSE),0),2)=0,"-",(ROUND(IFERROR(VLOOKUP(H152,FarmPricelistWorkSheet!$D$2:$N$124,7,FALSE),0),2))) -> - | Q152: - | R152: - | S152: =IF(ROUND(IFERROR(VLOOKUP(H152,FarmPricelistWorkSheet!$D$2:$N$124,9,FALSE),0),2)*E152 = 0,"-",ROUND(IFERROR(VLOOKUP(H152,FarmPricelistWorkSheet!$D$2:$N$124,9,FALSE),0),2)*E152) -> -
A153: 136 | F153: =IF(ISBLANK(H153),"",IF(VLOOKUP(H153,RawData!$D$8:$M$127,9,FALSE)=0,"",VLOOKUP(H153,RawData!$D$8:$M$127,9,FALSE))) ->  | G153: =IF(ISBLANK(H153),"",VLOOKUP(H153,RawData!$D$8:$M$127,2,FALSE)) ->  | K153: 0 | L153: =IF(ISBLANK(H153),"",VLOOKUP(H153,FarmPricelistWorkSheet!$D$3:$N$125,5,FALSE)*(1+K153)) ->  | M153: 0 | O153: =IF(ISBLANK(H153),"",VLOOKUP(H153,RawData!$D$8:$K$127,8,FALSE)) ->  | P153: =IF(ROUND(IFERROR(VLOOKUP(H153,FarmPricelistWorkSheet!$D$2:$N$124,7,FALSE),0),2)=0,"-",(ROUND(IFERROR(VLOOKUP(H153,FarmPricelistWorkSheet!$D$2:$N$124,7,FALSE),0),2))) -> - | Q153: - | R153: - | S153: =IF(ROUND(IFERROR(VLOOKUP(H153,FarmPricelistWorkSheet!$D$2:$N$124,9,FALSE),0),2)*E153 = 0,"-",ROUND(IFERROR(VLOOKUP(H153,FarmPricelistWorkSheet!$D$2:$N$124,9,FALSE),0),2)*E153) -> -
A154: 137 | F154: =IF(ISBLANK(H154),"",IF(VLOOKUP(H154,RawData!$D$8:$M$127,9,FALSE)=0,"",VLOOKUP(H154,RawData!$D$8:$M$127,9,FALSE))) ->  | G154: =IF(ISBLANK(H154),"",VLOOKUP(H154,RawData!$D$8:$M$127,2,FALSE)) ->  | K154: 0 | L154: =IF(ISBLANK(H154),"",VLOOKUP(H154,FarmPricelistWorkSheet!$D$3:$N$125,5,FALSE)*(1+K154)) ->  | M154: 0 | O154: =IF(ISBLANK(H154),"",VLOOKUP(H154,RawData!$D$8:$K$127,8,FALSE)) ->  | P154: =IF(ROUND(IFERROR(VLOOKUP(H154,FarmPricelistWorkSheet!$D$2:$N$124,7,FALSE),0),2)=0,"-",(ROUND(IFERROR(VLOOKUP(H154,FarmPricelistWorkSheet!$D$2:$N$124,7,FALSE),0),2))) -> - | Q154: - | R154: - | S154: =IF(ROUND(IFERROR(VLOOKUP(H154,FarmPricelistWorkSheet!$D$2:$N$124,9,FALSE),0),2)*E154 = 0,"-",ROUND(IFERROR(VLOOKUP(H154,FarmPricelistWorkSheet!$D$2:$N$124,9,FALSE),0),2)*E154) -> -
A155: 138 | F155: =IF(ISBLANK(H155),"",IF(VLOOKUP(H155,RawData!$D$8:$M$127,9,FALSE)=0,"",VLOOKUP(H155,RawData!$D$8:$M$127,9,FALSE))) ->  | G155: =IF(ISBLANK(H155),"",VLOOKUP(H155,RawData!$D$8:$M$127,2,FALSE)) ->  | K155: 0 | L155: =IF(ISBLANK(H155),"",VLOOKUP(H155,FarmPricelistWorkSheet!$D$3:$N$125,5,FALSE)*(1+K155)) ->  | M155: 0 | O155: =IF(ISBLANK(H155),"",VLOOKUP(H155,RawData!$D$8:$K$127,8,FALSE)) ->  | P155: =IF(ROUND(IFERROR(VLOOKUP(H155,FarmPricelistWorkSheet!$D$2:$N$124,7,FALSE),0),2)=0,"-",(ROUND(IFERROR(VLOOKUP(H155,FarmPricelistWorkSheet!$D$2:$N$124,7,FALSE),0),2))) -> - | Q155: - | R155: - | S155: =IF(ROUND(IFERROR(VLOOKUP(H155,FarmPricelistWorkSheet!$D$2:$N$124,9,FALSE),0),2)*E155 = 0,"-",ROUND(IFERROR(VLOOKUP(H155,FarmPricelistWorkSheet!$D$2:$N$124,9,FALSE),0),2)*E155) -> -
A156: 139 | F156: =IF(ISBLANK(H156),"",IF(VLOOKUP(H156,RawData!$D$8:$M$127,9,FALSE)=0,"",VLOOKUP(H156,RawData!$D$8:$M$127,9,FALSE))) ->  | G156: =IF(ISBLANK(H156),"",VLOOKUP(H156,RawData!$D$8:$M$127,2,FALSE)) ->  | K156: 0 | L156: =IF(ISBLANK(H156),"",VLOOKUP(H156,FarmPricelistWorkSheet!$D$3:$N$125,5,FALSE)*(1+K156)) ->  | M156: 0 | O156: =IF(ISBLANK(H156),"",VLOOKUP(H156,RawData!$D$8:$K$127,8,FALSE)) ->  | P156: =IF(ROUND(IFERROR(VLOOKUP(H156,FarmPricelistWorkSheet!$D$2:$N$124,7,FALSE),0),2)=0,"-",(ROUND(IFERROR(VLOOKUP(H156,FarmPricelistWorkSheet!$D$2:$N$124,7,FALSE),0),2))) -> - | Q156: - | R156: - | S156: =IF(ROUND(IFERROR(VLOOKUP(H156,FarmPricelistWorkSheet!$D$2:$N$124,9,FALSE),0),2)*E156 = 0,"-",ROUND(IFERROR(VLOOKUP(H156,FarmPricelistWorkSheet!$D$2:$N$124,9,FALSE),0),2)*E156) -> -
A157: 140 | F157: =IF(ISBLANK(H157),"",IF(VLOOKUP(H157,RawData!$D$8:$M$127,9,FALSE)=0,"",VLOOKUP(H157,RawData!$D$8:$M$127,9,FALSE))) ->  | G157: =IF(ISBLANK(H157),"",VLOOKUP(H157,RawData!$D$8:$M$127,2,FALSE)) ->  | K157: 0 | L157: =IF(ISBLANK(H157),"",VLOOKUP(H157,FarmPricelistWorkSheet!$D$3:$N$125,5,FALSE)*(1+K157)) ->  | M157: 0 | O157: =IF(ISBLANK(H157),"",VLOOKUP(H157,RawData!$D$8:$K$127,8,FALSE)) ->  | P157: =IF(ROUND(IFERROR(VLOOKUP(H157,FarmPricelistWorkSheet!$D$2:$N$124,7,FALSE),0),2)=0,"-",(ROUND(IFERROR(VLOOKUP(H157,FarmPricelistWorkSheet!$D$2:$N$124,7,FALSE),0),2))) -> - | Q157: - | R157: - | S157: =IF(ROUND(IFERROR(VLOOKUP(H157,FarmPricelistWorkSheet!$D$2:$N$124,9,FALSE),0),2)*E157 = 0,"-",ROUND(IFERROR(VLOOKUP(H157,FarmPricelistWorkSheet!$D$2:$N$124,9,FALSE),0),2)*E157) -> -
A158: 141 | F158: =IF(ISBLANK(H158),"",IF(VLOOKUP(H158,RawData!$D$8:$M$127,9,FALSE)=0,"",VLOOKUP(H158,RawData!$D$8:$M$127,9,FALSE))) ->  | G158: =IF(ISBLANK(H158),"",VLOOKUP(H158,RawData!$D$8:$M$127,2,FALSE)) ->  | K158: 0 | L158: =IF(ISBLANK(H158),"",VLOOKUP(H158,FarmPricelistWorkSheet!$D$3:$N$125,5,FALSE)*(1+K158)) ->  | M158: 0 | O158: =IF(ISBLANK(H158),"",VLOOKUP(H158,RawData!$D$8:$K$127,8,FALSE)) ->  | P158: =IF(ROUND(IFERROR(VLOOKUP(H158,FarmPricelistWorkSheet!$D$2:$N$124,7,FALSE),0),2)=0,"-",(ROUND(IFERROR(VLOOKUP(H158,FarmPricelistWorkSheet!$D$2:$N$124,7,FALSE),0),2))) -> - | Q158: - | R158: - | S158: =IF(ROUND(IFERROR(VLOOKUP(H158,FarmPricelistWorkSheet!$D$2:$N$124,9,FALSE),0),2)*E158 = 0,"-",ROUND(IFERROR(VLOOKUP(H158,FarmPricelistWorkSheet!$D$2:$N$124,9,FALSE),0),2)*E158) -> -
A159: 142 | F159: =IF(ISBLANK(H159),"",IF(VLOOKUP(H159,RawData!$D$8:$M$127,9,FALSE)=0,"",VLOOKUP(H159,RawData!$D$8:$M$127,9,FALSE))) ->  | G159: =IF(ISBLANK(H159),"",VLOOKUP(H159,RawData!$D$8:$M$127,2,FALSE)) ->  | K159: 0 | L159: =IF(ISBLANK(H159),"",VLOOKUP(H159,FarmPricelistWorkSheet!$D$3:$N$125,5,FALSE)*(1+K159)) ->  | M159: 0 | O159: =IF(ISBLANK(H159),"",VLOOKUP(H159,RawData!$D$8:$K$127,8,FALSE)) ->  | P159: =IF(ROUND(IFERROR(VLOOKUP(H159,FarmPricelistWorkSheet!$D$2:$N$124,7,FALSE),0),2)=0,"-",(ROUND(IFERROR(VLOOKUP(H159,FarmPricelistWorkSheet!$D$2:$N$124,7,FALSE),0),2))) -> - | Q159: - | R159: - | S159: =IF(ROUND(IFERROR(VLOOKUP(H159,FarmPricelistWorkSheet!$D$2:$N$124,9,FALSE),0),2)*E159 = 0,"-",ROUND(IFERROR(VLOOKUP(H159,FarmPricelistWorkSheet!$D$2:$N$124,9,FALSE),0),2)*E159) -> -
A160: 143 | F160: =IF(ISBLANK(H160),"",IF(VLOOKUP(H160,RawData!$D$8:$M$127,9,FALSE)=0,"",VLOOKUP(H160,RawData!$D$8:$M$127,9,FALSE))) ->  | G160: =IF(ISBLANK(H160),"",VLOOKUP(H160,RawData!$D$8:$M$127,2,FALSE)) ->  | K160: 0 | L160: =IF(ISBLANK(H160),"",VLOOKUP(H160,FarmPricelistWorkSheet!$D$3:$N$125,5,FALSE)*(1+K160)) ->  | M160: 0 | O160: =IF(ISBLANK(H160),"",VLOOKUP(H160,RawData!$D$8:$K$127,8,FALSE)) ->  | P160: =IF(ROUND(IFERROR(VLOOKUP(H160,FarmPricelistWorkSheet!$D$2:$N$124,7,FALSE),0),2)=0,"-",(ROUND(IFERROR(VLOOKUP(H160,FarmPricelistWorkSheet!$D$2:$N$124,7,FALSE),0),2))) -> - | Q160: - | R160: - | S160: =IF(ROUND(IFERROR(VLOOKUP(H160,FarmPricelistWorkSheet!$D$2:$N$124,9,FALSE),0),2)*E160 = 0,"-",ROUND(IFERROR(VLOOKUP(H160,FarmPricelistWorkSheet!$D$2:$N$124,9,FALSE),0),2)*E160) -> -
A161: 144 | F161: =IF(ISBLANK(H161),"",IF(VLOOKUP(H161,RawData!$D$8:$M$127,9,FALSE)=0,"",VLOOKUP(H161,RawData!$D$8:$M$127,9,FALSE))) ->  | G161: =IF(ISBLANK(H161),"",VLOOKUP(H161,RawData!$D$8:$M$127,2,FALSE)) ->  | K161: 0 | L161: =IF(ISBLANK(H161),"",VLOOKUP(H161,FarmPricelistWorkSheet!$D$3:$N$125,5,FALSE)*(1+K161)) ->  | M161: 0 | O161: =IF(ISBLANK(H161),"",VLOOKUP(H161,RawData!$D$8:$K$127,8,FALSE)) ->  | P161: =IF(ROUND(IFERROR(VLOOKUP(H161,FarmPricelistWorkSheet!$D$2:$N$124,7,FALSE),0),2)=0,"-",(ROUND(IFERROR(VLOOKUP(H161,FarmPricelistWorkSheet!$D$2:$N$124,7,FALSE),0),2))) -> - | Q161: - | R161: - | S161: =IF(ROUND(IFERROR(VLOOKUP(H161,FarmPricelistWorkSheet!$D$2:$N$124,9,FALSE),0),2)*E161 = 0,"-",ROUND(IFERROR(VLOOKUP(H161,FarmPricelistWorkSheet!$D$2:$N$124,9,FALSE),0),2)*E161) -> -
A162: 145 | F162: =IF(ISBLANK(H162),"",IF(VLOOKUP(H162,RawData!$D$8:$M$127,9,FALSE)=0,"",VLOOKUP(H162,RawData!$D$8:$M$127,9,FALSE))) ->  | G162: =IF(ISBLANK(H162),"",VLOOKUP(H162,RawData!$D$8:$M$127,2,FALSE)) ->  | K162: 0 | L162: =IF(ISBLANK(H162),"",VLOOKUP(H162,FarmPricelistWorkSheet!$D$3:$N$125,5,FALSE)*(1+K162)) ->  | M162: 0 | O162: =IF(ISBLANK(H162),"",VLOOKUP(H162,RawData!$D$8:$K$127,8,FALSE)) ->  | P162: =IF(ROUND(IFERROR(VLOOKUP(H162,FarmPricelistWorkSheet!$D$2:$N$124,7,FALSE),0),2)=0,"-",(ROUND(IFERROR(VLOOKUP(H162,FarmPricelistWorkSheet!$D$2:$N$124,7,FALSE),0),2))) -> - | Q162: - | R162: - | S162: =IF(ROUND(IFERROR(VLOOKUP(H162,FarmPricelistWorkSheet!$D$2:$N$124,9,FALSE),0),2)*E162 = 0,"-",ROUND(IFERROR(VLOOKUP(H162,FarmPricelistWorkSheet!$D$2:$N$124,9,FALSE),0),2)*E162) -> -
A163: 146 | F163: =IF(ISBLANK(H163),"",IF(VLOOKUP(H163,RawData!$D$8:$M$127,9,FALSE)=0,"",VLOOKUP(H163,RawData!$D$8:$M$127,9,FALSE))) ->  | G163: =IF(ISBLANK(H163),"",VLOOKUP(H163,RawData!$D$8:$M$127,2,FALSE)) ->  | K163: 0 | L163: =IF(ISBLANK(H163),"",VLOOKUP(H163,FarmPricelistWorkSheet!$D$3:$N$125,5,FALSE)*(1+K163)) ->  | M163: 0 | O163: =IF(ISBLANK(H163),"",VLOOKUP(H163,RawData!$D$8:$K$127,8,FALSE)) ->  | P163: =IF(ROUND(IFERROR(VLOOKUP(H163,FarmPricelistWorkSheet!$D$2:$N$124,7,FALSE),0),2)=0,"-",(ROUND(IFERROR(VLOOKUP(H163,FarmPricelistWorkSheet!$D$2:$N$124,7,FALSE),0),2))) -> - | Q163: - | R163: - | S163: =IF(ROUND(IFERROR(VLOOKUP(H163,FarmPricelistWorkSheet!$D$2:$N$124,9,FALSE),0),2)*E163 = 0,"-",ROUND(IFERROR(VLOOKUP(H163,FarmPricelistWorkSheet!$D$2:$N$124,9,FALSE),0),2)*E163) -> -
A164: 147 | F164: =IF(ISBLANK(H164),"",IF(VLOOKUP(H164,RawData!$D$8:$M$127,9,FALSE)=0,"",VLOOKUP(H164,RawData!$D$8:$M$127,9,FALSE))) ->  | G164: =IF(ISBLANK(H164),"",VLOOKUP(H164,RawData!$D$8:$M$127,2,FALSE)) ->  | K164: 0 | L164: =IF(ISBLANK(H164),"",VLOOKUP(H164,FarmPricelistWorkSheet!$D$3:$N$125,5,FALSE)*(1+K164)) ->  | M164: 0 | O164: =IF(ISBLANK(H164),"",VLOOKUP(H164,RawData!$D$8:$K$127,8,FALSE)) ->  | P164: =IF(ROUND(IFERROR(VLOOKUP(H164,FarmPricelistWorkSheet!$D$2:$N$124,7,FALSE),0),2)=0,"-",(ROUND(IFERROR(VLOOKUP(H164,FarmPricelistWorkSheet!$D$2:$N$124,7,FALSE),0),2))) -> - | Q164: - | R164: - | S164: =IF(ROUND(IFERROR(VLOOKUP(H164,FarmPricelistWorkSheet!$D$2:$N$124,9,FALSE),0),2)*E164 = 0,"-",ROUND(IFERROR(VLOOKUP(H164,FarmPricelistWorkSheet!$D$2:$N$124,9,FALSE),0),2)*E164) -> -
A165: 148 | F165: =IF(ISBLANK(H165),"",IF(VLOOKUP(H165,RawData!$D$8:$M$127,9,FALSE)=0,"",VLOOKUP(H165,RawData!$D$8:$M$127,9,FALSE))) ->  | G165: =IF(ISBLANK(H165),"",VLOOKUP(H165,RawData!$D$8:$M$127,2,FALSE)) ->  | K165: 0 | L165: =IF(ISBLANK(H165),"",VLOOKUP(H165,FarmPricelistWorkSheet!$D$3:$N$125,5,FALSE)*(1+K165)) ->  | M165: 0 | O165: =IF(ISBLANK(H165),"",VLOOKUP(H165,RawData!$D$8:$K$127,8,FALSE)) ->  | P165: =IF(ROUND(IFERROR(VLOOKUP(H165,FarmPricelistWorkSheet!$D$2:$N$124,7,FALSE),0),2)=0,"-",(ROUND(IFERROR(VLOOKUP(H165,FarmPricelistWorkSheet!$D$2:$N$124,7,FALSE),0),2))) -> - | Q165: - | R165: - | S165: =IF(ROUND(IFERROR(VLOOKUP(H165,FarmPricelistWorkSheet!$D$2:$N$124,9,FALSE),0),2)*E165 = 0,"-",ROUND(IFERROR(VLOOKUP(H165,FarmPricelistWorkSheet!$D$2:$N$124,9,FALSE),0),2)*E165) -> -
A166: 149 | F166: =IF(ISBLANK(H166),"",IF(VLOOKUP(H166,RawData!$D$8:$M$127,9,FALSE)=0,"",VLOOKUP(H166,RawData!$D$8:$M$127,9,FALSE))) ->  | G166: =IF(ISBLANK(H166),"",VLOOKUP(H166,RawData!$D$8:$M$127,2,FALSE)) ->  | K166: 0 | L166: =IF(ISBLANK(H166),"",VLOOKUP(H166,FarmPricelistWorkSheet!$D$3:$N$125,5,FALSE)*(1+K166)) ->  | M166: 0 | O166: =IF(ISBLANK(H166),"",VLOOKUP(H166,RawData!$D$8:$K$127,8,FALSE)) ->  | P166: =IF(ROUND(IFERROR(VLOOKUP(H166,FarmPricelistWorkSheet!$D$2:$N$124,7,FALSE),0),2)=0,"-",(ROUND(IFERROR(VLOOKUP(H166,FarmPricelistWorkSheet!$D$2:$N$124,7,FALSE),0),2))) -> - | Q166: - | R166: - | S166: =IF(ROUND(IFERROR(VLOOKUP(H166,FarmPricelistWorkSheet!$D$2:$N$124,9,FALSE),0),2)*E166 = 0,"-",ROUND(IFERROR(VLOOKUP(H166,FarmPricelistWorkSheet!$D$2:$N$124,9,FALSE),0),2)*E166) -> -
A167: 150 | F167: =IF(ISBLANK(H167),"",IF(VLOOKUP(H167,RawData!$D$8:$M$127,9,FALSE)=0,"",VLOOKUP(H167,RawData!$D$8:$M$127,9,FALSE))) ->  | G167: =IF(ISBLANK(H167),"",VLOOKUP(H167,RawData!$D$8:$M$127,2,FALSE)) ->  | K167: 0 | L167: =IF(ISBLANK(H167),"",VLOOKUP(H167,FarmPricelistWorkSheet!$D$3:$N$125,5,FALSE)*(1+K167)) ->  | M167: 0 | O167: =IF(ISBLANK(H167),"",VLOOKUP(H167,RawData!$D$8:$K$127,8,FALSE)) ->  | P167: =IF(ROUND(IFERROR(VLOOKUP(H167,FarmPricelistWorkSheet!$D$2:$N$124,7,FALSE),0),2)=0,"-",(ROUND(IFERROR(VLOOKUP(H167,FarmPricelistWorkSheet!$D$2:$N$124,7,FALSE),0),2))) -> - | Q167: - | R167: - | S167: =IF(ROUND(IFERROR(VLOOKUP(H167,FarmPricelistWorkSheet!$D$2:$N$124,9,FALSE),0),2)*E167 = 0,"-",ROUND(IFERROR(VLOOKUP(H167,FarmPricelistWorkSheet!$D$2:$N$124,9,FALSE),0),2)*E167) -> -
A168: 151 | F168: =IF(ISBLANK(H168),"",IF(VLOOKUP(H168,RawData!$D$8:$M$127,9,FALSE)=0,"",VLOOKUP(H168,RawData!$D$8:$M$127,9,FALSE))) ->  | G168: =IF(ISBLANK(H168),"",VLOOKUP(H168,RawData!$D$8:$M$127,2,FALSE)) ->  | K168: 0 | L168: =IF(ISBLANK(H168),"",VLOOKUP(H168,FarmPricelistWorkSheet!$D$3:$N$125,5,FALSE)*(1+K168)) ->  | M168: 0 | O168: =IF(ISBLANK(H168),"",VLOOKUP(H168,RawData!$D$8:$K$127,8,FALSE)) ->  | P168: =IF(ROUND(IFERROR(VLOOKUP(H168,FarmPricelistWorkSheet!$D$2:$N$124,7,FALSE),0),2)=0,"-",(ROUND(IFERROR(VLOOKUP(H168,FarmPricelistWorkSheet!$D$2:$N$124,7,FALSE),0),2))) -> - | Q168: - | R168: - | S168: =IF(ROUND(IFERROR(VLOOKUP(H168,FarmPricelistWorkSheet!$D$2:$N$124,9,FALSE),0),2)*E168 = 0,"-",ROUND(IFERROR(VLOOKUP(H168,FarmPricelistWorkSheet!$D$2:$N$124,9,FALSE),0),2)*E168) -> -
A169: 152 | F169: =IF(ISBLANK(H169),"",IF(VLOOKUP(H169,RawData!$D$8:$M$127,9,FALSE)=0,"",VLOOKUP(H169,RawData!$D$8:$M$127,9,FALSE))) ->  | G169: =IF(ISBLANK(H169),"",VLOOKUP(H169,RawData!$D$8:$M$127,2,FALSE)) ->  | K169: 0 | L169: =IF(ISBLANK(H169),"",VLOOKUP(H169,FarmPricelistWorkSheet!$D$3:$N$125,5,FALSE)*(1+K169)) ->  | M169: 0 | O169: =IF(ISBLANK(H169),"",VLOOKUP(H169,RawData!$D$8:$K$127,8,FALSE)) ->  | P169: =IF(ROUND(IFERROR(VLOOKUP(H169,FarmPricelistWorkSheet!$D$2:$N$124,7,FALSE),0),2)=0,"-",(ROUND(IFERROR(VLOOKUP(H169,FarmPricelistWorkSheet!$D$2:$N$124,7,FALSE),0),2))) -> - | Q169: - | R169: - | S169: =IF(ROUND(IFERROR(VLOOKUP(H169,FarmPricelistWorkSheet!$D$2:$N$124,9,FALSE),0),2)*E169 = 0,"-",ROUND(IFERROR(VLOOKUP(H169,FarmPricelistWorkSheet!$D$2:$N$124,9,FALSE),0),2)*E169) -> -
A170: 153 | F170: =IF(ISBLANK(H170),"",IF(VLOOKUP(H170,RawData!$D$8:$M$127,9,FALSE)=0,"",VLOOKUP(H170,RawData!$D$8:$M$127,9,FALSE))) ->  | G170: =IF(ISBLANK(H170),"",VLOOKUP(H170,RawData!$D$8:$M$127,2,FALSE)) ->  | K170: 0 | L170: =IF(ISBLANK(H170),"",VLOOKUP(H170,FarmPricelistWorkSheet!$D$3:$N$125,5,FALSE)*(1+K170)) ->  | M170: 0 | O170: =IF(ISBLANK(H170),"",VLOOKUP(H170,RawData!$D$8:$K$127,8,FALSE)) ->  | P170: =IF(ROUND(IFERROR(VLOOKUP(H170,FarmPricelistWorkSheet!$D$2:$N$124,7,FALSE),0),2)=0,"-",(ROUND(IFERROR(VLOOKUP(H170,FarmPricelistWorkSheet!$D$2:$N$124,7,FALSE),0),2))) -> - | Q170: - | R170: - | S170: =IF(ROUND(IFERROR(VLOOKUP(H170,FarmPricelistWorkSheet!$D$2:$N$124,9,FALSE),0),2)*E170 = 0,"-",ROUND(IFERROR(VLOOKUP(H170,FarmPricelistWorkSheet!$D$2:$N$124,9,FALSE),0),2)*E170) -> -
A171: 154 | F171: =IF(ISBLANK(H171),"",IF(VLOOKUP(H171,RawData!$D$8:$M$127,9,FALSE)=0,"",VLOOKUP(H171,RawData!$D$8:$M$127,9,FALSE))) ->  | G171: =IF(ISBLANK(H171),"",VLOOKUP(H171,RawData!$D$8:$M$127,2,FALSE)) ->  | K171: 0 | L171: =IF(ISBLANK(H171),"",VLOOKUP(H171,FarmPricelistWorkSheet!$D$3:$N$125,5,FALSE)*(1+K171)) ->  | M171: 0 | O171: =IF(ISBLANK(H171),"",VLOOKUP(H171,RawData!$D$8:$K$127,8,FALSE)) ->  | P171: =IF(ROUND(IFERROR(VLOOKUP(H171,FarmPricelistWorkSheet!$D$2:$N$124,7,FALSE),0),2)=0,"-",(ROUND(IFERROR(VLOOKUP(H171,FarmPricelistWorkSheet!$D$2:$N$124,7,FALSE),0),2))) -> - | Q171: - | R171: - | S171: =IF(ROUND(IFERROR(VLOOKUP(H171,FarmPricelistWorkSheet!$D$2:$N$124,9,FALSE),0),2)*E171 = 0,"-",ROUND(IFERROR(VLOOKUP(H171,FarmPricelistWorkSheet!$D$2:$N$124,9,FALSE),0),2)*E171) -> -
A172: 155 | F172: =IF(ISBLANK(H172),"",IF(VLOOKUP(H172,RawData!$D$8:$M$127,9,FALSE)=0,"",VLOOKUP(H172,RawData!$D$8:$M$127,9,FALSE))) ->  | G172: =IF(ISBLANK(H172),"",VLOOKUP(H172,RawData!$D$8:$M$127,2,FALSE)) ->  | K172: 0 | L172: =IF(ISBLANK(H172),"",VLOOKUP(H172,FarmPricelistWorkSheet!$D$3:$N$125,5,FALSE)*(1+K172)) ->  | M172: 0 | O172: =IF(ISBLANK(H172),"",VLOOKUP(H172,RawData!$D$8:$K$127,8,FALSE)) ->  | P172: =IF(ROUND(IFERROR(VLOOKUP(H172,FarmPricelistWorkSheet!$D$2:$N$124,7,FALSE),0),2)=0,"-",(ROUND(IFERROR(VLOOKUP(H172,FarmPricelistWorkSheet!$D$2:$N$124,7,FALSE),0),2))) -> - | Q172: - | R172: - | S172: =IF(ROUND(IFERROR(VLOOKUP(H172,FarmPricelistWorkSheet!$D$2:$N$124,9,FALSE),0),2)*E172 = 0,"-",ROUND(IFERROR(VLOOKUP(H172,FarmPricelistWorkSheet!$D$2:$N$124,9,FALSE),0),2)*E172) -> -
A173: 156 | F173: =IF(ISBLANK(H173),"",IF(VLOOKUP(H173,RawData!$D$8:$M$127,9,FALSE)=0,"",VLOOKUP(H173,RawData!$D$8:$M$127,9,FALSE))) ->  | G173: =IF(ISBLANK(H173),"",VLOOKUP(H173,RawData!$D$8:$M$127,2,FALSE)) ->  | K173: 0 | L173: =IF(ISBLANK(H173),"",VLOOKUP(H173,FarmPricelistWorkSheet!$D$3:$N$125,5,FALSE)*(1+K173)) ->  | M173: 0 | O173: =IF(ISBLANK(H173),"",VLOOKUP(H173,RawData!$D$8:$K$127,8,FALSE)) ->  | P173: =IF(ROUND(IFERROR(VLOOKUP(H173,FarmPricelistWorkSheet!$D$2:$N$124,7,FALSE),0),2)=0,"-",(ROUND(IFERROR(VLOOKUP(H173,FarmPricelistWorkSheet!$D$2:$N$124,7,FALSE),0),2))) -> - | Q173: - | R173: - | S173: =IF(ROUND(IFERROR(VLOOKUP(H173,FarmPricelistWorkSheet!$D$2:$N$124,9,FALSE),0),2)*E173 = 0,"-",ROUND(IFERROR(VLOOKUP(H173,FarmPricelistWorkSheet!$D$2:$N$124,9,FALSE),0),2)*E173) -> -
A174: 157 | F174: =IF(ISBLANK(H174),"",IF(VLOOKUP(H174,RawData!$D$8:$M$127,9,FALSE)=0,"",VLOOKUP(H174,RawData!$D$8:$M$127,9,FALSE))) ->  | G174: =IF(ISBLANK(H174),"",VLOOKUP(H174,RawData!$D$8:$M$127,2,FALSE)) ->  | K174: 0 | L174: =IF(ISBLANK(H174),"",VLOOKUP(H174,FarmPricelistWorkSheet!$D$3:$N$125,5,FALSE)*(1+K174)) ->  | M174: 0 | O174: =IF(ISBLANK(H174),"",VLOOKUP(H174,RawData!$D$8:$K$127,8,FALSE)) ->  | P174: =IF(ROUND(IFERROR(VLOOKUP(H174,FarmPricelistWorkSheet!$D$2:$N$124,7,FALSE),0),2)=0,"-",(ROUND(IFERROR(VLOOKUP(H174,FarmPricelistWorkSheet!$D$2:$N$124,7,FALSE),0),2))) -> - | Q174: - | R174: - | S174: =IF(ROUND(IFERROR(VLOOKUP(H174,FarmPricelistWorkSheet!$D$2:$N$124,9,FALSE),0),2)*E174 = 0,"-",ROUND(IFERROR(VLOOKUP(H174,FarmPricelistWorkSheet!$D$2:$N$124,9,FALSE),0),2)*E174) -> -
A175: 158 | F175: =IF(ISBLANK(H175),"",IF(VLOOKUP(H175,RawData!$D$8:$M$127,9,FALSE)=0,"",VLOOKUP(H175,RawData!$D$8:$M$127,9,FALSE))) ->  | G175: =IF(ISBLANK(H175),"",VLOOKUP(H175,RawData!$D$8:$M$127,2,FALSE)) ->  | K175: 0 | L175: =IF(ISBLANK(H175),"",VLOOKUP(H175,FarmPricelistWorkSheet!$D$3:$N$125,5,FALSE)*(1+K175)) ->  | M175: 0 | O175: =IF(ISBLANK(H175),"",VLOOKUP(H175,RawData!$D$8:$K$127,8,FALSE)) ->  | P175: =IF(ROUND(IFERROR(VLOOKUP(H175,FarmPricelistWorkSheet!$D$2:$N$124,7,FALSE),0),2)=0,"-",(ROUND(IFERROR(VLOOKUP(H175,FarmPricelistWorkSheet!$D$2:$N$124,7,FALSE),0),2))) -> - | Q175: - | R175: - | S175: =IF(ROUND(IFERROR(VLOOKUP(H175,FarmPricelistWorkSheet!$D$2:$N$124,9,FALSE),0),2)*E175 = 0,"-",ROUND(IFERROR(VLOOKUP(H175,FarmPricelistWorkSheet!$D$2:$N$124,9,FALSE),0),2)*E175) -> -
A176: 159 | F176: =IF(ISBLANK(H176),"",IF(VLOOKUP(H176,RawData!$D$8:$M$127,9,FALSE)=0,"",VLOOKUP(H176,RawData!$D$8:$M$127,9,FALSE))) ->  | G176: =IF(ISBLANK(H176),"",VLOOKUP(H176,RawData!$D$8:$M$127,2,FALSE)) ->  | K176: 0 | L176: =IF(ISBLANK(H176),"",VLOOKUP(H176,FarmPricelistWorkSheet!$D$3:$N$125,5,FALSE)*(1+K176)) ->  | M176: 0 | O176: =IF(ISBLANK(H176),"",VLOOKUP(H176,RawData!$D$8:$K$127,8,FALSE)) ->  | P176: =IF(ROUND(IFERROR(VLOOKUP(H176,FarmPricelistWorkSheet!$D$2:$N$124,7,FALSE),0),2)=0,"-",(ROUND(IFERROR(VLOOKUP(H176,FarmPricelistWorkSheet!$D$2:$N$124,7,FALSE),0),2))) -> - | Q176: - | R176: - | S176: =IF(ROUND(IFERROR(VLOOKUP(H176,FarmPricelistWorkSheet!$D$2:$N$124,9,FALSE),0),2)*E176 = 0,"-",ROUND(IFERROR(VLOOKUP(H176,FarmPricelistWorkSheet!$D$2:$N$124,9,FALSE),0),2)*E176) -> -
A177: 160 | F177: =IF(ISBLANK(H177),"",IF(VLOOKUP(H177,RawData!$D$8:$M$127,9,FALSE)=0,"",VLOOKUP(H177,RawData!$D$8:$M$127,9,FALSE))) ->  | G177: =IF(ISBLANK(H177),"",VLOOKUP(H177,RawData!$D$8:$M$127,2,FALSE)) ->  | K177: 0 | L177: =IF(ISBLANK(H177),"",VLOOKUP(H177,FarmPricelistWorkSheet!$D$3:$N$125,5,FALSE)*(1+K177)) ->  | M177: 0 | O177: =IF(ISBLANK(H177),"",VLOOKUP(H177,RawData!$D$8:$K$127,8,FALSE)) ->  | P177: =IF(ROUND(IFERROR(VLOOKUP(H177,FarmPricelistWorkSheet!$D$2:$N$124,7,FALSE),0),2)=0,"-",(ROUND(IFERROR(VLOOKUP(H177,FarmPricelistWorkSheet!$D$2:$N$124,7,FALSE),0),2))) -> - | Q177: - | R177: - | S177: =IF(ROUND(IFERROR(VLOOKUP(H177,FarmPricelistWorkSheet!$D$2:$N$124,9,FALSE),0),2)*E177 = 0,"-",ROUND(IFERROR(VLOOKUP(H177,FarmPricelistWorkSheet!$D$2:$N$124,9,FALSE),0),2)*E177) -> -
A178: 161 | F178: =IF(ISBLANK(H178),"",IF(VLOOKUP(H178,RawData!$D$8:$M$127,9,FALSE)=0,"",VLOOKUP(H178,RawData!$D$8:$M$127,9,FALSE))) ->  | G178: =IF(ISBLANK(H178),"",VLOOKUP(H178,RawData!$D$8:$M$127,2,FALSE)) ->  | K178: 0 | L178: =IF(ISBLANK(H178),"",VLOOKUP(H178,FarmPricelistWorkSheet!$D$3:$N$125,5,FALSE)*(1+K178)) ->  | M178: 0 | O178: =IF(ISBLANK(H178),"",VLOOKUP(H178,RawData!$D$8:$K$127,8,FALSE)) ->  | P178: =IF(ROUND(IFERROR(VLOOKUP(H178,FarmPricelistWorkSheet!$D$2:$N$124,7,FALSE),0),2)=0,"-",(ROUND(IFERROR(VLOOKUP(H178,FarmPricelistWorkSheet!$D$2:$N$124,7,FALSE),0),2))) -> - | Q178: - | R178: - | S178: =IF(ROUND(IFERROR(VLOOKUP(H178,FarmPricelistWorkSheet!$D$2:$N$124,9,FALSE),0),2)*E178 = 0,"-",ROUND(IFERROR(VLOOKUP(H178,FarmPricelistWorkSheet!$D$2:$N$124,9,FALSE),0),2)*E178) -> -
A179: 162 | F179: =IF(ISBLANK(H179),"",IF(VLOOKUP(H179,RawData!$D$8:$M$127,9,FALSE)=0,"",VLOOKUP(H179,RawData!$D$8:$M$127,9,FALSE))) ->  | G179: =IF(ISBLANK(H179),"",VLOOKUP(H179,RawData!$D$8:$M$127,2,FALSE)) ->  | K179: 0 | L179: =IF(ISBLANK(H179),"",VLOOKUP(H179,FarmPricelistWorkSheet!$D$3:$N$125,5,FALSE)*(1+K179)) ->  | M179: 0 | O179: =IF(ISBLANK(H179),"",VLOOKUP(H179,RawData!$D$8:$K$127,8,FALSE)) ->  | P179: =IF(ROUND(IFERROR(VLOOKUP(H179,FarmPricelistWorkSheet!$D$2:$N$124,7,FALSE),0),2)=0,"-",(ROUND(IFERROR(VLOOKUP(H179,FarmPricelistWorkSheet!$D$2:$N$124,7,FALSE),0),2))) -> - | Q179: - | R179: - | S179: =IF(ROUND(IFERROR(VLOOKUP(H179,FarmPricelistWorkSheet!$D$2:$N$124,9,FALSE),0),2)*E179 = 0,"-",ROUND(IFERROR(VLOOKUP(H179,FarmPricelistWorkSheet!$D$2:$N$124,9,FALSE),0),2)*E179) -> -
A180: 163 | F180: =IF(ISBLANK(H180),"",IF(VLOOKUP(H180,RawData!$D$8:$M$127,9,FALSE)=0,"",VLOOKUP(H180,RawData!$D$8:$M$127,9,FALSE))) ->  | G180: =IF(ISBLANK(H180),"",VLOOKUP(H180,RawData!$D$8:$M$127,2,FALSE)) ->  | K180: 0 | L180: =IF(ISBLANK(H180),"",VLOOKUP(H180,FarmPricelistWorkSheet!$D$3:$N$125,5,FALSE)*(1+K180)) ->  | M180: 0 | O180: =IF(ISBLANK(H180),"",VLOOKUP(H180,RawData!$D$8:$K$127,8,FALSE)) ->  | P180: =IF(ROUND(IFERROR(VLOOKUP(H180,FarmPricelistWorkSheet!$D$2:$N$124,7,FALSE),0),2)=0,"-",(ROUND(IFERROR(VLOOKUP(H180,FarmPricelistWorkSheet!$D$2:$N$124,7,FALSE),0),2))) -> - | Q180: - | R180: - | S180: =IF(ROUND(IFERROR(VLOOKUP(H180,FarmPricelistWorkSheet!$D$2:$N$124,9,FALSE),0),2)*E180 = 0,"-",ROUND(IFERROR(VLOOKUP(H180,FarmPricelistWorkSheet!$D$2:$N$124,9,FALSE),0),2)*E180) -> -
A181: 164 | F181: =IF(ISBLANK(H181),"",IF(VLOOKUP(H181,RawData!$D$8:$M$127,9,FALSE)=0,"",VLOOKUP(H181,RawData!$D$8:$M$127,9,FALSE))) ->  | G181: =IF(ISBLANK(H181),"",VLOOKUP(H181,RawData!$D$8:$M$127,2,FALSE)) ->  | K181: 0 | L181: =IF(ISBLANK(H181),"",VLOOKUP(H181,FarmPricelistWorkSheet!$D$3:$N$125,5,FALSE)*(1+K181)) ->  | M181: 0 | O181: =IF(ISBLANK(H181),"",VLOOKUP(H181,RawData!$D$8:$K$127,8,FALSE)) ->  | P181: =IF(ROUND(IFERROR(VLOOKUP(H181,FarmPricelistWorkSheet!$D$2:$N$124,7,FALSE),0),2)=0,"-",(ROUND(IFERROR(VLOOKUP(H181,FarmPricelistWorkSheet!$D$2:$N$124,7,FALSE),0),2))) -> - | Q181: - | R181: - | S181: =IF(ROUND(IFERROR(VLOOKUP(H181,FarmPricelistWorkSheet!$D$2:$N$124,9,FALSE),0),2)*E181 = 0,"-",ROUND(IFERROR(VLOOKUP(H181,FarmPricelistWorkSheet!$D$2:$N$124,9,FALSE),0),2)*E181) -> -
A182: 165 | F182: =IF(ISBLANK(H182),"",IF(VLOOKUP(H182,RawData!$D$8:$M$127,9,FALSE)=0,"",VLOOKUP(H182,RawData!$D$8:$M$127,9,FALSE))) ->  | G182: =IF(ISBLANK(H182),"",VLOOKUP(H182,RawData!$D$8:$M$127,2,FALSE)) ->  | K182: 0 | L182: =IF(ISBLANK(H182),"",VLOOKUP(H182,FarmPricelistWorkSheet!$D$3:$N$125,5,FALSE)*(1+K182)) ->  | M182: 0 | O182: =IF(ISBLANK(H182),"",VLOOKUP(H182,RawData!$D$8:$K$127,8,FALSE)) ->  | P182: =IF(ROUND(IFERROR(VLOOKUP(H182,FarmPricelistWorkSheet!$D$2:$N$124,7,FALSE),0),2)=0,"-",(ROUND(IFERROR(VLOOKUP(H182,FarmPricelistWorkSheet!$D$2:$N$124,7,FALSE),0),2))) -> - | Q182: - | R182: - | S182: =IF(ROUND(IFERROR(VLOOKUP(H182,FarmPricelistWorkSheet!$D$2:$N$124,9,FALSE),0),2)*E182 = 0,"-",ROUND(IFERROR(VLOOKUP(H182,FarmPricelistWorkSheet!$D$2:$N$124,9,FALSE),0),2)*E182) -> -
A183: 166 | F183: =IF(ISBLANK(H183),"",IF(VLOOKUP(H183,RawData!$D$8:$M$127,9,FALSE)=0,"",VLOOKUP(H183,RawData!$D$8:$M$127,9,FALSE))) ->  | G183: =IF(ISBLANK(H183),"",VLOOKUP(H183,RawData!$D$8:$M$127,2,FALSE)) ->  | K183: 0 | L183: =IF(ISBLANK(H183),"",VLOOKUP(H183,FarmPricelistWorkSheet!$D$3:$N$125,5,FALSE)*(1+K183)) ->  | M183: 0 | O183: =IF(ISBLANK(H183),"",VLOOKUP(H183,RawData!$D$8:$K$127,8,FALSE)) ->  | P183: =IF(ROUND(IFERROR(VLOOKUP(H183,FarmPricelistWorkSheet!$D$2:$N$124,7,FALSE),0),2)=0,"-",(ROUND(IFERROR(VLOOKUP(H183,FarmPricelistWorkSheet!$D$2:$N$124,7,FALSE),0),2))) -> - | Q183: - | R183: - | S183: =IF(ROUND(IFERROR(VLOOKUP(H183,FarmPricelistWorkSheet!$D$2:$N$124,9,FALSE),0),2)*E183 = 0,"-",ROUND(IFERROR(VLOOKUP(H183,FarmPricelistWorkSheet!$D$2:$N$124,9,FALSE),0),2)*E183) -> -
A184: 167 | F184: =IF(ISBLANK(H184),"",IF(VLOOKUP(H184,RawData!$D$8:$M$127,9,FALSE)=0,"",VLOOKUP(H184,RawData!$D$8:$M$127,9,FALSE))) ->  | G184: =IF(ISBLANK(H184),"",VLOOKUP(H184,RawData!$D$8:$M$127,2,FALSE)) ->  | K184: 0 | L184: =IF(ISBLANK(H184),"",VLOOKUP(H184,FarmPricelistWorkSheet!$D$3:$N$125,5,FALSE)*(1+K184)) ->  | M184: 0 | O184: =IF(ISBLANK(H184),"",VLOOKUP(H184,RawData!$D$8:$K$127,8,FALSE)) ->  | P184: =IF(ROUND(IFERROR(VLOOKUP(H184,FarmPricelistWorkSheet!$D$2:$N$124,7,FALSE),0),2)=0,"-",(ROUND(IFERROR(VLOOKUP(H184,FarmPricelistWorkSheet!$D$2:$N$124,7,FALSE),0),2))) -> - | Q184: - | R184: - | S184: =IF(ROUND(IFERROR(VLOOKUP(H184,FarmPricelistWorkSheet!$D$2:$N$124,9,FALSE),0),2)*E184 = 0,"-",ROUND(IFERROR(VLOOKUP(H184,FarmPricelistWorkSheet!$D$2:$N$124,9,FALSE),0),2)*E184) -> -
A185: 168 | F185: =IF(ISBLANK(H185),"",IF(VLOOKUP(H185,RawData!$D$8:$M$127,9,FALSE)=0,"",VLOOKUP(H185,RawData!$D$8:$M$127,9,FALSE))) ->  | G185: =IF(ISBLANK(H185),"",VLOOKUP(H185,RawData!$D$8:$M$127,2,FALSE)) ->  | K185: 0 | L185: =IF(ISBLANK(H185),"",VLOOKUP(H185,FarmPricelistWorkSheet!$D$3:$N$125,5,FALSE)*(1+K185)) ->  | M185: 0 | O185: =IF(ISBLANK(H185),"",VLOOKUP(H185,RawData!$D$8:$K$127,8,FALSE)) ->  | P185: =IF(ROUND(IFERROR(VLOOKUP(H185,FarmPricelistWorkSheet!$D$2:$N$124,7,FALSE),0),2)=0,"-",(ROUND(IFERROR(VLOOKUP(H185,FarmPricelistWorkSheet!$D$2:$N$124,7,FALSE),0),2))) -> - | Q185: - | R185: - | S185: =IF(ROUND(IFERROR(VLOOKUP(H185,FarmPricelistWorkSheet!$D$2:$N$124,9,FALSE),0),2)*E185 = 0,"-",ROUND(IFERROR(VLOOKUP(H185,FarmPricelistWorkSheet!$D$2:$N$124,9,FALSE),0),2)*E185) -> -
A186: 169 | F186: =IF(ISBLANK(H186),"",IF(VLOOKUP(H186,RawData!$D$8:$M$127,9,FALSE)=0,"",VLOOKUP(H186,RawData!$D$8:$M$127,9,FALSE))) ->  | G186: =IF(ISBLANK(H186),"",VLOOKUP(H186,RawData!$D$8:$M$127,2,FALSE)) ->  | K186: 0 | L186: =IF(ISBLANK(H186),"",VLOOKUP(H186,FarmPricelistWorkSheet!$D$3:$N$125,5,FALSE)*(1+K186)) ->  | M186: 0 | O186: =IF(ISBLANK(H186),"",VLOOKUP(H186,RawData!$D$8:$K$127,8,FALSE)) ->  | P186: =IF(ROUND(IFERROR(VLOOKUP(H186,FarmPricelistWorkSheet!$D$2:$N$124,7,FALSE),0),2)=0,"-",(ROUND(IFERROR(VLOOKUP(H186,FarmPricelistWorkSheet!$D$2:$N$124,7,FALSE),0),2))) -> - | Q186: - | R186: - | S186: =IF(ROUND(IFERROR(VLOOKUP(H186,FarmPricelistWorkSheet!$D$2:$N$124,9,FALSE),0),2)*E186 = 0,"-",ROUND(IFERROR(VLOOKUP(H186,FarmPricelistWorkSheet!$D$2:$N$124,9,FALSE),0),2)*E186) -> -
A187: 170 | F187: =IF(ISBLANK(H187),"",IF(VLOOKUP(H187,RawData!$D$8:$M$127,9,FALSE)=0,"",VLOOKUP(H187,RawData!$D$8:$M$127,9,FALSE))) ->  | G187: =IF(ISBLANK(H187),"",VLOOKUP(H187,RawData!$D$8:$M$127,2,FALSE)) ->  | K187: 0 | L187: =IF(ISBLANK(H187),"",VLOOKUP(H187,FarmPricelistWorkSheet!$D$3:$N$125,5,FALSE)*(1+K187)) ->  | M187: 0 | O187: =IF(ISBLANK(H187),"",VLOOKUP(H187,RawData!$D$8:$K$127,8,FALSE)) ->  | P187: =IF(ROUND(IFERROR(VLOOKUP(H187,FarmPricelistWorkSheet!$D$2:$N$124,7,FALSE),0),2)=0,"-",(ROUND(IFERROR(VLOOKUP(H187,FarmPricelistWorkSheet!$D$2:$N$124,7,FALSE),0),2))) -> - | Q187: - | R187: - | S187: =IF(ROUND(IFERROR(VLOOKUP(H187,FarmPricelistWorkSheet!$D$2:$N$124,9,FALSE),0),2)*E187 = 0,"-",ROUND(IFERROR(VLOOKUP(H187,FarmPricelistWorkSheet!$D$2:$N$124,9,FALSE),0),2)*E187) -> -
A188: 171 | F188: =IF(ISBLANK(H188),"",IF(VLOOKUP(H188,RawData!$D$8:$M$127,9,FALSE)=0,"",VLOOKUP(H188,RawData!$D$8:$M$127,9,FALSE))) ->  | G188: =IF(ISBLANK(H188),"",VLOOKUP(H188,RawData!$D$8:$M$127,2,FALSE)) ->  | K188: 0 | L188: =IF(ISBLANK(H188),"",VLOOKUP(H188,FarmPricelistWorkSheet!$D$3:$N$125,5,FALSE)*(1+K188)) ->  | M188: 0 | O188: =IF(ISBLANK(H188),"",VLOOKUP(H188,RawData!$D$8:$K$127,8,FALSE)) ->  | P188: =IF(ROUND(IFERROR(VLOOKUP(H188,FarmPricelistWorkSheet!$D$2:$N$124,7,FALSE),0),2)=0,"-",(ROUND(IFERROR(VLOOKUP(H188,FarmPricelistWorkSheet!$D$2:$N$124,7,FALSE),0),2))) -> - | Q188: - | R188: - | S188: =IF(ROUND(IFERROR(VLOOKUP(H188,FarmPricelistWorkSheet!$D$2:$N$124,9,FALSE),0),2)*E188 = 0,"-",ROUND(IFERROR(VLOOKUP(H188,FarmPricelistWorkSheet!$D$2:$N$124,9,FALSE),0),2)*E188) -> -
A189: 172 | F189: =IF(ISBLANK(H189),"",IF(VLOOKUP(H189,RawData!$D$8:$M$127,9,FALSE)=0,"",VLOOKUP(H189,RawData!$D$8:$M$127,9,FALSE))) ->  | G189: =IF(ISBLANK(H189),"",VLOOKUP(H189,RawData!$D$8:$M$127,2,FALSE)) ->  | K189: 0 | L189: =IF(ISBLANK(H189),"",VLOOKUP(H189,FarmPricelistWorkSheet!$D$3:$N$125,5,FALSE)*(1+K189)) ->  | M189: 0 | O189: =IF(ISBLANK(H189),"",VLOOKUP(H189,RawData!$D$8:$K$127,8,FALSE)) ->  | P189: =IF(ROUND(IFERROR(VLOOKUP(H189,FarmPricelistWorkSheet!$D$2:$N$124,7,FALSE),0),2)=0,"-",(ROUND(IFERROR(VLOOKUP(H189,FarmPricelistWorkSheet!$D$2:$N$124,7,FALSE),0),2))) -> - | Q189: - | R189: - | S189: =IF(ROUND(IFERROR(VLOOKUP(H189,FarmPricelistWorkSheet!$D$2:$N$124,9,FALSE),0),2)*E189 = 0,"-",ROUND(IFERROR(VLOOKUP(H189,FarmPricelistWorkSheet!$D$2:$N$124,9,FALSE),0),2)*E189) -> -
A190: 173 | F190: =IF(ISBLANK(H190),"",IF(VLOOKUP(H190,RawData!$D$8:$M$127,9,FALSE)=0,"",VLOOKUP(H190,RawData!$D$8:$M$127,9,FALSE))) ->  | G190: =IF(ISBLANK(H190),"",VLOOKUP(H190,RawData!$D$8:$M$127,2,FALSE)) ->  | K190: 0 | L190: =IF(ISBLANK(H190),"",VLOOKUP(H190,FarmPricelistWorkSheet!$D$3:$N$125,5,FALSE)*(1+K190)) ->  | M190: 0 | O190: =IF(ISBLANK(H190),"",VLOOKUP(H190,RawData!$D$8:$K$127,8,FALSE)) ->  | P190: =IF(ROUND(IFERROR(VLOOKUP(H190,FarmPricelistWorkSheet!$D$2:$N$124,7,FALSE),0),2)=0,"-",(ROUND(IFERROR(VLOOKUP(H190,FarmPricelistWorkSheet!$D$2:$N$124,7,FALSE),0),2))) -> - | Q190: - | R190: - | S190: =IF(ROUND(IFERROR(VLOOKUP(H190,FarmPricelistWorkSheet!$D$2:$N$124,9,FALSE),0),2)*E190 = 0,"-",ROUND(IFERROR(VLOOKUP(H190,FarmPricelistWorkSheet!$D$2:$N$124,9,FALSE),0),2)*E190) -> -
A191: 174 | F191: =IF(ISBLANK(H191),"",IF(VLOOKUP(H191,RawData!$D$8:$M$127,9,FALSE)=0,"",VLOOKUP(H191,RawData!$D$8:$M$127,9,FALSE))) ->  | G191: =IF(ISBLANK(H191),"",VLOOKUP(H191,RawData!$D$8:$M$127,2,FALSE)) ->  | K191: 0 | L191: =IF(ISBLANK(H191),"",VLOOKUP(H191,FarmPricelistWorkSheet!$D$3:$N$125,5,FALSE)*(1+K191)) ->  | M191: 0 | O191: =IF(ISBLANK(H191),"",VLOOKUP(H191,RawData!$D$8:$K$127,8,FALSE)) ->  | P191: =IF(ROUND(IFERROR(VLOOKUP(H191,FarmPricelistWorkSheet!$D$2:$N$124,7,FALSE),0),2)=0,"-",(ROUND(IFERROR(VLOOKUP(H191,FarmPricelistWorkSheet!$D$2:$N$124,7,FALSE),0),2))) -> - | Q191: - | R191: - | S191: =IF(ROUND(IFERROR(VLOOKUP(H191,FarmPricelistWorkSheet!$D$2:$N$124,9,FALSE),0),2)*E191 = 0,"-",ROUND(IFERROR(VLOOKUP(H191,FarmPricelistWorkSheet!$D$2:$N$124,9,FALSE),0),2)*E191) -> -
A192: 175 | F192: =IF(ISBLANK(H192),"",IF(VLOOKUP(H192,RawData!$D$8:$M$127,9,FALSE)=0,"",VLOOKUP(H192,RawData!$D$8:$M$127,9,FALSE))) ->  | G192: =IF(ISBLANK(H192),"",VLOOKUP(H192,RawData!$D$8:$M$127,2,FALSE)) ->  | K192: 0 | L192: =IF(ISBLANK(H192),"",VLOOKUP(H192,FarmPricelistWorkSheet!$D$3:$N$125,5,FALSE)*(1+K192)) ->  | M192: 0 | O192: =IF(ISBLANK(H192),"",VLOOKUP(H192,RawData!$D$8:$K$127,8,FALSE)) ->  | P192: =IF(ROUND(IFERROR(VLOOKUP(H192,FarmPricelistWorkSheet!$D$2:$N$124,7,FALSE),0),2)=0,"-",(ROUND(IFERROR(VLOOKUP(H192,FarmPricelistWorkSheet!$D$2:$N$124,7,FALSE),0),2))) -> - | Q192: - | R192: - | S192: =IF(ROUND(IFERROR(VLOOKUP(H192,FarmPricelistWorkSheet!$D$2:$N$124,9,FALSE),0),2)*E192 = 0,"-",ROUND(IFERROR(VLOOKUP(H192,FarmPricelistWorkSheet!$D$2:$N$124,9,FALSE),0),2)*E192) -> -
A193: 176 | F193: =IF(ISBLANK(H193),"",IF(VLOOKUP(H193,RawData!$D$8:$M$127,9,FALSE)=0,"",VLOOKUP(H193,RawData!$D$8:$M$127,9,FALSE))) ->  | G193: =IF(ISBLANK(H193),"",VLOOKUP(H193,RawData!$D$8:$M$127,2,FALSE)) ->  | K193: 0 | L193: =IF(ISBLANK(H193),"",VLOOKUP(H193,FarmPricelistWorkSheet!$D$3:$N$125,5,FALSE)*(1+K193)) ->  | M193: 0 | O193: =IF(ISBLANK(H193),"",VLOOKUP(H193,RawData!$D$8:$K$127,8,FALSE)) ->  | P193: =IF(ROUND(IFERROR(VLOOKUP(H193,FarmPricelistWorkSheet!$D$2:$N$124,7,FALSE),0),2)=0,"-",(ROUND(IFERROR(VLOOKUP(H193,FarmPricelistWorkSheet!$D$2:$N$124,7,FALSE),0),2))) -> - | Q193: - | R193: - | S193: =IF(ROUND(IFERROR(VLOOKUP(H193,FarmPricelistWorkSheet!$D$2:$N$124,9,FALSE),0),2)*E193 = 0,"-",ROUND(IFERROR(VLOOKUP(H193,FarmPricelistWorkSheet!$D$2:$N$124,9,FALSE),0),2)*E193) -> -
A194: 177 | F194: =IF(ISBLANK(H194),"",IF(VLOOKUP(H194,RawData!$D$8:$M$127,9,FALSE)=0,"",VLOOKUP(H194,RawData!$D$8:$M$127,9,FALSE))) ->  | G194: =IF(ISBLANK(H194),"",VLOOKUP(H194,RawData!$D$8:$M$127,2,FALSE)) ->  | K194: 0 | L194: =IF(ISBLANK(H194),"",VLOOKUP(H194,FarmPricelistWorkSheet!$D$3:$N$125,5,FALSE)*(1+K194)) ->  | M194: 0 | O194: =IF(ISBLANK(H194),"",VLOOKUP(H194,RawData!$D$8:$K$127,8,FALSE)) ->  | P194: =IF(ROUND(IFERROR(VLOOKUP(H194,FarmPricelistWorkSheet!$D$2:$N$124,7,FALSE),0),2)=0,"-",(ROUND(IFERROR(VLOOKUP(H194,FarmPricelistWorkSheet!$D$2:$N$124,7,FALSE),0),2))) -> - | Q194: - | R194: - | S194: =IF(ROUND(IFERROR(VLOOKUP(H194,FarmPricelistWorkSheet!$D$2:$N$124,9,FALSE),0),2)*E194 = 0,"-",ROUND(IFERROR(VLOOKUP(H194,FarmPricelistWorkSheet!$D$2:$N$124,9,FALSE),0),2)*E194) -> -
A195: 178 | F195: =IF(ISBLANK(H195),"",IF(VLOOKUP(H195,RawData!$D$8:$M$127,9,FALSE)=0,"",VLOOKUP(H195,RawData!$D$8:$M$127,9,FALSE))) ->  | G195: =IF(ISBLANK(H195),"",VLOOKUP(H195,RawData!$D$8:$M$127,2,FALSE)) ->  | K195: 0 | L195: =IF(ISBLANK(H195),"",VLOOKUP(H195,FarmPricelistWorkSheet!$D$3:$N$125,5,FALSE)*(1+K195)) ->  | M195: 0 | O195: =IF(ISBLANK(H195),"",VLOOKUP(H195,RawData!$D$8:$K$127,8,FALSE)) ->  | P195: =IF(ROUND(IFERROR(VLOOKUP(H195,FarmPricelistWorkSheet!$D$2:$N$124,7,FALSE),0),2)=0,"-",(ROUND(IFERROR(VLOOKUP(H195,FarmPricelistWorkSheet!$D$2:$N$124,7,FALSE),0),2))) -> - | Q195: - | R195: - | S195: =IF(ROUND(IFERROR(VLOOKUP(H195,FarmPricelistWorkSheet!$D$2:$N$124,9,FALSE),0),2)*E195 = 0,"-",ROUND(IFERROR(VLOOKUP(H195,FarmPricelistWorkSheet!$D$2:$N$124,9,FALSE),0),2)*E195) -> -
A196: 179 | F196: =IF(ISBLANK(H196),"",IF(VLOOKUP(H196,RawData!$D$8:$M$127,9,FALSE)=0,"",VLOOKUP(H196,RawData!$D$8:$M$127,9,FALSE))) ->  | G196: =IF(ISBLANK(H196),"",VLOOKUP(H196,RawData!$D$8:$M$127,2,FALSE)) ->  | K196: 0 | L196: =IF(ISBLANK(H196),"",VLOOKUP(H196,FarmPricelistWorkSheet!$D$3:$N$125,5,FALSE)*(1+K196)) ->  | M196: 0 | O196: =IF(ISBLANK(H196),"",VLOOKUP(H196,RawData!$D$8:$K$127,8,FALSE)) ->  | P196: =IF(ROUND(IFERROR(VLOOKUP(H196,FarmPricelistWorkSheet!$D$2:$N$124,7,FALSE),0),2)=0,"-",(ROUND(IFERROR(VLOOKUP(H196,FarmPricelistWorkSheet!$D$2:$N$124,7,FALSE),0),2))) -> - | Q196: - | R196: - | S196: =IF(ROUND(IFERROR(VLOOKUP(H196,FarmPricelistWorkSheet!$D$2:$N$124,9,FALSE),0),2)*E196 = 0,"-",ROUND(IFERROR(VLOOKUP(H196,FarmPricelistWorkSheet!$D$2:$N$124,9,FALSE),0),2)*E196) -> -
A197: 180 | F197: =IF(ISBLANK(H197),"",IF(VLOOKUP(H197,RawData!$D$8:$M$127,9,FALSE)=0,"",VLOOKUP(H197,RawData!$D$8:$M$127,9,FALSE))) ->  | G197: =IF(ISBLANK(H197),"",VLOOKUP(H197,RawData!$D$8:$M$127,2,FALSE)) ->  | K197: 0 | L197: =IF(ISBLANK(H197),"",VLOOKUP(H197,FarmPricelistWorkSheet!$D$3:$N$125,5,FALSE)*(1+K197)) ->  | M197: 0 | O197: =IF(ISBLANK(H197),"",VLOOKUP(H197,RawData!$D$8:$K$127,8,FALSE)) ->  | P197: =IF(ROUND(IFERROR(VLOOKUP(H197,FarmPricelistWorkSheet!$D$2:$N$124,7,FALSE),0),2)=0,"-",(ROUND(IFERROR(VLOOKUP(H197,FarmPricelistWorkSheet!$D$2:$N$124,7,FALSE),0),2))) -> - | Q197: - | R197: - | S197: =IF(ROUND(IFERROR(VLOOKUP(H197,FarmPricelistWorkSheet!$D$2:$N$124,9,FALSE),0),2)*E197 = 0,"-",ROUND(IFERROR(VLOOKUP(H197,FarmPricelistWorkSheet!$D$2:$N$124,9,FALSE),0),2)*E197) -> -
A198: 181 | F198: =IF(ISBLANK(H198),"",IF(VLOOKUP(H198,RawData!$D$8:$M$127,9,FALSE)=0,"",VLOOKUP(H198,RawData!$D$8:$M$127,9,FALSE))) ->  | G198: =IF(ISBLANK(H198),"",VLOOKUP(H198,RawData!$D$8:$M$127,2,FALSE)) ->  | K198: 0 | L198: =IF(ISBLANK(H198),"",VLOOKUP(H198,FarmPricelistWorkSheet!$D$3:$N$125,5,FALSE)*(1+K198)) ->  | M198: 0 | O198: =IF(ISBLANK(H198),"",VLOOKUP(H198,RawData!$D$8:$K$127,8,FALSE)) ->  | P198: =IF(ROUND(IFERROR(VLOOKUP(H198,FarmPricelistWorkSheet!$D$2:$N$124,7,FALSE),0),2)=0,"-",(ROUND(IFERROR(VLOOKUP(H198,FarmPricelistWorkSheet!$D$2:$N$124,7,FALSE),0),2))) -> - | Q198: - | R198: - | S198: =IF(ROUND(IFERROR(VLOOKUP(H198,FarmPricelistWorkSheet!$D$2:$N$124,9,FALSE),0),2)*E198 = 0,"-",ROUND(IFERROR(VLOOKUP(H198,FarmPricelistWorkSheet!$D$2:$N$124,9,FALSE),0),2)*E198) -> -
A199: 182 | F199: =IF(ISBLANK(H199),"",IF(VLOOKUP(H199,RawData!$D$8:$M$127,9,FALSE)=0,"",VLOOKUP(H199,RawData!$D$8:$M$127,9,FALSE))) ->  | G199: =IF(ISBLANK(H199),"",VLOOKUP(H199,RawData!$D$8:$M$127,2,FALSE)) ->  | K199: 0 | L199: =IF(ISBLANK(H199),"",VLOOKUP(H199,FarmPricelistWorkSheet!$D$3:$N$125,5,FALSE)*(1+K199)) ->  | M199: 0 | O199: =IF(ISBLANK(H199),"",VLOOKUP(H199,RawData!$D$8:$K$127,8,FALSE)) ->  | P199: =IF(ROUND(IFERROR(VLOOKUP(H199,FarmPricelistWorkSheet!$D$2:$N$124,7,FALSE),0),2)=0,"-",(ROUND(IFERROR(VLOOKUP(H199,FarmPricelistWorkSheet!$D$2:$N$124,7,FALSE),0),2))) -> - | Q199: - | R199: - | S199: =IF(ROUND(IFERROR(VLOOKUP(H199,FarmPricelistWorkSheet!$D$2:$N$124,9,FALSE),0),2)*E199 = 0,"-",ROUND(IFERROR(VLOOKUP(H199,FarmPricelistWorkSheet!$D$2:$N$124,9,FALSE),0),2)*E199) -> -
A200: 183 | F200: =IF(ISBLANK(H200),"",IF(VLOOKUP(H200,RawData!$D$8:$M$127,9,FALSE)=0,"",VLOOKUP(H200,RawData!$D$8:$M$127,9,FALSE))) ->  | G200: =IF(ISBLANK(H200),"",VLOOKUP(H200,RawData!$D$8:$M$127,2,FALSE)) ->  | K200: 0 | L200: =IF(ISBLANK(H200),"",VLOOKUP(H200,FarmPricelistWorkSheet!$D$3:$N$125,5,FALSE)*(1+K200)) ->  | M200: 0 | O200: =IF(ISBLANK(H200),"",VLOOKUP(H200,RawData!$D$8:$K$127,8,FALSE)) ->  | P200: =IF(ROUND(IFERROR(VLOOKUP(H200,FarmPricelistWorkSheet!$D$2:$N$124,7,FALSE),0),2)=0,"-",(ROUND(IFERROR(VLOOKUP(H200,FarmPricelistWorkSheet!$D$2:$N$124,7,FALSE),0),2))) -> - | Q200: - | R200: - | S200: =IF(ROUND(IFERROR(VLOOKUP(H200,FarmPricelistWorkSheet!$D$2:$N$124,9,FALSE),0),2)*E200 = 0,"-",ROUND(IFERROR(VLOOKUP(H200,FarmPricelistWorkSheet!$D$2:$N$124,9,FALSE),0),2)*E200) -> -
A201: 184 | F201: =IF(ISBLANK(H201),"",IF(VLOOKUP(H201,RawData!$D$8:$M$127,9,FALSE)=0,"",VLOOKUP(H201,RawData!$D$8:$M$127,9,FALSE))) ->  | G201: =IF(ISBLANK(H201),"",VLOOKUP(H201,RawData!$D$8:$M$127,2,FALSE)) ->  | K201: 0 | L201: =IF(ISBLANK(H201),"",VLOOKUP(H201,FarmPricelistWorkSheet!$D$3:$N$125,5,FALSE)*(1+K201)) ->  | M201: 0 | O201: =IF(ISBLANK(H201),"",VLOOKUP(H201,RawData!$D$8:$K$127,8,FALSE)) ->  | P201: =IF(ROUND(IFERROR(VLOOKUP(H201,FarmPricelistWorkSheet!$D$2:$N$124,7,FALSE),0),2)=0,"-",(ROUND(IFERROR(VLOOKUP(H201,FarmPricelistWorkSheet!$D$2:$N$124,7,FALSE),0),2))) -> - | Q201: - | R201: - | S201: =IF(ROUND(IFERROR(VLOOKUP(H201,FarmPricelistWorkSheet!$D$2:$N$124,9,FALSE),0),2)*E201 = 0,"-",ROUND(IFERROR(VLOOKUP(H201,FarmPricelistWorkSheet!$D$2:$N$124,9,FALSE),0),2)*E201) -> -
A202: 185 | F202: =IF(ISBLANK(H202),"",IF(VLOOKUP(H202,RawData!$D$8:$M$127,9,FALSE)=0,"",VLOOKUP(H202,RawData!$D$8:$M$127,9,FALSE))) ->  | G202: =IF(ISBLANK(H202),"",VLOOKUP(H202,RawData!$D$8:$M$127,2,FALSE)) ->  | K202: 0 | L202: =IF(ISBLANK(H202),"",VLOOKUP(H202,FarmPricelistWorkSheet!$D$3:$N$125,5,FALSE)*(1+K202)) ->  | M202: 0 | O202: =IF(ISBLANK(H202),"",VLOOKUP(H202,RawData!$D$8:$K$127,8,FALSE)) ->  | P202: =IF(ROUND(IFERROR(VLOOKUP(H202,FarmPricelistWorkSheet!$D$2:$N$124,7,FALSE),0),2)=0,"-",(ROUND(IFERROR(VLOOKUP(H202,FarmPricelistWorkSheet!$D$2:$N$124,7,FALSE),0),2))) -> - | Q202: - | R202: - | S202: =IF(ROUND(IFERROR(VLOOKUP(H202,FarmPricelistWorkSheet!$D$2:$N$124,9,FALSE),0),2)*E202 = 0,"-",ROUND(IFERROR(VLOOKUP(H202,FarmPricelistWorkSheet!$D$2:$N$124,9,FALSE),0),2)*E202) -> -
A203: 186 | F203: =IF(ISBLANK(H203),"",IF(VLOOKUP(H203,RawData!$D$8:$M$127,9,FALSE)=0,"",VLOOKUP(H203,RawData!$D$8:$M$127,9,FALSE))) ->  | G203: =IF(ISBLANK(H203),"",VLOOKUP(H203,RawData!$D$8:$M$127,2,FALSE)) ->  | K203: 0 | L203: =IF(ISBLANK(H203),"",VLOOKUP(H203,FarmPricelistWorkSheet!$D$3:$N$125,5,FALSE)*(1+K203)) ->  | M203: 0 | O203: =IF(ISBLANK(H203),"",VLOOKUP(H203,RawData!$D$8:$K$127,8,FALSE)) ->  | P203: =IF(ROUND(IFERROR(VLOOKUP(H203,FarmPricelistWorkSheet!$D$2:$N$124,7,FALSE),0),2)=0,"-",(ROUND(IFERROR(VLOOKUP(H203,FarmPricelistWorkSheet!$D$2:$N$124,7,FALSE),0),2))) -> - | Q203: - | R203: - | S203: =IF(ROUND(IFERROR(VLOOKUP(H203,FarmPricelistWorkSheet!$D$2:$N$124,9,FALSE),0),2)*E203 = 0,"-",ROUND(IFERROR(VLOOKUP(H203,FarmPricelistWorkSheet!$D$2:$N$124,9,FALSE),0),2)*E203) -> -
... 1814 more rows

Sheet RawData
M2: Final Price
M3: (calculated on
K4: Average | M4: NNR_PDP-per-$ | N4: Unbridled Enthusiasm Farm | S4: Guarded Optimism Farm | T4: Sweet Meadows | X4: Jaded Resignation Farm | Y4: Front Porch Farm | AC4: Some Other Farm | AH4: Yet One More Farm | AM4: Farm 6 | AR4: Farm 7 | AW4: Farm 8 | BB4: Farm 9 | BG4: Farm 10
M5: tab)
C6: SpCrop_ProduceItem | D6: Pricelist_Name | E6: Usage Type | F6: Preference Survey Rank | G6: Packaging Expected | H6: Packaging Fee | I6: Last year's price | J6: Associated Tab | K6: FM Retail | L6: Contract Unit | M6: Per | N6: Use | O6: Price Used | P6: FM Retail | Q6: Contract Unit | R6: Info Date | S6: Use | T6: Price Used | U6: FM Retail | V6: Contract Unit | W6: Info Date | X6: Use | Y6: Price Used | Z6: FM Retail | AA6: Contract Unit | AB6: Info Date | AC6: Use | AD6: Price Used | AE6: FM Retail | AF6: Contract Unit | AG6: Info Date | AH6: Use | AI6: Price Used | AJ6: FM Retail | AK6: Contract Unit | AL6: Info Date | AM6: Use | AN6: Price Used | AO6: FM Retail | AP6: Contract Unit | AQ6: Info Date | AR6: Use | AS6: Price Used | AT6: FM Retail | AU6: Contract Unit | AV6: Info Date | AW6: Use | AX6: Price Used | AY6: FM Retail | AZ6: Contract Unit | BA6: Info Date | BB6: Use | BC6: Price Used | BD6: FM Retail | BE6: Contract Unit | BF6: Info Date | BG6: Use | BH6: Price Used | BI6: FM Retail | BJ6: Contract Unit | BK6: Info Date
A7: 0 | M7: Lb
A8: =A7+1 -> 1 | C8: Apples, Raw, with skin | D8: Apple | E8: Fruit and Berries | F8: 0.44 | G8: Loose in Banana Boxes | H8: =IF(G8=(""),"",IF(G8="Loose in Banana Boxes",0.1,IF(G8="Baskets or Flats",0.25,0.05))) -> 0.1 | I8: =IF(C8=(""),"",VLOOKUP(C8,LastYearContractPricelist!$B$4:$F$124,4,FALSE)) -> 0.52 | J8: NNR16_Apples | K8: =IF(C8=(""),"",IFERROR(AVERAGE(O8,T8,Y8,AD8,AI8,AN8,AS8,AX8,BC8,BH8),"")) -> 1.13 | L8: Lb | M8: =IF(C8=(""),"",VLOOKUP(C8,'NNR_PDP-per-Dollar'!$B$6:$T$125,19,FALSE)) -> 0.3825 | N8: X | O8: =IF(ISBLANK(N8),"---",P8) -> 2 | P8: 2 | Q8: Lb | R8: 2017-07-09 | S8: X | T8: =IF(ISBLANK(S8),"---",U8) -> 0 | V8: Lb | W8: 1905-07-09 | X8: X | Y8: =IF(ISBLANK(X8),"---",Z8) -> 1.39 | Z8: 1.39 | AA8: Lb | AB8: 1905-07-09 | AD8: =IF(ISBLANK(AC8),"---",AE8) -> --- | AI8: =IF(ISBLANK(AH8),"---",AJ8) -> --- | AN8: =IF(ISBLANK(AM8),"---",AO8) -> --- | AS8: =IF(ISBLANK(AR8),"---",AT8) -> --- | AX8: =IF(ISBLANK(AW8),"---",AY8) -> --- | BC8: =IF(ISBLANK(BB8),"---",BD8) -> --- | BH8: =IF(ISBLANK(BG8),"---",BI8) -> ---
A9: 2 | C9: Apricots, raw | D9: Apricot | E9: Fruit and Berries | F9: 0.17 | G9: Baskets or Flats | H9: 0.25 | I9: =IF(C9=(""),"",VLOOKUP(C9,LastYearContractPricelist!$B$4:$F$124,4,FALSE)) -> 0.95 | J9: NNR16_Apricot | K9: 2 | L9: Lb | M9: =IF(C9=(""),"",VLOOKUP(C9,'NNR_PDP-per-Dollar'!$B$6:$T$125,19,FALSE)) -> 1.25 | N9: X | O9: 2 | P9: 2 | Q9: Lb | R9: 1905-07-09 | T9: --- | X9: X | Y9: 2 | Z9: 2 | AA9: Lb | AB9: 2019-08-16 | AD9: --- | AI9: --- | AN9: --- | AS9: --- | AX9: --- | BC9: --- | BH9: ---
A10: 3 | C10: Artichokes (Globe or French) Raw | D10: Artichoke | E10: Cooking Vegetable | F10: 0 | G10: Bags or lined Banana Boxes | H10: 0.05 | I10: =IF(C10=(""),"",VLOOKUP(C10,LastYearContractPricelist!$B$4:$F$124,4,FALSE)) -> 4.85 | J10: NNR16_Artichoke | K10: 12 | L10: Lb | M10: =IF(C10=(""),"",VLOOKUP(C10,'NNR_PDP-per-Dollar'!$B$6:$T$125,19,FALSE)) -> 6.05 | O10: --- | S10: X | T10: 12 | U10: 12 | V10: Lb | W10: 1905-07-09 | Y10: --- | AD10: --- | AI10: --- | AN10: --- | AS10: --- | AX10: --- | BC10: --- | BH10: ---
A11: 4 | C11: Asparagus, Raw | D11: Asparagus | E11: Cooking Vegetable | F11: 0.64 | G11: Bags or lined Banana Boxes | H11: 0.05 | I11: =IF(C11=(""),"",VLOOKUP(C11,LastYearContractPricelist!$B$4:$F$124,4,FALSE)) -> 1.85 | J11: NNR16_Asparagus | K11: 3 | L11: Lb | M11: =IF(C11=(""),"",VLOOKUP(C11,'NNR_PDP-per-Dollar'!$B$6:$T$125,19,FALSE)) -> 1.85 | N11: X | O11: 3 | P11: 3 | Q11: Lb | R11: 1905-07-09 | T11: --- | X11: X | Y11: 3 | Z11: 3 | AA11: Lb | AB11: 2019-06-21 | AD11: --- | AI11: --- | AN11: --- | AS11: --- | AX11: --- | BC11: --- | BH11: ---
A12: 5 | C12: Basil, fresh | D12: Basil | E12: Salad Vegetable | F12: 0.08 | G12: Bags or lined Banana Boxes | H12: 0.05 | I12: =IF(C12=(""),"",VLOOKUP(C12,LastYearContractPricelist!$B$4:$F$124,4,FALSE)) -> 5.05 | J12: NNR16_Basil | K12: 9.333333333 | L12: Lb | M12: =IF(C12=(""),"",VLOOKUP(C12,'NNR_PDP-per-Dollar'!$B$6:$T$125,19,FALSE)) -> 3.783333333 | N12: X | O12: 10 | P12: 10 | Q12: Lb | R12: 2019-08-16 | S12: X | T12: 9 | U12: =3*3 -> 9 | V12: Lb | W12: 2019-08-16 | X12: X | Y12: 9 | Z12: =3*3 -> 9 | AA12: Lb | AB12: 2019-08-16 | AD12: --- | AI12: --- | AN12: --- | AS12: --- | AX12: --- | BC12: --- | BH12: ---
A13: 6 | C13: Beans, Snap, Green, Raw | D13: Bean, snap | E13: Cooking Vegetable | F13: 0.48 | G13: Bags or lined Banana Boxes | H13: 0.05 | I13: =IF(C13=(""),"",VLOOKUP(C13,LastYearContractPricelist!$B$4:$F$124,4,FALSE)) -> 2.25 | J13: NNR16_BeanGreen | K13: 3.333333333 | L13: Lb | M13: =IF(C13=(""),"",VLOOKUP(C13,'NNR_PDP-per-Dollar'!$B$6:$T$125,19,FALSE)) -> 2.05 | N13: X | O13: 3 | P13: 3 | Q13: Lb | R13: 1905-07-09 | S13: X | T13: 4 | U13: 4 | V13: Lb | W13: 2019-08-16 | X13: X | Y13: 3 | Z13: =3 -> 3 | AA13: Lb | AB13: 1905-07-09 | AD13: --- | AI13: --- | AN13: --- | AS13: --- | AX13: --- | BC13: --- | BH13: ---
A14: 7 | C14: Beet, bulk, no tops | D14: Beet, bulk | E14: Cooking Vegetable | F14: 0.31 | G14: Bags or lined Banana Boxes | H14: 0.05 | I14: =IF(C14=(""),"",VLOOKUP(C14,LastYearContractPricelist!$B$4:$F$124,4,FALSE)) -> 0.93 | J14: NNR16_Beets | K14: 2 | L14: Lb | M14: =IF(C14=(""),"",VLOOKUP(C14,'NNR_PDP-per-Dollar'!$B$6:$T$125,19,FALSE)) -> 1.05 | N14: X | O14: 2 | P14: 2 | Q14: Lb | R14: 1905-07-09 | T14: --- | Y14: =IF(ISBLANK(X14),"---",P28) -> --- | AD14: --- | AI14: --- | AN14: --- | AS14: --- | AX14: --- | BC14: --- | BH14: ---
A15: 8 | C15: Beet Greens, Raw | D15: Beet, greens | E15: Cooking Vegetable | F15: 0.04 | G15: Bags or lined Banana Boxes | H15: 0.05 | I15: =IF(C15=(""),"",VLOOKUP(C15,LastYearContractPricelist!$B$4:$F$124,4,FALSE)) -> 2.05 | J15: NNR16_BeetGreens | K15: 4 | L15: Lb | M15: =IF(C15=(""),"",VLOOKUP(C15,'NNR_PDP-per-Dollar'!$B$6:$T$125,19,FALSE)) -> 2.05 | N15: X | O15: 4 | P15: 4 | Q15: Lb | R15: 1905-07-09 | T15: --- | Y15: =IF(ISBLANK(X15),"---",Z15) -> --- | AD15: --- | AI15: --- | AN15: --- | AS15: --- | AX15: --- | BC15: --- | BH15: ---
A16: 9 | C16: Beet, all colors, with tops | D16: Beets, with greens | E16: Cooking Vegetable | F16: 0.31 | G16: Bags or lined Banana Boxes | H16: 0.05 | I16: =IF(C16=(""),"",VLOOKUP(C16,LastYearContractPricelist!$B$4:$F$124,4,FALSE)) -> 1.05 | J16: NNR16_BeetGreens | K16: 2.5 | L16: Lb | M16: =IF(C16=(""),"",VLOOKUP(C16,'NNR_PDP-per-Dollar'!$B$6:$T$125,19,FALSE)) -> 1.3 | N16: X | O16: 2 | P16: 2 | Q16: Lb | R16: 1905-07-09 | T16: --- | X16: X | Y16: 3 | Z16: =4*0.75 -> 3 | AA16: Lb | AB16: 2019-08-16 | AD16: --- | AI16: --- | AJ16: 2 | AK16: lb | AL16: 2019-07-05 | AN16: --- | AS16: --- | AX16: --- | BC16: --- | BH16: ---
A17: 10 | C17: Blackberry, Raw | D17: Blackberry | E17: Salad Vegetable | F17: 0.52 | G17: Baskets or Flats | H17: 0.25 | I17: =IF(C17=(""),"",VLOOKUP(C17,LastYearContractPricelist!$B$4:$F$124,4,FALSE)) -> 2.65 | J17: NNR16_Blackberry | K17: 2.5 | L17: Lb | M17: =IF(C17=(""),"",VLOOKUP(C17,'NNR_PDP-per-Dollar'!$B$6:$T$125,19,FALSE)) -> 1.5 | N17: X | O17: 2.5 | P17: 2.5 | Q17: Lb | R17: 1905-07-09 | T17: --- | X17: X | Y17: 2.5 | Z17: 2.5 | AA17: Lb | AB17: 1905-07-09 | AD17: --- | AI17: --- | AN17: --- | AS17: --- | AX17: --- | BC17: --- | BH17: ---
A18: 11 | C18: Blueberries, Raw | D18: Blueberry | E18: Fruit and Berries | F18: 0.45 | G18: Baskets or Flats | H18: 0.25 | I18: =IF(C18=(""),"",VLOOKUP(C18,LastYearContractPricelist!$B$4:$F$124,4,FALSE)) -> 3.25 | J18: NNR16_BlueBerry | K18: 4.5 | L18: Lb | M18: =IF(C18=(""),"",VLOOKUP(C18,'NNR_PDP-per-Dollar'!$B$6:$T$125,19,FALSE)) -> 2.95 | N18: X | O18: 5 | P18: 5 | Q18: Lb | R18: 1905-07-09 | T18: --- | X18: X | Y18: 4 | Z18: 4 | AA18: Lb | AB18: 2019-07-05 | AD18: --- | AI18: --- | AN18: --- | AS18: --- | AX18: --- | BC18: --- | BH18: ---
A19: 12 | C19: Broccoli, Raw | D19: Broccoli | E19: Cooking Vegetable | F19: 0.77 | G19: Bags or lined Banana Boxes | H19: 0.05 | I19: =IF(C19=(""),"",VLOOKUP(C19,LastYearContractPricelist!$B$4:$F$124,4,FALSE)) -> 2.45 | J19: NNR16_Broccoli | K19: 3.5 | L19: Lb | M19: =IF(C19=(""),"",VLOOKUP(C19,'NNR_PDP-per-Dollar'!$B$6:$T$125,19,FALSE)) -> 2.15 | N19: X | O19: 4 | P19: 4 | Q19: Lb | R19: 1905-07-09 | S19: X | T19: 3 | U19: 3 | V19: Lb | W19: 2020-08-16 | X19: X | Y19: 3.5 | Z19: 3.5 | AA19: Lb | AB19: 2019-08-16 | AD19: --- | AI19: --- | AN19: --- | AS19: --- | AX19: --- | BC19: --- | BH19: ---
A20: 13 | C20: Broccoli raab, raw | D20: Broccoli Raab | E20: Cooking Vegetable | F20: 0.06 | G20: Bags or lined Banana Boxes | H20: 0.05 | I20: =IF(C20=(""),"",VLOOKUP(C20,LastYearContractPricelist!$B$4:$F$124,4,FALSE)) -> 2.05 | J20: NNR16_BroccoliRaab | K20: 4 | L20: Lb | M20: =IF(C20=(""),"",VLOOKUP(C20,'NNR_PDP-per-Dollar'!$B$6:$T$125,19,FALSE)) -> 2.05 | N20: X | O20: 4 | P20: 4 | Q20: Lb | R20: 1905-07-09 | T20: --- | Y20: --- | AD20: --- | AI20: --- | AN20: --- | AS20: --- | AX20: --- | BC20: --- | BH20: ---
A21: 14 | C21: Brussel sprouts, raw | D21: Brussels sprouts | E21: Cooking Vegetable | F21: 0.3 | G21: Bags or lined Banana Boxes | H21: 0.05 | I21: =IF(C21=(""),"",VLOOKUP(C21,LastYearContractPricelist!$B$4:$F$124,4,FALSE)) -> 2.05 | J21: NNR16_BrusselSprouts | K21: 4 | L21: Lb | M21: =IF(C21=(""),"",VLOOKUP(C21,'NNR_PDP-per-Dollar'!$B$6:$T$125,19,FALSE)) -> 2.05 | N21: X | O21: 4 | P21: 4 | Q21: Lb | R21: 1905-07-09 | T21: --- | Y21: --- | AD21: --- | AI21: --- | AN21: --- | AS21: --- | AX21: --- | BC21: --- | BH21: ---
A22: 15 | C22: Cabbage, head type, green or red | D22: Cabbage, head type | E22: Salad Vegetable | F22: 0.35 | G22: Bags or lined Banana Boxes | H22: 0.05 | I22: =IF(C22=(""),"",VLOOKUP(C22,LastYearContractPricelist!$B$4:$F$124,4,FALSE)) -> 0.71 | J22: NNR16_Cabbage | K22: 2.625 | L22: Lb | M22: =IF(C22=(""),"",VLOOKUP(C22,'NNR_PDP-per-Dollar'!$B$6:$T$125,19,FALSE)) -> 1.3625 | N22: X | O22: 1.25 | P22: 1.25 | Q22: Lb | R22: 1905-07-09 | T22: --- | X22: X | Y22: 4 | Z22: 4 | AA22: Lb | AB22: 2020-08-16 | AD22: --- | AI22: --- | AN22: --- | AS22: --- | AX22: --- | BC22: --- | BH22: ---
A23: 16 | C23: Cabbage, leaf type | D23: Cabbage, napa or Asian type | E23: Salad Vegetable | F23: 0.35 | G23: Bags or lined Banana Boxes | H23: 0.05 | I23: =IF(C23=(""),"",VLOOKUP(C23,LastYearContractPricelist!$B$4:$F$124,4,FALSE)) -> 0.85 | J23: NNR16_Cabbage | K23: 2.533333333 | L23: Lb | M23: =IF(C23=(""),"",VLOOKUP(C23,'NNR_PDP-per-Dollar'!$B$6:$T$125,19,FALSE)) -> 1.316666667 | N23: X | O23: 1.6 | P23: 1.6 | Q23: Lb | R23: 1905-07-09 | S23: x | T23: 3 | U23: 3 | V23: Lb | W23: 2019-07-05 | X23: X | Y23: 3 | Z23: 3 | AA23: Lb | AB23: 2019-06-21 | AD23: --- | AI23: --- | AN23: --- | AS23: --- | AX23: --- | BC23: --- | BH23: ---
A24: 17 | C24: Carrot, baby, all colors no tops | D24: Carrot, bunched w/tops | E24: Salad Vegetable | F24: 0.65 | G24: Bags or lined Banana Boxes | H24: 0.05 | I24: =IF(C24=(""),"",VLOOKUP(C24,LastYearContractPricelist!$B$4:$F$124,4,FALSE)) -> 1.25 | J24: NNR16_Carrot | K24: 2 | L24: Lb | M24: =IF(C24=(""),"",VLOOKUP(C24,'NNR_PDP-per-Dollar'!$B$6:$T$125,19,FALSE)) -> 1.25 | N24: X | O24: 2 | P24: 2 | Q24: Lb | R24: 1905-07-09 | T24: --- | Y24: --- | AD24: --- | AI24: --- | AN24: --- | AS24: --- | AX24: --- | BC24: --- | BH24: ---
A25: 18 | C25: Carrot, mature, multi-color | D25: Carrot, multi-color, no tops | E25: Salad Vegetable | F25: 0.65 | G25: Bags or lined Banana Boxes | H25: 0.05 | I25: =IF(C25=(""),"",VLOOKUP(C25,LastYearContractPricelist!$B$4:$F$124,4,FALSE)) -> 0.8 | J25: NNR16_Carrot | K25: 2.14673913 | L25: Lb | M25: =IF(C25=(""),"",VLOOKUP(C25,'NNR_PDP-per-Dollar'!$B$6:$T$125,19,FALSE)) -> 1.338043478 | N25: X | O25: 1.25 | P25: 1.25 | Q25: Lb | R25: 1905-07-09 | T25: --- | X25: X | Y25: 3.043478261 | Z25: =3.5/1.15 -> 3.043478261 | AA25: Lb | AB25: 2019-06-21 | AD25: --- | AI25: --- | AN25: --- | AS25: --- | AX25: --- | BC25: --- | BH25: ---
A26: 19 | C26: Carrot, mature, orange | D26: Carrot, orange, no tops | E26: Salad Vegetable | F26: 0.65 | G26: Bags or lined Banana Boxes | H26: 0.05 | I26: =IF(C26=(""),"",VLOOKUP(C26,LastYearContractPricelist!$B$4:$F$124,4,FALSE)) -> 0.73 | J26: NNR16_Carrot | K26: 1.125 | L26: Lb | M26: =IF(C26=(""),"",VLOOKUP(C26,'NNR_PDP-per-Dollar'!$B$6:$T$125,19,FALSE)) -> 0.725 | N26: X | O26: 1.25 | P26: 1.25 | Q26: Lb | R26: 1905-07-09 | T26: --- | X26: X | Y26: 1 | Z26: 1 | AA26: Lb | AB26: 1905-07-09 | AD26: --- | AI26: --- | AN26: --- | AS26: --- | AX26: --- | BC26: --- | BH26: ---
A27: 20 | C27: Cauliflower, Raw | D27: Cauliflower, all colors | E27: Cooking Vegetable | F27: 0.54 | G27: Bags or lined Banana Boxes | H27: 0.05 | I27: =IF(C27=(""),"",VLOOKUP(C27,LastYearContractPricelist!$B$4:$F$124,4,FALSE)) -> 1.25 | J27: NNR16_Cauliflower | K27: 2.644444444 | L27: Lb | M27: =IF(C27=(""),"",VLOOKUP(C27,'NNR_PDP-per-Dollar'!$B$6:$T$125,19,FALSE)) -> 1.636666667 | N27: X | O27: 1.6 | P27: =4/2.5 -> 1.6 | Q27: Lb | R27: 1905-07-09 | S27: X | T27: 3 | U27: =3/1 -> 3 | V27: Lb | W27: 2019-08-16 | X27: X | Y27: 3.333333333 | Z27: =5/1.5 -> 3.333333333 | AA27: Lb | AB27: 2019-07-05 | AD27: --- | AI27: --- | AN27: --- | AS27: --- | AX27: --- | BC27: --- | BH27: ---
A28: 21 | C28: Celeriac, raw | D28: Celeriac | E28: Cooking Vegetable | F28: 0.25 | G28: Bags or lined Banana Boxes | H28: 0.05 | I28: =IF(C28=(""),"",VLOOKUP(C28,LastYearContractPricelist!$B$4:$F$124,4,FALSE)) -> 2.05 | J28: NNR16_Celeriac | K28: 4 | L28: Lb | M28: =IF(C28=(""),"",VLOOKUP(C28,'NNR_PDP-per-Dollar'!$B$6:$T$125,19,FALSE)) -> 2.05 | O28: =IF(ISBLANK(N28),"---",#REF!) -> --- | P28: 4 | S28: X | T28: 4 | U28: 4 | V28: Lb | W28: 1905-07-09 | Y28: --- | AD28: --- | AI28: --- | AN28: --- | AS28: --- | AX28: --- | BC28: --- | BH28: ---
A29: 22 | C29: Celery, Raw | D29: Celery | E29: Cooking Vegetable | F29: 0.37 | G29: Bags or lined Banana Boxes | H29: 0.05 | I29: =IF(C29=(""),"",VLOOKUP(C29,LastYearContractPricelist!$B$4:$F$124,4,FALSE)) -> 1.55 | J29: NNR16_Celery | K29: 3 | L29: Lb | M29: =IF(C29=(""),"",VLOOKUP(C29,'NNR_PDP-per-Dollar'!$B$6:$T$125,19,FALSE)) -> 1.55 | O29: =IF(ISBLANK(N29),"---",P29) -> --- | T29: --- | X29: X | Y29: 3 | Z29: 3 | AA29: Lb | AB29: 1905-07-09 | AD29: --- | AI29: --- | AN29: --- | AS29: --- | AX29: --- | BC29: --- | BH29: ---
A30: 23 | C30: Cherries, Sweet, Raw | D30: Cherry | E30: Fruit and Berries | F30: 0.51 | G30: Baskets or Flats | H30: 0.25 | I30: =IF(C30=(""),"",VLOOKUP(C30,LastYearContractPricelist!$B$4:$F$124,4,FALSE)) -> 1.93 | J30: NNR16_Cherry | K30: 3.333333333 | L30: Lb | M30: =IF(C30=(""),"",VLOOKUP(C30,'NNR_PDP-per-Dollar'!$B$6:$T$125,19,FALSE)) -> 2.25 | N30: X | O30: 3.5 | P30: 3.5 | Q30: Lb | R30: 1905-07-09 | S30: X | T30: 3 | U30: 3 | V30: Lb | W30: 2019-06-21 | X30: X | Y30: 3.5 | Z30: 3.5 | AA30: Lb | AB30: 2019-06-21 | AD30: --- | AI30: --- | AN30: --- | AS30: --- | AX30: --- | BC30: --- | BH30: ---
A31: 24 | C31: Choy, all types | D31: Choy, all types | E31: Cooking Vegetable | F31: 0 | G31: Bags or lined Banana Boxes | H31: 0.05 | I31: =IF(C31=(""),"",VLOOKUP(C31,LastYearContractPricelist!$B$4:$F$124,4,FALSE)) -> 2.05 | J31: NNR16_BokChoy | K31: 3 | L31: Lb | M31: =IF(C31=(""),"",VLOOKUP(C31,'NNR_PDP-per-Dollar'!$B$6:$T$125,19,FALSE)) -> 1.55 | O31: --- | S31: X | T31: 4 | U31: =3/0.75 -> 4 | V31: Lb | W31: 2019-07-05 | Y31: --- | AC31: X | AD31: 2 | AE31: 2 | AF31: Lb | AG31: 2019-07-05 | AI31: --- | AN31: --- | AS31: --- | AX31: --- | BC31: --- | BH31: ---
A32: 25 | C32: Coriander (Cilantro) Leaves, Raw | D32: Cilantro | E32: Salad Vegetable | F32: 0.59 | G32: Bags or lined Banana Boxes | H32: 0.05 | I32: =IF(C32=(""),"",VLOOKUP(C32,LastYearContractPricelist!$B$4:$F$124,4,FALSE)) -> 6.05 | J32: NNR16_Cilantro | K32: 10 | L32: Lb | M32: =IF(C32=(""),"",VLOOKUP(C32,'NNR_PDP-per-Dollar'!$B$6:$T$125,19,FALSE)) -> 6.05 | N32: X | O32: 10 | P32: 10 | Q32: Lb | R32: 1905-07-09 | T32: --- | X32: X | Y32: 10 | Z32: 10 | AA32: Lb | AB32: 1905-07-09 | AD32: --- | AI32: --- | AN32: --- | AS32: --- | AX32: --- | BC32: --- | BH32: ---
A33: 26 | C33: Collards, raw | D33: Collard greens | E33: Cooking Vegetable | F33: 0.04 | G33: Bags or lined Banana Boxes | H33: 0.05 | I33: =IF(C33=(""),"",VLOOKUP(C33,LastYearContractPricelist!$B$4:$F$124,4,FALSE)) -> 2.05 | J33: NNR16_CollardGreens | K33: 4 | L33: Lb | M33: =IF(C33=(""),"",VLOOKUP(C33,'NNR_PDP-per-Dollar'!$B$6:$T$125,19,FALSE)) -> 2.05 | N33: X | O33: 4 | P33: 4 | Q33: Lb | R33: 1905-07-09 | T33: --- | X33: X | Y33: 4 | Z33: 4 | AA33: Lb | AB33: 1905-07-09 | AD33: --- | AI33: --- | AN33: --- | AS33: --- | AX33: --- | BC33: --- | BH33: ---
A34: 27 | C34: Corn, sweet,yellow, raw | D34: Corn, sweet | E34: Cooking Vegetable | F34: 0.61 | G34: Bananna Boxes | H34: 0.05 | I34: =IF(C34=(""),"",VLOOKUP(C34,LastYearContractPricelist!$B$4:$F$124,4,FALSE)) -> 0.65 | J34: NNR16_Corn | K34: 0.5 | L34: Lb | M34: =IF(C34=(""),"",VLOOKUP(C34,'NNR_PDP-per-Dollar'!$B$6:$T$125,19,FALSE)) -> 0.35 | N34: X | O34: 0 | T34: --- | X34: X | Y34: 1 | Z34: =0.6*(10/6) -> 1 | AA34: Lb | AB34: 1905-07-09 | AD34: --- | AI34: --- | AN34: --- | AS34: --- | AX34: --- | BC34: --- | BH34: ---
A35: 28 | C35: Cubumber, pickling, small | D35: Cucumber, pickling | E35: Cooking Vegetable | F35: 0.61 | G35: Bags or lined Banana Boxes | H35: 0.05 | I35: =IF(C35=(""),"",VLOOKUP(C35,LastYearContractPricelist!$B$4:$F$124,4,FALSE)) -> 0.95 | J35: NNR16_Cucumber | K35: 2 | L35: Lb | M35: =IF(C35=(""),"",VLOOKUP(C35,'NNR_PDP-per-Dollar'!$B$6:$T$125,19,FALSE)) -> 1.25 | N35: X | O35: 2 | P35: 2 | Q35: Lb | R35: 1905-07-09 | T35: --- | X35: X | Y35: 2 | Z35: 2 | AA35: Lb | AB35: 1905-07-09 | AD35: --- | AI35: --- | AN35: --- | AS35: --- | AX35: --- | BC35: --- | BH35: ---
A36: 29 | C36: Cucumber, With Peel, Raw | D36: Cucumber, slicing | E36: Salad Vegetable | F36: 0.61 | G36: Bags or lined Banana Boxes | H36: 0.05 | I36: =IF(C36=(""),"",VLOOKUP(C36,LastYearContractPricelist!$B$4:$F$124,4,FALSE)) -> 0.7 | J36: NNR16_Cucumber | K36: 1.44 | L36: Lb | M36: =IF(C36=(""),"",VLOOKUP(C36,'NNR_PDP-per-Dollar'!$B$6:$T$125,19,FALSE)) -> 0.554 | N36: X | O36: 1.75 | P36: 1.75 | Q36: Lb | R36: 1905-07-09 | T36: --- | X36: X | Y36: 1.13 | Z36: 1.13 | AA36: Lb | AB36: 1905-07-09 | AD36: --- | AI36: --- | AN36: --- | AS36: --- | AX36: --- | BC36: --- | BH36: ---
A37: 30 | C37: Dill Weed, Fresh | D37: Dill Weed | E37: Salad Vegetable | F37: 0.61 | G37: Bags or lined Banana Boxes | H37: 0.05 | I37: 7.05 | J37: NNR16_Dill | K37: 7.05 | L37: Lb | M37: =IF(C37=(""),"",VLOOKUP(C37,'NNR_PDP-per-Dollar'!$B$6:$T$125,19,FALSE)) -> 4.28 | O37: --- | T37: --- | X37: X | Y37: 7.05 | Z37: 7.05 | AD37: --- | AI37: --- | AN37: --- | AS37: --- | AX37: --- | BC37: --- | BH37: ---
A38: 31 | C38: Eggplant, Raw | D38: Eggplant | E38: Cooking Vegetable | F38: 0.08 | G38: Bags or lined Banana Boxes | H38: 0.05 | I38: =IF(C38=(""),"",VLOOKUP(C38,LastYearContractPricelist!$B$4:$F$124,4,FALSE)) -> 3.05 | J38: NNR16_Eggplant | K38: 6 | L38: Lb | M38: =IF(C38=(""),"",VLOOKUP(C38,'NNR_PDP-per-Dollar'!$B$6:$T$125,19,FALSE)) -> 3.05 | O38: --- | S38: X | T38: 6 | U38: 6 | V38: Lb | W38: 1905-07-09 | Y38: --- | AD38: --- | AI38: --- | AN38: --- | AS38: --- | AX38: --- | BC38: --- | BH38: ---
A39: 32 | C39: Endive, raw | D39: Endive | E39: Salad Vegetable | F39: 0.08 | G39: Bags or lined Banana Boxes | H39: 0.05 | I39: =IF(C39=(""),"",VLOOKUP(C39,LastYearContractPricelist!$B$4:$F$124,4,FALSE)) -> 2.05 | J39: NNR16_Endive | K39: 4 | L39: Lb | M39: =IF(C39=(""),"",VLOOKUP(C39,'NNR_PDP-per-Dollar'!$B$6:$T$125,19,FALSE)) -> 1.65 | N39: X | O39: 4 | P39: 4 | Q39: Lb | R39: 1905-07-09 | T39: --- | Y39: --- | AD39: --- | AI39: --- | AN39: --- | AS39: --- | AX39: --- | BC39: --- | BH39: ---
A40: =A39+1 -> 33 | C40: Fennel, Bulb, Raw | D40: Fennel, bulbing | E40: Cooking Vegetable | F40: 0 | G40: Bags or lined Banana Boxes | H40: 0.05 | I40: =IF(C40=(""),"",VLOOKUP(C40,LastYearContractPricelist!$B$4:$F$124,4,FALSE)) -> 1.25 | J40: NNR16_Fennel | K40: =IF(C40=(""),"",IFERROR(AVERAGE(O40,T40,Y40,AD40,AI40,AN40,AS40,AX40,BC40,BH40),"")) -> 3 | L40: Lb | M40: =IF(C40=(""),"",VLOOKUP(C40,'NNR_PDP-per-Dollar'!$B$6:$T$125,19,FALSE)) -> 1.55 | N40: X | O40: 3 | P40: 3 | Q40: Lb | R40: 1905-07-09 | T40: =IF(ISBLANK(S40),"---",U40) -> --- | Y40: --- | AD40: =IF(ISBLANK(AC40),"---",AE40) -> --- | AI40: =IF(ISBLANK(AH40),"---",AJ40) -> --- | AN40: =IF(ISBLANK(AM40),"---",AO40) -> --- | AS40: =IF(ISBLANK(AR40),"---",AT40) -> --- | AX40: =IF(ISBLANK(AW40),"---",AY40) -> --- | BC40: =IF(ISBLANK(BB40),"---",BD40) -> --- | BH40: =IF(ISBLANK(BG40),"---",BI40) -> ---
A41: 34 | C41: Garlic, Raw | D41: Garlic | E41: Cooking Vegetable | F41: 0.51 | G41: Bags or lined Banana Boxes | H41: 0.05 | I41: =IF(C41=(""),"",VLOOKUP(C41,LastYearContractPricelist!$B$4:$F$124,4,FALSE)) -> 6.05 | J41: NNR16_Garlic | K41: 10 | L41: Lb | M41: =IF(C41=(""),"",VLOOKUP(C41,'NNR_PDP-per-Dollar'!$B$6:$T$125,19,FALSE)) -> 6.05 | N41: X | O41: 10 | P41: 10 | Q41: Lb | R41: 1905-07-09 | S41: X | T41: 10 | U41: 10 | V41: Lb | W41: 1905-07-09 | X41: X | Y41: 10 | Z41: 10 | AA41: Lb | AB41: 1905-07-09 | AD41: --- | AI41: --- | AN41: --- | AS41: --- | AX41: --- | BC41: --- | BH41: ---
A42: 35 | C42: Onions, spring or scallions (includes tops and bulb), raw | D42: Garlic Scape | E42: Cooking Vegetable | F42: 0 | G42: Bags or lined Banana Boxes | H42: 0.05 | I42: 2 | J42: NNR16_GreenOnion | K42: 4 | L42: Lb | M42: =IF(C42=(""),"",VLOOKUP(C42,'NNR_PDP-per-Dollar'!$B$6:$T$125,19,FALSE)) -> 2.45 | N42: X | O42: 4 | P42: 4 | Q42: Lb | R42: 1905-07-09 | T42: --- | Y42: --- | AD42: --- | AI42: --- | AN42: --- | AS42: --- | AX42: --- | BC42: --- | BH42: ---
A43: 36 | C43: Gooseberry, raw | D43: Gooseberry | E43: Fruit and Berries | F43: 0 | G43: Baskets or Flats | H43: =IF(G43=(""),"",IF(G43="Loose in Banana Boxes",0.1,IF(G43="Baskets or Flats",0.25,0.05))) -> 0.25 | I43: =IF(C43=(""),"",VLOOKUP(C43,LastYearContractPricelist!$B$4:$F$124,4,FALSE)) -> 2.65 | J43: NNR16_Gooseberry | K43: 6 | L43: Lb | M43: =IF(C43=(""),"",VLOOKUP(C43,'NNR_PDP-per-Dollar'!$B$6:$T$125,19,FALSE)) -> 2.65 | O43: --- | T43: --- | Y43: --- | AC43: X | AD43: 6 | AE43: 6 | AF43: Lb | AG43: 1905-07-11 | AH43: X | AI43: 6 | AJ43: 6 | AK43: Lb | AL43: 1905-07-11 | AN43: --- | AS43: --- | AX43: --- | BC43: --- | BH43: ---
A44: 37 | C44: Grapes, American type, Raw | D44: Grape | E44: Fruit and Berries | F44: 0.51 | G44: Baskets or Flats | H44: 0.25 | I44: 1.39 | J44: NNR16_ConcordGrape | K44: 1.39 | L44: Lb | M44: =IF(C44=(""),"",VLOOKUP(C44,'NNR_PDP-per-Dollar'!$B$6:$T$125,19,FALSE)) -> 1.084 | O44: --- | T44: --- | X44: X | Y44: 1.39 | Z44: 1.39 | AD44: --- | AI44: --- | AN44: --- | AS44: --- | AX44: --- | BC44: --- | BH44: ---
A45: 38 | C45: Greens, mixed | D45: Greens, mixed | E45: Salad Vegetable | F45: 0.52 | G45: Bags or lined Banana Boxes | H45: 0.05 | I45: =IF(C45=(""),"",VLOOKUP(C45,LastYearContractPricelist!$B$4:$F$124,4,FALSE)) -> 3.8 | J45: NNR16_Greens | K45: 6.5 | L45: Lb | M45: =IF(C45=(""),"",VLOOKUP(C45,'NNR_PDP-per-Dollar'!$B$6:$T$125,19,FALSE)) -> 3.3 | N45: X | O45: 7 | P45: 7 | Q45: Lb | R45: 1905-07-09 | T45: --- | X45: X | Y45: 6 | Z45: 6 | AA45: Lb | AB45: 1905-07-09 | AD45: --- | AI45: --- | AN45: --- | AS45: --- | AX45: --- | BC45: --- | BH45: ---
A46: 39 | C46: Kale, Raw | D46: Kale | E46: Salad Vegetable | F46: 0.08 | G46: Bags or lined Banana Boxes | H46: 0.05 | I46: =IF(C46=(""),"",VLOOKUP(C46,LastYearContractPricelist!$B$4:$F$124,4,FALSE)) -> 2.3 | J46: NNR16_Kale | K46: 4.5 | L46: Lb | M46: =IF(C46=(""),"",VLOOKUP(C46,'NNR_PDP-per-Dollar'!$B$6:$T$125,19,FALSE)) -> 1.85 | N46: X | O46: 4 | P46: 4 | Q46: Lb | R46: 1905-07-09 | T46: --- | X46: X | Y46: 5 | Z46: 5 | AA46: Lb | AB46: 1905-07-09 | AD46: --- | AI46: --- | AN46: --- | AS46: --- | AX46: --- | BC46: --- | BH46: ---
A47: 40 | C47: Kohlrabi, Raw | D47: Kohlrabi | E47: Salad Vegetable | F47: 0.06 | G47: Bags or lined Banana Boxes | H47: 0.05 | I47: =IF(C47=(""),"",VLOOKUP(C47,LastYearContractPricelist!$B$4:$F$124,4,FALSE)) -> 1 | J47: NNR16_Kohlrabi | K47: 0.945 | L47: Lb | M47: =IF(C47=(""),"",VLOOKUP(C47,'NNR_PDP-per-Dollar'!$B$6:$T$125,19,FALSE)) -> 0.428 | N47: X | O47: 0 | T47: --- | X47: X | Y47: =IF(ISBLANK(X47),"---",Z47) -> 1.89 | Z47: 1.89 | AA47: Lb | AB47: 1905-07-09 | AD47: --- | AI47: --- | AN47: --- | AS47: --- | AX47: --- | BC47: --- | BH47: ---
A48: 41 | C48: Leek, (bulb and ower leaf-portion), raw | D48: Leek | E48: Cooking Vegetable | F48: 0 | G48: Bags or lined Banana Boxes | H48: 0.05 | I48: =IF(C48=(""),"",VLOOKUP(C48,LastYearContractPricelist!$B$4:$F$124,4,FALSE)) -> 0.85 | J48: NNR16_Leek | K48: 2 | L48: Lb | M48: =IF(C48=(""),"",VLOOKUP(C48,'NNR_PDP-per-Dollar'!$B$6:$T$125,19,FALSE)) -> 1.05 | N48: X | O48: 2 | P48: 2 | Q48: Lb | R48: 1905-07-09 | T48: --- | X48: X | Y48: 2 | Z48: 2 | AA48: Lb | AB48: 1905-07-09 | AD48: --- | AI48: --- | AN48: --- | AS48: --- | AX48: --- | BC48: --- | BH48: ---
A49: 42 | C49: Lettuce, green leaf, raw | D49: Lettuce, heads, green or red leaf | E49: Salad Vegetable | F49: 0.52 | G49: Bags or lined Banana Boxes | H49: 0.05 | I49: =IF(C49=(""),"",VLOOKUP(C49,LastYearContractPricelist!$B$4:$F$124,4,FALSE)) -> 1.7 | J49: NNR16_Lettuce | K49: 2.75 | L49: Lb | M49: =IF(C49=(""),"",VLOOKUP(C49,'NNR_PDP-per-Dollar'!$B$6:$T$125,19,FALSE)) -> 1.425 | N49: X | O49: 2.5 | P49: 2.5 | Q49: Lb | R49: 1905-07-09 | T49: --- | X49: X | Y49: 3 | Z49: 3 | AA49: Lb | AB49: 1905-07-09 | AD49: --- | AI49: --- | AN49: --- | AS49: --- | AX49: --- | BC49: --- | BH49: ---
A50: 43 | C50: Romaine, Raw | D50: Lettuce, romaine | E50: Salad Vegetable | F50: 0.52 | G50: Bags or lined Banana Boxes | H50: 0.05 | I50: =IF(C50=(""),"",VLOOKUP(C50,LastYearContractPricelist!$B$4:$F$124,4,FALSE)) -> 1.25 | J50: NNR16_Romaine | K50: 2 | L50: Lb | M50: =IF(C50=(""),"",VLOOKUP(C50,'NNR_PDP-per-Dollar'!$B$6:$T$125,19,FALSE)) -> 1.05 | N50: X | O50: 2 | P50: 2 | Q50: Lb | R50: 1905-07-09 | T50: --- | U50: 2.5 | X50: X | Y50: 2 | Z50: 2 | AA50: Lb | AB50: 1905-07-09 | AD50: --- | AI50: --- | AN50: --- | AS50: --- | AX50: --- | BC50: --- | BH50: ---
A51: 44 | C51: Melon, Cantaloupe, Raw | D51: Melon, all except Watermelon | E51: Fruit and Berries | F51: 0.44 | G51: Loose in Banana Boxes | H51: 0.1 | I51: =IF(C51=(""),"",VLOOKUP(C51,LastYearContractPricelist!$B$4:$F$124,4,FALSE)) -> 0.64 | J51: NNR16_Cantaloupe | K51: 0.9 | L51: Lb | M51: =IF(C51=(""),"",VLOOKUP(C51,'NNR_PDP-per-Dollar'!$B$6:$T$125,19,FALSE)) -> 0.64 | O51: --- | T51: --- | X51: X | Y51: 0.9 | Z51: 0.9 | AA51: Lb | AB51: 1905-07-09 | AD51: --- | AI51: --- | AN51: --- | AS51: --- | AX51: --- | BC51: --- | BH51: ---
A52: 45 | C52: Mushrooms, white, raw | D52: Mushroom, cultivated | E52: Salad Vegetable | F52: 0 | G52: Baskets or Flats | H52: 0.25 | I52: =IF(C52=(""),"",VLOOKUP(C52,LastYearContractPricelist!$B$4:$F$124,4,FALSE)) -> 2.65 | J52: NNR16_Mushroom | K52: 6 | L52: Lb | M52: =IF(C52=(""),"",VLOOKUP(C52,'NNR_PDP-per-Dollar'!$B$6:$T$125,19,FALSE)) -> 5.65 | O52: --- | S52: X | T52: 6 | U52: 6 | Y52: --- | AD52: --- | AI52: --- | AN52: --- | AS52: --- | AX52: --- | BC52: --- | BH52: ---
A53: 46 | C53: Mustard greens, raw | D53: Mustard Greens | E53: Salad Vegetable | F53: 0.06 | G53: Bags or lined Banana Boxes | H53: 0.05 | I53: =IF(C53=(""),"",VLOOKUP(C53,LastYearContractPricelist!$B$4:$F$124,4,FALSE)) -> 2.05 | J53: NNR16_MustardGreens | K53: 4 | L53: Lb | M53: =IF(C53=(""),"",VLOOKUP(C53,'NNR_PDP-per-Dollar'!$B$6:$T$125,19,FALSE)) -> 1.65 | N53: X | O53: 4 | P53: 4 | Q53: Lb | T53: --- | Y53: --- | AD53: --- | AI53: --- | AN53: --- | AS53: --- | AX53: --- | BC53: --- | BH53: ---
A54: 47 | C54: Nectarines, raw | D54: Nectarine | E54: Fruit and Berries | F54: 0.16 | G54: Baskets or Flats | H54: 0.25 | I54: =IF(C54=(""),"",VLOOKUP(C54,LastYearContractPricelist!$B$4:$F$124,4,FALSE)) -> 1.35 | J54: NNR16_Nectarine | K54: 2.195 | L54: Lb | M54: =IF(C54=(""),"",VLOOKUP(C54,'NNR_PDP-per-Dollar'!$B$6:$T$125,19,FALSE)) -> 1.3475 | N54: X | O54: 3 | P54: 3 | Q54: Lb | T54: --- | X54: X | Y54: 1.39 | Z54: 1.39 | AA54: Lb | AB54: 1905-07-09 | AD54: --- | AI54: --- | AN54: --- | AS54: --- | AX54: --- | BC54: --- | BH54: ---
A55: 48 | C55: Okra, raw | D55: Okra | E55: Cooking Vegetable | F55: 0.25 | G55: Bags or lined Banana Boxes | H55: 0.05 | I55: =IF(C55=(""),"",VLOOKUP(C55,LastYearContractPricelist!$B$4:$F$124,4,FALSE)) -> 3.05 | J55: NNR16_Okra | K55: 6 | L55: Lb | M55: =IF(C55=(""),"",VLOOKUP(C55,'NNR_PDP-per-Dollar'!$B$6:$T$125,19,FALSE)) -> 3.05 | N55: X | O55: 6 | P55: 6 | Q55: Lb | R55: 1905-07-09 | T55: --- | X55: X | Y55: 6 | Z55: 6 | AA55: Lb | AB55: 1905-07-09 | AD55: --- | AI55: --- | AN55: --- | AS55: --- | AX55: --- | BC55: --- | BH55: ---
A56: 49 | C56: Fresh red Onions | D56: Onion, bulb, red | E56: Salad Vegetable | F56: 0.36 | G56: Bags or lined Banana Boxes | H56: 0.05 | I56: =IF(C56=(""),"",VLOOKUP(C56,LastYearContractPricelist!$B$4:$F$124,4,FALSE)) -> 0.37 | J56: NNR16_OnionRed | K56: 1.6 | L56: Lb | M56: =IF(C56=(""),"",VLOOKUP(C56,'NNR_PDP-per-Dollar'!$B$6:$T$125,19,FALSE)) -> 0.85 | N56: X | O56: 1.25 | P56: 1.25 | Q56: Lb | R56: 1905-07-09 | T56: --- | X56: X | Y56: 1.95 | Z56: 1.95 | AA56: Lb | AB56: 1905-07-09 | AD56: --- | AI56: --- | AN56: --- | AS56: --- | AX56: --- | BC56: --- | BH56: ---
A57: 50 | C57: Onion, bulb, sweet | D57: Onion, bulb, storage or sweet | E57: Salad Vegetable | F57: 0.36 | G57: Bags or lined Banana Boxes | H57: 0.05 | I57: =IF(C57=(""),"",VLOOKUP(C57,LastYearContractPricelist!$B$4:$F$124,4,FALSE)) -> 0.7 | J57: NNR16_OnionSweet | K57: 1.4 | L57: Lb | M57: =IF(C57=(""),"",VLOOKUP(C57,'NNR_PDP-per-Dollar'!$B$6:$T$125,19,FALSE)) -> 0.75 | O57: --- | P57: 1.25 | Q57: Lb | R57: 1905-07-09 | T57: --- | X57: X | Y57: 1.4 | Z57: 1.4 | AA57: Lb | AB57: 1905-07-09 | AD57: --- | AI57: --- | AN57: --- | AS57: --- | AX57: --- | BC57: --- | BH57: ---
A58: 51 | C58: Onion, bunching | D58: Onion, bunching | E58: Salad Vegetable | F58: 0.36 | G58: Bags or lined Banana Boxes | H58: 0.05 | I58: =IF(C58=(""),"",VLOOKUP(C58,LastYearContractPricelist!$B$4:$F$124,4,FALSE)) -> 0.69 | J58: NNR16_Onions | K58: 2.5 | L58: Lb | M58: =IF(C58=(""),"",VLOOKUP(C58,'NNR_PDP-per-Dollar'!$B$6:$T$125,19,FALSE)) -> 1.3 | N58: X | O58: 3 | P58: 3 | Q58: Lb | R58: 1905-07-09 | T58: --- | X58: X | Y58: 2 | Z58: 2 | AA58: Lb | AB58: 1905-07-09 | AD58: --- | AI58: --- | AN58: --- | AS58: --- | AX58: --- | BC58: --- | BH58: ---
A59: 52 | C59: Onions, Young Green, Tops only | D59: Onion, green | E59: Salad Vegetable | F59: 0.36 | G59: Bags or lined Banana Boxes | H59: 0.05 | I59: =IF(C59=(""),"",VLOOKUP(C59,LastYearContractPricelist!$B$4:$F$124,4,FALSE)) -> 2.25 | J59: NNR16_GreenOnion | K59: 5 | L59: Lb | M59: =IF(C59=(""),"",VLOOKUP(C59,'NNR_PDP-per-Dollar'!$B$6:$T$125,19,FALSE)) -> 2.55 | N59: X | O59: 5 | P59: 5 | Q59: Lb | R59: 1905-07-09 | T59: --- | X59: X | Y59: 5 | Z59: 5 | AA59: Lb | AB59: 1905-07-09 | AD59: --- | AI59: --- | AN59: --- | AS59: --- | AX59: --- | BC59: --- | BH59: ---
A60: 53 | C60: Parsnips, raw | D60: Parsnip | E60: Cooking Vegetable | F60: 0.04 | G60: Bags or lined Banana Boxes | H60: 0.05 | I60: =IF(C60=(""),"",VLOOKUP(C60,LastYearContractPricelist!$B$4:$F$124,4,FALSE)) -> 1.05 | J60: NNR16_Parsnip | K60: 2 | L60: Lb | M60: =IF(C60=(""),"",VLOOKUP(C60,'NNR_PDP-per-Dollar'!$B$6:$T$125,19,FALSE)) -> 1.05 | N60: X | O60: 2 | P60: 2 | Q60: Lb | R60: 1905-07-09 | T60: --- | X60: X | Y60: 2 | Z60: 2 | AA60: Lb | AB60: 1905-07-09 | AD60: --- | AI60: --- | AN60: --- | AS60: --- | AX60: --- | BC60: --- | BH60: ---
A61: 54 | C61: Peas, Edible Podded, Raw | D61: Pea, edible pod | E61: Salad Vegetable | F61: 0.28 | G61: Bags or lined Banana Boxes | H61: 0.05 | I61: =IF(C61=(""),"",VLOOKUP(C61,LastYearContractPricelist!$B$4:$F$124,4,FALSE)) -> 3.05 | J61: NNR16_Peas | K61: 6 | L61: Lb | M61: =IF(C61=(""),"",VLOOKUP(C61,'NNR_PDP-per-Dollar'!$B$6:$T$125,19,FALSE)) -> 3.05 | N61: X | O61: =IF(ISBLANK(N61),"---",P61) -> 6 | P61: 6 | Q61: Lb | R61: 1905-07-09 | T61: --- | X61: X | Y61: 6 | Z61: 6 | AA61: Lb | AB61: 1905-07-09 | AD61: --- | AI61: --- | AN61: --- | AS61: --- | AX61: --- | BC61: --- | BH61: ---
A62: 55 | C62: Pea, shelling | D62: Pea, shelling | E62: Cooking Vegetable | F62: 0.28 | G62: Bags or lined Banana Boxes | H62: 0.05 | I62: =IF(C62=(""),"",VLOOKUP(C62,LastYearContractPricelist!$B$4:$F$124,4,FALSE)) -> 1.55 | J62: NNR16_Peas | K62: 3 | L62: Lb | M62: =IF(C62=(""),"",VLOOKUP(C62,'NNR_PDP-per-Dollar'!$B$6:$T$125,19,FALSE)) -> 1.55 | N62: X | O62: 3 | P62: 3 | Q62: Lb | R62: 1905-07-09 | T62: --- | X62: X | Y62: 3 | Z62: 3 | AA62: Lb | AB62: 1905-07-09 | AD62: --- | AI62: --- | AN62: --- | AS62: --- | AX62: --- | BC62: --- | BH62: ---
A63: 56 | C63: Peaches, Yellow, Raw | D63: Peach | E63: Fruit and Berries | F63: 0.44 | G63: Baskets or Flats | H63: 0.25 | I63: =IF(C63=(""),"",VLOOKUP(C63,LastYearContractPricelist!$B$4:$F$124,4,FALSE)) -> 1.6 | J63: NNR16_Peach | K63: 2.695 | L63: Lb | M63: =IF(C63=(""),"",VLOOKUP(C63,'NNR_PDP-per-Dollar'!$B$6:$T$125,19,FALSE)) -> 1.5975 | N63: X | O63: 4 | P63: 4 | Q63: Lb | R63: 1905-07-09 | T63: --- | X63: X | Y63: 1.39 | Z63: 1.39 | AA63: Lb | AB63: 1905-07-09 | AD63: --- | AI63: --- | AN63: --- | AS63: --- | AX63: --- | BC63: --- | BH63: ---
A64: 57 | C64: Pear, Raw | D64: Pear | E64: Fruit and Berries | F64: 0.19 | G64: Bags or lined Banana Boxes | H64: 0.05 | I64: =IF(C64=(""),"",VLOOKUP(C64,LastYearContractPricelist!$B$4:$F$124,4,FALSE)) -> 0.68 | J64: NNR16_Pear | K64: 1.25 | L64: Lb | M64: =IF(C64=(""),"",VLOOKUP(C64,'NNR_PDP-per-Dollar'!$B$6:$T$125,19,FALSE)) -> 0.675 | N64: X | O64: 1.5 | P64: 1.5 | Q64: Lb | R64: 1905-07-09 | T64: --- | X64: X | Y64: 1 | Z64: 1 | AA64: Lb | AB64: 1905-07-09 | AD64: --- | AI64: --- | AN64: --- | AS64: --- | AX64: --- | BC64: --- | BH64: ---
A65: 58 | C65: Pepper, bell type, colored, big | D65: Pepper, bell type | E65: Salad Vegetable | F65: 0.28 | G65: Bags or lined Banana Boxes | H65: 0.05 | I65: =IF(C65=(""),"",VLOOKUP(C65,LastYearContractPricelist!$B$4:$F$124,4,FALSE)) -> 5.05 | J65: NNR16_PepperColored | K65: 10 | L65: Lb | M65: =IF(C65=(""),"",VLOOKUP(C65,'NNR_PDP-per-Dollar'!$B$6:$T$125,19,FALSE)) -> 5.05 | N65: X | O65: 10 | P65: =2.5*(4/1) -> 10 | Q65: Lb | R65: 1905-07-09 | T65: --- | X65: X | Y65: 10 | Z65: =2.5*(4/1) -> 10 | AA65: Lb | AB65: 1905-07-09 | AD65: --- | AI65: --- | AN65: --- | AS65: --- | AX65: --- | BC65: --- | BH65: ---
A66: 59 | C66: Pepper, other, midsize | D66: Pepper, other | E66: Salad Vegetable | F66: 0.28 | G66: Bags or lined Banana Boxes | H66: 0.05 | I66: =IF(C66=(""),"",VLOOKUP(C66,LastYearContractPricelist!$B$4:$F$124,4,FALSE)) -> 3.05 | J66: NNR16_BellPepper | K66: 6 | L66: Lb | M66: =IF(C66=(""),"",VLOOKUP(C66,'NNR_PDP-per-Dollar'!$B$6:$T$125,19,FALSE)) -> 3.05 | N66: X | O66: 6 | P66: =1*(6/1) -> 6 | Q66: Lb | R66: 1905-07-09 | T66: --- | X66: X | Y66: 6 | Z66: =1*(6/1) -> 6 | AA66: Lb | AB66: 1905-07-09 | AD66: --- | AI66: --- | AN66: --- | AS66: --- | AX66: --- | BC66: --- | BH66: ---
A67: 60 | C67: Plums, Raw | D67: Plum | E67: Fruit and Berries | F67: 0.09 | G67: Baskets or Flats | H67: 0.25 | I67: =IF(C67=(""),"",VLOOKUP(C67,LastYearContractPricelist!$B$4:$F$124,4,FALSE)) -> 0.93 | J67: NNR16_Plum | K67: 1.695 | L67: Lb | M67: =IF(C67=(""),"",VLOOKUP(C67,'NNR_PDP-per-Dollar'!$B$6:$T$125,19,FALSE)) -> 0.928 | N67: X | O67: 2 | P67: 2 | Q67: Lb | R67: 1905-07-09 | T67: --- | X67: X | Y67: 1.39 | Z67: 1.39 | AA67: Lb | AB67: 1905-07-09 | AD67: --- | AI67: --- | AN67: --- | AS67: --- | AX67: --- | BC67: --- | BH67: ---
A68: 61 | C68: Pluots, Raw | D68: Pluot | E68: Fruit and Berries | F68: 0.09 | G68: Baskets or Flats | H68: 0.25 | I68: =I67 -> 0.93 | J68: NNR16_Plum | K68: 1.695 | L68: Lb | M68: =IF(C68=(""),"",VLOOKUP(C68,'NNR_PDP-per-Dollar'!$B$6:$T$125,19,FALSE)) -> 0.928 | N68: X | O68: 2 | P68: 2 | Q68: Lb | R68: 1905-07-09 | T68: --- | X68: X | Y68: 1.39 | Z68: 1.39 | AA68: Lb | AB68: 1905-07-09 | AD68: --- | AI68: --- | AN68: --- | AS68: --- | AX68: --- | BC68: --- | BH68: ---
A69: 62 | C69: Baby potatoes | D69: Potato, baby | E69: Potato | F69: 0.14 | G69: Bags or lined Banana Boxes | H69: 0.05 | I69: =IF(C69=(""),"",VLOOKUP(C69,LastYearContractPricelist!$B$4:$F$124,4,FALSE)) ->  | J69: NNR16_Potato_Baby | K69: 1.75 | L69: Lb | M69: =IF(C69=(""),"",VLOOKUP(C69,'NNR_PDP-per-Dollar'!$B$6:$T$125,19,FALSE)) -> 0.575 | N69: X | O69: 2 | P69: 2 | Q69: Lb | R69: 1905-07-09 | T69: --- | X69: X | Y69: 1.5 | Z69: 1.5 | AA69: Lb | AB69: 1905-07-09 | AD69: --- | AI69: --- | AN69: --- | AS69: --- | AX69: --- | BC69: --- | BH69: ---
A70: 63 | C70: Potatoes, baked, flesh and skin, without salt | D70: Potato, baking | E70: Potato | F70: 0.19 | G70: Bags or lined Banana Boxes | H70: 0.05 | I70: =IF(C70=(""),"",VLOOKUP(C70,LastYearContractPricelist!$B$4:$F$124,4,FALSE)) -> 0.39 | J70: NNR16_Potato_Baker | K70: 1.375 | L70: Lb | M70: =IF(C70=(""),"",VLOOKUP(C70,'NNR_PDP-per-Dollar'!$B$6:$T$125,19,FALSE)) -> 0.7375 | N70: X | O70: 1.25 | P70: 1.25 | Q70: Lb | R70: 1905-07-09 | T70: --- | X70: X | Y70: 1.5 | Z70: 1.5 | AA70: Lb | AB70: 1905-07-09 | AD70: --- | AI70: --- | AN70: --- | AS70: --- | AX70: --- | BC70: --- | BH70: ---
A71: 64 | C71: Potoato, fingerling | D71: Potato, fingerling | E71: Potato | F71: 0.26 | G71: Bags or lined Banana Boxes | H71: 0.05 | I71: =IF(C71=(""),"",VLOOKUP(C69,LastYearContractPricelist!$B$4:$F$124,4,FALSE)) ->  | J71: NNR16_Potatoes | K71: 1.375 | L71: Lb | M71: =IF(C71=(""),"",VLOOKUP(C71,'NNR_PDP-per-Dollar'!$B$6:$T$125,19,FALSE)) -> 0.7375 | N71: X | O71: 1.25 | P71: 1.25 | Q71: Lb | R71: 1905-07-09 | T71: --- | X71: X | Y71: 1.5 | Z71: 1.5 | AA71: Lb | AB71: 1905-07-09 | AD71: --- | AI71: --- | AN71: --- | AS71: --- | AX71: --- | BC71: --- | BH71: ---
A72: =A71+1 -> 65 | C72: Potato, purple | D72: Potato, purple | E72: Potato | F72: 0.26 | G72: Bags or lined Banana Boxes | H72: 0.05 | I72: =IF(C72=(""),"",VLOOKUP(C72,LastYearContractPricelist!$B$4:$F$124,4,FALSE)) -> 0.74 | J72: NNR16_Potatoes | K72: =IF(C72=(""),"",IFERROR(AVERAGE(O72,T72,Y72,AD72,AI72,AN72,AS72,AX72,BC72,BH72),"")) -> 1.375 | L72: Lb | M72: =IF(C72=(""),"",VLOOKUP(C72,'NNR_PDP-per-Dollar'!$B$6:$T$125,19,FALSE)) -> 0.7375 | N72: X | O72: 1.25 | P72: 1.25 | Q72: Lb | R72: 1905-07-09 | T72: =IF(ISBLANK(S72),"---",U72) -> --- | X72: X | Y72: 1.5 | Z72: 1.5 | AA72: Lb | AB72: 1905-07-09 | AD72: =IF(ISBLANK(AC72),"---",AE72) -> --- | AI72: =IF(ISBLANK(AH72),"---",AJ72) -> --- | AN72: =IF(ISBLANK(AM72),"---",AO72) -> --- | AS72: =IF(ISBLANK(AR72),"---",AT72) -> --- | AX72: =IF(ISBLANK(AW72),"---",AY72) -> --- | BC72: =IF(ISBLANK(BB72),"---",BD72) -> --- | BH72: =IF(ISBLANK(BG72),"---",BI72) -> ---
A73: 66 | C73: Potatoes, red, flesh and skin | D73: Potato, red | E73: Potato | F73: 0.26 | G73: Bags or lined Banana Boxes | H73: 0.05 | I73: =IF(C73=(""),"",VLOOKUP(C73,LastYearContractPricelist!$B$4:$F$124,4,FALSE)) -> 0.74 | J73: NNR16_Potato_Red | K73: 1.375 | L73: Lb | M73: =IF(C73=(""),"",VLOOKUP(C73,'NNR_PDP-per-Dollar'!$B$6:$T$125,19,FALSE)) -> 0.7375 | N73: X | O73: 1.25 | P73: 1.25 | Q73: Lb | R73: 1905-07-09 | T73: --- | X73: X | Y73: 1.5 | Z73: 1.5 | AA73: Lb | AB73: 1905-07-09 | AD73: --- | AI73: --- | AN73: --- | AS73: --- | AX73: --- | BC73: --- | BH73: ---
A74: 67 | C74: Pumpkin big, large | D74: Pumpkin for carving, large | E74: Cooking Vegetable | F74: 0.11 | G74: Bags or lined Banana Boxes | H74: 0.05 | I74: =IF(C74=(""),"",VLOOKUP(C74,LastYearContractPricelist!$B$4:$F$124,4,FALSE)) -> 0.23 | J74: NNR16_Pumpkin | K74: 0.35 | L74: Lb | M74: =IF(C74=(""),"",VLOOKUP(C74,'NNR_PDP-per-Dollar'!$B$6:$T$125,19,FALSE)) -> 0.225 | N74: X | O74: 0.35 | P74: 0.35 | Q74: Lb | R74: 1905-07-09 | T74: --- | X74: X | Y74: 0.35 | Z74: 0.35 | AA74: Lb | AB74: 1905-07-09 | AD74: --- | AI74: --- | AN74: --- | AS74: --- | AX74: --- | BC74: --- | BH74: ---
A75: 68 | C75: Pumpkin big, large | D75: Pumpkin for eating | E75: Cooking Vegetable | F75: 0.11 | G75: Bags or lined Banana Boxes | H75: =IF(G75=(""),"",IF(G75="Loose in Banana Boxes",0.1,IF(G75="Baskets or Flats",0.25,0.05))) -> 0.05 | I75: =IF(C75=(""),"",VLOOKUP(C75,LastYearContractPricelist!$B$4:$F$124,4,FALSE)) -> 0.23 | J75: NNR16_Pumpkin | K75: 0.425 | L75: Lb | M75: =IF(C75=(""),"",VLOOKUP(C75,'NNR_PDP-per-Dollar'!$B$6:$T$125,19,FALSE)) -> 0.225 | N75: X | O75: 0.5 | P75: 0.5 | Q75: Lb | R75: 1905-07-09 | T75: --- | X75: X | Y75: 0.35 | Z75: 0.35 | AA75: Lb | AB75: 1905-07-09 | AD75: --- | AI75: --- | AN75: --- | AS75: --- | AX75: --- | BC75: --- | BH75: ---
A76: 69 | C76: Squash, Pie Pumpkin | D76: Pumpkin for eating | E76: Cooking Vegetable | F76: 0.21 | G76: Bags or lined Banana Boxes | H76: 0.05 | I76: =IF(C76=(""),"",VLOOKUP(C76,LastYearContractPricelist!$B$4:$F$124,4,FALSE)) -> 0.68 | J76: NNR16_Pumpkin | K76: 1.25 | L76: Lb | M76: =IF(C76=(""),"",VLOOKUP(C76,'NNR_PDP-per-Dollar'!$B$6:$T$125,19,FALSE)) -> 0.675 | N76: X | O76: 1.25 | P76: 1.25 | Q76: Lb | R76: 1905-07-09 | T76: --- | X76: X | Y76: 1.25 | Z76: 1.25 | AA76: Lb | AB76: 1905-07-09 | AD76: --- | AI76: --- | AN76: --- | AS76: --- | AX76: --- | BC76: --- | BH76: ---
A77: 70 | C77: Radishes, raw | D77: Radish | E77: Salad Vegetable | F77: 0.16 | G77: Bags or lined Banana Boxes | H77: 0.05 | I77: =IF(C77=(""),"",VLOOKUP(C77,LastYearContractPricelist!$B$4:$F$124,4,FALSE)) -> 2.3 | J77: NNR16_Radish | K77: 4.5 | L77: Lb | M77: =IF(C77=(""),"",VLOOKUP(C77,'NNR_PDP-per-Dollar'!$B$6:$T$125,19,FALSE)) -> 2.3 | N77: X | O77: 4.5 | P77: 4.5 | Q77: Lb | R77: 1905-07-09 | T77: --- | X77: X | Y77: 4.5 | Z77: 4.5 | AA77: Lb | AB77: 1905-07-09 | AD77: --- | AI77: --- | AN77: --- | AS77: --- | AX77: --- | BC77: --- | BH77: ---
A78: 71 | C78: Raspberries, Raw | D78: Raspberry | E78: Fruit and Berries | F78: 0.52 | G78: Baskets or Flats | H78: 0.25 | I78: =IF(C78=(""),"",VLOOKUP(C78,LastYearContractPricelist!$B$4:$F$124,4,FALSE)) -> 2.65 | J78: NNR16_Raspberry | K78: 4 | L78: Lb | M78: =IF(C78=(""),"",VLOOKUP(C78,'NNR_PDP-per-Dollar'!$B$6:$T$125,19,FALSE)) -> 3.05 | N78: X | O78: 5 | P78: 5 | Q78: Lb | R78: 1905-07-09 | T78: --- | X78: X | Y78: 3 | Z78: 3 | AA78: Lb | AB78: 1905-07-09 | AD78: --- | AI78: --- | AN78: --- | AS78: --- | AX78: --- | BC78: --- | BH78: ---
A79: 72 | C79: Rhubarb, raw | D79: Rhubarb | E79: Fruit and Berries | F79: 0.1 | G79: Bags or lined Banana Boxes | H79: 0.05 | I79: =IF(C79=(""),"",VLOOKUP(C79,LastYearContractPricelist!$B$4:$F$124,4,FALSE)) -> 0.75 | J79: NNR16_Rhubarb | K79: 1 | L79: Lb | M79: =IF(C79=(""),"",VLOOKUP(C79,'NNR_PDP-per-Dollar'!$B$6:$T$125,19,FALSE)) -> 0.45 | N79: X | O79: 0 | T79: --- | X79: X | Y79: =IF(ISBLANK(X79),"---",Z79) -> 2 | Z79: 2 | AA79: Lb | AB79: 1905-07-09 | AD79: --- | AI79: --- | AN79: --- | AS79: --- | AX79: --- | BC79: --- | BH79: ---
A80: 73 | C80: Rutabagas, raw | D80: Rutabaga | E80: Cooking Vegetable | F80: 0.02 | G80: Bags or lined Banana Boxes | H80: 0.05 | I80: =IF(C80=(""),"",VLOOKUP(C80,LastYearContractPricelist!$B$4:$F$124,4,FALSE)) -> 1.05 | J80: NNR16_Rutabaga | K80: 2.5 | L80: Lb | M80: =IF(C80=(""),"",VLOOKUP(C80,'NNR_PDP-per-Dollar'!$B$6:$T$125,19,FALSE)) -> 1.3 | N80: X | O80: 2.5 | P80: 2.5 | Q80: Lb | R80: 1905-07-09 | T80: --- | X80: X | Y80: 2.5 | Z80: 2.5 | AA80: Lb | AB80: 1905-07-09 | AD80: --- | AI80: --- | AN80: --- | AS80: --- | AX80: --- | BC80: --- | BH80: ---
A81: 74 | C81: Salsify, (vegetable oyster), raw | D81: Salsify | E81: Cooking Vegetable | F81: 0.08 | G81: Bags or lined Banana Boxes | H81: 0.05 | I81: =IF(C81=(""),"",VLOOKUP(C81,LastYearContractPricelist!$B$4:$F$124,4,FALSE)) -> 1.55 | J81: NNR16_Salsify | K81: 3 | L81: Lb | M81: =IF(C81=(""),"",VLOOKUP(C81,'NNR_PDP-per-Dollar'!$B$6:$T$125,19,FALSE)) -> 1.55 | O81: --- | S81: X | T81: 3 | U81: 3 | V81: Lb | W81: 1905-07-09 | Y81: --- | AD81: --- | AI81: --- | AN81: --- | AS81: --- | AX81: --- | BC81: --- | BH81: ---
A82: 75 | C82: Spices, all except Basil, Cilantro, Dill | D82: Spices, all except Basil, Cilantro, Dill | E82: Salad Vegetable | F82: 0 | G82: Bags or lined Banana Boxes | H82: 0.05 | I82: 5.05 | J82: NNR16_AllOtherSpices | K82: 5.05 | L82: Lb | M82: =IF(C82=(""),"",VLOOKUP(C82,'NNR_PDP-per-Dollar'!$B$6:$T$125,19,FALSE)) -> 2.575 | N82: X | O82: 5.05 | P82: 5.05 | Q82: Lb | R82: 1905-07-09 | T82: --- | Y82: --- | AD82: --- | AI82: --- | AN82: --- | AS82: --- | AX82: --- | BC82: --- | BH82: ---
A83: 76 | C83: Spinach, baby | D83: Spinach, mature | E83: Salad Vegetable | F83: 0.21 | G83: Bags or lined Banana Boxes | H83: 0.05 | I83: =IF(C83=(""),"",VLOOKUP(C83,LastYearContractPricelist!$B$4:$F$124,4,FALSE)) -> 2.8 | J83: NNR16_Spinach | K83: 5.5 | L83: Lb | M83: =IF(C83=(""),"",VLOOKUP(C83,'NNR_PDP-per-Dollar'!$B$6:$T$125,19,FALSE)) -> 3.35 | N83: X | O83: 5 | P83: 5 | Q83: Lb | R83: 1905-07-09 | T83: --- | X83: X | Y83: 6 | Z83: 6 | AA83: Lb | AB83: 1905-07-09 | AD83: --- | AI83: --- | AN83: --- | AS83: --- | AX83: --- | BC83: --- | BH83: ---
A84: 77 | C84: Squash, summer, baby | D84: Squash, summer, mature | E84: Salad Vegetable | F84: 0.18 | G84: Bags or lined Banana Boxes | H84: 0.05 | I84: =IF(C84=(""),"",VLOOKUP(C84,LastYearContractPricelist!$B$4:$F$124,4,FALSE)) -> 0.74 | J84: NNR16_SummerSquash | K84: 1.4 | L84: Lb | M84: =IF(C84=(""),"",VLOOKUP(C84,'NNR_PDP-per-Dollar'!$B$6:$T$125,19,FALSE)) -> 0.75 | O84: --- | P84: 4 | Q84: Lb | R84: 1905-07-09 | T84: --- | X84: X | Y84: 1.4 | Z84: 1.4 | AA84: Lb | AD84: --- | AI84: --- | AN84: --- | AS84: --- | AX84: --- | BC84: --- | BH84: ---
A85: 78 | C85: Squash, winter, acorn, raw | D85: Squash, winter, all | E85: Salad Vegetable | F85: 0.21 | G85: Bags or lined Banana Boxes | H85: 0.05 | I85: =IF(C85=(""),"",VLOOKUP(C85,LastYearContractPricelist!$B$4:$F$124,4,FALSE)) -> 0.61 | J85: NNR16_WinterSquashAcorn | K85: 1.125 | L85: Lb | M85: =IF(C85=(""),"",VLOOKUP(C85,'NNR_PDP-per-Dollar'!$B$6:$T$125,19,FALSE)) -> 0.6125 | N85: X | O85: 1.25 | P85: 1.25 | Q85: Lb | R85: 1905-07-09 | T85: --- | X85: X | Y85: 1 | Z85: 1 | AA85: Lb | AB85: 1905-07-09 | AD85: --- | AI85: --- | AN85: --- | AS85: --- | AX85: --- | BC85: --- | BH85: ---
A86: 79 | C86: Squash, winter, Hubbard, raw | D86: Strawberry | E86: Salad Vegetable | F86: 0.21 | G86: Bags or lined Banana Boxes | H86: 0.05 | I86: =IF(C86=(""),"",VLOOKUP(C86,LastYearContractPricelist!$B$4:$F$124,4,FALSE)) -> 0.5 | J86: NNR16_WinterSquashHubbard | K86: 0.9 | L86: Lb | M86: =IF(C86=(""),"",VLOOKUP(C86,'NNR_PDP-per-Dollar'!$B$6:$T$125,19,FALSE)) -> 0.5 | N86: X | O86: 0.9 | P86: 0.9 | Q86: Lb | R86: 1905-07-09 | T86: --- | X86: X | Y86: 0.9 | Z86: 0.9 | AA86: Lb | AB86: 1905-07-09 | AD86: --- | AI86: --- | AN86: --- | AS86: --- | AX86: --- | BC86: --- | BH86: ---
A87: 80 | C87: Sweet potato, raw, unprepared | D87: Sweet Potato | E87: Salad Vegetable | F87: 0 | G87: Bags or lined Banana Boxes | H87: 0.05 | I87: =IF(C87=(""),"",VLOOKUP(C87,LastYearContractPricelist!$B$4:$F$124,4,FALSE)) -> 0.85 | J87: NNR16_SweetPotato | K87: 2 | L87: Lb | M87: =IF(C87=(""),"",VLOOKUP(C87,'NNR_PDP-per-Dollar'!$B$6:$T$125,19,FALSE)) -> 0.85 | O87: --- | T87: --- | X87: X | Y87: 2 | Z87: 2 | AA87: Lb | AB87: 1905-07-09 | AD87: --- | AI87: --- | AN87: --- | AS87: --- | AX87: --- | BC87: --- | BH87: ---
A88: 81 | C88: Chard, Swiss, Raw | D88: Swiss Chard | E88: Salad Vegetable | F88: 0.04 | G88: Bags or lined Banana Boxes | H88: 0.05 | I88: =IF(C88=(""),"",VLOOKUP(C88,LastYearContractPricelist!$B$4:$F$124,4,FALSE)) -> 2.05 | J88: NNR16_SwissChard | K88: 3.578125 | L88: Lb | M88: =IF(C88=(""),"",VLOOKUP(C88,'NNR_PDP-per-Dollar'!$B$6:$T$125,19,FALSE)) -> 1.8390625 | N88: X | O88: 4 | P88: 4 | Q88: Lb | R88: 1905-07-09 | S88: X | T88: 2.25 | U88: =3*0.75 -> 2.25 | V88: Lb | W88: 6/28/19 | X88: X | Y88: 2.0625 | Z88: =2.75*0.75 -> 2.0625 | AA88: Lb | AB88: 2019-06-21 | AC88: X | AD88: 6 | AE88: 6 | AF88: Lb | AG88: 2019-07-05 | AI88: --- | AN88: --- | AS88: --- | AX88: --- | BC88: --- | BH88: ---
A89: 82 | C89: Tomato, grape | D89: Tomato, grape | E89: Salad Vegetable | F89: 0.59 | G89: Baskets or Flats | H89: 0.25 | I89: =IF(C89=(""),"",VLOOKUP(C89,LastYearContractPricelist!$B$4:$F$124,4,FALSE)) -> 2.35 | J89: NNR16_Tomatoes | K89: 3.5 | L89: Lb | M89: =IF(C89=(""),"",VLOOKUP(C89,'NNR_PDP-per-Dollar'!$B$6:$T$125,19,FALSE)) -> 2.35 | N89: X | O89: 4 | P89: 4 | Q89: Lb | R89: 1905-07-09 | T89: --- | X89: X | Y89: 3 | Z89: 3 | AA89: Lb | AB89: 1905-07-09 | AD89: --- | AI89: --- | AN89: --- | AS89: --- | AX89: --- | BC89: --- | BH89: ---
A90: 83 | C90: Tomato, plum | D90: Tomato, plum, roma, or slicing | E90: Salad Vegetable | F90: 0.59 | G90: Baskets or Flats | H90: 0.25 | I90: =IF(C90=(""),"",VLOOKUP(C90,LastYearContractPricelist!$B$4:$F$124,4,FALSE)) -> 2.05 | J90: NNR16_Tomatoes | K90: 3 | L90: Lb | M90: =IF(C90=(""),"",VLOOKUP(C90,'NNR_PDP-per-Dollar'!$B$6:$T$125,19,FALSE)) -> 2.05 | N90: X | O90: 3 | P90: 3 | Q90: Lb | R90: 1905-07-09 | T90: --- | X90: X | Y90: 3 | Z90: 3 | AA90: Lb | AB90: 1905-07-09 | AD90: --- | AI90: --- | AN90: --- | AS90: --- | AX90: --- | BC90: --- | BH90: ---
A91: 84 | C91: Turnip greens and turnips, frozen, unprepared | D91: Turnip, greens | E91: Salad Vegetable | F91: 0.08 | G91: Bags or lined Banana Boxes | H91: 0.05 | I91: =IF(C91=(""),"",VLOOKUP(C91,LastYearContractPricelist!$B$4:$F$124,4,FALSE)) -> 2.05 | J91: NNR16_TurnipGreens | K91: 4 | L91: Lb | M91: =IF(C91=(""),"",VLOOKUP(C91,'NNR_PDP-per-Dollar'!$B$6:$T$125,19,FALSE)) -> 1.65 | N91: X | O91: 4 | P91: 4 | Q91: Lb | R91: 1905-07-09 | T91: --- | X91: X | Y91: 4 | Z91: 4 | AA91: Lb | AB91: 1905-07-09 | AD91: --- | AI91: --- | AN91: --- | AS91: --- | AX91: --- | BC91: --- | BH91: ---
A92: 85 | C92: Turnip root, mature | D92: Turnip, root | E92: Salad Vegetable | F92: 0.08 | G92: Bags or lined Banana Boxes | H92: 0.05 | I92: =IF(C92=(""),"",VLOOKUP(C92,LastYearContractPricelist!$B$4:$F$124,4,FALSE)) -> 1.05 | J92: NNR16_Turnip | K92: 2 | L92: Lb | M92: =IF(C92=(""),"",VLOOKUP(C92,'NNR_PDP-per-Dollar'!$B$6:$T$125,19,FALSE)) -> 0.85 | N92: X | O92: 2 | P92: 2 | Q92: Lb | R92: 1905-07-09 | T92: --- | X92: X | Y92: 2 | Z92: 2 | AA92: Lb | AB92: 1905-07-09 | AD92: --- | AI92: --- | AN92: --- | AS92: --- | AX92: --- | BC92: --- | BH92: ---
A93: 86 | C93: Turnip root, salad | D93: Turnip, salad type | E93: Salad Vegetable | F93: 0.08 | G93: Bags or lined Banana Boxes | H93: 0.05 | I93: =IF(C93=(""),"",VLOOKUP(C93,LastYearContractPricelist!$B$4:$F$124,4,FALSE)) -> 2.05 | J93: NNR16_Turnip | K93: 4 | L93: Lb | M93: =IF(C93=(""),"",VLOOKUP(C93,'NNR_PDP-per-Dollar'!$B$6:$T$125,19,FALSE)) -> 1.65 | N93: X | O93: =IF(ISBLANK(N93),"---",P93) -> 4 | P93: 4 | Q93: Lb | R93: 1905-07-09 | T93: --- | X93: X | Y93: 4 | Z93: 4 | AA93: Lb | AB93: 1905-07-09 | AD93: --- | AI93: --- | AN93: --- | AS93: --- | AX93: --- | BC93: --- | BH93: ---
A94: 87 | C94: Watermelon, raw | D94: Watermelon, red | E94: Fruit and Berries | F94: 0.44 | G94: Loose in Banana Boxes | H94: 0.1 | I94: =IF(C94=(""),"",VLOOKUP(C94,LastYearContractPricelist!$B$4:$F$124,4,FALSE)) -> 0.55 | J94: NNR16_Watermelon | K94: 0.59 | L94: Lb | M94: =IF(C94=(""),"",VLOOKUP(C94,'NNR_PDP-per-Dollar'!$B$6:$T$125,19,FALSE)) -> 0.395 | O94: --- | T94: --- | X94: X | Y94: 0.59 | Z94: 0.59 | AA94: Lb | AB94: 1905-07-09 | AD94: --- | AI94: --- | AN94: --- | AS94: --- | AX94: --- | BC94: --- | BH94: ---
A95: 88 | C95: Watermellon (yellow) | D95: Watermelon, yellow | E95: Fruit and Berries | F95: 0.44 | G95: Loose in Banana Boxes | H95: 0.1 | I95: =IF(C95=(""),"",VLOOKUP(C95,LastYearContractPricelist!$B$4:$F$124,4,FALSE)) -> 0.55 | J95: NNR16_Watermelon | K95: 0.9 | L95: Lb | M95: =IF(C95=(""),"",VLOOKUP(C95,'NNR_PDP-per-Dollar'!$B$6:$T$125,19,FALSE)) -> 0.55 | O95: --- | T95: --- | X95: X | Y95: 0.9 | Z95: 0.9 | AA95: Lb | AB95: 1905-07-09 | AD95: --- | AI95: --- | AN95: --- | AS95: --- | AX95: --- | BC95: --- | BH95: ---
A96: 89 | I96: =IF(C96=(""),"",VLOOKUP(C96,LastYearContractPricelist!$B$4:$F$124,4,FALSE)) ->  | K96: =IF(C96=(""),"",IFERROR(AVERAGE(O96,T96,Y96,AD96,AI96,AN96,AS96,AX96,BC96,BH96),"")) ->  | L96: Lb | M96: =IF(C96=(""),"",VLOOKUP(C96,'NNR_PDP-per-Dollar'!$B$6:$T$125,19,FALSE)) ->  | O96: =IF(ISBLANK(N96),"---",P96) -> --- | T96: =IF(ISBLANK(S96),"---",U96) -> --- | Y96: =IF(ISBLANK(X96),"---",Z96) -> --- | AD96: =IF(ISBLANK(AC96),"---",AE96) -> --- | AI96: =IF(ISBLANK(AH96),"---",AJ96) -> --- | AN96: =IF(ISBLANK(AM96),"---",AO96) -> --- | AS96: =IF(ISBLANK(AR96),"---",AT96) -> --- | AX96: =IF(ISBLANK(AW96),"---",AY96) -> --- | BC96: =IF(ISBLANK(BB96),"---",BD96) -> --- | BH96: =IF(ISBLANK(BG96),"---",BI96) -> ---
A97: 90 | I97: =IF(C97=(""),"",VLOOKUP(C97,LastYearContractPricelist!$B$4:$F$124,4,FALSE)) ->  | L97: Lb | M97: =IF(C97=(""),"",VLOOKUP(C97,'NNR_PDP-per-Dollar'!$B$6:$T$125,19,FALSE)) ->  | O97: --- | T97: --- | Y97: --- | AD97: --- | AI97: --- | AN97: --- | AS97: --- | AX97: --- | BC97: --- | BH97: ---
A98: 91 | L98: Lb | M98: =IF(C98=(""),"",VLOOKUP(C98,'NNR_PDP-per-Dollar'!$B$6:$T$125,19,FALSE)) ->  | O98: --- | T98: --- | Y98: --- | AD98: --- | AI98: --- | AN98: --- | AS98: --- | AX98: --- | BC98: --- | BH98: ---
A99: 92 | C99: Bean, edible seed, dry | D99: Bean, dry | E99: Cooking Vegetable | F99: 0 | G99: Bags or lined Banana Boxes | H99: =IF(G99=(""),"",IF(G99="Loose in Banana Boxes",0.1,IF(G99="Baskets or Flats",0.25,0.05))) -> 0.05 | I99: =IF(C99=(""),"",VLOOKUP(C99,LastYearContractPricelist!$B$4:$F$124,4,FALSE)) -> 10.05 | J99: NNR16_BeansKidneysAllVarieties | K99: 10 | L99: Lb | M99: =IF(C99=(""),"",VLOOKUP(C99,'NNR_PDP-per-Dollar'!$B$6:$T$125,19,FALSE)) -> 6.05 | O99: --- | S99: X | T99: 10 | U99: 10 | V99: Lb | W99: 1905-07-09 | Y99: --- | AD99: --- | AI99: --- | AN99: --- | AS99: --- | AX99: --- | BC99: --- | BH99: ---
A100: 93 | C100: Bean, Edible seed, fresh | E100: Cooking Vegetable | F100: 0 | G100: Bags or lined Banana Boxes | H100: 0.05 | I100: =IF(C100=(""),"",VLOOKUP(C100,LastYearContractPricelist!$B$4:$F$124,4,FALSE)) -> 4.1 | J100: NNR16_BeansKidneysAllVarieties | K100: 4.1 | L100: Lb | M100: =IF(C100=(""),"",VLOOKUP(C100,'NNR_PDP-per-Dollar'!$B$6:$T$125,19,FALSE)) -> 2.51 | O100: --- | S100: X | T100: 4.1 | U100: 4.1 | Y100: --- | AD100: --- | AI100: --- | AN100: --- | AS100: --- | AX100: --- | BC100: --- | BH100: ---
A101: 94 | C101: Beets, Raw | E101: Cooking Vegetable | F101: 0.31 | G101: Bags or lined Banana Boxes | H101: 0.05 | I101: =IF(C101=(""),"",VLOOKUP(C101,LastYearContractPricelist!$B$4:$F$124,4,FALSE)) ->  | J101: NNR16_Beets | K101: 1.75 | L101: Lb | M101: =IF(C101=(""),"",VLOOKUP(C101,'NNR_PDP-per-Dollar'!$B$6:$T$125,19,FALSE)) -> 0.925 | N101: X | O101: 2 | P101: 2 | Q101: Lb | R101: 1905-07-09 | T101: --- | X101: X | Y101: 1.5 | Z101: 1.5 | AA101: Lb | AB101: 1905-07-09 | AD101: --- | AI101: --- | AN101: --- | AS101: --- | AX101: --- | BC101: --- | BH101: ---
A102: 95 | C102: Carrot, baby, all colors, bunched with tops | E102: Salad Vegetable | F102: 0.65 | G102: Bags or lined Banana Boxes | H102: 0.05 | I102: =IF(C102=(""),"",VLOOKUP(C102,LastYearContractPricelist!$B$4:$F$124,4,FALSE)) -> 1.55 | J102: NNR16_Carrot | K102: 2.5 | L102: Lb | M102: =IF(C102=(""),"",VLOOKUP(C102,'NNR_PDP-per-Dollar'!$B$6:$T$125,19,FALSE)) -> 1.55 | N102: X | O102: 2.5 | P102: =2.5 -> 2.5 | Q102: Lb | R102: 1905-07-09 | T102: --- | Y102: --- | AD102: --- | AI102: --- | AN102: --- | AS102: --- | AX102: --- | BC102: --- | BH102: ---
A103: 96 | C103: Coriander (Cilantro) Leaves, Raw | E103: Salad Vegetable | F103: 0.59 | G103: Bags or lined Banana Boxes | H103: 0.05 | I103: =IF(C103=(""),"",VLOOKUP(C103,LastYearContractPricelist!$B$4:$F$124,4,FALSE)) -> 6.05 | J103: NNR16_Cilantro | K103: 10 | L103: Lb | M103: =IF(C103=(""),"",VLOOKUP(C103,'NNR_PDP-per-Dollar'!$B$6:$T$125,19,FALSE)) -> 6.05 | N103: X | O103: 10 | P103: 10 | Q103: Lb | R103: 1905-07-09 | T103: --- | X103: X | Y103: 10 | Z103: 10 | AA103: Lb | AB103: 1905-07-09 | AD103: --- | AI103: --- | AN103: --- | AS103: --- | AX103: --- | BC103: --- | BH103: ---
A104: =A103+1 -> 97 | C104: Corn, Dried | E104: Cooking Vegetable | F104: 0 | G104: Bagged | H104: =IF(G104=(""),"",IF(G104="Loose in Banana Boxes",0.1,IF(G104="Baskets or Flats",0.25,0.05))) -> 0.05 | I104: =IF(C104=(""),"",VLOOKUP(C104,LastYearContractPricelist!$B$4:$F$124,4,FALSE)) -> 5.05 | J104: NNR16_CornDried | K104: 10 | L104: Lb | M104: =IF(C104=(""),"",VLOOKUP(C104,'NNR_PDP-per-Dollar'!$B$6:$T$125,19,FALSE)) -> 5.05 | O104: --- | S104: X | T104: 10 | U104: 10 | V104: Lb | W104: 1905-07-09 | Y104: --- | AD104: --- | AI104: --- | AN104: --- | AS104: --- | AX104: --- | BC104: --- | BH104: ---
A105: 98 | C105: Cress, garden, raw | E105: Salad Vegetable | F105: 0.08 | G105: Bags or lined Banana Boxes | H105: 0.05 | I105: =IF(C105=(""),"",VLOOKUP(C105,LastYearContractPricelist!$B$4:$F$124,4,FALSE)) -> 3.05 | J105: NNR16_Cress | K105: 5 | L105: Lb | M105: =IF(C105=(""),"",VLOOKUP(C105,'NNR_PDP-per-Dollar'!$B$6:$T$125,19,FALSE)) -> 2.05 | N105: X | O105: 5 | P105: 5 | Q105: Lb | R105: 1905-07-09 | T105: --- | Y105: --- | AD105: --- | AI105: --- | AN105: --- | AS105: --- | AX105: --- | BC105: --- | BH105: ---
A106: 99 | C106: Cucumber, pickling, large | E106: Cooking Vegetable | F106: 0.61 | G106: Bags or lined Banana Boxes | H106: 0.05 | I106: =IF(C106=(""),"",VLOOKUP(C106,LastYearContractPricelist!$B$4:$F$124,4,FALSE)) -> 0.5 | J106: NNR16_Cucumber | K106: 1 | L106: Lb | M106: =IF(C106=(""),"",VLOOKUP(C106,'NNR_PDP-per-Dollar'!$B$6:$T$125,19,FALSE)) -> 0.65 | N106: X | O106: 1 | P106: 1 | Q106: Lb | R106: 1905-07-09 | T106: --- | X106: X | Y106: 1 | Z106: 1 | AA106: Lb | AB106: 1905-07-09 | AD106: --- | AI106: --- | AN106: --- | AS106: --- | AX106: --- | BC106: --- | BH106: ---
A107: 100 | C107: Edamame shellled soybeans | E107: Cooking Vegetable | F107: 0 | G107: Bags or lined Banana Boxes | H107: 0.05 | I107: =IF(C107=(""),"",VLOOKUP(C107,LastYearContractPricelist!$B$4:$F$124,4,FALSE)) -> 1.25 | J107: NNR16_SoybeansEdamame | K107: 3 | L107: Lb | M107: =IF(C107=(""),"",VLOOKUP(C107,'NNR_PDP-per-Dollar'!$B$6:$T$125,19,FALSE)) -> 1.55 | O107: --- | S107: X | T107: 3 | U107: 3 | V107: Lb | W107: 1905-07-09 | Y107: --- | AD107: --- | AI107: --- | AN107: --- | AS107: --- | AX107: --- | BC107: --- | BH107: ---
A108: 101 | C108: Melons, honeydew, raw | E108: Fruit and Berries | F108: 0.44 | G108: Bags or lined Banana Boxes | H108: 0.05 | I108: =IF(C108=(""),"",VLOOKUP(C108,LastYearContractPricelist!$B$4:$F$124,4,FALSE)) -> 0.5 | J108: NNR16_HoneydewMellon | K108: 0.9 | L108: Lb | M108: =IF(C108=(""),"",VLOOKUP(C108,'NNR_PDP-per-Dollar'!$B$6:$T$125,19,FALSE)) -> 0.5 | O108: --- | T108: --- | X108: X | Y108: 0.9 | Z108: 0.9 | AA108: Lb | AB108: 1905-07-09 | AD108: --- | AI108: --- | AN108: --- | AS108: --- | AX108: --- | BC108: --- | BH108: ---
A109: 102 | C109: Mushrooms, white, raw | E109: Cooking Vegetable | F109: 0.58 | G109: Baskets or Flats | H109: 0.25 | I109: =IF(C109=(""),"",VLOOKUP(C109,LastYearContractPricelist!$B$4:$F$124,4,FALSE)) -> 2.65 | J109: NNR16_Mushroom | K109: 4 | L109: Lb | M109: =IF(C109=(""),"",VLOOKUP(C109,'NNR_PDP-per-Dollar'!$B$6:$T$125,19,FALSE)) -> 5.65 | O109: --- | S109: X | T109: 4 | U109: 4 | V109: Lb | W109: 1905-07-09 | Y109: --- | AD109: --- | AI109: --- | AN109: --- | AS109: --- | AX109: --- | BC109: --- | BH109: ---
A110: 103 | C110: Onions, spring or scallions (includes tops and bulb), raw | E110: Cooking Vegetable | F110: 0.36 | G110: Bags or lined Banana Boxes | H110: 0.05 | I110: =IF(C110=(""),"",VLOOKUP(C110,LastYearContractPricelist!$B$4:$F$124,4,FALSE)) ->  | J110: NNR16_OnionBulbs | K110: 1.27 | L110: Lb | M110: =IF(C110=(""),"",VLOOKUP(C110,'NNR_PDP-per-Dollar'!$B$6:$T$125,19,FALSE)) -> 2.45 | N110: X | O110: 1.25 | P110: 1.25 | Q110: Lb | R110: 1905-07-09 | T110: --- | X110: X | Y110: 1.29 | Z110: 1.29 | AA110: Lb | AB110: 1905-07-09 | AD110: --- | AI110: --- | AN110: --- | AS110: --- | AX110: --- | BC110: --- | BH110: ---
A111: 104 | C111: Pepper, bell type, colored, midsized | E111: Salad Vegetable | F111: 0.28 | G111: Bags or lined Banana Boxes | H111: 0.05 | I111: =IF(C111=(""),"",VLOOKUP(C111,LastYearContractPricelist!$B$4:$F$124,4,FALSE)) -> 4.55 | J111: NNR16_PepperColored | K111: 9 | L111: Lb | M111: =IF(C111=(""),"",VLOOKUP(C111,'NNR_PDP-per-Dollar'!$B$6:$T$125,19,FALSE)) -> 4.55 | N111: X | O111: 9 | P111: =1.5*(6/1) -> 9 | Q111: Lb | R111: 1905-07-09 | T111: --- | X111: X | Y111: 9 | Z111: =1.5*(6/1) -> 9 | AA111: Lb | AB111: 1905-07-09 | AD111: --- | AI111: --- | AN111: --- | AS111: --- | AX111: --- | BC111: --- | BH111: ---
A112: 105 | C112: Pepper, bell type, green, big | E112: Salad Vegetable | F112: 0.28 | G112: Bags or lined Banana Boxes | H112: 0.05 | I112: =IF(C112=(""),"",VLOOKUP(C112,LastYearContractPricelist!$B$4:$F$124,4,FALSE)) -> 4.05 | J112: NNR16_BellPepper | K112: 8 | L112: Lb | M112: =IF(C112=(""),"",VLOOKUP(C112,'NNR_PDP-per-Dollar'!$B$6:$T$125,19,FALSE)) -> 4.05 | N112: X | O112: 8 | P112: =2*(4/1) -> 8 | Q112: Lb | R112: 1905-07-09 | T112: --- | X112: X | Y112: 8 | Z112: =2*(4/1) -> 8 | AA112: Lb | AB112: 1905-07-09 | AD112: --- | AI112: --- | AN112: --- | AS112: --- | AX112: --- | BC112: --- | BH112: ---
A113: 106 | C113: Pepper, bell type, green, midsized | E113: Salad Vegetable | F113: 0.28 | G113: Bags or lined Banana Boxes | H113: 0.05 | I113: =IF(C113=(""),"",VLOOKUP(C113,LastYearContractPricelist!$B$4:$F$124,4,FALSE)) -> 3.05 | J113: NNR16_BellPepper | K113: 6 | L113: Lb | M113: =IF(C113=(""),"",VLOOKUP(C113,'NNR_PDP-per-Dollar'!$B$6:$T$125,19,FALSE)) -> 3.05 | N113: X | O113: 6 | P113: =1*(6/1) -> 6 | Q113: Lb | R113: 1905-07-09 | T113: --- | X113: X | Y113: 6 | Z113: =1*(6/1) -> 6 | AA113: Lb | AB113: 1905-07-09 | AD113: --- | AI113: --- | AN113: --- | AS113: --- | AX113: --- | BC113: --- | BH113: ---
A114: 107 | C114: Peppers, jalapeno, raw | E114: Salad Vegetable | F114: 0.11 | G114: Bags or lined Banana Boxes | H114: 0.05 | I114: =IF(C114=(""),"",VLOOKUP(C114,LastYearContractPricelist!$B$4:$F$124,4,FALSE)) -> 3.05 | J114: NNR16_PepperHot | K114: 6 | L114: Lb | M114: =IF(C114=(""),"",VLOOKUP(C114,'NNR_PDP-per-Dollar'!$B$6:$T$125,19,FALSE)) -> 3.05 | N114: X | O114: 6 | P114: =0.75*(8/1) -> 6 | Q114: Lb | R114: 1905-07-09 | T114: --- | X114: X | Y114: 6 | Z114: =0.75*(8/1) -> 6 | AA114: Lb | AB114: 1905-07-09 | AD114: --- | AI114: --- | AN114: --- | AS114: --- | AX114: --- | BC114: --- | BH114: ---
A115: 108 | M115: =IF(C115=(""),"",VLOOKUP(C115,'NNR_PDP-per-Dollar'!$B$6:$T$125,19,FALSE)) ->  | O115: --- | T115: --- | Y115: --- | AD115: --- | AI115: --- | AN115: --- | AS115: --- | AX115: --- | BC115: --- | BH115: ---
A116: 109 | C116: Spices, all except Basil, Cilantro, Dill | E116: Salad Vegetable | F116: =AVERAGE(F38,F41) -> 0.295 | G116: Bagged | H116: 0.05 | I116: =AVERAGE(I38,I41) -> 4.55 | K116: 8 | L116: Lb | M116: =IF(C116=(""),"",VLOOKUP(C116,'NNR_PDP-per-Dollar'!$B$6:$T$125,19,FALSE)) -> 2.575 | O116: --- | S116: X | T116: 8 | U116: 8 | Y116: --- | AD116: --- | AI116: --- | AN116: --- | AS116: --- | AX116: --- | BC116: --- | BH116: ---
A117: 110 | C117: Spinach, mature | E117: Cooking Vegetable | F117: 0.21 | G117: Bags or lined Banana Boxes | H117: 0.05 | I117: =IF(C117=(""),"",VLOOKUP(C117,LastYearContractPricelist!$B$4:$F$124,4,FALSE)) -> 2.55 | J117: NNR16_Spinach | K117: 5 | L117: Lb | M117: =IF(C117=(""),"",VLOOKUP(C117,'NNR_PDP-per-Dollar'!$B$6:$T$125,19,FALSE)) -> 3.05 | N117: X | O117: 5 | P117: 5 | Q117: Lb | R117: 1905-07-09 | T117: --- | X117: X | Y117: 5 | Z117: 5 | AA117: Lb | AB117: 1905-07-09 | AD117: --- | AI117: --- | AN117: --- | AS117: --- | AX117: --- | BC117: --- | BH117: ---
A118: 111 | C118: Squash, Buttercup | E118: Cooking Vegetable | F118: 0.21 | G118: Bags or lined Banana Boxes | H118: 0.05 | I118: =IF(C118=(""),"",VLOOKUP(C118,LastYearContractPricelist!$B$4:$F$124,4,FALSE)) ->  | J118: NNR16_WinterSquash | K118: 1.125 | L118: Lb | M118: =IF(C118=(""),"",VLOOKUP(C118,'NNR_PDP-per-Dollar'!$B$6:$T$125,19,FALSE)) -> 0.6125 | N118: X | O118: 1.25 | P118: 1.25 | Q118: Lb | R118: 1905-07-09 | T118: --- | X118: X | Y118: 1 | Z118: 1 | AA118: Lb | AB118: 1905-07-09 | AD118: --- | AI118: --- | AN118: --- | AS118: --- | AX118: --- | BC118: --- | BH118: ---
A119: 112 | C119: Squash, summer, mature | E119: Cooking Vegetable | F119: 0.18 | G119: Bags or lined Banana Boxes | H119: 0.05 | I119: =IF(C119=(""),"",VLOOKUP(C119,LastYearContractPricelist!$B$4:$F$124,4,FALSE)) -> 0.74 | J119: NNR16_SummerSquash | K119: 1.375 | L119: Lb | M119: =IF(C119=(""),"",VLOOKUP(C119,'NNR_PDP-per-Dollar'!$B$6:$T$125,19,FALSE)) -> 0.7375 | N119: X | O119: 1.5 | P119: 1.5 | Q119: Lb | R119: 1905-07-09 | T119: --- | X119: X | Y119: 1.25 | Z119: 1.25 | AA119: Lb | AB119: 1905-07-09 | AD119: --- | AI119: --- | AN119: --- | AS119: --- | AX119: --- | BC119: --- | BH119: ---
A120: 113 | C120: Squash, winter butternut, raw | E120: Cooking Vegetable | F120: 0.21 | G120: Bags or lined Banana Boxes | H120: 0.05 | I120: =IF(C120=(""),"",VLOOKUP(C120,LastYearContractPricelist!$B$4:$F$124,4,FALSE)) -> 0.68 | J120: NNR16_WinterSquashButternut | K120: 1.25 | L120: Lb | M120: =IF(C120=(""),"",VLOOKUP(C120,'NNR_PDP-per-Dollar'!$B$6:$T$125,19,FALSE)) -> 0.675 | N120: X | O120: 1.25 | P120: 1.25 | Q120: Lb | R120: 1905-07-09 | T120: --- | X120: X | Y120: 1.25 | Z120: 1.25 | AA120: Lb | AB120: 1905-07-09 | AD120: --- | AI120: --- | AN120: --- | AS120: --- | AX120: --- | BC120: --- | BH120: ---
A121: 114 | C121: Squash, Winter, All Varieties, Raw | E121: Cooking Vegetable | F121: 0.21 | G121: Bags or lined Banana Boxes | H121: 0.05 | I121: =IF(C121=(""),"",VLOOKUP(C121,LastYearContractPricelist!$B$4:$F$124,4,FALSE)) -> 0.5 | J121: NNR16_WinterSquash | K121: 1.25 | L121: Lb | M121: =IF(C121=(""),"",VLOOKUP(C121,'NNR_PDP-per-Dollar'!$B$6:$T$125,19,FALSE)) -> 0.675 | N121: X | O121: 1.5 | P121: 1.5 | Q121: Lb | R121: 1905-07-09 | T121: --- | X121: X | Y121: 1 | Z121: 1 | AA121: Lb | AB121: 1905-07-09 | AD121: --- | AI121: --- | AN121: --- | AS121: --- | AX121: --- | BC121: --- | BH121: ---
A122: 115 | C122: Taro, raw | E122: Salad Vegetable | F122: 0 | G122: Bags or lined Banana Boxes | H122: 0.05 | I122: =IF(C122=(""),"",VLOOKUP(C122,LastYearContractPricelist!$B$4:$F$124,4,FALSE)) -> 0.85 | J122: NNR16_Taro | K122: 2 | M122: =IF(C122=(""),"",VLOOKUP(C122,'NNR_PDP-per-Dollar'!$B$6:$T$125,19,FALSE)) -> 0.85 | O122: --- | S122: X | T122: 2 | U122: 2 | V122: Lb | W122: 1905-07-09 | Y122: --- | AD122: --- | AI122: --- | AN122: --- | AS122: --- | AX122: --- | BC122: --- | BH122: ---
A123: 116 | C123: Tomato paste, 100% tomatoes | E123: Cooking Vegetable | F123: 0.59 | G123: Baskets or Flats | H123: 0.25 | I123: =IF(C123=(""),"",VLOOKUP(C123,LastYearContractPricelist!$B$4:$F$124,4,FALSE)) -> 1.6 | J123: NNR16_TomatoPaste | K123: 3 | M123: =IF(C123=(""),"",VLOOKUP(C123,'NNR_PDP-per-Dollar'!$B$6:$T$125,19,FALSE)) -> 2.05 | N123: X | O123: 3 | P123: 3 | Q123: Lb | R123: 1905-07-09 | T123: --- | X123: X | Y123: 3 | Z123: 3 | AA123: Lb | AB123: 1905-07-09 | AD123: --- | AI123: --- | AN123: --- | AS123: --- | AX123: --- | BC123: --- | BH123: ---
A124: 117 | C124: Tomato, roma | E124: Salad Vegetable | F124: 0.59 | G124: Baskets or Flats | H124: 0.25 | I124: 1.5 | J124: NNR16_Tomatoes | K124: 2.5 | M124: =IF(C124=(""),"",VLOOKUP(C124,'NNR_PDP-per-Dollar'!$B$6:$T$125,19,FALSE)) -> 0.25 | N124: X | O124: 2 | P124: 2 | Q124: Lb | R124: 1905-07-09 | T124: --- | X124: X | Y124: 3 | Z124: 3 | AA124: Lb | AB124: 1905-07-09 | AD124: --- | AI124: --- | AN124: --- | AS124: --- | AX124: --- | BC124: --- | BH124: ---
A125: 118 | C125: Tomato, slicing | E125: Salad Vegetable | F125: 0.59 | G125: Baskets or Flats | H125: 0.25 | I125: 1.75 | J125: NNR16_Tomatoes | K125: 3 | M125: =IF(C125=(""),"",VLOOKUP(C125,'NNR_PDP-per-Dollar'!$B$6:$T$125,19,FALSE)) -> 0.25 | N125: X | O125: 3 | P125: 3 | Q125: Lb | R125: 1905-07-09 | T125: --- | X125: X | Y125: 3 | Z125: 3 | AA125: Lb | AB125: 1905-07-09 | AD125: --- | AI125: --- | AN125: --- | AS125: --- | AX125: --- | BC125: --- | BH125: ---
A126: 119 | I126: =IF(C126=(""),"",VLOOKUP(C126,LastYearContractPricelist!$B$4:$F$124,4,FALSE)) ->  | L126: Lb | M126: =IF(C126=(""),"",VLOOKUP(C126,'NNR_PDP-per-Dollar'!$B$6:$T$125,19,FALSE)) ->  | O126: --- | T126: --- | Y126: --- | AD126: --- | AI126: --- | AN126: --- | AS126: --- | AX126: --- | BC126: --- | BH126: ---
A127: 120 | I127: =IF(C127=(""),"",VLOOKUP(C127,LastYearContractPricelist!$B$4:$F$124,4,FALSE)) ->  | M127: =IF(C127=(""),"",VLOOKUP(C127,'NNR_PDP-per-Dollar'!$B$6:$T$125,19,FALSE)) ->  | O127: --- | T127: --- | Y127: --- | AD127: --- | AI127: --- | AN127: --- | AS127: --- | AX127: --- | BC127: --- | BH127: ---

Sheet FarmPricelistWorkSheet
F1: Per Lb
A2: SpCrop_ProduceItem | C2: ProducePricelistName | E2: Package Type | F2: Calculated Price | G2: Last Year's Price | H2: Final Price | I2: Packaging Inc. | J2: NNR Score | K2: Client Pref. | L2: PDP per Lb | M2: PDPs per $ | N2: Retail $ per Lb
A4: Apples, Raw, with skin | C4: 1 | D4: =IF(A4=(""),"",VLOOKUP(A4,RawData!$C$8:$J$127,2,FALSE)) -> Apple | E4: =IF(A4=(""),"",VLOOKUP(A4,RawData!$C$8:$BK$127,5,FALSE)) -> Loose in Banana Boxes | F4: =IF(A4=(""),"",VLOOKUP(A4,'NNR_PDP-per-Dollar'!$B$6:$T$125,19,FALSE)) -> 0.3825 | G4: =VLOOKUP(A4,LastYearContractPricelist!$B$4:$F$123,4,FALSE) -> 0.52 | H4: =IFERROR(IF(F4<G4,G4,F4),F4) -> 0.52 | I4: =IF(A4=(""),"",VLOOKUP(A4,RawData!$C$8:$J$127,6,FALSE)) -> 0.1 | J4: =IF(A4=(""),"",VLOOKUP(A4,'NNR_PDP-per-Dollar'!$B$6:$T$125,4,FALSE)) -> 1.773999022 | K4: =IF(A4=(""),"",VLOOKUP(A4,RawData!$C$8:$BK$127,4,FALSE)) -> 0.44 | L4: =IF(A4=(""),"",VLOOKUP(A4,'NNR_PDP-per-Dollar'!$B$6:$T$125,7,FALSE)) -> 2.022857143 | M4: =IF(A4=(""),"",VLOOKUP(A4,'NNR_PDP-per-Dollar'!$B$6:$T$125,10,FALSE)) -> 0
A5: Apricots, raw | C5: =1+C4 -> 2 | D5: =IF(A5=(""),"",VLOOKUP(A5,RawData!$C$8:$J$127,2,FALSE)) -> Apricot | E5: =IF(A5=(""),"",VLOOKUP(A5,RawData!$C$8:$BK$127,5,FALSE)) -> Baskets or Flats | F5: =IF(A5=(""),"",VLOOKUP(A5,'NNR_PDP-per-Dollar'!$B$6:$T$125,19,FALSE)) -> 1.25 | G5: =VLOOKUP(A5,LastYearContractPricelist!$B$4:$F$123,4,FALSE) -> 0.95 | H5: =IFERROR(IF(F5<G5,G5,F5),F5) -> 1.25 | I5: =IF(A5=(""),"",VLOOKUP(A5,RawData!$C$8:$J$127,6,FALSE)) -> 0.25 | J5: =IF(A5=(""),"",VLOOKUP(A5,'NNR_PDP-per-Dollar'!$B$6:$T$125,4,FALSE)) -> 5.562642774 | K5: =IF(A5=(""),"",VLOOKUP(A5,RawData!$C$8:$BK$127,4,FALSE)) -> 0.17 | L5: =IF(A5=(""),"",VLOOKUP(A5,'NNR_PDP-per-Dollar'!$B$6:$T$125,7,FALSE)) -> 1.251428571 | M5: =IF(A5=(""),"",VLOOKUP(A5,'NNR_PDP-per-Dollar'!$B$6:$T$125,10,FALSE)) -> 1.001142857
A6: Artichokes (Globe or French) Raw | C6: 3 | D6: =IF(A6=(""),"",VLOOKUP(A6,RawData!$C$8:$J$127,2,FALSE)) -> Artichoke | E6: =IF(A6=(""),"",VLOOKUP(A6,RawData!$C$8:$BK$127,5,FALSE)) -> Bags or lined Banana Boxes | F6: =IF(A6=(""),"",VLOOKUP(A6,'NNR_PDP-per-Dollar'!$B$6:$T$125,19,FALSE)) -> 6.05 | G6: =VLOOKUP(A6,LastYearContractPricelist!$B$4:$F$123,4,FALSE) -> 4.85 | H6: =IFERROR(IF(F6<G6,G6,F6),F6) -> 6.05 | I6: =IF(A6=(""),"",VLOOKUP(A6,RawData!$C$8:$J$127,6,FALSE)) -> 0.05 | J6: =IF(A6=(""),"",VLOOKUP(A6,'NNR_PDP-per-Dollar'!$B$6:$T$125,4,FALSE)) -> 6.508816219 | K6: =IF(A6=(""),"",VLOOKUP(A6,RawData!$C$8:$BK$127,4,FALSE)) -> 0 | L6: =IF(A6=(""),"",VLOOKUP(A6,'NNR_PDP-per-Dollar'!$B$6:$T$125,7,FALSE)) -> 0.9422222222 | M6: =IF(A6=(""),"",VLOOKUP(A6,'NNR_PDP-per-Dollar'!$B$6:$T$125,10,FALSE)) -> 0.1557392103
A7: Asparagus, Raw | C7: 4 | D7: =IF(A7=(""),"",VLOOKUP(A7,RawData!$C$8:$J$127,2,FALSE)) -> Asparagus | E7: =IF(A7=(""),"",VLOOKUP(A7,RawData!$C$8:$BK$127,5,FALSE)) -> Bags or lined Banana Boxes | F7: =IF(A7=(""),"",VLOOKUP(A7,'NNR_PDP-per-Dollar'!$B$6:$T$125,19,FALSE)) -> 1.85 | G7: =VLOOKUP(A7,LastYearContractPricelist!$B$4:$F$123,4,FALSE) -> 1.85 | H7: 1.85 | I7: =IF(A7=(""),"",VLOOKUP(A7,RawData!$C$8:$J$127,6,FALSE)) -> 0.05 | J7: =IF(A7=(""),"",VLOOKUP(A7,'NNR_PDP-per-Dollar'!$B$6:$T$125,4,FALSE)) -> 6.380187382 | K7: =IF(A7=(""),"",VLOOKUP(A7,RawData!$C$8:$BK$127,4,FALSE)) -> 0.64 | L7: =IF(A7=(""),"",VLOOKUP(A7,'NNR_PDP-per-Dollar'!$B$6:$T$125,7,FALSE)) -> 1.346666667 | M7: =IF(A7=(""),"",VLOOKUP(A7,'NNR_PDP-per-Dollar'!$B$6:$T$125,10,FALSE)) -> 0.7279279279
A8: Basil, fresh | C8: 5 | D8: =IF(A8=(""),"",VLOOKUP(A8,RawData!$C$8:$J$127,2,FALSE)) -> Basil | E8: =IF(A8=(""),"",VLOOKUP(A8,RawData!$C$8:$BK$127,5,FALSE)) -> Bags or lined Banana Boxes | F8: =IF(A8=(""),"",VLOOKUP(A8,'NNR_PDP-per-Dollar'!$B$6:$T$125,19,FALSE)) -> 3.783333333 | G8: =VLOOKUP(A8,LastYearContractPricelist!$B$4:$F$123,4,FALSE) -> 5.05 | H8: 5.05 | I8: =IF(A8=(""),"",VLOOKUP(A8,RawData!$C$8:$J$127,6,FALSE)) -> 0.05 | J8: =IF(A8=(""),"",VLOOKUP(A8,'NNR_PDP-per-Dollar'!$B$6:$T$125,4,FALSE)) -> 13.96235487 | K8: =IF(A8=(""),"",VLOOKUP(A8,RawData!$C$8:$BK$127,4,FALSE)) -> 0.08 | L8: =IF(A8=(""),"",VLOOKUP(A8,'NNR_PDP-per-Dollar'!$B$6:$T$125,7,FALSE)) -> 0.5511111111 | M8: =IF(A8=(""),"",VLOOKUP(A8,'NNR_PDP-per-Dollar'!$B$6:$T$125,10,FALSE)) -> 0.1456681351
A9: Beans, Snap, Green, Raw | C9: 6 | D9: =IF(A9=(""),"",VLOOKUP(A9,RawData!$C$8:$J$127,2,FALSE)) -> Bean, snap | E9: =IF(A9=(""),"",VLOOKUP(A9,RawData!$C$8:$BK$127,5,FALSE)) -> Bags or lined Banana Boxes | F9: =IF(A9=(""),"",VLOOKUP(A9,'NNR_PDP-per-Dollar'!$B$6:$T$125,19,FALSE)) -> 2.05 | G9: =VLOOKUP(A9,LastYearContractPricelist!$B$4:$F$123,4,FALSE) -> 2.25 | H9: 2.25 | I9: =IF(A9=(""),"",VLOOKUP(A9,RawData!$C$8:$J$127,6,FALSE)) -> 0.05 | J9: =IF(A9=(""),"",VLOOKUP(A9,'NNR_PDP-per-Dollar'!$B$6:$T$125,4,FALSE)) -> 5.676717727 | K9: =IF(A9=(""),"",VLOOKUP(A9,RawData!$C$8:$BK$127,4,FALSE)) -> 0.48 | L9: =IF(A9=(""),"",VLOOKUP(A9,'NNR_PDP-per-Dollar'!$B$6:$T$125,7,FALSE)) -> 1.022222222 | M9: =IF(A9=(""),"",VLOOKUP(A9,'NNR_PDP-per-Dollar'!$B$6:$T$125,10,FALSE)) -> 0.4986449864
A10: Beet, bulk, no tops | C10: 7 | D10: =IF(A10=(""),"",VLOOKUP(A10,RawData!$C$8:$J$127,2,FALSE)) -> Beet, bulk | E10: =IF(A10=(""),"",VLOOKUP(A10,RawData!$C$8:$BK$127,5,FALSE)) -> Bags or lined Banana Boxes | F10: =IF(A10=(""),"",VLOOKUP(A10,'NNR_PDP-per-Dollar'!$B$6:$T$125,19,FALSE)) -> 1.05 | G10: =VLOOKUP(A10,LastYearContractPricelist!$B$4:$F$123,4,FALSE) -> 0.93 | H10: 1.05 | I10: =IF(A10=(""),"",VLOOKUP(A10,RawData!$C$8:$J$127,6,FALSE)) -> 0.05 | J10: =IF(A10=(""),"",VLOOKUP(A10,'NNR_PDP-per-Dollar'!$B$6:$T$125,4,FALSE)) -> 4.715620352 | K10: =IF(A10=(""),"",VLOOKUP(A10,RawData!$C$8:$BK$127,4,FALSE)) -> 0.31 | L10: =IF(A10=(""),"",VLOOKUP(A10,'NNR_PDP-per-Dollar'!$B$6:$T$125,7,FALSE)) -> 0.5511111111 | M10: =IF(A10=(""),"",VLOOKUP(A10,'NNR_PDP-per-Dollar'!$B$6:$T$125,10,FALSE)) -> 0.5248677249
A11: Beet Greens, Raw | C11: 8 | D11: =IF(A11=(""),"",VLOOKUP(A11,RawData!$C$8:$J$127,2,FALSE)) -> Beet, greens | E11: =IF(A11=(""),"",VLOOKUP(A11,RawData!$C$8:$BK$127,5,FALSE)) -> Bags or lined Banana Boxes | F11: =IF(A11=(""),"",VLOOKUP(A11,'NNR_PDP-per-Dollar'!$B$6:$T$125,19,FALSE)) -> 2.05 | G11: =VLOOKUP(A11,LastYearContractPricelist!$B$4:$F$123,4,FALSE) -> 2.05 | H11: 2.05 | I11: =IF(A11=(""),"",VLOOKUP(A11,RawData!$C$8:$J$127,6,FALSE)) -> 0.05 | J11: =IF(A11=(""),"",VLOOKUP(A11,'NNR_PDP-per-Dollar'!$B$6:$T$125,4,FALSE)) -> 17.33404859 | K11: =IF(A11=(""),"",VLOOKUP(A11,RawData!$C$8:$BK$127,4,FALSE)) -> 0.04 | L11: =IF(A11=(""),"",VLOOKUP(A11,'NNR_PDP-per-Dollar'!$B$6:$T$125,7,FALSE)) -> 1.191111111 | M11: =IF(A11=(""),"",VLOOKUP(A11,'NNR_PDP-per-Dollar'!$B$6:$T$125,10,FALSE)) -> 0.5810298103
A12: Beet, all colors, with tops | C12: 9 | D12: =IF(A12=(""),"",VLOOKUP(A12,RawData!$C$8:$J$127,2,FALSE)) -> Beets, with greens | E12: =IF(A12=(""),"",VLOOKUP(A12,RawData!$C$8:$BK$127,5,FALSE)) -> Bags or lined Banana Boxes | F12: =IF(A12=(""),"",VLOOKUP(A12,'NNR_PDP-per-Dollar'!$B$6:$T$125,19,FALSE)) -> 1.3 | G12: =VLOOKUP(A12,LastYearContractPricelist!$B$4:$F$123,4,FALSE) -> 1.05 | H12: 1.3 | I12: =IF(A12=(""),"",VLOOKUP(A12,RawData!$C$8:$J$127,6,FALSE)) -> 0.05 | J12: =IF(A12=(""),"",VLOOKUP(A12,'NNR_PDP-per-Dollar'!$B$6:$T$125,4,FALSE)) -> 17.33404859 | K12: =IF(A12=(""),"",VLOOKUP(A12,RawData!$C$8:$BK$127,4,FALSE)) -> 0.31 | L12: =IF(A12=(""),"",VLOOKUP(A12,'NNR_PDP-per-Dollar'!$B$6:$T$125,7,FALSE)) -> 1.191111111 | M12: =IF(A12=(""),"",VLOOKUP(A12,'NNR_PDP-per-Dollar'!$B$6:$T$125,10,FALSE)) -> 0.9162393162
A13: Blackberry, Raw | C13: 10 | D13: =IF(A13=(""),"",VLOOKUP(A13,RawData!$C$8:$J$127,2,FALSE)) -> Blackberry | E13: =IF(A13=(""),"",VLOOKUP(A13,RawData!$C$8:$BK$127,5,FALSE)) -> Baskets or Flats | F13: =IF(A13=(""),"",VLOOKUP(A13,'NNR_PDP-per-Dollar'!$B$6:$T$125,19,FALSE)) -> 1.5 | G13: =VLOOKUP(A13,LastYearContractPricelist!$B$4:$F$123,4,FALSE) -> 2.65 | H13: 2.65 | I13: =IF(A13=(""),"",VLOOKUP(A13,RawData!$C$8:$J$127,6,FALSE)) -> 0.25 | J13: =IF(A13=(""),"",VLOOKUP(A13,'NNR_PDP-per-Dollar'!$B$6:$T$125,4,FALSE)) -> 5.543255945 | K13: =IF(A13=(""),"",VLOOKUP(A13,RawData!$C$8:$BK$127,4,FALSE)) -> 0.52 | L13: =IF(A13=(""),"",VLOOKUP(A13,'NNR_PDP-per-Dollar'!$B$6:$T$125,7,FALSE)) -> 1.274285714 | M13: =IF(A13=(""),"",VLOOKUP(A13,'NNR_PDP-per-Dollar'!$B$6:$T$125,10,FALSE)) -> 0.8495238095
A14: Blueberries, Raw | C14: 11 | D14: =IF(A14=(""),"",VLOOKUP(A14,RawData!$C$8:$J$127,2,FALSE)) -> Blueberry | E14: =IF(A14=(""),"",VLOOKUP(A14,RawData!$C$8:$BK$127,5,FALSE)) -> Baskets or Flats | F14: =IF(A14=(""),"",VLOOKUP(A14,'NNR_PDP-per-Dollar'!$B$6:$T$125,19,FALSE)) -> 2.95 | G14: =VLOOKUP(A14,LastYearContractPricelist!$B$4:$F$123,4,FALSE) -> 3.25 | H14: 3.25 | I14: =IF(A14=(""),"",VLOOKUP(A14,RawData!$C$8:$J$127,6,FALSE)) -> 0.25 | J14: =IF(A14=(""),"",VLOOKUP(A14,'NNR_PDP-per-Dollar'!$B$6:$T$125,4,FALSE)) -> 2.792225864 | K14: =IF(A14=(""),"",VLOOKUP(A14,RawData!$C$8:$BK$127,4,FALSE)) -> 0.45 | L14: =IF(A14=(""),"",VLOOKUP(A14,'NNR_PDP-per-Dollar'!$B$6:$T$125,7,FALSE)) -> 4.308571429 | M14: =IF(A14=(""),"",VLOOKUP(A14,'NNR_PDP-per-Dollar'!$B$6:$T$125,10,FALSE)) -> 1.460532688
A15: Broccoli, Raw | C15: 12 | D15: =IF(A15=(""),"",VLOOKUP(A15,RawData!$C$8:$J$127,2,FALSE)) -> Broccoli | E15: =IF(A15=(""),"",VLOOKUP(A15,RawData!$C$8:$BK$127,5,FALSE)) -> Bags or lined Banana Boxes | F15: =IF(A15=(""),"",VLOOKUP(A15,'NNR_PDP-per-Dollar'!$B$6:$T$125,19,FALSE)) -> 2.15 | G15: =VLOOKUP(A15,LastYearContractPricelist!$B$4:$F$123,4,FALSE) -> 2.45 | H15: 2.45 | I15: =IF(A15=(""),"",VLOOKUP(A15,RawData!$C$8:$J$127,6,FALSE)) -> 0.05 | J15: =IF(A15=(""),"",VLOOKUP(A15,'NNR_PDP-per-Dollar'!$B$6:$T$125,4,FALSE)) -> 13.37126537 | K15: =IF(A15=(""),"",VLOOKUP(A15,RawData!$C$8:$BK$127,4,FALSE)) -> 0.77 | L15: =IF(A15=(""),"",VLOOKUP(A15,'NNR_PDP-per-Dollar'!$B$6:$T$125,7,FALSE)) -> 0.5511111111 | M15: =IF(A15=(""),"",VLOOKUP(A15,'NNR_PDP-per-Dollar'!$B$6:$T$125,10,FALSE)) -> 0.2563307494
A16: Broccoli raab, raw | C16: 13 | D16: =IF(A16=(""),"",VLOOKUP(A16,RawData!$C$8:$J$127,2,FALSE)) -> Broccoli Raab | E16: =IF(A16=(""),"",VLOOKUP(A16,RawData!$C$8:$BK$127,5,FALSE)) -> Bags or lined Banana Boxes | F16: =IF(A16=(""),"",VLOOKUP(A16,'NNR_PDP-per-Dollar'!$B$6:$T$125,19,FALSE)) -> 2.05 | G16: =VLOOKUP(A16,LastYearContractPricelist!$B$4:$F$123,4,FALSE) -> 2.05 | H16: 2.05 | I16: =IF(A16=(""),"",VLOOKUP(A16,RawData!$C$8:$J$127,6,FALSE)) -> 0.05 | J16: =IF(A16=(""),"",VLOOKUP(A16,'NNR_PDP-per-Dollar'!$B$6:$T$125,4,FALSE)) -> 11.83686966 | K16: =IF(A16=(""),"",VLOOKUP(A16,RawData!$C$8:$BK$127,4,FALSE)) -> 0.06 | L16: =IF(A16=(""),"",VLOOKUP(A16,'NNR_PDP-per-Dollar'!$B$6:$T$125,7,FALSE)) -> 1.346666667 | M16: =IF(A16=(""),"",VLOOKUP(A16,'NNR_PDP-per-Dollar'!$B$6:$T$125,10,FALSE)) -> 0.6569105691
A17: Brussel sprouts, raw | C17: 14 | D17: =IF(A17=(""),"",VLOOKUP(A17,RawData!$C$8:$J$127,2,FALSE)) -> Brussels sprouts | E17: =IF(A17=(""),"",VLOOKUP(A17,RawData!$C$8:$BK$127,5,FALSE)) -> Bags or lined Banana Boxes | F17: =IF(A17=(""),"",VLOOKUP(A17,'NNR_PDP-per-Dollar'!$B$6:$T$125,19,FALSE)) -> 2.05 | G17: =VLOOKUP(A17,LastYearContractPricelist!$B$4:$F$123,4,FALSE) -> 2.05 | H17: 2.05 | I17: =IF(A17=(""),"",VLOOKUP(A17,RawData!$C$8:$J$127,6,FALSE)) -> 0.05 | J17: =IF(A17=(""),"",VLOOKUP(A17,'NNR_PDP-per-Dollar'!$B$6:$T$125,4,FALSE)) -> 13.40577655 | K17: =IF(A17=(""),"",VLOOKUP(A17,RawData!$C$8:$BK$127,4,FALSE)) -> 0.3 | L17: =IF(A17=(""),"",VLOOKUP(A17,'NNR_PDP-per-Dollar'!$B$6:$T$125,7,FALSE)) -> 1.346666667 | M17: =IF(A17=(""),"",VLOOKUP(A17,'NNR_PDP-per-Dollar'!$B$6:$T$125,10,FALSE)) -> 0.6569105691
A18: Cabbage, head type, green or red | C18: 15 | D18: =IF(A18=(""),"",VLOOKUP(A18,RawData!$C$8:$J$127,2,FALSE)) -> Cabbage, head type | E18: =IF(A18=(""),"",VLOOKUP(A18,RawData!$C$8:$BK$127,5,FALSE)) -> Bags or lined Banana Boxes | F18: =IF(A18=(""),"",VLOOKUP(A18,'NNR_PDP-per-Dollar'!$B$6:$T$125,19,FALSE)) -> 1.3625 | G18: =VLOOKUP(A18,LastYearContractPricelist!$B$4:$F$123,4,FALSE) -> 0.71 | H18: 1.3625 | I18: =IF(A18=(""),"",VLOOKUP(A18,RawData!$C$8:$J$127,6,FALSE)) -> 0.05 | J18: =IF(A18=(""),"",VLOOKUP(A18,'NNR_PDP-per-Dollar'!$B$6:$T$125,4,FALSE)) -> 6.196626741 | K18: =IF(A18=(""),"",VLOOKUP(A18,RawData!$C$8:$BK$127,4,FALSE)) -> 0.35 | L18: =IF(A18=(""),"",VLOOKUP(A18,'NNR_PDP-per-Dollar'!$B$6:$T$125,7,FALSE)) -> 0.8622222222 | M18: =IF(A18=(""),"",VLOOKUP(A18,'NNR_PDP-per-Dollar'!$B$6:$T$125,10,FALSE)) -> 0.6328236493
A19: Cabbage, leaf type | C19: 16 | D19: =IF(A19=(""),"",VLOOKUP(A19,RawData!$C$8:$J$127,2,FALSE)) -> Cabbage, napa or Asian type | E19: =IF(A19=(""),"",VLOOKUP(A19,RawData!$C$8:$BK$127,5,FALSE)) -> Bags or lined Banana Boxes | F19: =IF(A19=(""),"",VLOOKUP(A19,'NNR_PDP-per-Dollar'!$B$6:$T$125,19,FALSE)) -> 1.316666667 | G19: =VLOOKUP(A19,LastYearContractPricelist!$B$4:$F$123,4,FALSE) -> 0.85 | H19: 1.316666667 | I19: =IF(A19=(""),"",VLOOKUP(A19,RawData!$C$8:$J$127,6,FALSE)) -> 0.05 | J19: =IF(A19=(""),"",VLOOKUP(A19,'NNR_PDP-per-Dollar'!$B$6:$T$125,4,FALSE)) -> 6.196626741 | K19: =IF(A19=(""),"",VLOOKUP(A19,RawData!$C$8:$BK$127,4,FALSE)) -> 0.35 | L19: =IF(A19=(""),"",VLOOKUP(A19,'NNR_PDP-per-Dollar'!$B$6:$T$125,7,FALSE)) -> 0.8622222222 | M19: =IF(A19=(""),"",VLOOKUP(A19,'NNR_PDP-per-Dollar'!$B$6:$T$125,10,FALSE)) -> 0.6548523207
A20: Carrot, baby, all colors no tops | C20: 17 | D20: =IF(A20=(""),"",VLOOKUP(A20,RawData!$C$8:$J$127,2,FALSE)) -> Carrot, bunched w/tops | E20: =IF(A20=(""),"",VLOOKUP(A20,RawData!$C$8:$BK$127,5,FALSE)) -> Bags or lined Banana Boxes | F20: =IF(A20=(""),"",VLOOKUP(A20,'NNR_PDP-per-Dollar'!$B$6:$T$125,19,FALSE)) -> 1.25 | G20: =VLOOKUP(A20,LastYearContractPricelist!$B$4:$F$123,4,FALSE) -> 1.25 | H20: 1.25 | I20: =IF(A20=(""),"",VLOOKUP(A20,RawData!$C$8:$J$127,6,FALSE)) -> 0.05 | J20: =IF(A20=(""),"",VLOOKUP(A20,'NNR_PDP-per-Dollar'!$B$6:$T$125,4,FALSE)) -> 24.67429862 | K20: =IF(A20=(""),"",VLOOKUP(A20,RawData!$C$8:$BK$127,4,FALSE)) -> 0.65 | L20: =IF(A20=(""),"",VLOOKUP(A20,'NNR_PDP-per-Dollar'!$B$6:$T$125,7,FALSE)) -> 0.5511111111 | M20: =IF(A20=(""),"",VLOOKUP(A20,'NNR_PDP-per-Dollar'!$B$6:$T$125,10,FALSE)) -> 0.4408888889
A21: Carrot, mature, multi-color | C21: 18 | D21: =IF(A21=(""),"",VLOOKUP(A21,RawData!$C$8:$J$127,2,FALSE)) -> Carrot, multi-color, no tops | E21: =IF(A21=(""),"",VLOOKUP(A21,RawData!$C$8:$BK$127,5,FALSE)) -> Bags or lined Banana Boxes | F21: =IF(A21=(""),"",VLOOKUP(A21,'NNR_PDP-per-Dollar'!$B$6:$T$125,19,FALSE)) -> 1.338043478 | G21: =VLOOKUP(A21,LastYearContractPricelist!$B$4:$F$123,4,FALSE) -> 0.8 | H21: 1.338043478 | I21: =IF(A21=(""),"",VLOOKUP(A21,RawData!$C$8:$J$127,6,FALSE)) -> 0.05 | J21: =IF(A21=(""),"",VLOOKUP(A21,'NNR_PDP-per-Dollar'!$B$6:$T$125,4,FALSE)) -> 24.67429862 | K21: =IF(A21=(""),"",VLOOKUP(A21,RawData!$C$8:$BK$127,4,FALSE)) -> 0.65 | L21: =IF(A21=(""),"",VLOOKUP(A21,'NNR_PDP-per-Dollar'!$B$6:$T$125,7,FALSE)) -> 0.5511111111 | M21: =IF(A21=(""),"",VLOOKUP(A21,'NNR_PDP-per-Dollar'!$B$6:$T$125,10,FALSE)) -> 0.4118783284
A22: Carrot, mature, orange | C22: 19 | D22: =IF(A22=(""),"",VLOOKUP(A22,RawData!$C$8:$J$127,2,FALSE)) -> Carrot, orange, no tops | E22: =IF(A22=(""),"",VLOOKUP(A22,RawData!$C$8:$BK$127,5,FALSE)) -> Bags or lined Banana Boxes | F22: =IF(A22=(""),"",VLOOKUP(A22,'NNR_PDP-per-Dollar'!$B$6:$T$125,19,FALSE)) -> 0.725 | G22: =VLOOKUP(A22,LastYearContractPricelist!$B$4:$F$123,4,FALSE) -> 0.73 | H22: 0.73 | I22: =IF(A22=(""),"",VLOOKUP(A22,RawData!$C$8:$J$127,6,FALSE)) -> 0.05 | J22: =IF(A22=(""),"",VLOOKUP(A22,'NNR_PDP-per-Dollar'!$B$6:$T$125,4,FALSE)) -> 24.67429862 | K22: =IF(A22=(""),"",VLOOKUP(A22,RawData!$C$8:$BK$127,4,FALSE)) -> 0.65 | L22: =IF(A22=(""),"",VLOOKUP(A22,'NNR_PDP-per-Dollar'!$B$6:$T$125,7,FALSE)) -> 0.5511111111 | M22: =IF(A22=(""),"",VLOOKUP(A22,'NNR_PDP-per-Dollar'!$B$6:$T$125,10,FALSE)) -> 0.7601532567
A23: Cauliflower, Raw | C23: 20 | D23: =IF(A23=(""),"",VLOOKUP(A23,RawData!$C$8:$J$127,2,FALSE)) -> Cauliflower, all colors | E23: =IF(A23=(""),"",VLOOKUP(A23,RawData!$C$8:$BK$127,5,FALSE)) -> Bags or lined Banana Boxes | F23: =IF(A23=(""),"",VLOOKUP(A23,'NNR_PDP-per-Dollar'!$B$6:$T$125,19,FALSE)) -> 1.636666667 | G23: =VLOOKUP(A23,LastYearContractPricelist!$B$4:$F$123,4,FALSE) -> 1.25 | H23: 1.636666667 | I23: =IF(A23=(""),"",VLOOKUP(A23,RawData!$C$8:$J$127,6,FALSE)) -> 0.05 | J23: =IF(A23=(""),"",VLOOKUP(A23,'NNR_PDP-per-Dollar'!$B$6:$T$125,4,FALSE)) -> 7.957433816 | K23: =IF(A23=(""),"",VLOOKUP(A23,RawData!$C$8:$BK$127,4,FALSE)) -> 0.54 | L23: =IF(A23=(""),"",VLOOKUP(A23,'NNR_PDP-per-Dollar'!$B$6:$T$125,7,FALSE)) -> 1.191111111 | M23: =IF(A23=(""),"",VLOOKUP(A23,'NNR_PDP-per-Dollar'!$B$6:$T$125,10,FALSE)) -> 0.727766463
A24: Celeriac, raw | C24: 21 | D24: =IF(A24=(""),"",VLOOKUP(A24,RawData!$C$8:$J$127,2,FALSE)) -> Celeriac | E24: =IF(A24=(""),"",VLOOKUP(A24,RawData!$C$8:$BK$127,5,FALSE)) -> Bags or lined Banana Boxes | F24: =IF(A24=(""),"",VLOOKUP(A24,'NNR_PDP-per-Dollar'!$B$6:$T$125,19,FALSE)) -> 2.05 | G24: =VLOOKUP(A24,LastYearContractPricelist!$B$4:$F$123,4,FALSE) -> 2.05 | H24: 2.05 | I24: =IF(A24=(""),"",VLOOKUP(A24,RawData!$C$8:$J$127,6,FALSE)) -> 0.05 | J24: =IF(A24=(""),"",VLOOKUP(A24,'NNR_PDP-per-Dollar'!$B$6:$T$125,4,FALSE)) -> 3.715901252 | K24: =IF(A24=(""),"",VLOOKUP(A24,RawData!$C$8:$BK$127,4,FALSE)) -> 0.25 | L24: =IF(A24=(""),"",VLOOKUP(A24,'NNR_PDP-per-Dollar'!$B$6:$T$125,7,FALSE)) -> 0.6977777778 | M24: =IF(A24=(""),"",VLOOKUP(A24,'NNR_PDP-per-Dollar'!$B$6:$T$125,10,FALSE)) -> 0.3403794038
A25: Celery, Raw | C25: 22 | D25: =IF(A25=(""),"",VLOOKUP(A25,RawData!$C$8:$J$127,2,FALSE)) -> Celery | E25: =IF(A25=(""),"",VLOOKUP(A25,RawData!$C$8:$BK$127,5,FALSE)) -> Bags or lined Banana Boxes | F25: =IF(A25=(""),"",VLOOKUP(A25,'NNR_PDP-per-Dollar'!$B$6:$T$125,19,FALSE)) -> 1.55 | G25: =VLOOKUP(A25,LastYearContractPricelist!$B$4:$F$123,4,FALSE) -> 1.55 | H25: 1.55 | I25: =IF(A25=(""),"",VLOOKUP(A25,RawData!$C$8:$J$127,6,FALSE)) -> 0.05 | J25: =IF(A25=(""),"",VLOOKUP(A25,'NNR_PDP-per-Dollar'!$B$6:$T$125,4,FALSE)) -> 3.461744436 | K25: =IF(A25=(""),"",VLOOKUP(A25,RawData!$C$8:$BK$127,4,FALSE)) -> 0.37 | L25: =IF(A25=(""),"",VLOOKUP(A25,'NNR_PDP-per-Dollar'!$B$6:$T$125,7,FALSE)) -> 0.5511111111 | M25: =IF(A25=(""),"",VLOOKUP(A25,'NNR_PDP-per-Dollar'!$B$6:$T$125,10,FALSE)) -> 0.3555555556
A26: Cherries, Sweet, Raw | C26: 23 | D26: =IF(A26=(""),"",VLOOKUP(A26,RawData!$C$8:$J$127,2,FALSE)) -> Cherry | E26: =IF(A26=(""),"",VLOOKUP(A26,RawData!$C$8:$BK$127,5,FALSE)) -> Baskets or Flats | F26: =IF(A26=(""),"",VLOOKUP(A26,'NNR_PDP-per-Dollar'!$B$6:$T$125,19,FALSE)) -> 2.25 | G26: =VLOOKUP(A26,LastYearContractPricelist!$B$4:$F$123,4,FALSE) -> 1.93 | H26: 2.25 | I26: =IF(A26=(""),"",VLOOKUP(A26,RawData!$C$8:$J$127,6,FALSE)) -> 0.25 | J26: =IF(A26=(""),"",VLOOKUP(A26,'NNR_PDP-per-Dollar'!$B$6:$T$125,4,FALSE)) -> 2.568340722 | K26: =IF(A26=(""),"",VLOOKUP(A26,RawData!$C$8:$BK$127,4,FALSE)) -> 0.51 | L26: =IF(A26=(""),"",VLOOKUP(A26,'NNR_PDP-per-Dollar'!$B$6:$T$125,7,FALSE)) -> 1.314285714 | M26: =IF(A26=(""),"",VLOOKUP(A26,'NNR_PDP-per-Dollar'!$B$6:$T$125,10,FALSE)) -> 0.5841269841
A27: Choy, all types | C27: 24 | D27: =IF(A27=(""),"",VLOOKUP(A27,RawData!$C$8:$J$127,2,FALSE)) -> Choy, all types | E27: =IF(A27=(""),"",VLOOKUP(A27,RawData!$C$8:$BK$127,5,FALSE)) -> Bags or lined Banana Boxes | F27: =IF(A27=(""),"",VLOOKUP(A27,'NNR_PDP-per-Dollar'!$B$6:$T$125,19,FALSE)) -> 1.55 | G27: =VLOOKUP(A27,LastYearContractPricelist!$B$4:$F$123,4,FALSE) -> 2.05 | H27: 2.05 | I27: =IF(A27=(""),"",VLOOKUP(A27,RawData!$C$8:$J$127,6,FALSE)) -> 0.05 | J27: =IF(A27=(""),"",VLOOKUP(A27,'NNR_PDP-per-Dollar'!$B$6:$T$125,4,FALSE)) -> 12.79808008 | K27: =IF(A27=(""),"",VLOOKUP(A27,RawData!$C$8:$BK$127,4,FALSE)) -> 0 | L27: =IF(A27=(""),"",VLOOKUP(A27,'NNR_PDP-per-Dollar'!$B$6:$T$125,7,FALSE)) -> 1.062222222 | M27: =IF(A27=(""),"",VLOOKUP(A27,'NNR_PDP-per-Dollar'!$B$6:$T$125,10,FALSE)) -> 0.6853046595
A28: Coriander (Cilantro) Leaves, Raw | C28: 25 | D28: =IF(A28=(""),"",VLOOKUP(A28,RawData!$C$8:$J$127,2,FALSE)) -> Cilantro | E28: =IF(A28=(""),"",VLOOKUP(A28,RawData!$C$8:$BK$127,5,FALSE)) -> Bags or lined Banana Boxes | F28: =IF(A28=(""),"",VLOOKUP(A28,'NNR_PDP-per-Dollar'!$B$6:$T$125,19,FALSE)) -> 6.05 | G28: =VLOOKUP(A28,LastYearContractPricelist!$B$4:$F$123,4,FALSE) -> 6.05 | H28: 6.05 | I28: =IF(A28=(""),"",VLOOKUP(A28,RawData!$C$8:$J$127,6,FALSE)) -> 0.05 | J28: =IF(A28=(""),"",VLOOKUP(A28,'NNR_PDP-per-Dollar'!$B$6:$T$125,4,FALSE)) -> 17.67761312 | K28: =IF(A28=(""),"",VLOOKUP(A28,RawData!$C$8:$BK$127,4,FALSE)) -> 0.59 | L28: =IF(A28=(""),"",VLOOKUP(A28,'NNR_PDP-per-Dollar'!$B$6:$T$125,7,FALSE)) -> 0.5511111111 | M28: =IF(A28=(""),"",VLOOKUP(A28,'NNR_PDP-per-Dollar'!$B$6:$T$125,10,FALSE)) -> 0.09109274564
A29: Collards, raw | C29: 26 | D29: =IF(A29=(""),"",VLOOKUP(A29,RawData!$C$8:$J$127,2,FALSE)) -> Collard greens | E29: =IF(A29=(""),"",VLOOKUP(A29,RawData!$C$8:$BK$127,5,FALSE)) -> Bags or lined Banana Boxes | F29: =IF(A29=(""),"",VLOOKUP(A29,'NNR_PDP-per-Dollar'!$B$6:$T$125,19,FALSE)) -> 2.05 | G29: =VLOOKUP(A29,LastYearContractPricelist!$B$4:$F$123,4,FALSE) -> 2.05 | H29: 2.05 | I29: =IF(A29=(""),"",VLOOKUP(A29,RawData!$C$8:$J$127,6,FALSE)) -> 0.05 | J29: =IF(A29=(""),"",VLOOKUP(A29,'NNR_PDP-per-Dollar'!$B$6:$T$125,4,FALSE)) -> 16.49072233 | K29: =IF(A29=(""),"",VLOOKUP(A29,RawData!$C$8:$BK$127,4,FALSE)) -> 0.04 | L29: =IF(A29=(""),"",VLOOKUP(A29,'NNR_PDP-per-Dollar'!$B$6:$T$125,7,FALSE)) -> 0.6977777778 | M29: =IF(A29=(""),"",VLOOKUP(A29,'NNR_PDP-per-Dollar'!$B$6:$T$125,10,FALSE)) -> 0.3403794038
A30: Corn, sweet,yellow, raw | C30: 27 | D30: =IF(A30=(""),"",VLOOKUP(A30,RawData!$C$8:$J$127,2,FALSE)) -> Corn, sweet | E30: =IF(A30=(""),"",VLOOKUP(A30,RawData!$C$8:$BK$127,5,FALSE)) -> Bananna Boxes | F30: =IF(A30=(""),"",VLOOKUP(A30,'NNR_PDP-per-Dollar'!$B$6:$T$125,19,FALSE)) -> 0.35 | G30: =VLOOKUP(A30,LastYearContractPricelist!$B$4:$F$123,4,FALSE) -> 0.65 | H30: 0.65 | I30: =IF(A30=(""),"",VLOOKUP(A30,RawData!$C$8:$J$127,6,FALSE)) -> 0.05 | J30: =IF(A30=(""),"",VLOOKUP(A30,'NNR_PDP-per-Dollar'!$B$6:$T$125,4,FALSE)) -> 5.334086088 | K30: =IF(A30=(""),"",VLOOKUP(A30,RawData!$C$8:$BK$127,4,FALSE)) -> 0.61 | L30: =IF(A30=(""),"",VLOOKUP(A30,'NNR_PDP-per-Dollar'!$B$6:$T$125,7,FALSE)) -> 0.5511111111 | M30: =IF(A30=(""),"",VLOOKUP(A30,'NNR_PDP-per-Dollar'!$B$6:$T$125,10,FALSE)) -> 1.574603175
A31: Cubumber, pickling, small | C31: 28 | D31: =IF(A31=(""),"",VLOOKUP(A31,RawData!$C$8:$J$127,2,FALSE)) -> Cucumber, pickling | E31: =IF(A31=(""),"",VLOOKUP(A31,RawData!$C$8:$BK$127,5,FALSE)) -> Bags or lined Banana Boxes | F31: =IF(A31=(""),"",VLOOKUP(A31,'NNR_PDP-per-Dollar'!$B$6:$T$125,19,FALSE)) -> 1.25 | G31: =VLOOKUP(A31,LastYearContractPricelist!$B$4:$F$123,4,FALSE) -> 0.95 | H31: 1.25 | I31: =IF(A31=(""),"",VLOOKUP(A31,RawData!$C$8:$J$127,6,FALSE)) -> 0.05 | J31: =IF(A31=(""),"",VLOOKUP(A31,'NNR_PDP-per-Dollar'!$B$6:$T$125,4,FALSE)) -> 1.848831342 | K31: =IF(A31=(""),"",VLOOKUP(A31,RawData!$C$8:$BK$127,4,FALSE)) -> 0.61 | L31: =IF(A31=(""),"",VLOOKUP(A31,'NNR_PDP-per-Dollar'!$B$6:$T$125,7,FALSE)) -> 0.5511111111 | M31: =IF(A31=(""),"",VLOOKUP(A31,'NNR_PDP-per-Dollar'!$B$6:$T$125,10,FALSE)) -> 0.4408888889
A32: Cucumber, With Peel, Raw | C32: 29 | D32: =IF(A32=(""),"",VLOOKUP(A32,RawData!$C$8:$J$127,2,FALSE)) -> Cucumber, slicing | E32: =IF(A32=(""),"",VLOOKUP(A32,RawData!$C$8:$BK$127,5,FALSE)) -> Bags or lined Banana Boxes | F32: =IF(A32=(""),"",VLOOKUP(A32,'NNR_PDP-per-Dollar'!$B$6:$T$125,19,FALSE)) -> 0.554 | G32: =VLOOKUP(A32,LastYearContractPricelist!$B$4:$F$123,4,FALSE) -> 0.7 | H32: 0.7 | I32: =IF(A32=(""),"",VLOOKUP(A32,RawData!$C$8:$J$127,6,FALSE)) -> 0.05 | J32: =IF(A32=(""),"",VLOOKUP(A32,'NNR_PDP-per-Dollar'!$B$6:$T$125,4,FALSE)) -> 1.848831342 | K32: =IF(A32=(""),"",VLOOKUP(A32,RawData!$C$8:$BK$127,4,FALSE)) -> 0.61 | L32: =IF(A32=(""),"",VLOOKUP(A32,'NNR_PDP-per-Dollar'!$B$6:$T$125,7,FALSE)) -> 0.5511111111 | M32: =IF(A32=(""),"",VLOOKUP(A32,'NNR_PDP-per-Dollar'!$B$6:$T$125,10,FALSE)) -> 0.9947853991
A33: Dill Weed, Fresh | C33: 30 | D33: =IF(A33=(""),"",VLOOKUP(A33,RawData!$C$8:$J$127,2,FALSE)) -> Dill Weed | E33: =IF(A33=(""),"",VLOOKUP(A33,RawData!$C$8:$BK$127,5,FALSE)) -> Bags or lined Banana Boxes | F33: =IF(A33=(""),"",VLOOKUP(A33,'NNR_PDP-per-Dollar'!$B$6:$T$125,19,FALSE)) -> 4.28 | G33: =VLOOKUP(A33,LastYearContractPricelist!$B$4:$F$123,4,FALSE) -> 7.05 | H33: 7.05 | I33: =IF(A33=(""),"",VLOOKUP(A33,RawData!$C$8:$J$127,6,FALSE)) -> 0.05 | J33: =IF(A33=(""),"",VLOOKUP(A33,'NNR_PDP-per-Dollar'!$B$6:$T$125,4,FALSE)) -> 27.52740794 | K33: =IF(A33=(""),"",VLOOKUP(A33,RawData!$C$8:$BK$127,4,FALSE)) -> 0.61 | L33: =IF(A33=(""),"",VLOOKUP(A33,'NNR_PDP-per-Dollar'!$B$6:$T$125,7,FALSE)) -> 0.2444444444 | M33: =IF(A33=(""),"",VLOOKUP(A33,'NNR_PDP-per-Dollar'!$B$6:$T$125,10,FALSE)) -> 0.05711318795
A34: Eggplant, Raw | C34: 31 | D34: =IF(A34=(""),"",VLOOKUP(A34,RawData!$C$8:$J$127,2,FALSE)) -> Eggplant | E34: =IF(A34=(""),"",VLOOKUP(A34,RawData!$C$8:$BK$127,5,FALSE)) -> Bags or lined Banana Boxes | F34: =IF(A34=(""),"",VLOOKUP(A34,'NNR_PDP-per-Dollar'!$B$6:$T$125,19,FALSE)) -> 3.05 | G34: =VLOOKUP(A34,LastYearContractPricelist!$B$4:$F$123,4,FALSE) -> 3.05 | H34: 3.05 | I34: =IF(A34=(""),"",VLOOKUP(A34,RawData!$C$8:$J$127,6,FALSE)) -> 0.05 | J34: =IF(A34=(""),"",VLOOKUP(A34,'NNR_PDP-per-Dollar'!$B$6:$T$125,4,FALSE)) -> 2.885291722 | K34: =IF(A34=(""),"",VLOOKUP(A34,RawData!$C$8:$BK$127,4,FALSE)) -> 0.08 | L34: =IF(A34=(""),"",VLOOKUP(A34,'NNR_PDP-per-Dollar'!$B$6:$T$125,7,FALSE)) -> 1.213333333 | M34: =IF(A34=(""),"",VLOOKUP(A34,'NNR_PDP-per-Dollar'!$B$6:$T$125,10,FALSE)) -> 0.3978142077
A35: Endive, raw | C35: 32 | D35: =IF(A35=(""),"",VLOOKUP(A35,RawData!$C$8:$J$127,2,FALSE)) -> Endive | E35: =IF(A35=(""),"",VLOOKUP(A35,RawData!$C$8:$BK$127,5,FALSE)) -> Bags or lined Banana Boxes | F35: =IF(A35=(""),"",VLOOKUP(A35,'NNR_PDP-per-Dollar'!$B$6:$T$125,19,FALSE)) -> 1.65 | G35: =VLOOKUP(A35,LastYearContractPricelist!$B$4:$F$123,4,FALSE) -> 2.05 | H35: 2.05 | I35: =IF(A35=(""),"",VLOOKUP(A35,RawData!$C$8:$J$127,6,FALSE)) -> 0.05 | J35: =IF(A35=(""),"",VLOOKUP(A35,'NNR_PDP-per-Dollar'!$B$6:$T$125,4,FALSE)) -> 9.998958264 | K35: =IF(A35=(""),"",VLOOKUP(A35,RawData!$C$8:$BK$127,4,FALSE)) -> 0.08 | L35: =IF(A35=(""),"",VLOOKUP(A35,'NNR_PDP-per-Dollar'!$B$6:$T$125,7,FALSE)) -> 0.9733333333 | M35: =IF(A35=(""),"",VLOOKUP(A35,'NNR_PDP-per-Dollar'!$B$6:$T$125,10,FALSE)) -> 0.5898989899
A36: Fennel, Bulb, Raw | C36: 33 | D36: =IF(A36=(""),"",VLOOKUP(A36,RawData!$C$8:$J$127,2,FALSE)) -> Fennel, bulbing | E36: =IF(A36=(""),"",VLOOKUP(A36,RawData!$C$8:$BK$127,5,FALSE)) -> Bags or lined Banana Boxes | F36: =IF(A36=(""),"",VLOOKUP(A36,'NNR_PDP-per-Dollar'!$B$6:$T$125,19,FALSE)) -> 1.55 | G36: =VLOOKUP(A36,LastYearContractPricelist!$B$4:$F$123,4,FALSE) -> 1.25 | H36: 1.55 | I36: =IF(A36=(""),"",VLOOKUP(A36,RawData!$C$8:$J$127,6,FALSE)) -> 0.05 | J36: =IF(A36=(""),"",VLOOKUP(A36,'NNR_PDP-per-Dollar'!$B$6:$T$125,4,FALSE)) -> 5.620673146 | K36: =IF(A36=(""),"",VLOOKUP(A36,RawData!$C$8:$BK$127,4,FALSE)) -> 0 | L36: =IF(A36=(""),"",VLOOKUP(A36,'NNR_PDP-per-Dollar'!$B$6:$T$125,7,FALSE)) -> 1.137777778 | M36: =IF(A36=(""),"",VLOOKUP(A36,'NNR_PDP-per-Dollar'!$B$6:$T$125,10,FALSE)) -> 0.7340501792
A37: Garlic, Raw | C37: =1+C36 -> 34 | D37: =IF(A37=(""),"",VLOOKUP(A37,RawData!$C$8:$J$127,2,FALSE)) -> Garlic | E37: =IF(A37=(""),"",VLOOKUP(A37,RawData!$C$8:$BK$127,5,FALSE)) -> Bags or lined Banana Boxes | F37: =IF(A37=(""),"",VLOOKUP(A37,'NNR_PDP-per-Dollar'!$B$6:$T$125,19,FALSE)) -> 6.05 | G37: =VLOOKUP(A37,LastYearContractPricelist!$B$4:$F$123,4,FALSE) -> 6.05 | H37: 6.05 | I37: =IF(A37=(""),"",VLOOKUP(A37,RawData!$C$8:$J$127,6,FALSE)) -> 0.05 | J37: =IF(A37=(""),"",VLOOKUP(A37,'NNR_PDP-per-Dollar'!$B$6:$T$125,4,FALSE)) -> 8.982579539 | K37: =IF(A37=(""),"",VLOOKUP(A37,RawData!$C$8:$BK$127,4,FALSE)) -> 0.51 | L37: =IF(A37=(""),"",VLOOKUP(A37,'NNR_PDP-per-Dollar'!$B$6:$T$125,7,FALSE)) -> 0.5511111111 | M37: =IF(A37=(""),"",VLOOKUP(A37,'NNR_PDP-per-Dollar'!$B$6:$T$125,10,FALSE)) -> 0.09109274564
A38: Onions, spring or scallions (includes tops and bulb), raw | C38: 35 | D38: =IF(A38=(""),"",VLOOKUP(A38,RawData!$C$8:$J$127,2,FALSE)) -> Garlic Scape | E38: =IF(A38=(""),"",VLOOKUP(A38,RawData!$C$8:$BK$127,5,FALSE)) -> Bags or lined Banana Boxes | F38: =IF(A38=(""),"",VLOOKUP(A38,'NNR_PDP-per-Dollar'!$B$6:$T$125,19,FALSE)) -> 2.45 | G38: =VLOOKUP(D38,LastYearContractPricelist!$B$4:$F$123,4,FALSE) -> 2.05 | H38: 2.45 | I38: =IF(A38=(""),"",VLOOKUP(A38,RawData!$C$8:$J$127,6,FALSE)) -> 0.05 | J38: =IF(A38=(""),"",VLOOKUP(A38,'NNR_PDP-per-Dollar'!$B$6:$T$125,4,FALSE)) -> 8.501459166 | K38: =IF(A38=(""),"",VLOOKUP(A38,RawData!$C$8:$BK$127,4,FALSE)) -> 0 | L38: =IF(A38=(""),"",VLOOKUP(A38,'NNR_PDP-per-Dollar'!$B$6:$T$125,7,FALSE)) -> 3.351111111 | M38: =IF(A38=(""),"",VLOOKUP(A38,'NNR_PDP-per-Dollar'!$B$6:$T$125,10,FALSE)) -> 1.367800454
A39: Gooseberry, raw | C39: 36 | D39: =IF(A39=(""),"",VLOOKUP(A39,RawData!$C$8:$J$127,2,FALSE)) -> Gooseberry | E39: =IF(A39=(""),"",VLOOKUP(A39,RawData!$C$8:$BK$127,5,FALSE)) -> Baskets or Flats | F39: =IF(A39=(""),"",VLOOKUP(A39,'NNR_PDP-per-Dollar'!$B$6:$T$125,19,FALSE)) -> 2.65 | G39: =VLOOKUP(A39,LastYearContractPricelist!$B$4:$F$123,4,FALSE) -> 2.65 | H39: 2.65 | I39: =IF(A39=(""),"",VLOOKUP(A39,RawData!$C$8:$J$127,6,FALSE)) -> 0.25 | J39: =IF(A39=(""),"",VLOOKUP(A39,'NNR_PDP-per-Dollar'!$B$6:$T$125,4,FALSE)) -> 5.453951431 | K39: =IF(A39=(""),"",VLOOKUP(A39,RawData!$C$8:$BK$127,4,FALSE)) -> 0 | L39: =IF(A39=(""),"",VLOOKUP(A39,'NNR_PDP-per-Dollar'!$B$6:$T$125,7,FALSE)) -> 1.731428571 | M39: =IF(A39=(""),"",VLOOKUP(A39,'NNR_PDP-per-Dollar'!$B$6:$T$125,10,FALSE)) -> 0.6533692722
A40: Grapes, American type, Raw | C40: 37 | D40: =IF(A40=(""),"",VLOOKUP(A40,RawData!$C$8:$J$127,2,FALSE)) -> Grape | E40: =IF(A40=(""),"",VLOOKUP(A40,RawData!$C$8:$BK$127,5,FALSE)) -> Baskets or Flats | F40: =IF(A40=(""),"",VLOOKUP(A40,'NNR_PDP-per-Dollar'!$B$6:$T$125,19,FALSE)) -> 1.084 | G40: =VLOOKUP(A40,LastYearContractPricelist!$B$4:$F$123,4,FALSE) -> 1.2 | H40: 1.2 | I40: =IF(A40=(""),"",VLOOKUP(A40,RawData!$C$8:$J$127,6,FALSE)) -> 0.25 | J40: =IF(A40=(""),"",VLOOKUP(A40,'NNR_PDP-per-Dollar'!$B$6:$T$125,4,FALSE)) -> 2.204957889 | K40: =IF(A40=(""),"",VLOOKUP(A40,RawData!$C$8:$BK$127,4,FALSE)) -> 0.51 | L40: =IF(A40=(""),"",VLOOKUP(A40,'NNR_PDP-per-Dollar'!$B$6:$T$125,7,FALSE)) -> 2.365714286 | M40: =IF(A40=(""),"",VLOOKUP(A40,'NNR_PDP-per-Dollar'!$B$6:$T$125,10,FALSE)) -> 2.182393253
A41: Greens, mixed | C41: 38 | D41: =IF(A41=(""),"",VLOOKUP(A41,RawData!$C$8:$J$127,2,FALSE)) -> Greens, mixed | E41: =IF(A41=(""),"",VLOOKUP(A41,RawData!$C$8:$BK$127,5,FALSE)) -> Bags or lined Banana Boxes | F41: =IF(A41=(""),"",VLOOKUP(A41,'NNR_PDP-per-Dollar'!$B$6:$T$125,19,FALSE)) -> 3.3 | G41: =VLOOKUP(A41,LastYearContractPricelist!$B$4:$F$123,4,FALSE) -> 3.8 | H41: 3.8 | I41: =IF(A41=(""),"",VLOOKUP(A41,RawData!$C$8:$J$127,6,FALSE)) -> 0.05 | J41: =IF(A41=(""),"",VLOOKUP(A41,'NNR_PDP-per-Dollar'!$B$6:$T$125,4,FALSE)) -> 15.15122634 | K41: =IF(A41=(""),"",VLOOKUP(A41,RawData!$C$8:$BK$127,4,FALSE)) -> 0.52 | L41: =IF(A41=(""),"",VLOOKUP(A41,'NNR_PDP-per-Dollar'!$B$6:$T$125,7,FALSE)) -> 1.84 | M41: =IF(A41=(""),"",VLOOKUP(A41,'NNR_PDP-per-Dollar'!$B$6:$T$125,10,FALSE)) -> 0.5575757576
A42: Kale, Raw | C42: 39 | D42: =IF(A42=(""),"",VLOOKUP(A42,RawData!$C$8:$J$127,2,FALSE)) -> Kale | E42: =IF(A42=(""),"",VLOOKUP(A42,RawData!$C$8:$BK$127,5,FALSE)) -> Bags or lined Banana Boxes | F42: =IF(A42=(""),"",VLOOKUP(A42,'NNR_PDP-per-Dollar'!$B$6:$T$125,19,FALSE)) -> 1.85 | G42: =VLOOKUP(A42,LastYearContractPricelist!$B$4:$F$123,4,FALSE) -> 2.3 | H42: 2.3 | I42: =IF(A42=(""),"",VLOOKUP(A42,RawData!$C$8:$J$127,6,FALSE)) -> 0.05 | J42: =IF(A42=(""),"",VLOOKUP(A42,'NNR_PDP-per-Dollar'!$B$6:$T$125,4,FALSE)) -> 30.39828484 | K42: =IF(A42=(""),"",VLOOKUP(A42,RawData!$C$8:$BK$127,4,FALSE)) -> 0.08 | L42: =IF(A42=(""),"",VLOOKUP(A42,'NNR_PDP-per-Dollar'!$B$6:$T$125,7,FALSE)) -> 0.5511111111 | M42: =IF(A42=(""),"",VLOOKUP(A42,'NNR_PDP-per-Dollar'!$B$6:$T$125,10,FALSE)) -> 0.2978978979
A43: Kohlrabi, Raw | C43: 40 | D43: =IF(A43=(""),"",VLOOKUP(A43,RawData!$C$8:$J$127,2,FALSE)) -> Kohlrabi | E43: =IF(A43=(""),"",VLOOKUP(A43,RawData!$C$8:$BK$127,5,FALSE)) -> Bags or lined Banana Boxes | F43: =IF(A43=(""),"",VLOOKUP(A43,'NNR_PDP-per-Dollar'!$B$6:$T$125,19,FALSE)) -> 0.428 | G43: =VLOOKUP(A43,LastYearContractPricelist!$B$4:$F$123,4,FALSE) -> 1 | H43: 1 | I43: =IF(A43=(""),"",VLOOKUP(A43,RawData!$C$8:$J$127,6,FALSE)) -> 0.05 | J43: =IF(A43=(""),"",VLOOKUP(A43,'NNR_PDP-per-Dollar'!$B$6:$T$125,4,FALSE)) -> 8.186455177 | K43: =IF(A43=(""),"",VLOOKUP(A43,RawData!$C$8:$BK$127,4,FALSE)) -> 0.06 | L43: =IF(A43=(""),"",VLOOKUP(A43,'NNR_PDP-per-Dollar'!$B$6:$T$125,7,FALSE)) -> 1.573333333 | M43: =IF(A43=(""),"",VLOOKUP(A43,'NNR_PDP-per-Dollar'!$B$6:$T$125,10,FALSE)) -> 3.676012461
A44: Leek, (bulb and ower leaf-portion), raw | C44: 41 | D44: =IF(A44=(""),"",VLOOKUP(A44,RawData!$C$8:$J$127,2,FALSE)) -> Leek | E44: =IF(A44=(""),"",VLOOKUP(A44,RawData!$C$8:$BK$127,5,FALSE)) -> Bags or lined Banana Boxes | F44: =IF(A44=(""),"",VLOOKUP(A44,'NNR_PDP-per-Dollar'!$B$6:$T$125,19,FALSE)) -> 1.05 | G44: =VLOOKUP(A44,LastYearContractPricelist!$B$4:$F$123,4,FALSE) -> 0.85 | H44: 1.05 | I44: =IF(A44=(""),"",VLOOKUP(A44,RawData!$C$8:$J$127,6,FALSE)) -> 0.05 | J44: =IF(A44=(""),"",VLOOKUP(A44,'NNR_PDP-per-Dollar'!$B$6:$T$125,4,FALSE)) -> 7.096725774 | K44: =IF(A44=(""),"",VLOOKUP(A44,RawData!$C$8:$BK$127,4,FALSE)) -> 0 | L44: =IF(A44=(""),"",VLOOKUP(A44,'NNR_PDP-per-Dollar'!$B$6:$T$125,7,FALSE)) -> 0.5511111111 | M44: =IF(A44=(""),"",VLOOKUP(A44,'NNR_PDP-per-Dollar'!$B$6:$T$125,10,FALSE)) -> 0.5248677249
A45: Lettuce, green leaf, raw | C45: 42 | D45: =IF(A45=(""),"",VLOOKUP(A45,RawData!$C$8:$J$127,2,FALSE)) -> Lettuce, heads, green or red leaf | E45: =IF(A45=(""),"",VLOOKUP(A45,RawData!$C$8:$BK$127,5,FALSE)) -> Bags or lined Banana Boxes | F45: =IF(A45=(""),"",VLOOKUP(A45,'NNR_PDP-per-Dollar'!$B$6:$T$125,19,FALSE)) -> 1.425 | G45: =VLOOKUP(A45,LastYearContractPricelist!$B$4:$F$123,4,FALSE) -> 1.7 | H45: 1.7 | I45: =IF(A45=(""),"",VLOOKUP(A45,RawData!$C$8:$J$127,6,FALSE)) -> 0.05 | J45: =IF(A45=(""),"",VLOOKUP(A45,'NNR_PDP-per-Dollar'!$B$6:$T$125,4,FALSE)) -> 12.83556561 | K45: =IF(A45=(""),"",VLOOKUP(A45,RawData!$C$8:$BK$127,4,FALSE)) -> 0.52 | L45: =IF(A45=(""),"",VLOOKUP(A45,'NNR_PDP-per-Dollar'!$B$6:$T$125,7,FALSE)) -> 0.5511111111 | M45: =IF(A45=(""),"",VLOOKUP(A45,'NNR_PDP-per-Dollar'!$B$6:$T$125,10,FALSE)) -> 0.3867446394
A46: Romaine, Raw | C46: 43 | D46: =IF(A46=(""),"",VLOOKUP(A46,RawData!$C$8:$J$127,2,FALSE)) -> Lettuce, romaine | E46: =IF(A46=(""),"",VLOOKUP(A46,RawData!$C$8:$BK$127,5,FALSE)) -> Bags or lined Banana Boxes | F46: =IF(A46=(""),"",VLOOKUP(A46,'NNR_PDP-per-Dollar'!$B$6:$T$125,19,FALSE)) -> 1.05 | G46: =VLOOKUP(A46,LastYearContractPricelist!$B$4:$F$123,4,FALSE) -> 1.25 | H46: 1.25 | I46: =IF(A46=(""),"",VLOOKUP(A46,RawData!$C$8:$J$127,6,FALSE)) -> 0.05 | J46: =IF(A46=(""),"",VLOOKUP(A46,'NNR_PDP-per-Dollar'!$B$6:$T$125,4,FALSE)) -> 15.98884726 | K46: =IF(A46=(""),"",VLOOKUP(A46,RawData!$C$8:$BK$127,4,FALSE)) -> 0.52 | L46: =IF(A46=(""),"",VLOOKUP(A46,'NNR_PDP-per-Dollar'!$B$6:$T$125,7,FALSE)) -> 0.9733333333 | M46: =IF(A46=(""),"",VLOOKUP(A46,'NNR_PDP-per-Dollar'!$B$6:$T$125,10,FALSE)) -> 0.926984127
A47: Melon, Cantaloupe, Raw | C47: 44 | D47: =IF(A47=(""),"",VLOOKUP(A47,RawData!$C$8:$J$127,2,FALSE)) -> Melon, all except Watermelon | E47: =IF(A47=(""),"",VLOOKUP(A47,RawData!$C$8:$BK$127,5,FALSE)) -> Loose in Banana Boxes | F47: =IF(A47=(""),"",VLOOKUP(A47,'NNR_PDP-per-Dollar'!$B$6:$T$125,19,FALSE)) -> 0.64 | G47: =VLOOKUP(A47,LastYearContractPricelist!$B$4:$F$123,4,FALSE) -> 0.64 | H47: 0.64 | I47: =IF(A47=(""),"",VLOOKUP(A47,RawData!$C$8:$J$127,6,FALSE)) -> 0.1 | J47: =IF(A47=(""),"",VLOOKUP(A47,'NNR_PDP-per-Dollar'!$B$6:$T$125,4,FALSE)) -> 9.072880557 | K47: =IF(A47=(""),"",VLOOKUP(A47,RawData!$C$8:$BK$127,4,FALSE)) -> 0.44 | L47: =IF(A47=(""),"",VLOOKUP(A47,'NNR_PDP-per-Dollar'!$B$6:$T$125,7,FALSE)) -> 2.022857143 | M47: =IF(A47=(""),"",VLOOKUP(A47,'NNR_PDP-per-Dollar'!$B$6:$T$125,10,FALSE)) -> 3.160714286
A48: Mushrooms, white, raw | C48: 45 | D48: =IF(A48=(""),"",VLOOKUP(A48,RawData!$C$8:$J$127,2,FALSE)) -> Mushroom, cultivated | E48: =IF(A48=(""),"",VLOOKUP(A48,RawData!$C$8:$BK$127,5,FALSE)) -> Baskets or Flats | F48: =IF(A48=(""),"",VLOOKUP(A48,'NNR_PDP-per-Dollar'!$B$6:$T$125,19,FALSE)) -> 5.65 | G48: =VLOOKUP(A48,LastYearContractPricelist!$B$4:$F$123,4,FALSE) -> 2.65 | H48: 5.65 | I48: =IF(A48=(""),"",VLOOKUP(A48,RawData!$C$8:$J$127,6,FALSE)) -> 0.25 | J48: =IF(A48=(""),"",VLOOKUP(A48,'NNR_PDP-per-Dollar'!$B$6:$T$125,4,FALSE)) -> 4.626986902 | K48: =IF(A48=(""),"",VLOOKUP(A48,RawData!$C$8:$BK$127,4,FALSE)) -> 0 | L48: =IF(A48=(""),"",VLOOKUP(A48,'NNR_PDP-per-Dollar'!$B$6:$T$125,7,FALSE)) -> 1.124444444 | M48: =IF(A48=(""),"",VLOOKUP(A48,'NNR_PDP-per-Dollar'!$B$6:$T$125,10,FALSE)) -> 0.1990167158
A49: Mustard greens, raw | C49: 46 | D49: =IF(A49=(""),"",VLOOKUP(A49,RawData!$C$8:$J$127,2,FALSE)) -> Mustard Greens | E49: =IF(A49=(""),"",VLOOKUP(A49,RawData!$C$8:$BK$127,5,FALSE)) -> Bags or lined Banana Boxes | F49: =IF(A49=(""),"",VLOOKUP(A49,'NNR_PDP-per-Dollar'!$B$6:$T$125,19,FALSE)) -> 1.65 | G49: =VLOOKUP(A49,LastYearContractPricelist!$B$4:$F$123,4,FALSE) -> 2.05 | H49: 2.05 | I49: =IF(A49=(""),"",VLOOKUP(A49,RawData!$C$8:$J$127,6,FALSE)) -> 0.05 | J49: =IF(A49=(""),"",VLOOKUP(A49,'NNR_PDP-per-Dollar'!$B$6:$T$125,4,FALSE)) -> 14.90018495 | K49: =IF(A49=(""),"",VLOOKUP(A49,RawData!$C$8:$BK$127,4,FALSE)) -> 0.06 | L49: =IF(A49=(""),"",VLOOKUP(A49,'NNR_PDP-per-Dollar'!$B$6:$T$125,7,FALSE)) -> 1.124444444 | M49: =IF(A49=(""),"",VLOOKUP(A49,'NNR_PDP-per-Dollar'!$B$6:$T$125,10,FALSE)) -> 0.6814814815
A50: Nectarines, raw | C50: 47 | D50: =IF(A50=(""),"",VLOOKUP(A50,RawData!$C$8:$J$127,2,FALSE)) -> Nectarine | E50: =IF(A50=(""),"",VLOOKUP(A50,RawData!$C$8:$BK$127,5,FALSE)) -> Baskets or Flats | F50: =IF(A50=(""),"",VLOOKUP(A50,'NNR_PDP-per-Dollar'!$B$6:$T$125,19,FALSE)) -> 1.3475 | G50: =VLOOKUP(A50,LastYearContractPricelist!$B$4:$F$123,4,FALSE) -> 1.35 | H50: 1.35 | I50: =IF(A50=(""),"",VLOOKUP(A50,RawData!$C$8:$J$127,6,FALSE)) -> 0.25 | J50: =IF(A50=(""),"",VLOOKUP(A50,'NNR_PDP-per-Dollar'!$B$6:$T$125,4,FALSE)) -> 2.938110292 | K50: =IF(A50=(""),"",VLOOKUP(A50,RawData!$C$8:$BK$127,4,FALSE)) -> 0.16 | L50: =IF(A50=(""),"",VLOOKUP(A50,'NNR_PDP-per-Dollar'!$B$6:$T$125,7,FALSE)) -> 0.8971428571 | M50: =IF(A50=(""),"",VLOOKUP(A50,'NNR_PDP-per-Dollar'!$B$6:$T$125,10,FALSE)) -> 0.6657831964
A51: Okra, raw | C51: 48 | D51: =IF(A51=(""),"",VLOOKUP(A51,RawData!$C$8:$J$127,2,FALSE)) -> Okra | E51: =IF(A51=(""),"",VLOOKUP(A51,RawData!$C$8:$BK$127,5,FALSE)) -> Bags or lined Banana Boxes | F51: =IF(A51=(""),"",VLOOKUP(A51,'NNR_PDP-per-Dollar'!$B$6:$T$125,19,FALSE)) -> 3.05 | G51: =VLOOKUP(A51,LastYearContractPricelist!$B$4:$F$123,4,FALSE) -> 3.05 | H51: 3.05 | I51: =IF(A51=(""),"",VLOOKUP(A51,RawData!$C$8:$J$127,6,FALSE)) -> 0.05 | J51: =IF(A51=(""),"",VLOOKUP(A51,'NNR_PDP-per-Dollar'!$B$6:$T$125,4,FALSE)) -> 7.961916868 | K51: =IF(A51=(""),"",VLOOKUP(A51,RawData!$C$8:$BK$127,4,FALSE)) -> 0.25 | L51: =IF(A51=(""),"",VLOOKUP(A51,'NNR_PDP-per-Dollar'!$B$6:$T$125,7,FALSE)) -> 1.124444444 | M51: =IF(A51=(""),"",VLOOKUP(A51,'NNR_PDP-per-Dollar'!$B$6:$T$125,10,FALSE)) -> 0.3686703097
A52: Fresh red Onions | C52: 49 | D52: =IF(A52=(""),"",VLOOKUP(A52,RawData!$C$8:$J$127,2,FALSE)) -> Onion, bulb, red | E52: =IF(A52=(""),"",VLOOKUP(A52,RawData!$C$8:$BK$127,5,FALSE)) -> Bags or lined Banana Boxes | F52: =IF(A52=(""),"",VLOOKUP(A52,'NNR_PDP-per-Dollar'!$B$6:$T$125,19,FALSE)) -> 0.85 | G52: =VLOOKUP(A52,LastYearContractPricelist!$B$4:$F$123,4,FALSE) -> 0.37 | H52: 0.85 | I52: =IF(A52=(""),"",VLOOKUP(A52,RawData!$C$8:$J$127,6,FALSE)) -> 0.05 | J52: =IF(A52=(""),"",VLOOKUP(A52,'NNR_PDP-per-Dollar'!$B$6:$T$125,4,FALSE)) -> 1.540331197 | K52: =IF(A52=(""),"",VLOOKUP(A52,RawData!$C$8:$BK$127,4,FALSE)) -> 0.36 | L52: =IF(A52=(""),"",VLOOKUP(A52,'NNR_PDP-per-Dollar'!$B$6:$T$125,7,FALSE)) -> 1.124444444 | M52: =IF(A52=(""),"",VLOOKUP(A52,'NNR_PDP-per-Dollar'!$B$6:$T$125,10,FALSE)) -> 1.322875817
A53: Onion, bulb, sweet | C53: 50 | D53: =IF(A53=(""),"",VLOOKUP(A53,RawData!$C$8:$J$127,2,FALSE)) -> Onion, bulb, storage or sweet | E53: =IF(A53=(""),"",VLOOKUP(A53,RawData!$C$8:$BK$127,5,FALSE)) -> Bags or lined Banana Boxes | F53: =IF(A53=(""),"",VLOOKUP(A53,'NNR_PDP-per-Dollar'!$B$6:$T$125,19,FALSE)) -> 0.75 | G53: =VLOOKUP(A53,LastYearContractPricelist!$B$4:$F$123,4,FALSE) -> 0.7 | H53: 0.75 | I53: =IF(A53=(""),"",VLOOKUP(A53,RawData!$C$8:$J$127,6,FALSE)) -> 0.05 | J53: =IF(A53=(""),"",VLOOKUP(A53,'NNR_PDP-per-Dollar'!$B$6:$T$125,4,FALSE)) -> 1.975872183 | K53: =IF(A53=(""),"",VLOOKUP(A53,RawData!$C$8:$BK$127,4,FALSE)) -> 0.36 | L53: =IF(A53=(""),"",VLOOKUP(A53,'NNR_PDP-per-Dollar'!$B$6:$T$125,7,FALSE)) -> 0.6844444444 | M53: =IF(A53=(""),"",VLOOKUP(A53,'NNR_PDP-per-Dollar'!$B$6:$T$125,10,FALSE)) -> 0.9125925926
A54: Onion, bunching | C54: 51 | D54: =IF(A54=(""),"",VLOOKUP(A54,RawData!$C$8:$J$127,2,FALSE)) -> Onion, bunching | E54: =IF(A54=(""),"",VLOOKUP(A54,RawData!$C$8:$BK$127,5,FALSE)) -> Bags or lined Banana Boxes | F54: =IF(A54=(""),"",VLOOKUP(A54,'NNR_PDP-per-Dollar'!$B$6:$T$125,19,FALSE)) -> 1.3 | G54: =VLOOKUP(A54,LastYearContractPricelist!$B$4:$F$123,4,FALSE) -> 0.69 | H54: 1.3 | I54: =IF(A54=(""),"",VLOOKUP(A54,RawData!$C$8:$J$127,6,FALSE)) -> 0.05 | J54: =IF(A54=(""),"",VLOOKUP(A54,'NNR_PDP-per-Dollar'!$B$6:$T$125,4,FALSE)) -> 2.523146541 | K54: =IF(A54=(""),"",VLOOKUP(A54,RawData!$C$8:$BK$127,4,FALSE)) -> 0.36 | L54: =IF(A54=(""),"",VLOOKUP(A54,'NNR_PDP-per-Dollar'!$B$6:$T$125,7,FALSE)) -> 0.5511111111 | M54: =IF(A54=(""),"",VLOOKUP(A54,'NNR_PDP-per-Dollar'!$B$6:$T$125,10,FALSE)) -> 0.4239316239
A55: Onions, Young Green, Tops only | C55: 52 | D55: =IF(A55=(""),"",VLOOKUP(A55,RawData!$C$8:$J$127,2,FALSE)) -> Onion, green | E55: =IF(A55=(""),"",VLOOKUP(A55,RawData!$C$8:$BK$127,5,FALSE)) -> Bags or lined Banana Boxes | F55: =IF(A55=(""),"",VLOOKUP(A55,'NNR_PDP-per-Dollar'!$B$6:$T$125,19,FALSE)) -> 2.55 | G55: =VLOOKUP(A55,LastYearContractPricelist!$B$4:$F$123,4,FALSE) -> 2.25 | H55: 2.55 | I55: =IF(A55=(""),"",VLOOKUP(A55,RawData!$C$8:$J$127,6,FALSE)) -> 0.05 | J55: =IF(A55=(""),"",VLOOKUP(A55,'NNR_PDP-per-Dollar'!$B$6:$T$125,4,FALSE)) -> 8.501459166 | K55: =IF(A55=(""),"",VLOOKUP(A55,RawData!$C$8:$BK$127,4,FALSE)) -> 0.36 | L55: =IF(A55=(""),"",VLOOKUP(A55,'NNR_PDP-per-Dollar'!$B$6:$T$125,7,FALSE)) -> 3.351111111 | M55: =IF(A55=(""),"",VLOOKUP(A55,'NNR_PDP-per-Dollar'!$B$6:$T$125,10,FALSE)) -> 1.31416122
A56: Parsnips, raw | C56: 53 | D56: =IF(A56=(""),"",VLOOKUP(A56,RawData!$C$8:$J$127,2,FALSE)) -> Parsnip | E56: =IF(A56=(""),"",VLOOKUP(A56,RawData!$C$8:$BK$127,5,FALSE)) -> Bags or lined Banana Boxes | F56: =IF(A56=(""),"",VLOOKUP(A56,'NNR_PDP-per-Dollar'!$B$6:$T$125,19,FALSE)) -> 1.05 | G56: =VLOOKUP(A56,LastYearContractPricelist!$B$4:$F$123,4,FALSE) -> 1.05 | H56: 1.05 | I56: =IF(A56=(""),"",VLOOKUP(A56,RawData!$C$8:$J$127,6,FALSE)) -> 0.05 | J56: =IF(A56=(""),"",VLOOKUP(A56,'NNR_PDP-per-Dollar'!$B$6:$T$125,4,FALSE)) -> 7.301702395 | K56: =IF(A56=(""),"",VLOOKUP(A56,RawData!$C$8:$BK$127,4,FALSE)) -> 0.04 | L56: =IF(A56=(""),"",VLOOKUP(A56,'NNR_PDP-per-Dollar'!$B$6:$T$125,7,FALSE)) -> 0.5511111111 | M56: =IF(A56=(""),"",VLOOKUP(A56,'NNR_PDP-per-Dollar'!$B$6:$T$125,10,FALSE)) -> 0.5248677249
A57: Peas, Edible Podded, Raw | C57: 54 | D57: =IF(A57=(""),"",VLOOKUP(A57,RawData!$C$8:$J$127,2,FALSE)) -> Pea, edible pod | E57: =IF(A57=(""),"",VLOOKUP(A57,RawData!$C$8:$BK$127,5,FALSE)) -> Bags or lined Banana Boxes | F57: =IF(A57=(""),"",VLOOKUP(A57,'NNR_PDP-per-Dollar'!$B$6:$T$125,19,FALSE)) -> 3.05 | G57: =VLOOKUP(A57,LastYearContractPricelist!$B$4:$F$123,4,FALSE) -> 3.05 | H57: 3.05 | I57: =IF(A57=(""),"",VLOOKUP(A57,RawData!$C$8:$J$127,6,FALSE)) -> 0.05 | J57: =IF(A57=(""),"",VLOOKUP(A57,'NNR_PDP-per-Dollar'!$B$6:$T$125,4,FALSE)) -> 11.64616359 | K57: =IF(A57=(""),"",VLOOKUP(A57,RawData!$C$8:$BK$127,4,FALSE)) -> 0.28 | L57: =IF(A57=(""),"",VLOOKUP(A57,'NNR_PDP-per-Dollar'!$B$6:$T$125,7,FALSE)) -> 0.2444444444 | M57: =IF(A57=(""),"",VLOOKUP(A57,'NNR_PDP-per-Dollar'!$B$6:$T$125,10,FALSE)) -> 0.08014571949
A58: Pea, shelling | C58: 55 | D58: =IF(A58=(""),"",VLOOKUP(A58,RawData!$C$8:$J$127,2,FALSE)) -> Pea, shelling | E58: =IF(A58=(""),"",VLOOKUP(A58,RawData!$C$8:$BK$127,5,FALSE)) -> Bags or lined Banana Boxes | F58: =IF(A58=(""),"",VLOOKUP(A58,'NNR_PDP-per-Dollar'!$B$6:$T$125,19,FALSE)) -> 1.55 | G58: =VLOOKUP(A58,LastYearContractPricelist!$B$4:$F$123,4,FALSE) -> 1.55 | H58: 1.55 | I58: =IF(A58=(""),"",VLOOKUP(A58,RawData!$C$8:$J$127,6,FALSE)) -> 0.05 | J58: =IF(A58=(""),"",VLOOKUP(A58,'NNR_PDP-per-Dollar'!$B$6:$T$125,4,FALSE)) -> 11.64616359 | K58: =IF(A58=(""),"",VLOOKUP(A58,RawData!$C$8:$BK$127,4,FALSE)) -> 0.28 | L58: =IF(A58=(""),"",VLOOKUP(A58,'NNR_PDP-per-Dollar'!$B$6:$T$125,7,FALSE)) -> 0.2444444444 | M58: =IF(A58=(""),"",VLOOKUP(A58,'NNR_PDP-per-Dollar'!$B$6:$T$125,10,FALSE)) -> 0.1577060932
A59: Peaches, Yellow, Raw | C59: 56 | D59: =IF(A59=(""),"",VLOOKUP(A59,RawData!$C$8:$J$127,2,FALSE)) -> Peach | E59: =IF(A59=(""),"",VLOOKUP(A59,RawData!$C$8:$BK$127,5,FALSE)) -> Baskets or Flats | F59: =IF(A59=(""),"",VLOOKUP(A59,'NNR_PDP-per-Dollar'!$B$6:$T$125,19,FALSE)) -> 1.5975 | G59: =VLOOKUP(A59,LastYearContractPricelist!$B$4:$F$123,4,FALSE) -> 1.6 | H59: 1.6 | I59: =IF(A59=(""),"",VLOOKUP(A59,RawData!$C$8:$J$127,6,FALSE)) -> 0.25 | J59: =IF(A59=(""),"",VLOOKUP(A59,'NNR_PDP-per-Dollar'!$B$6:$T$125,4,FALSE)) -> 2.824420961 | K59: =IF(A59=(""),"",VLOOKUP(A59,RawData!$C$8:$BK$127,4,FALSE)) -> 0.44 | L59: =IF(A59=(""),"",VLOOKUP(A59,'NNR_PDP-per-Dollar'!$B$6:$T$125,7,FALSE)) -> 0.7085714286 | M59: =IF(A59=(""),"",VLOOKUP(A59,'NNR_PDP-per-Dollar'!$B$6:$T$125,10,FALSE)) -> 0.44355019
A60: Pear, Raw | C60: 57 | D60: =IF(A60=(""),"",VLOOKUP(A60,RawData!$C$8:$J$127,2,FALSE)) -> Pear | E60: =IF(A60=(""),"",VLOOKUP(A60,RawData!$C$8:$BK$127,5,FALSE)) -> Bags or lined Banana Boxes | F60: =IF(A60=(""),"",VLOOKUP(A60,'NNR_PDP-per-Dollar'!$B$6:$T$125,19,FALSE)) -> 0.675 | G60: =VLOOKUP(A60,LastYearContractPricelist!$B$4:$F$123,4,FALSE) -> 0.68 | H60: 0.68 | I60: =IF(A60=(""),"",VLOOKUP(A60,RawData!$C$8:$J$127,6,FALSE)) -> 0.05 | J60: =IF(A60=(""),"",VLOOKUP(A60,'NNR_PDP-per-Dollar'!$B$6:$T$125,4,FALSE)) -> 2.003303988 | K60: =IF(A60=(""),"",VLOOKUP(A60,RawData!$C$8:$BK$127,4,FALSE)) -> 0.19 | L60: =IF(A60=(""),"",VLOOKUP(A60,'NNR_PDP-per-Dollar'!$B$6:$T$125,7,FALSE)) -> 0.8971428571 | M60: =IF(A60=(""),"",VLOOKUP(A60,'NNR_PDP-per-Dollar'!$B$6:$T$125,10,FALSE)) -> 1.329100529
A61: Pepper, bell type, colored, big | C61: 58 | D61: =IF(A61=(""),"",VLOOKUP(A61,RawData!$C$8:$J$127,2,FALSE)) -> Pepper, bell type | E61: =IF(A61=(""),"",VLOOKUP(A61,RawData!$C$8:$BK$127,5,FALSE)) -> Bags or lined Banana Boxes | F61: =IF(A61=(""),"",VLOOKUP(A61,'NNR_PDP-per-Dollar'!$B$6:$T$125,19,FALSE)) -> 5.05 | G61: =VLOOKUP(A61,LastYearContractPricelist!$B$4:$F$123,4,FALSE) -> 5.05 | H61: 5.05 | I61: =IF(A61=(""),"",VLOOKUP(A61,RawData!$C$8:$J$127,6,FALSE)) -> 0.05 | J61: =IF(A61=(""),"",VLOOKUP(A61,'NNR_PDP-per-Dollar'!$B$6:$T$125,4,FALSE)) -> 18.00228851 | K61: =IF(A61=(""),"",VLOOKUP(A61,RawData!$C$8:$BK$127,4,FALSE)) -> 0.28 | L61: =IF(A61=(""),"",VLOOKUP(A61,'NNR_PDP-per-Dollar'!$B$6:$T$125,7,FALSE)) -> 0.6844444444 | M61: =IF(A61=(""),"",VLOOKUP(A61,'NNR_PDP-per-Dollar'!$B$6:$T$125,10,FALSE)) -> 0.1355335534
A62: Pepper, other, midsize | C62: 59 | D62: =IF(A62=(""),"",VLOOKUP(A62,RawData!$C$8:$J$127,2,FALSE)) -> Pepper, other | E62: =IF(A62=(""),"",VLOOKUP(A62,RawData!$C$8:$BK$127,5,FALSE)) -> Bags or lined Banana Boxes | F62: =IF(A62=(""),"",VLOOKUP(A62,'NNR_PDP-per-Dollar'!$B$6:$T$125,19,FALSE)) -> 3.05 | G62: =VLOOKUP(A62,LastYearContractPricelist!$B$4:$F$123,4,FALSE) -> 3.05 | H62: 3.05 | I62: =IF(A62=(""),"",VLOOKUP(A62,RawData!$C$8:$J$127,6,FALSE)) -> 0.05 | J62: =IF(A62=(""),"",VLOOKUP(A62,'NNR_PDP-per-Dollar'!$B$6:$T$125,4,FALSE)) -> 9.090845474 | K62: =IF(A62=(""),"",VLOOKUP(A62,RawData!$C$8:$BK$127,4,FALSE)) -> 0.28 | L62: =IF(A62=(""),"",VLOOKUP(A62,'NNR_PDP-per-Dollar'!$B$6:$T$125,7,FALSE)) -> 0.6844444444 | M62: =IF(A62=(""),"",VLOOKUP(A62,'NNR_PDP-per-Dollar'!$B$6:$T$125,10,FALSE)) -> 0.2244080146
A63: Plums, Raw | C63: 60 | D63: =IF(A63=(""),"",VLOOKUP(A63,RawData!$C$8:$J$127,2,FALSE)) -> Plum | E63: =IF(A63=(""),"",VLOOKUP(A63,RawData!$C$8:$BK$127,5,FALSE)) -> Baskets or Flats | F63: =IF(A63=(""),"",VLOOKUP(A63,'NNR_PDP-per-Dollar'!$B$6:$T$125,19,FALSE)) -> 0.928 | G63: =VLOOKUP(A63,LastYearContractPricelist!$B$4:$F$123,4,FALSE) -> 0.93 | H63: 0.93 | I63: =IF(A63=(""),"",VLOOKUP(A63,RawData!$C$8:$J$127,6,FALSE)) -> 0.25 | J63: =IF(A63=(""),"",VLOOKUP(A63,'NNR_PDP-per-Dollar'!$B$6:$T$125,4,FALSE)) -> 2.733190282 | K63: =IF(A63=(""),"",VLOOKUP(A63,RawData!$C$8:$BK$127,4,FALSE)) -> 0.09 | L63: =IF(A63=(""),"",VLOOKUP(A63,'NNR_PDP-per-Dollar'!$B$6:$T$125,7,FALSE)) -> 0.7085714286 | M63: =IF(A63=(""),"",VLOOKUP(A63,'NNR_PDP-per-Dollar'!$B$6:$T$125,10,FALSE)) -> 0.763546798
A64: Pluots, Raw | C64: 61 | D64: =IF(A64=(""),"",VLOOKUP(A64,RawData!$C$8:$J$127,2,FALSE)) -> Pluot | E64: =IF(A64=(""),"",VLOOKUP(A64,RawData!$C$8:$BK$127,5,FALSE)) -> Baskets or Flats | F64: =IF(A64=(""),"",VLOOKUP(A64,'NNR_PDP-per-Dollar'!$B$6:$T$125,19,FALSE)) -> 0.928 | G64: =VLOOKUP(A64,LastYearContractPricelist!$B$4:$F$123,4,FALSE) ->  | H64: 0.928 | I64: =IF(A64=(""),"",VLOOKUP(A64,RawData!$C$8:$J$127,6,FALSE)) -> 0.25 | J64: =IF(A64=(""),"",VLOOKUP(A64,'NNR_PDP-per-Dollar'!$B$6:$T$125,4,FALSE)) -> 2.733190282 | K64: =IF(A64=(""),"",VLOOKUP(A64,RawData!$C$8:$BK$127,4,FALSE)) -> 0.09 | L64: =IF(A64=(""),"",VLOOKUP(A64,'NNR_PDP-per-Dollar'!$B$6:$T$125,7,FALSE)) -> 0.7085714286 | M64: =IF(A64=(""),"",VLOOKUP(A64,'NNR_PDP-per-Dollar'!$B$6:$T$125,10,FALSE)) -> 0.763546798
A65: Baby potatoes | C65: 62 | D65: =IF(A65=(""),"",VLOOKUP(A65,RawData!$C$8:$J$127,2,FALSE)) -> Potato, baby | E65: =IF(A65=(""),"",VLOOKUP(A65,RawData!$C$8:$BK$127,5,FALSE)) -> Bags or lined Banana Boxes | F65: =IF(A65=(""),"",VLOOKUP(A65,'NNR_PDP-per-Dollar'!$B$6:$T$125,19,FALSE)) -> 0.575 | G65: =VLOOKUP(A65,LastYearContractPricelist!$B$4:$F$123,4,FALSE) ->  | H65: 0.575 | I65: =IF(A65=(""),"",VLOOKUP(A65,RawData!$C$8:$J$127,6,FALSE)) -> 0.05 | J65: =IF(A65=(""),"",VLOOKUP(A65,'NNR_PDP-per-Dollar'!$B$6:$T$125,4,FALSE)) -> 2.644444444 | K65: =IF(A65=(""),"",VLOOKUP(A65,RawData!$C$8:$BK$127,4,FALSE)) -> 0.14 | L65: =IF(A65=(""),"",VLOOKUP(A65,'NNR_PDP-per-Dollar'!$B$6:$T$125,7,FALSE)) -> 1.124444444 | M65: =IF(A65=(""),"",VLOOKUP(A65,'NNR_PDP-per-Dollar'!$B$6:$T$125,10,FALSE)) -> 1.955555556
A66: Potatoes, baked, flesh and skin, without salt | C66: 63 | D66: =IF(A66=(""),"",VLOOKUP(A66,RawData!$C$8:$J$127,2,FALSE)) -> Potato, baking | E66: =IF(A66=(""),"",VLOOKUP(A66,RawData!$C$8:$BK$127,5,FALSE)) -> Bags or lined Banana Boxes | F66: =IF(A66=(""),"",VLOOKUP(A66,'NNR_PDP-per-Dollar'!$B$6:$T$125,19,FALSE)) -> 0.7375 | G66: =VLOOKUP(A66,LastYearContractPricelist!$B$4:$F$123,4,FALSE) -> 0.39 | H66: 0.7375 | I66: =IF(A66=(""),"",VLOOKUP(A66,RawData!$C$8:$J$127,6,FALSE)) -> 0.05 | J66: =IF(A66=(""),"",VLOOKUP(A66,'NNR_PDP-per-Dollar'!$B$6:$T$125,4,FALSE)) -> 4.699109328 | K66: =IF(A66=(""),"",VLOOKUP(A66,RawData!$C$8:$BK$127,4,FALSE)) -> 0.19 | L66: =IF(A66=(""),"",VLOOKUP(A66,'NNR_PDP-per-Dollar'!$B$6:$T$125,7,FALSE)) -> 1.124444444 | M66: =IF(A66=(""),"",VLOOKUP(A66,'NNR_PDP-per-Dollar'!$B$6:$T$125,10,FALSE)) -> 1.524670433
A67: Potoato, fingerling | C67: 64 | D67: =IF(A67=(""),"",VLOOKUP(A67,RawData!$C$8:$J$127,2,FALSE)) -> Potato, fingerling | E67: =IF(A67=(""),"",VLOOKUP(A67,RawData!$C$8:$BK$127,5,FALSE)) -> Bags or lined Banana Boxes | F67: =IF(A67=(""),"",VLOOKUP(A67,'NNR_PDP-per-Dollar'!$B$6:$T$125,19,FALSE)) -> 0.7375 | G67: =VLOOKUP(A67,LastYearContractPricelist!$B$4:$F$123,4,FALSE) ->  | H67: 0.7375 | I67: =IF(A67=(""),"",VLOOKUP(A67,RawData!$C$8:$J$127,6,FALSE)) -> 0.05 | J67: =IF(A67=(""),"",VLOOKUP(A67,'NNR_PDP-per-Dollar'!$B$6:$T$125,4,FALSE)) -> 4.818245296 | K67: =IF(A67=(""),"",VLOOKUP(A67,RawData!$C$8:$BK$127,4,FALSE)) -> 0.26 | L67: =IF(A67=(""),"",VLOOKUP(A67,'NNR_PDP-per-Dollar'!$B$6:$T$125,7,FALSE)) -> 1.124444444 | M67: =IF(A67=(""),"",VLOOKUP(A67,'NNR_PDP-per-Dollar'!$B$6:$T$125,10,FALSE)) -> 1.524670433
A68: Potato, purple | C68: 65 | D68: =IF(A68=(""),"",VLOOKUP(A68,RawData!$C$8:$J$127,2,FALSE)) -> Potato, purple | E68: =IF(A68=(""),"",VLOOKUP(A68,RawData!$C$8:$BK$127,5,FALSE)) -> Bags or lined Banana Boxes | F68: =IF(A68=(""),"",VLOOKUP(A68,'NNR_PDP-per-Dollar'!$B$6:$T$125,19,FALSE)) -> 0.7375 | G68: =VLOOKUP(A68,LastYearContractPricelist!$B$4:$F$123,4,FALSE) -> 0.74 | H68: 0.74 | I68: =IF(A68=(""),"",VLOOKUP(A68,RawData!$C$8:$J$127,6,FALSE)) -> 0.05 | J68: =IF(A68=(""),"",VLOOKUP(A68,'NNR_PDP-per-Dollar'!$B$6:$T$125,4,FALSE)) -> 4.818245296 | K68: =IF(A68=(""),"",VLOOKUP(A68,RawData!$C$8:$BK$127,4,FALSE)) -> 0.26 | L68: =IF(A68=(""),"",VLOOKUP(A68,'NNR_PDP-per-Dollar'!$B$6:$T$125,7,FALSE)) -> 1.124444444 | M68: =IF(A68=(""),"",VLOOKUP(A68,'NNR_PDP-per-Dollar'!$B$6:$T$125,10,FALSE)) -> 1.524670433
A69: Potatoes, red, flesh and skin | C69: =1+C68 -> 66 | D69: =IF(A69=(""),"",VLOOKUP(A69,RawData!$C$8:$J$127,2,FALSE)) -> Potato, red | E69: =IF(A69=(""),"",VLOOKUP(A69,RawData!$C$8:$BK$127,5,FALSE)) -> Bags or lined Banana Boxes | F69: =IF(A69=(""),"",VLOOKUP(A69,'NNR_PDP-per-Dollar'!$B$6:$T$125,19,FALSE)) -> 0.7375 | G69: =VLOOKUP(A69,LastYearContractPricelist!$B$4:$F$123,4,FALSE) -> 0.74 | H69: 0.74 | I69: =IF(A69=(""),"",VLOOKUP(A69,RawData!$C$8:$J$127,6,FALSE)) -> 0.05 | J69: =IF(A69=(""),"",VLOOKUP(A69,'NNR_PDP-per-Dollar'!$B$6:$T$125,4,FALSE)) -> 3.490964209 | K69: =IF(A69=(""),"",VLOOKUP(A69,RawData!$C$8:$BK$127,4,FALSE)) -> 0.26 | L69: =IF(A69=(""),"",VLOOKUP(A69,'NNR_PDP-per-Dollar'!$B$6:$T$125,7,FALSE)) -> 1.124444444 | M69: =IF(A69=(""),"",VLOOKUP(A69,'NNR_PDP-per-Dollar'!$B$6:$T$125,10,FALSE)) -> 1.524670433
A70: Pumpkin big, large | C70: 67 | D70: =IF(A70=(""),"",VLOOKUP(A70,RawData!$C$8:$J$127,2,FALSE)) -> Pumpkin for carving, large | E70: =IF(A70=(""),"",VLOOKUP(A70,RawData!$C$8:$BK$127,5,FALSE)) -> Bags or lined Banana Boxes | F70: =IF(A70=(""),"",VLOOKUP(A70,'NNR_PDP-per-Dollar'!$B$6:$T$125,19,FALSE)) -> 0.225 | G70: =VLOOKUP(A70,LastYearContractPricelist!$B$4:$F$123,4,FALSE) -> 0.23 | H70: =IFERROR(IF(F70<G70,G70,F70),F70) -> 0.23 | I70: =IF(A70=(""),"",VLOOKUP(A70,RawData!$C$8:$J$127,6,FALSE)) -> 0.05 | J70: =IF(A70=(""),"",VLOOKUP(A70,'NNR_PDP-per-Dollar'!$B$6:$T$125,4,FALSE)) -> 14.63759619 | K70: =IF(A70=(""),"",VLOOKUP(A70,RawData!$C$8:$BK$127,4,FALSE)) -> 0.11 | L70: =IF(A70=(""),"",VLOOKUP(A70,'NNR_PDP-per-Dollar'!$B$6:$T$125,7,FALSE)) -> 0.5511111111 | M70: =IF(A70=(""),"",VLOOKUP(A70,'NNR_PDP-per-Dollar'!$B$6:$T$125,10,FALSE)) -> 2.449382716
A71: Pumpkin big, large | C71: 68 | D71: =IF(A71=(""),"",VLOOKUP(A71,RawData!$C$8:$J$127,2,FALSE)) -> Pumpkin for carving, large | E71: =IF(A71=(""),"",VLOOKUP(A71,RawData!$C$8:$BK$127,5,FALSE)) -> Bags or lined Banana Boxes | F71: =IF(A71=(""),"",VLOOKUP(A71,'NNR_PDP-per-Dollar'!$B$6:$T$125,19,FALSE)) -> 0.225 | G71: =VLOOKUP(A71,LastYearContractPricelist!$B$4:$F$123,4,FALSE) -> 0.23 | H71: 0.23 | I71: =IF(A71=(""),"",VLOOKUP(A71,RawData!$C$8:$J$127,6,FALSE)) -> 0.05 | J71: =IF(A71=(""),"",VLOOKUP(A71,'NNR_PDP-per-Dollar'!$B$6:$T$125,4,FALSE)) -> 14.63759619 | K71: =IF(A71=(""),"",VLOOKUP(A71,RawData!$C$8:$BK$127,4,FALSE)) -> 0.11 | L71: =IF(A71=(""),"",VLOOKUP(A71,'NNR_PDP-per-Dollar'!$B$6:$T$125,7,FALSE)) -> 0.5511111111 | M71: =IF(A71=(""),"",VLOOKUP(A71,'NNR_PDP-per-Dollar'!$B$6:$T$125,10,FALSE)) -> 2.449382716
A72: Squash, Pie Pumpkin | C72: 69 | D72: =IF(A72=(""),"",VLOOKUP(A72,RawData!$C$8:$J$127,2,FALSE)) -> Pumpkin for eating | E72: =IF(A72=(""),"",VLOOKUP(A72,RawData!$C$8:$BK$127,5,FALSE)) -> Bags or lined Banana Boxes | F72: =IF(A72=(""),"",VLOOKUP(A72,'NNR_PDP-per-Dollar'!$B$6:$T$125,19,FALSE)) -> 0.675 | G72: =VLOOKUP(A72,LastYearContractPricelist!$B$4:$F$123,4,FALSE) -> 0.68 | H72: 0.68 | I72: =IF(A72=(""),"",VLOOKUP(A72,RawData!$C$8:$J$127,6,FALSE)) -> 0.05 | J72: =IF(A72=(""),"",VLOOKUP(A72,'NNR_PDP-per-Dollar'!$B$6:$T$125,4,FALSE)) -> 14.63759619 | K72: =IF(A72=(""),"",VLOOKUP(A72,RawData!$C$8:$BK$127,4,FALSE)) -> 0.21 | L72: =IF(A72=(""),"",VLOOKUP(A72,'NNR_PDP-per-Dollar'!$B$6:$T$125,7,FALSE)) -> 0.5511111111 | M72: =IF(A72=(""),"",VLOOKUP(A72,'NNR_PDP-per-Dollar'!$B$6:$T$125,10,FALSE)) -> 0.8164609053
A73: Radishes, raw | C73: 70 | D73: =IF(A73=(""),"",VLOOKUP(A73,RawData!$C$8:$J$127,2,FALSE)) -> Radish | E73: =IF(A73=(""),"",VLOOKUP(A73,RawData!$C$8:$BK$127,5,FALSE)) -> Bags or lined Banana Boxes | F73: =IF(A73=(""),"",VLOOKUP(A73,'NNR_PDP-per-Dollar'!$B$6:$T$125,19,FALSE)) -> 2.3 | G73: =VLOOKUP(A73,LastYearContractPricelist!$B$4:$F$123,4,FALSE) -> 2.3 | H73: 2.3 | I73: =IF(A73=(""),"",VLOOKUP(A73,RawData!$C$8:$J$127,6,FALSE)) -> 0.05 | J73: =IF(A73=(""),"",VLOOKUP(A73,'NNR_PDP-per-Dollar'!$B$6:$T$125,4,FALSE)) -> 3.37306565 | K73: =IF(A73=(""),"",VLOOKUP(A73,RawData!$C$8:$BK$127,4,FALSE)) -> 0.16 | L73: =IF(A73=(""),"",VLOOKUP(A73,'NNR_PDP-per-Dollar'!$B$6:$T$125,7,FALSE)) -> 1.573333333 | M73: =IF(A73=(""),"",VLOOKUP(A73,'NNR_PDP-per-Dollar'!$B$6:$T$125,10,FALSE)) -> 0.684057971
A74: Raspberries, Raw | C74: 71 | D74: =IF(A74=(""),"",VLOOKUP(A74,RawData!$C$8:$J$127,2,FALSE)) -> Raspberry | E74: =IF(A74=(""),"",VLOOKUP(A74,RawData!$C$8:$BK$127,5,FALSE)) -> Baskets or Flats | F74: =IF(A74=(""),"",VLOOKUP(A74,'NNR_PDP-per-Dollar'!$B$6:$T$125,19,FALSE)) -> 3.05 | G74: =VLOOKUP(A74,LastYearContractPricelist!$B$4:$F$123,4,FALSE) -> 2.65 | H74: 3.05 | I74: =IF(A74=(""),"",VLOOKUP(A74,RawData!$C$8:$J$127,6,FALSE)) -> 0.25 | J74: =IF(A74=(""),"",VLOOKUP(A74,'NNR_PDP-per-Dollar'!$B$6:$T$125,4,FALSE)) -> 6.304256785 | K74: =IF(A74=(""),"",VLOOKUP(A74,RawData!$C$8:$BK$127,4,FALSE)) -> 0.52 | L74: =IF(A74=(""),"",VLOOKUP(A74,'NNR_PDP-per-Dollar'!$B$6:$T$125,7,FALSE)) -> 2.022857143 | M74: =IF(A74=(""),"",VLOOKUP(A74,'NNR_PDP-per-Dollar'!$B$6:$T$125,10,FALSE)) -> 0.6632318501
A75: Rhubarb, raw | C75: 72 | D75: =IF(A75=(""),"",VLOOKUP(A75,RawData!$C$8:$J$127,2,FALSE)) -> Rhubarb | E75: =IF(A75=(""),"",VLOOKUP(A75,RawData!$C$8:$BK$127,5,FALSE)) -> Bags or lined Banana Boxes | F75: =IF(A75=(""),"",VLOOKUP(A75,'NNR_PDP-per-Dollar'!$B$6:$T$125,19,FALSE)) -> 0.45 | G75: =VLOOKUP(A75,LastYearContractPricelist!$B$4:$F$123,4,FALSE) -> 0.75 | H75: 0.75 | I75: =IF(A75=(""),"",VLOOKUP(A75,RawData!$C$8:$J$127,6,FALSE)) -> 0.05 | J75: =IF(A75=(""),"",VLOOKUP(A75,'NNR_PDP-per-Dollar'!$B$6:$T$125,4,FALSE)) -> 2.980369388 | K75: =IF(A75=(""),"",VLOOKUP(A75,RawData!$C$8:$BK$127,4,FALSE)) -> 0.1 | L75: =IF(A75=(""),"",VLOOKUP(A75,'NNR_PDP-per-Dollar'!$B$6:$T$125,7,FALSE)) -> 1.56 | M75: =IF(A75=(""),"",VLOOKUP(A75,'NNR_PDP-per-Dollar'!$B$6:$T$125,10,FALSE)) -> 3.466666667
A76: Rutabagas, raw | C76: 73 | D76: =IF(A76=(""),"",VLOOKUP(A76,RawData!$C$8:$J$127,2,FALSE)) -> Rutabaga | E76: =IF(A76=(""),"",VLOOKUP(A76,RawData!$C$8:$BK$127,5,FALSE)) -> Bags or lined Banana Boxes | F76: =IF(A76=(""),"",VLOOKUP(A76,'NNR_PDP-per-Dollar'!$B$6:$T$125,19,FALSE)) -> 1.3 | G76: =VLOOKUP(A76,LastYearContractPricelist!$B$4:$F$123,4,FALSE) -> 1.05 | H76: 1.3 | I76: =IF(A76=(""),"",VLOOKUP(A76,RawData!$C$8:$J$127,6,FALSE)) -> 0.05 | J76: =IF(A76=(""),"",VLOOKUP(A76,'NNR_PDP-per-Dollar'!$B$6:$T$125,4,FALSE)) -> 5.12718972 | K76: =IF(A76=(""),"",VLOOKUP(A76,RawData!$C$8:$BK$127,4,FALSE)) -> 0.02 | L76: =IF(A76=(""),"",VLOOKUP(A76,'NNR_PDP-per-Dollar'!$B$6:$T$125,7,FALSE)) -> 1.28 | M76: =IF(A76=(""),"",VLOOKUP(A76,'NNR_PDP-per-Dollar'!$B$6:$T$125,10,FALSE)) -> 0.9846153846
A77: Salsify, (vegetable oyster), raw | C77: 74 | D77: =IF(A77=(""),"",VLOOKUP(A77,RawData!$C$8:$J$127,2,FALSE)) -> Salsify | E77: =IF(A77=(""),"",VLOOKUP(A77,RawData!$C$8:$BK$127,5,FALSE)) -> Bags or lined Banana Boxes | F77: =IF(A77=(""),"",VLOOKUP(A77,'NNR_PDP-per-Dollar'!$B$6:$T$125,19,FALSE)) -> 1.55 | G77: =VLOOKUP(A77,LastYearContractPricelist!$B$4:$F$123,4,FALSE) -> 1.55 | H77: 1.55 | I77: =IF(A77=(""),"",VLOOKUP(A77,RawData!$C$8:$J$127,6,FALSE)) -> 0.05 | J77: =IF(A77=(""),"",VLOOKUP(A77,'NNR_PDP-per-Dollar'!$B$6:$T$125,4,FALSE)) -> 5.579330947 | K77: =IF(A77=(""),"",VLOOKUP(A77,RawData!$C$8:$BK$127,4,FALSE)) -> 0.08 | L77: =IF(A77=(""),"",VLOOKUP(A77,'NNR_PDP-per-Dollar'!$B$6:$T$125,7,FALSE)) -> 0.5511111111 | M77: =IF(A77=(""),"",VLOOKUP(A77,'NNR_PDP-per-Dollar'!$B$6:$T$125,10,FALSE)) -> 0.3555555556
A78: Spices, all except Basil, Cilantro, Dill | C78: 75 | D78: =IF(A78=(""),"",VLOOKUP(A78,RawData!$C$8:$J$127,2,FALSE)) -> Spices, all except Basil, Cilantro, Dill | E78: =IF(A78=(""),"",VLOOKUP(A78,RawData!$C$8:$BK$127,5,FALSE)) -> Bags or lined Banana Boxes | F78: =IF(A78=(""),"",VLOOKUP(A78,'NNR_PDP-per-Dollar'!$B$6:$T$125,19,FALSE)) -> 2.575 | G78: =VLOOKUP(A78,LastYearContractPricelist!$B$4:$F$123,4,FALSE) ->  | H78: 2.575 | I78: =IF(A78=(""),"",VLOOKUP(A78,RawData!$C$8:$J$127,6,FALSE)) -> 0.05 | J78: =IF(A78=(""),"",VLOOKUP(A78,'NNR_PDP-per-Dollar'!$B$6:$T$125,4,FALSE)) -> 31.33614785 | K78: =IF(A78=(""),"",VLOOKUP(A78,RawData!$C$8:$BK$127,4,FALSE)) -> 0 | L78: =IF(A78=(""),"",VLOOKUP(A78,'NNR_PDP-per-Dollar'!$B$6:$T$125,7,FALSE)) -> 3.351111111 | M78: =IF(A78=(""),"",VLOOKUP(A78,'NNR_PDP-per-Dollar'!$B$6:$T$125,10,FALSE)) -> 1.301402373
A79: Spinach, baby | C79: 76 | D79: =IF(A79=(""),"",VLOOKUP(A79,RawData!$C$8:$J$127,2,FALSE)) -> Spinach, mature | E79: =IF(A79=(""),"",VLOOKUP(A79,RawData!$C$8:$BK$127,5,FALSE)) -> Bags or lined Banana Boxes | F79: =IF(A79=(""),"",VLOOKUP(A79,'NNR_PDP-per-Dollar'!$B$6:$T$125,19,FALSE)) -> 3.35 | G79: =VLOOKUP(A79,LastYearContractPricelist!$B$4:$F$123,4,FALSE) -> 2.8 | H79: 3.35 | I79: =IF(A79=(""),"",VLOOKUP(A79,RawData!$C$8:$J$127,6,FALSE)) -> 0.05 | J79: =IF(A79=(""),"",VLOOKUP(A79,'NNR_PDP-per-Dollar'!$B$6:$T$125,4,FALSE)) -> 22.87877754 | K79: =IF(A79=(""),"",VLOOKUP(A79,RawData!$C$8:$BK$127,4,FALSE)) -> 0.21 | L79: =IF(A79=(""),"",VLOOKUP(A79,'NNR_PDP-per-Dollar'!$B$6:$T$125,7,FALSE)) -> 3.351111111 | M79: =IF(A79=(""),"",VLOOKUP(A79,'NNR_PDP-per-Dollar'!$B$6:$T$125,10,FALSE)) -> 1.000331675
A80: Squash, summer, baby | C80: 77 | D80: =IF(A80=(""),"",VLOOKUP(A80,RawData!$C$8:$J$127,2,FALSE)) -> Squash, summer, mature | E80: =IF(A80=(""),"",VLOOKUP(A80,RawData!$C$8:$BK$127,5,FALSE)) -> Bags or lined Banana Boxes | F80: =IF(A80=(""),"",VLOOKUP(A80,'NNR_PDP-per-Dollar'!$B$6:$T$125,19,FALSE)) -> 0.75 | G80: =VLOOKUP(A80,LastYearContractPricelist!$B$4:$F$123,4,FALSE) -> 0.74 | H80: 0.75 | I80: =IF(A80=(""),"",VLOOKUP(A80,RawData!$C$8:$J$127,6,FALSE)) -> 0.05 | J80: =IF(A80=(""),"",VLOOKUP(A80,'NNR_PDP-per-Dollar'!$B$6:$T$125,4,FALSE)) -> 4.518853161 | K80: =IF(A80=(""),"",VLOOKUP(A80,RawData!$C$8:$BK$127,4,FALSE)) -> 0.18 | L80: =IF(A80=(""),"",VLOOKUP(A80,'NNR_PDP-per-Dollar'!$B$6:$T$125,7,FALSE)) -> 0.2444444444 | M80: =IF(A80=(""),"",VLOOKUP(A80,'NNR_PDP-per-Dollar'!$B$6:$T$125,10,FALSE)) -> 0.3259259259
A81: Squash, winter, acorn, raw | C81: 78 | D81: =IF(A81=(""),"",VLOOKUP(A81,RawData!$C$8:$J$127,2,FALSE)) -> Squash, winter, all | E81: =IF(A81=(""),"",VLOOKUP(A81,RawData!$C$8:$BK$127,5,FALSE)) -> Bags or lined Banana Boxes | F81: =IF(A81=(""),"",VLOOKUP(A81,'NNR_PDP-per-Dollar'!$B$6:$T$125,19,FALSE)) -> 0.6125 | G81: =VLOOKUP(A81,LastYearContractPricelist!$B$4:$F$123,4,FALSE) -> 0.61 | H81: 0.6125 | I81: =IF(A81=(""),"",VLOOKUP(A81,RawData!$C$8:$J$127,6,FALSE)) -> 0.05 | J81: =IF(A81=(""),"",VLOOKUP(A81,'NNR_PDP-per-Dollar'!$B$6:$T$125,4,FALSE)) -> 4.467611729 | K81: =IF(A81=(""),"",VLOOKUP(A81,RawData!$C$8:$BK$127,4,FALSE)) -> 0.21 | L81: =IF(A81=(""),"",VLOOKUP(A81,'NNR_PDP-per-Dollar'!$B$6:$T$125,7,FALSE)) -> 3.351111111 | M81: =IF(A81=(""),"",VLOOKUP(A81,'NNR_PDP-per-Dollar'!$B$6:$T$125,10,FALSE)) -> 5.471201814
A82: Squash, winter, Hubbard, raw | C82: 79 | D82: =IF(A82=(""),"",VLOOKUP(A82,RawData!$C$8:$J$127,2,FALSE)) -> Strawberry | E82: =IF(A82=(""),"",VLOOKUP(A82,RawData!$C$8:$BK$127,5,FALSE)) -> Bags or lined Banana Boxes | F82: =IF(A82=(""),"",VLOOKUP(A82,'NNR_PDP-per-Dollar'!$B$6:$T$125,19,FALSE)) -> 0.5 | G82: =VLOOKUP(A82,LastYearContractPricelist!$B$4:$F$123,4,FALSE) -> 0.5 | H82: 0.5 | I82: =IF(A82=(""),"",VLOOKUP(A82,RawData!$C$8:$J$127,6,FALSE)) -> 0.05 | J82: =IF(A82=(""),"",VLOOKUP(A82,'NNR_PDP-per-Dollar'!$B$6:$T$125,4,FALSE)) -> 6.02933334 | K82: =IF(A82=(""),"",VLOOKUP(A82,RawData!$C$8:$BK$127,4,FALSE)) -> 0.21 | L82: =IF(A82=(""),"",VLOOKUP(A82,'NNR_PDP-per-Dollar'!$B$6:$T$125,7,FALSE)) -> 0.6844444444 | M82: =IF(A82=(""),"",VLOOKUP(A82,'NNR_PDP-per-Dollar'!$B$6:$T$125,10,FALSE)) -> 1.368888889
A83: Sweet potato, raw, unprepared | C83: 80 | D83: =IF(A83=(""),"",VLOOKUP(A83,RawData!$C$8:$J$127,2,FALSE)) -> Sweet Potato | E83: =IF(A83=(""),"",VLOOKUP(A83,RawData!$C$8:$BK$127,5,FALSE)) -> Bags or lined Banana Boxes | F83: =IF(A83=(""),"",VLOOKUP(A83,'NNR_PDP-per-Dollar'!$B$6:$T$125,19,FALSE)) -> 0.85 | G83: =VLOOKUP(A83,LastYearContractPricelist!$B$4:$F$123,4,FALSE) -> 0.85 | H83: 0.85 | I83: =IF(A83=(""),"",VLOOKUP(A83,RawData!$C$8:$J$127,6,FALSE)) -> 0.05 | J83: =IF(A83=(""),"",VLOOKUP(A83,'NNR_PDP-per-Dollar'!$B$6:$T$125,4,FALSE)) -> 21.94302819 | K83: =IF(A83=(""),"",VLOOKUP(A83,RawData!$C$8:$BK$127,4,FALSE)) -> 0 | L83: =IF(A83=(""),"",VLOOKUP(A83,'NNR_PDP-per-Dollar'!$B$6:$T$125,7,FALSE)) -> 0.9733333333 | M83: =IF(A83=(""),"",VLOOKUP(A83,'NNR_PDP-per-Dollar'!$B$6:$T$125,10,FALSE)) -> 1.145098039
A84: Chard, Swiss, Raw | C84: 81 | D84: =IF(A84=(""),"",VLOOKUP(A84,RawData!$C$8:$J$127,2,FALSE)) -> Swiss Chard | E84: =IF(A84=(""),"",VLOOKUP(A84,RawData!$C$8:$BK$127,5,FALSE)) -> Bags or lined Banana Boxes | F84: =IF(A84=(""),"",VLOOKUP(A84,'NNR_PDP-per-Dollar'!$B$6:$T$125,19,FALSE)) -> 1.8390625 | G84: =VLOOKUP(A84,LastYearContractPricelist!$B$4:$F$123,4,FALSE) -> 2.05 | H84: 2.05 | I84: =IF(A84=(""),"",VLOOKUP(A84,RawData!$C$8:$J$127,6,FALSE)) -> 0.05 | J84: =IF(A84=(""),"",VLOOKUP(A84,'NNR_PDP-per-Dollar'!$B$6:$T$125,4,FALSE)) -> 14.34437604 | K84: =IF(A84=(""),"",VLOOKUP(A84,RawData!$C$8:$BK$127,4,FALSE)) -> 0.04 | L84: =IF(A84=(""),"",VLOOKUP(A84,'NNR_PDP-per-Dollar'!$B$6:$T$125,7,FALSE)) -> 3.351111111 | M84: =IF(A84=(""),"",VLOOKUP(A84,'NNR_PDP-per-Dollar'!$B$6:$T$125,10,FALSE)) -> 1.822184461
A85: Tomato, grape | C85: 82 | D85: =IF(A85=(""),"",VLOOKUP(A85,RawData!$C$8:$J$127,2,FALSE)) -> Tomato, grape | E85: =IF(A85=(""),"",VLOOKUP(A85,RawData!$C$8:$BK$127,5,FALSE)) -> Baskets or Flats | F85: =IF(A85=(""),"",VLOOKUP(A85,'NNR_PDP-per-Dollar'!$B$6:$T$125,19,FALSE)) -> 2.35 | G85: =VLOOKUP(A85,LastYearContractPricelist!$B$4:$F$123,4,FALSE) -> 2.35 | H85: 2.35 | I85: =IF(A85=(""),"",VLOOKUP(A85,RawData!$C$8:$J$127,6,FALSE)) -> 0.25 | J85: =IF(A85=(""),"",VLOOKUP(A85,'NNR_PDP-per-Dollar'!$B$6:$T$125,4,FALSE)) -> 4.093531156 | K85: =IF(A85=(""),"",VLOOKUP(A85,RawData!$C$8:$BK$127,4,FALSE)) -> 0.59 | L85: =IF(A85=(""),"",VLOOKUP(A85,'NNR_PDP-per-Dollar'!$B$6:$T$125,7,FALSE)) -> 0.5511111111 | M85: =IF(A85=(""),"",VLOOKUP(A85,'NNR_PDP-per-Dollar'!$B$6:$T$125,10,FALSE)) -> 0.2345153664
A86: Tomato, plum | C86: 83 | D86: =IF(A86=(""),"",VLOOKUP(A86,RawData!$C$8:$J$127,2,FALSE)) -> Tomato, plum, roma, or slicing | E86: =IF(A86=(""),"",VLOOKUP(A86,RawData!$C$8:$BK$127,5,FALSE)) -> Baskets or Flats | F86: =IF(A86=(""),"",VLOOKUP(A86,'NNR_PDP-per-Dollar'!$B$6:$T$125,19,FALSE)) -> 2.05 | G86: =VLOOKUP(A86,LastYearContractPricelist!$B$4:$F$123,4,FALSE) -> 2.05 | H86: 2.05 | I86: =IF(A86=(""),"",VLOOKUP(A86,RawData!$C$8:$J$127,6,FALSE)) -> 0.25 | J86: =IF(A86=(""),"",VLOOKUP(A86,'NNR_PDP-per-Dollar'!$B$6:$T$125,4,FALSE)) -> 4.093531156 | K86: =IF(A86=(""),"",VLOOKUP(A86,RawData!$C$8:$BK$127,4,FALSE)) -> 0.59 | L86: =IF(A86=(""),"",VLOOKUP(A86,'NNR_PDP-per-Dollar'!$B$6:$T$125,7,FALSE)) -> 0.5511111111 | M86: =IF(A86=(""),"",VLOOKUP(A86,'NNR_PDP-per-Dollar'!$B$6:$T$125,10,FALSE)) -> 0.2688346883
A87: Turnip greens and turnips, frozen, unprepared | C87: 84 | D87: =IF(A87=(""),"",VLOOKUP(A87,RawData!$C$8:$J$127,2,FALSE)) -> Turnip, greens | E87: =IF(A87=(""),"",VLOOKUP(A87,RawData!$C$8:$BK$127,5,FALSE)) -> Bags or lined Banana Boxes | F87: =IF(A87=(""),"",VLOOKUP(A87,'NNR_PDP-per-Dollar'!$B$6:$T$125,19,FALSE)) -> 1.65 | G87: =VLOOKUP(A87,LastYearContractPricelist!$B$4:$F$123,4,FALSE) -> 2.05 | H87: 2.05 | I87: =IF(A87=(""),"",VLOOKUP(A87,RawData!$C$8:$J$127,6,FALSE)) -> 0.05 | J87: =IF(A87=(""),"",VLOOKUP(A87,'NNR_PDP-per-Dollar'!$B$6:$T$125,4,FALSE)) -> 13.42329386 | K87: =IF(A87=(""),"",VLOOKUP(A87,RawData!$C$8:$BK$127,4,FALSE)) -> 0.08 | L87: =IF(A87=(""),"",VLOOKUP(A87,'NNR_PDP-per-Dollar'!$B$6:$T$125,7,FALSE)) -> 1.573333333 | M87: =IF(A87=(""),"",VLOOKUP(A87,'NNR_PDP-per-Dollar'!$B$6:$T$125,10,FALSE)) -> 0.9535353535
A88: Turnip root, mature | C88: 85 | D88: =IF(A88=(""),"",VLOOKUP(A88,RawData!$C$8:$J$127,2,FALSE)) -> Turnip, root | E88: =IF(A88=(""),"",VLOOKUP(A88,RawData!$C$8:$BK$127,5,FALSE)) -> Bags or lined Banana Boxes | F88: =IF(A88=(""),"",VLOOKUP(A88,'NNR_PDP-per-Dollar'!$B$6:$T$125,19,FALSE)) -> 0.85 | G88: =VLOOKUP(A88,LastYearContractPricelist!$B$4:$F$123,4,FALSE) -> 1.05 | H88: 1.05 | I88: =IF(A88=(""),"",VLOOKUP(A88,RawData!$C$8:$J$127,6,FALSE)) -> 0.05 | J88: =IF(A88=(""),"",VLOOKUP(A88,'NNR_PDP-per-Dollar'!$B$6:$T$125,4,FALSE)) -> 3.880730519 | K88: =IF(A88=(""),"",VLOOKUP(A88,RawData!$C$8:$BK$127,4,FALSE)) -> 0.08 | L88: =IF(A88=(""),"",VLOOKUP(A88,'NNR_PDP-per-Dollar'!$B$6:$T$125,7,FALSE)) -> 0.5511111111 | M88: =IF(A88=(""),"",VLOOKUP(A88,'NNR_PDP-per-Dollar'!$B$6:$T$125,10,FALSE)) -> 0.6483660131
A89: Turnip root, salad | C89: 86 | D89: =IF(A89=(""),"",VLOOKUP(A89,RawData!$C$8:$J$127,2,FALSE)) -> Turnip, salad type | E89: =IF(A89=(""),"",VLOOKUP(A89,RawData!$C$8:$BK$127,5,FALSE)) -> Bags or lined Banana Boxes | F89: =IF(A89=(""),"",VLOOKUP(A89,'NNR_PDP-per-Dollar'!$B$6:$T$125,19,FALSE)) -> 1.65 | G89: =VLOOKUP(A89,LastYearContractPricelist!$B$4:$F$123,4,FALSE) -> 2.05 | H89: 2.05 | I89: =IF(A89=(""),"",VLOOKUP(A89,RawData!$C$8:$J$127,6,FALSE)) -> 0.05 | J89: =IF(A89=(""),"",VLOOKUP(A89,'NNR_PDP-per-Dollar'!$B$6:$T$125,4,FALSE)) -> 3.880730519 | K89: =IF(A89=(""),"",VLOOKUP(A89,RawData!$C$8:$BK$127,4,FALSE)) -> 0.08 | L89: =IF(A89=(""),"",VLOOKUP(A89,'NNR_PDP-per-Dollar'!$B$6:$T$125,7,FALSE)) -> 0.5511111111 | M89: =IF(A89=(""),"",VLOOKUP(A89,'NNR_PDP-per-Dollar'!$B$6:$T$125,10,FALSE)) -> 0.334006734
A90: Watermelon, raw | C90: 87 | D90: =IF(A90=(""),"",VLOOKUP(A90,RawData!$C$8:$J$127,2,FALSE)) -> Watermelon, red | E90: =IF(A90=(""),"",VLOOKUP(A90,RawData!$C$8:$BK$127,5,FALSE)) -> Loose in Banana Boxes | F90: =IF(A90=(""),"",VLOOKUP(A90,'NNR_PDP-per-Dollar'!$B$6:$T$125,19,FALSE)) -> 0.395 | G90: =VLOOKUP(A90,LastYearContractPricelist!$B$4:$F$123,4,FALSE) -> 0.55 | H90: 0.55 | I90: =IF(A90=(""),"",VLOOKUP(A90,RawData!$C$8:$J$127,6,FALSE)) -> 0.1 | J90: =IF(A90=(""),"",VLOOKUP(A90,'NNR_PDP-per-Dollar'!$B$6:$T$125,4,FALSE)) -> 2.547066579 | K90: =IF(A90=(""),"",VLOOKUP(A90,RawData!$C$8:$BK$127,4,FALSE)) -> 0.44 | L90: =IF(A90=(""),"",VLOOKUP(A90,'NNR_PDP-per-Dollar'!$B$6:$T$125,7,FALSE)) -> 0.7085714286 | M90: =IF(A90=(""),"",VLOOKUP(A90,'NNR_PDP-per-Dollar'!$B$6:$T$125,10,FALSE)) -> 1.793851718
A91: Watermellon (yellow) | C91: =1+C90 -> 88 | D91: =IF(A91=(""),"",VLOOKUP(A91,RawData!$C$8:$J$127,2,FALSE)) -> Watermelon, yellow | E91: =IF(A91=(""),"",VLOOKUP(A91,RawData!$C$8:$BK$127,5,FALSE)) -> Loose in Banana Boxes | F91: =IF(A91=(""),"",VLOOKUP(A91,'NNR_PDP-per-Dollar'!$B$6:$T$125,19,FALSE)) -> 0.55 | G91: =VLOOKUP(A91,LastYearContractPricelist!$B$4:$F$123,4,FALSE) -> 0.55 | H91: 0.55 | I91: =IF(A91=(""),"",VLOOKUP(A91,RawData!$C$8:$J$127,6,FALSE)) -> 0.1 | J91: =IF(A91=(""),"",VLOOKUP(A91,'NNR_PDP-per-Dollar'!$B$6:$T$125,4,FALSE)) -> 2.547066579 | K91: =IF(A91=(""),"",VLOOKUP(A91,RawData!$C$8:$BK$127,4,FALSE)) -> 0.44 | L91: =IF(A91=(""),"",VLOOKUP(A91,'NNR_PDP-per-Dollar'!$B$6:$T$125,7,FALSE)) -> 0.7085714286 | M91: =IF(A91=(""),"",VLOOKUP(A91,'NNR_PDP-per-Dollar'!$B$6:$T$125,10,FALSE)) -> 1.288311688
A92: Romaine, Raw | C92: 89 | D92: =IF(A92=(""),"",VLOOKUP(A92,RawData!$C$8:$J$127,2,FALSE)) -> Lettuce, romaine | E92: =IF(A92=(""),"",VLOOKUP(A92,RawData!$C$8:$BK$127,5,FALSE)) -> Bags or lined Banana Boxes | F92: =IF(A92=(""),"",VLOOKUP(A92,'NNR_PDP-per-Dollar'!$B$6:$T$125,19,FALSE)) -> 1.05 | G92: =VLOOKUP(A92,LastYearContractPricelist!$B$4:$F$123,4,FALSE) -> 1.25 | H92: 1.25 | I92: =IF(A92=(""),"",VLOOKUP(A92,RawData!$C$8:$J$127,6,FALSE)) -> 0.05 | J92: =IF(A92=(""),"",VLOOKUP(A92,'NNR_PDP-per-Dollar'!$B$6:$T$125,4,FALSE)) -> 15.98884726 | K92: =IF(A92=(""),"",VLOOKUP(A92,RawData!$C$8:$BK$127,4,FALSE)) -> 0.52 | L92: =IF(A92=(""),"",VLOOKUP(A92,'NNR_PDP-per-Dollar'!$B$6:$T$125,7,FALSE)) -> 0.9733333333 | M92: =IF(A92=(""),"",VLOOKUP(A92,'NNR_PDP-per-Dollar'!$B$6:$T$125,10,FALSE)) -> 0.926984127
A93: Coriander (Cilantro) Leaves, Raw | C93: =1+C92 -> 90 | D93: =IF(A93=(""),"",VLOOKUP(A93,RawData!$C$8:$J$127,2,FALSE)) -> Cilantro | E93: =IF(A93=(""),"",VLOOKUP(A93,RawData!$C$8:$BK$127,5,FALSE)) -> Bags or lined Banana Boxes | F93: =IF(A93=(""),"",VLOOKUP(A93,'NNR_PDP-per-Dollar'!$B$6:$T$125,19,FALSE)) -> 6.05 | G93: =VLOOKUP(A93,LastYearContractPricelist!$B$4:$F$123,4,FALSE) -> 6.05 | H93: 6.05 | I93: =IF(A93=(""),"",VLOOKUP(A93,RawData!$C$8:$J$127,6,FALSE)) -> 0.05 | J93: =IF(A93=(""),"",VLOOKUP(A93,'NNR_PDP-per-Dollar'!$B$6:$T$125,4,FALSE)) -> 17.67761312 | K93: =IF(A93=(""),"",VLOOKUP(A93,RawData!$C$8:$BK$127,4,FALSE)) -> 0.59 | L93: =IF(A93=(""),"",VLOOKUP(A93,'NNR_PDP-per-Dollar'!$B$6:$T$125,7,FALSE)) -> 0.5511111111 | M93: =IF(A93=(""),"",VLOOKUP(A93,'NNR_PDP-per-Dollar'!$B$6:$T$125,10,FALSE)) -> 0.09109274564
